Workbook

Sheet Generic (hidden)
K2: =M8+I15 -> 114
S4: ='Simple AR Calculator'!B89 -> 5.033270478 | U4: =AA4 -> 0.2371463677 | W4: =S4+U4 -> 5.270416845 | Y4: ='Simple AR Calculator'!E89 -> 19.7339667 | AA4: ='Simple AR Calculator'!K13/'Simple AR Calculator'!D9 -> 0.2371463677
O5: =I15/M8 -> 4.872976705 | S5: ='Simple AR Calculator'!B90 -> 5.182141691 | T5: =S4/S5 -> 0.9712722612 | U5: =U4*T5 -> 0.2303336888 | W5: =S5+U5 -> 5.412475379 | Y5: ='Simple AR Calculator'!E90 -> 19.74994316 | Z5: =Y5/Y4 -> 1.000809592 | AA5: =AA4*Z5 -> 0.2373383595
S6: ='Simple AR Calculator'!B91 -> 5.25810009 | T6: 0.9855540218 | U6: 0.2270062934 | W6: 5.485106383 | Y6: ='Simple AR Calculator'!E91 -> 19.76897842 | Z6: =Y6/Y5 -> 1.000963814 | AA6: =AA5*Z6 -> 0.2375671094
O7: AR is active calculation | S7: ='Simple AR Calculator'!B92 -> 5.322067644 | T7: 0.9879806951 | U7: 0.2242778355 | W7: 5.546345479 | Y7: ='Simple AR Calculator'!E92 -> 19.79165425 | Z7: 1.001147041 | AA7: 0.2378396086
M8: =M14+L10 -> 19.41094027 | O8: =I18/M14 -> 5.222222222 | S8: ='Simple AR Calculator'!B93 -> 5.375899861 | T8: 0.9899863802 | U8: 0.2220320026 | W8: 5.597931863 | Y8: ='Simple AR Calculator'!E93 -> 19.81866144 | Z8: 1.001364575 | AA8: 0.2381641585
O9: =I15/M8 -> 4.872976705 | P9: =AVERAGE(O8,O9) -> 5.047599464 | S9: ='Simple AR Calculator'!B94 -> 5.421176352 | T9: 0.9916482165 | U9: 0.2201776393 | W9: 5.641353991 | Y9: ='Simple AR Calculator'!E94 -> 19.8508196 | Z9: 1.00162262 | AA9: 0.2385506085
L10: =I18-I15 -> 1.089511694 | M10: =M8-M14 -> 1.089511694 | O10: =1/O8 -> 0.1914893617 | S10: ='Simple AR Calculator'!B95 -> 5.459238425 | T10: 0.9930279519 | U10: 0.2186425502 | W10: 5.677880975 | Y10: ='Simple AR Calculator'!E95 -> 19.88910025 | Z10: 1.001928417 | AA10: 0.2390106334
I11: ='Simple AR Calculator'!C17 -> 114 | O11: =1/O9 -> 0.2052133758 | S11: ='Simple AR Calculator'!B96 -> 5.491222639 | T11: 0.994175393 | U11: 0.2173690433 | W11: 5.708591682 | Y11: ='Simple AR Calculator'!E96 -> 19.93465365 | Z11: 1.00229037 | AA11: 0.2395580562
B12: CosA = a/b | D12: =I28/I11 -> 0.9824561404 | S12: ='Simple AR Calculator'!B97 -> 5.518090385 | T12: 0.9951309704 | U12: 0.216310667 | W12: 5.734401052 | Y12: ='Simple AR Calculator'!E97 -> 19.98883989 | Z12: 1.002718193 | AA12: 0.2402092214
D13: =DEGREES(ACOS(D12)) -> 10.74823586 | S13: ='Simple AR Calculator'!B98 -> 5.54065371 | T13: 0.9959276782 | U13: 0.2154297803 | W13: 5.75608349 | Y13: ='Simple AR Calculator'!E98 -> 20.05326463 | Z13: 1.003223035 | AA13: 0.2409834242
M14: =D15 -> 18.32142857 | P14: =I15+M8 -> 114 | S14: ='Simple AR Calculator'!B99 -> 5.559597697 | T14: 0.9965925616 | U14: 0.2146957166 | W14: 5.774293413 | Y14: ='Simple AR Calculator'!E99 -> 20.12981992 | Z14: 1.003817597 | AA14: 0.2419034019
B15: PRO adj to hyp | D15: =(M24*I11)/I28 -> 18.32142857 | E15: mm | I15: =C24 -> 94.58905973 | P15: =M14+I18 -> 114 | S15: ='Simple AR Calculator'!B100 -> 5.575499738 | T15: 0.9971478715 | U15: 0.2140833768 | W15: 5.789583115 | Y15: ='Simple AR Calculator'!E100 -> 20.22073047 | Z15: 1.004516213 | AA15: 0.2429958891
B16: o = TanA*adj | D16: =(TAN(RADIANS(E23))*I28) -> 21.26029163 | E16: mm | S16: ='Simple AR Calculator'!B111 -> 5.491407943 | T16: 1.01531334 | U16: 0.2173617083 | W16: 5.708769652 | Y16: ='Simple AR Calculator'!E111 -> 20.43232559 | Z16: 1.010464267 | AA16: 0.245538663
D17: =(TAN(RADIANS(E23))*I24) -> 17.84345904 | E17: mm | S17: ='Simple AR Calculator'!B101 -> 5.588846063 | T17: 0.9825656103 | U17: 0.2135721396 | W17: 5.802418203 | Y17: ='Simple AR Calculator'!E101 -> 20.32860548 | Z17: 0.9949237247 | AA17: 0.2442922411
I18: =I11-M14 -> 95.67857143 | L18: =D17 -> 17.84345904 | N18: =D16 -> 21.26029163 | S18: ='Simple AR Calculator'!B102 -> 5.600045845 | T18: 0.9980000553 | U18: 0.2131450071 | W18: 5.813190853 | Y18: ='Simple AR Calculator'!E102 -> 20.45649611 | Z18: 1.006291166 | AA18: 0.2458291241
S19: ='Simple AR Calculator'!B103 -> 5.609443217 | T19: 0.998324723 | U19: 0.2127879302 | W19: 5.822231147 | Y19: ='Simple AR Calculator'!E103 -> 20.60795811 | Z19: 1.007404102 | AA19: 0.2476492681
S20: ='Simple AR Calculator'!B104 -> 5.617327467 | T20: 0.998596441 | U20: 0.2124892698 | W20: 5.829816737 | Y20: ='Simple AR Calculator'!E104 -> 20.78711893 | Z20: 1.008693769 | AA20: 0.2498022737
B21: ROT = | C21: =E23-C27 -> 6.397679588 | S21: ='Simple AR Calculator'!B105 -> 5.623941686 | T21: 0.9988239176 | U21: 0.2122393649 | W21: 5.836181051 | Y21: ='Simple AR Calculator'!E105 -> 20.9987481 | Z21: 1.010180784 | AA21: 0.2523454566
C22: =(TAN(RADIANS(F22))*I24) -> 10.53993461 | F22: =C21 -> 6.397679588 | M22: =N18-L18 -> 3.416832583 | S22: ='Simple AR Calculator'!B106 -> 5.629490072 | T22: 0.9990144071 | U22: 0.2120301833 | W22: 5.841520255 | Y22: ='Simple AR Calculator'!E106 -> 21.24832875 | Z22: 1.011885502 | AA22: 0.255344709
B23: Pthag = a2+b2=c2 | D23: A | E23: =D13 -> 10.74823586 | S23: ='Simple AR Calculator'!B107 -> 5.634144105 | T23: 0.9991739591 | U23: 0.2118550377 | W23: 5.845999143 | Y23: ='Simple AR Calculator'!E107 -> 21.54212803 | Z23: 1.013826936 | AA23: 0.2588753438
C24: =SQRT(C22^2+I24^2) -> 94.58905973 | I24: ='Simple AR Calculator'!C9 -> 94 | M24: ='Simple AR Calculator'!C12 -> 18 | O24: =I24/M24 -> 5.222222222 | S24: ='Simple AR Calculator'!B108 -> 5.638047759 | T24: 0.9993076232 | U24: 0.2117083541 | W24: 5.849756113 | Y24: ='Simple AR Calculator'!E108 -> 21.887263 | Z24: 1.016021396 | AA24: 0.2630228883
B25: carry in | C25: ='Simple AR Calculator'!C147 -> 4.34222389 | D25: whip rot
C26: ='Simple AR Calculator'!E147 -> 3.862545258
C27: ='Simple AR Calculator'!C130 -> 4.35055627 | O27: =N18/I24 -> 0.2261733152 | P27: is 19.82!
I28: =I24+M24 -> 112 | O28: =L18/I28 -> 0.1593165986
B29: Geometric angle of whip rotation = | N29: tan | O29: =C22/I24 -> 0.1121269639 | P29: is 13.6502
G30: =1/O24 -> 0.1914893617 | H30: =1/G30 -> 5.222222222 | I30: AR | J30: =H30*0.95 -> 4.961111111 | O30: =L18/I24 -> 0.1898240324 | P30: is 17.146
B31: f /d = | C31: Sk_in_Seg / Whip_O_Mom = | F31: Iso Sys AR | G31: =M8/I15 -> 0.2052133758 | H31: =1/G31 -> 4.872976705 | I31: AR
B32: Now AR * Sk_rots_Ideal of | E32: 19.49 | F32: =E32*G31 -> 3.999608695 | G32: which = Whip Rot
B33: Whip Rot * Key Ratio = Key Rot | F33: =C25*(132/266) -> 2.154787795 | N33: =L10 -> 1.089511694
N34: a | O34: B
C35: cosA = (b2 + c2 - a2) / (2bc) | F35: =(M38^2 +P37^ 2 - N33^2) / (2*M38*P37) -> 1.013823002 | G35: =DEGREES(ACOS(F35)) ->  | M35: C | U35: Driving | V35: Driven (f) | AA35: Driving | AB35: Driven (f) | AH35: Torques
C36: a2-b2-c2 | F36: =(I24^2 - I11^2 -N18^2) / (-2*I24*I11) -> 0.2151922359 | U36: ='Simple AR Calculator'!D7 -> 124.6154084 | V36: ='Simple AR Calculator'!D10 -> 64 | AA36: ='Simple AR Calculator'!C7 -> 115 | AB36: ='Simple AR Calculator'!C10 -> 64 | AH36: =50*'Simple AR Calculator'!C8 -> 11250 | AI36: ='Simple AR Calculator'!H12/1000 -> 0.009366327475 | AV36: (8.7680774*10^(-5))*x^3-0.0046096*x^2+0.0859817*x+5.120083
O37: c | P37: =N18 -> 21.26029163 | S37: 20.1 | T37: =AB37 -> 18 | U37: ='Simple AR Calculator'!D9 -> 94 | V37: ='Simple AR Calculator'!F16 -> 19.82922312 | W37: (f) / drive | AA37: ='Simple AR Calculator'!C9 -> 94 | AB37: ='Simple AR Calculator'!C12 -> 18 | AC37: (f) / drive | AH37: ='Simple AR Calculator'!H12*'Simple AR Calculator'!C11 -> 1198.889917 | AI37: ='Simple AR Calculator'!C11/1000 -> 0.128
M38: =L18 -> 17.84345904 | N38: b | U38: =U36*U37 -> 11713.84839 | V38: =V36*V37 -> 1269.070279 | W38: =V38/U38 -> 0.1083393124 | X38: =1/W38 -> 9.230259801 | Y38: =X38/2 -> 4.615129901 | AA38: =AA36*AA37 -> 10810 | AB38: =AB36*AB37 -> 1152 | AC38: =AB38/AA38 -> 0.1065679926 | AD38: =1/AC38 -> 9.383680556 | AE38: =AD38/2 -> 4.691840278 | AH38: =AH37/AH36 -> 0.1065679926 | AI38: is T_o / T_i aka MA | AV38: -0.0017161*x^2+0.059923*x+5.1733233
C39: cosB = (a2 - b2 + c2) / 2ac | F39: =(G27^2 - E32^2 + B29^2) / (2*G27*B29) ->  | G39: =DEGREES(ACOS(F39)) ->  | H39: =G35+G39+G42 ->  | M39: 22.3425 | AH39: =AH36/AH37 -> 9.383680556 | AI39: =AI36*AI37^2 -> 0.0001534579093 | AJ39: is I_ham
U40: Driving | V40: Driven (f) | AA40: Driving | AB40: Driven (f) | AH40: =AH39^2 -> 88.05346077 | AI40: =AB45 -> 0.0001987190614 | AJ40: I_SW
U41: =V36 -> 64 | V41: =U36 -> 124.6154084 | AA41: =AB36 -> 64 | AB41: =AA36 -> 115 | AH41: =AI40*AH40 -> 0.01749790107 | AI41: inertia
C42: cosC = (a2 + b2 - c2) / 2ab | F42: =(G27^2 + E32^2 - B29^2) / (2*G27*E32) ->  | G42: =DEGREES(ACOS(F42)) ->  | N42: A | S42: 21.4 | T42: =AA42 -> 18 | U42: =V37 -> 19.82922312 | V42: =U37 -> 94 | W42: (f) / drive | AA42: =AB37 -> 18 | AB42: =AA37 -> 94 | AC42: (f) / drive
U43: =U41*U42 -> 1269.070279 | V43: =V41*V42 -> 11713.84839 | W43: =V43/U43 -> 9.230259801 | X43: =1/W43 -> 0.1083393124 | Y43: =X43/2 -> 0.05416965619 | AA43: =AA41*AA42 -> 1152 | AB43: =AB41*AB42 -> 10810 | AC43: =AB43/AA43 -> 9.383680556 | AD43: =1/AC43 -> 0.1065679926 | AE43: =AD43/2 -> 0.0532839963
C45: =M24 -> 18 | I45: =M24 -> 18 | K45: Si Diag | N45: a 2 = b 2 + c 2 - 2 b c cos(A) | R45: =SQRT(H50^2+I45^2) -> 22.29175857 | U45: Iham | V45: ='Simple AR Calculator'!D58 -> 0.0001987190614 | AA45: Iham | AB45: =V45 -> 0.0001987190614
E46: =C45/D48 -> 0.9824561404 | G46: KNUCKLE TRIG | J46: ='Simple AR Calculator'!C14 -> 6.3 | N46: b 2 = a 2 + c 2 - 2 a c cos(B) | R46: =G47/I45 -> 0.7305555556 | U46: Inert Ham | V46: =X38^2* V45 -> 0.01693040618 | AA46: Inert Ham | AB46: =AD38^2* AB45 -> 0.01749790107
E47: =DEGREES(ACOS(E46)) -> 10.74823586 | F47: deg | G47: =H49+J49 -> 13.15 | N47: c 2 = b 2 + a 2 - 2 b a cos(C) | V47: =V46*10000 -> 169.3040618 | AB47: =AB46*10000 -> 174.9790107 | AG47: ='Simple AR Calculator'!D7 -> 124.6154084 | BG47: Parts
D48: =M14 -> 18.32142857 | E48: =H52-E47 -> 25.401968 | F48: deg | G48: =(H49/2)+J49 -> 8.15 | R48: =SQRT(G48^2+I45^2) -> 19.75911182 | AG48: ='Simple AR Calculator'!D8 -> 225 | BD48: =BD50/1000 -> 0.009366327475 | BE48: ='Simple AR Calculator'!D8/1000 -> 0.225 | BF48: Key | BG48: =BE48*BB55 -> 1.132485857
D49: =J56 -> 18 | E49: =E47+E48 -> 36.15020386 | G49: Knuckle diameter | H49: ='Simple AR Calculator'!C13 -> 10 | J49: =J46/2 -> 3.15 | AG49: ='Simple AR Calculator'!D11 -> 137.4190671 | BD49: ='Simple AR Calculator'!C63 -> 0.1873265495 | BE49: 8.9 | BF49: Rots | BG49: =BG48^2 -> 1.282524217
D50: =D48-D49 -> 0.3214285714 | G50: 9.32 | H50: =H49+J49 -> 13.15 | T50: a= sqrt (b2+c2−2bccosA) | X50: =X170 -> 19.82922312 | AG50: ='Simple AR Calculator'!G128 -> 19.82922312 | AH50: =X54 -> 22.29175857 | BD50: ='Simple AR Calculator'!H12 -> 9.366327475 | BE50: ='Simple AR Calculator'!D58 -> 0.0001987190614 | BF50: Iham | BG50: =(BD48*BG49)*10000 -> 120.1254181 | BI50: =BI55/145 -> 0.01540157054
H51: =G47/I45 -> 0.7305555556 | I51: =SQRT(I45^2+H50^2) -> 22.29175857 | T51: Sharp angle A of Cosine Triangle Recession yield SI Arm | Z51: Ang B of Cosine Triangle Recession yield AR invCos | AG51: ='Simple AR Calculator'!E9 -> 94.34922803 | BG51: =(BE50/(1/BE49)^2)*10000 -> 157.4053685 | BI51: Shank Key Angle RO & squared | BL51: Shank Key Angle RO S/L | BY51: AR config | BZ51: Rads | CA51: Δ Inv. T | CB51: CosT | CC51: invCosT | CD51: AR invCos | CE51: Cos
H52: =DEGREES(ATAN(H51)) -> 36.15020386 | K52: B | T52: Involute T = tanA - A | V52: [where T is the involute ang. And where ang A is in rads] | AE52: ='Simple AR Calculator'!C47 -> 5.014640128 | AG52: ='Simple AR Calculator'!D10 -> 64 | AO52: ='Simple AR Calculator'!E56 -> 44 | AQ52: ='Simple AR Calculator'!D47 -> 8.7743086 | AR52: =AO52/AQ52 -> 5.014640128 | BA52: =INDEX(BA55:BA75,MATCH(MIN(ABS(BA55:BA75-6)),ABS(BA55:BA75-6),0)) -> 5.746753636 | BB52: 6 | BI52: Key Ang involute | BL52: Key Ang S/L decrease | BX52: ='Simple AR Calculator'!C47 -> 5.014640128 | BY52: ='Simple AR Calculator'!C49 -> 5.637394182 | CA52: =BY52 -> 5.637394182 | CB52: =COS(RADIANS(CA52)) -> 0.9951635004 | CC52: =1/CB52 -> 1.004860005 | CD52: =($AG$47/$AG$48) * ($AG$49/$AG$50)* ($AG$51/$AG$52) * Generic!CC52 -> 5.685837735 | CE52: =($AG$47/$AG$48) * ($AG$49/$AG$50)* ($AG$51/$AG$52) -> 5.658338183
T53: Ang A end | U53: Rads | V53: Δ Inv. T | W53: CosA | X53: Si Arm in | Z53: Ang B | AA53: Rads | AB53: Δ Inv. T | AC53: CosT | AD53: invCosT | AE53: Cos | AF53: Parts Calc | AG53: InvCos | AJ53: Si Arm | AK53: InvCosAR | AL53: Shnk Ang | AM53: CosConfig | AN53: Blow Pot. | AO53: Ham Rise | AP53: Dip Pot. | AQ53: Key Dwn | AS53: Readouts below per KEY ANGLE recesion: Yield Dip, ARCos, Blow | AZ53: Readouts Shorter Version of Left | BE53: Readout per Shank Angle Recession | BY53: =BY52 -> 5.637394182 | BZ53: =(RADIANS(BY53)) -> 0.0983910897 | CA53: =BZ53-BY53 -> -5.539003092 | CB53: =COS(RADIANS(CA53)) -> 0.9953307224 | CC53: =1/CB53 -> 1.004691182 | CD53: =($AG$47/$AG$48) * ($AG$49/$AG$50)* ($AG$51/$AG$52) * Generic!CC53 -> 5.684882477 | CE53: 5.658338183
S54: ='Simple AR Calculator'!B166 -> 1.466429213 | T54: =T55 -> 5.816985483 | U54: =(RADIANS(T54)) -> 0.1015255492 | V54: =T54 -> 5.816985483 | W54: =COS(RADIANS(V54)) -> 0.9948507067 | X54: =SQRT($H$62^2+$F$60^2-2*$H$62*$F$60*(COS(RADIANS(V54)))) -> 22.29175857 | Y54: ='Simple AR Calculator'!J131 -> 6.993996684 | Z54: =Z55 -> 25.401968 | AB54: =Z54 -> 25.401968 | AC54: =COS(RADIANS(AB54)) -> 0.9033205592 | AD54: =1/AC54 -> 1.107026725 | AE54: =($AG$47/$AG$48) * ($AG$49/$AH$50)* ($AG$51/$AG$52) * Generic!AC54 -> 4.546656703 | AF54: =($AG$47/$AG$48) * ($AG$49/X54)* ($AG$51/$AG$52) -> 5.033270478 | AG54: =($AG$47/$AG$48) * ($AG$49/$AG$50)* ($AG$51/$AG$52)*AD54 -> 6.263931585 | AH54: =($AG$47/$AG$48) * ($AG$49/$AH$50)* ($AG$51/$AG$52)*AD54 -> 5.571964931 | AJ54: =X54 -> 22.29175857 | AK54: =AG54 -> 6.263931585 | AL54: =BE56 -> 18.41360449 | AM54: =BB55 -> 5.033270478 | AN54: =BC55 -> 44.12992567 | AO54: =$AO$52-AN54 -> -0.1299256683 | AP54: =BA55 -> 8.76764439 | AQ54: =$AQ$52-AP54 -> 0.006664210159 | AR54: =$AO$52/AM54 -> 8.741831021 | AS54: Ang A end | AT54: Rads | AU54: Δ Inv. T | AV54: sinA | AW54: Δ Dip | AX54: ARCos | AY54: Blow | BA54: Δ Dip | BB54: Cos | BC54: Blow | BD54: Inertia | BE54: Shk Ang | BF54: Rads | BG54: Δ Inv. T | BH54: sinA | BJ54: Shk/Key | BK54: Squared | BM54: Shk/key | BN54: Squared | BO54: Inertia | BR54: Ang B | BS54: Rads | BT54: Δ Inv. T | BU54: CosT | BY54: =ABS(CA53) -> 5.539003092 | BZ54: =(RADIANS(BY54)) -> 0.09667384124 | CA54: =BZ54-BY54 -> -5.442329251 | CB54: =COS(RADIANS(CA54)) -> 0.9954921671 | CC54: =1/CB54 -> 1.004528245 | CD54: =($AG$47/$AG$48) * ($AG$49/$AG$50)* ($AG$51/$AG$52) * Generic!CC54 -> 5.683960527 | CE54: 5.658338183
I55: =F60-K64 -> 1.329343396 | T55: ='Simple AR Calculator'!C129 -> 5.816985483 | U55: =(RADIANS(T55)) -> 0.1015255492 | V55: =U55-T55 -> -5.715459933 | W55: =COS(RADIANS(V55)) -> 0.9950287346 | X55: =SQRT($H$62^2+$F$60^2-2*$H$62*$F$60*(COS(RADIANS(V55)))) -> 22.20569365 | Y55: 1 | Z55: ='Simple AR Calculator'!I156 -> 25.401968 | AA55: =(RADIANS(Z55)) -> 0.4433479781 | AB55: =AA55-Z55 -> -24.95862002 | AC55: =COS(RADIANS(AB55)) -> 0.9066127727 | AD55: =1/AC55 -> 1.103006741 | AE55: =($AG$47/$AG$48) * ($AG$49/$AG$50)* ($AG$51/$AG$52) * Generic!AC55 -> 5.129921668 | AF55: =($AG$47/$AG$48) * ($AG$49/X55)* ($AG$51/$AG$52) -> 5.052778447 | AG55: =($AG$47/$AG$48) * ($AG$49/$AG$50)* ($AG$51/$AG$52)*AD55 -> 6.24118516 | AH55: =($AG$47/$AG$48) * ($AG$49/$AH$50)* ($AG$51/$AG$52)*AD55 -> 5.551731268 | AJ55: =X59 -> 21.887263 | AK55: =AG59 -> 6.158979721 | AL55: =BE59 -> 17.46619983 | AM55: =BB56 -> 5.182141691 | AN55: =BC56 -> 42.34669084 | AO55: =$AO$52-AN55 -> 1.653309161 | AP55: 8.171658238 | AQ55: 0.602650362 | AR55: =$AO$52/AM55 -> 8.490697983 | AS55: ='Simple AR Calculator'!E144 -> 2.233227728 | AT55: =(RADIANS(AS55)) -> 0.0389771768 | AU55: =AS55 -> 2.233227728 | AV55: =SIN(RADIANS(AU55)) -> 0.0389673084 | AW55: =AV55*'Simple AR Calculator'!$C$8 -> 8.76764439 | AX55: =AF54 -> 5.033270478 | AY55: =AW55*AX55 -> 44.12992567 | AZ55: 1 | BA55: =AW55 -> 8.76764439 | BB55: =AX55 -> 5.033270478 | BC55: =AY55 -> 44.12992567 | BD55: =(($BE$48*BB55)^2*$BD$48)*10000 -> 120.1254181 | BE55: ='Simple AR Calculator'!J145 -> 18.41360449 | BF55: =(RADIANS(BE55)) -> 0.3213780254 | BG55: =BE55 -> 18.41360449 | BH55: =SIN(RADIANS(BG55)) -> 0.3158743321 | BI55: =AS55 -> 2.233227728 | BJ55: =BE55/BI55 -> 8.245287417 | BK55: =BJ55^2 -> 67.98476459 | BL55: =BI55 -> 2.233227728 | BM55: =BE55/BL55 -> 8.245287417 | BN55: =BM55^2 -> 67.98476459 | BO55: =BN55*$BE$50 -> 0.01350986861 | BR55: =BR56 -> 31.21895348 | BT55: =BR55 -> 31.21895348 | BU55: =COS(RADIANS(BT55)) -> 0.8551928497 | BY55: =ABS(CA54) -> 5.442329251 | BZ55: =(RADIANS(BY55)) -> 0.0949865644 | CA55: =BZ55-BY55 -> -5.347342686 | CB55: =COS(RADIANS(CA55)) -> 0.9956480338 | CC55: =1/CB55 -> 1.004370989 | CD55: =($AG$47/$AG$48) * ($AG$49/$AG$50)* ($AG$51/$AG$52) * Generic!CC55 -> 5.683070714 | CE55: 5.658338183
G56: Shank CL | J56: =I45 -> 18 | K56: =H52 -> 36.15020386 | L56: degrees inc. | T56: =ABS(V55) -> 5.715459933 | U56: =(RADIANS(T56)) -> 0.0997535941 | V56: =U56-T56 -> -5.615706339 | W56: =COS(RADIANS(V56)) -> 0.9952006124 | X56: =SQRT($H$62^2+$F$60^2-2*$H$62*$F$60*(COS(RADIANS(V56)))) -> 22.12228422 | Z56: =ABS(AB55) -> 24.95862002 | AA56: =(RADIANS(Z56)) -> 0.4356100961 | AB56: =AA56-Z56 -> -24.52300993 | AC56: =COS(RADIANS(AB56)) -> 0.9097946571 | AD56: =1/AC56 -> 1.099149124 | AE56: =($AG$47/$AG$48) * ($AG$49/$AG$50)* ($AG$51/$AG$52) * Generic!AC56 -> 5.147925847 | AF56: 5.071829344 | AG56: 6.219357454 | AH56: 5.532314834 | AJ56: =X64 -> 21.54212803 | AK56: =AG64 -> 6.073230511 | AL56: =BE64 -> 15.99427091 | AM56: 5.25810009 | AN56: 39.34780305 | AO56: =$AO$52-AN56 -> 4.652196951 | AP56: 7.483273878 | AQ56: 1.291034723 | AR56: =$AO$52/AM56 -> 8.368041545 | AS56: =AS55 -> 2.233227728 | AT56: =(RADIANS(AS56)) -> 0.0389771768 | AU56: =AT56-AS56 -> -2.194250551 | AV56: =SIN(RADIANS(AU56)) -> -0.03828753605 | AW56: =ABS(AV56)*'Simple AR Calculator'!$C$8 -> 8.614695611 | AX56: =AE55 -> 5.129921668 | AY56: =AW56*AX56 -> 44.19271368 | BA56: =AW59 -> 8.171658238 | BB56: =AX59 -> 5.182141691 | BC56: =AY59 -> 42.34669084 | BD56: =(($BE$48*BB56)^2*$BD$48)*10000 -> 127.3365095 | BE56: =BE55 -> 18.41360449 | BF56: =(RADIANS(BE56)) -> 0.3213780254 | BG56: =BF56-BE56 -> -18.09222646 | BH56: =SIN(RADIANS(BG56)) -> -0.3105474666 | BI56: =AS56 -> 2.233227728 | BJ56: =BE56/BI56 -> 8.245287417 | BK56: =BJ56^2 -> 67.98476459 | BL56: =BL55- $BI$50 -> 2.217826158 | BM56: =BE56/BL56 -> 8.302546357 | BN56: =BM56^2 -> 68.93227602 | BO56: =BN56*$BE$50 -> 0.01369815719 | BR56: ='Simple AR Calculator'!I162 -> 31.21895348 | BS56: =(RADIANS(BR56)) -> 0.5448735273 | BT56: =BS56-BR56 -> -30.67407996 | BU56: 0.8600831482 | BY56: 5.347342686 | BZ56: 0.09332873611 | CA56: -5.25401395 | CB56: 0.9957985148 | CC56: 1.004219212 | CD56: =($AG$47/$AG$48) * ($AG$49/$AG$50)* ($AG$51/$AG$52) * Generic!CC56 -> 5.682211912 | CE56: 5.658338183
T57: =ABS(V56) -> 5.615706339 | U57: =(RADIANS(T57)) -> 0.09801256545 | V57: =U57-T57 -> -5.517693774 | W57: 0.9953665523 | X57: 22.04145691 | Z57: =ABS(AB56) -> 24.52300993 | AA57: =(RADIANS(Z57)) -> 0.4280072657 | AB57: =AA57-Z57 -> -24.09500266 | AC57: 0.9128697884 | AD57: 1.095446484 | AE57: =($AG$47/$AG$48) * ($AG$49/$AG$50)* ($AG$51/$AG$52) * Generic!AC57 -> 5.165325979 | AF57: 5.090428039 | AG57: 6.198406667 | AH57: 5.513678448 | AJ57: =X69 -> 21.24832875 | AK57: =AG69 -> 6.002858698 | AL57: =BE69 -> 14.64638585 | AM57: 5.322067644 | AN57: 36.47127831 | AO57: 7.52872169 | AP57: 6.852840052 | AQ57: 1.921468548 | AR57: 8.267463502 | AS57: =ABS(AU56) -> 2.194250551 | AT57: =(RADIANS(AS57)) -> 0.03829689674 | AU57: -2.155953655 | AV57: =SIN(RADIANS(AU57)) -> -0.03761961071 | AW57: =ABS(AV57)*'Simple AR Calculator'!$C$8 -> 8.464412409 | AX57: 5.147925847 | AY57: 43.57416742 | BA57: =AW64 -> 7.483273878 | BB57: =AX64 -> 5.25810009 | BC57: =AY64 -> 39.34780305 | BD57: 131.0967942 | BE57: =ABS(BG56) -> 18.09222646 | BF57: =(RADIANS(BE57)) -> 0.3157689208 | BG57: =BF57-BE57 -> -17.77645754 | BH57: =SIN(RADIANS(BG57)) -> -0.3053040555 | BI57: 2.194250551 | BJ57: 8.245287417 | BK57: 67.98476459 | BL57: =BL56- $BI$50 -> 2.202424587 | BM57: =BE57/BL57 -> 8.214686018 | BN57: 67.48106637 | BO57: 0.01340977417 | BR57: =ABS(BT56) -> 30.67407996 | BS57: =(RADIANS(BR57)) -> 0.5353636903 | BT57: =BS57-BR57 -> -30.13871627 | BU57: 0.8648123391 | BY57: 5.25401395 | BZ57: 0.09169984238 | CA57: -5.162314108 | CB57: 0.9959437961 | CC57: 1.004072724 | CD57: =($AG$47/$AG$48) * ($AG$49/$AG$50)* ($AG$51/$AG$52) * Generic!CC57 -> 5.68138303 | CE57: 5.658338183
K58: =E48 -> 25.401968 | L58: degrees | M58: =K56-K58 -> 10.74823586 | N58: deg | T58: 5.517693774 | U58: 0.09630192347 | V58: -5.42139185 | W58: 0.9955267591 | X58: 21.96313992 | Z58: =ABS(AB57) -> 24.09500266 | AA58: 0.4205371297 | AB58: -23.67446553 | AC58: 0.9158416347 | AD58: 1.091891832 | AE58: =($AG$47/$AG$48) * ($AG$49/$AG$50)* ($AG$51/$AG$52) * Generic!AC58 -> 5.182141691 | AF58: 5.108579679 | AG58: 6.178293242 | AH58: 5.495786921 | AJ58: =X74 -> 20.9987481 | AK58: =AG74 -> 5.944895592 | AL58: =BE74 -> 13.41209109 | AM58: 5.375899861 | AN58: 33.7363919 | AO58: 10.2636081 | AP58: 6.275487411 | AQ58: 2.498821189 | AR58: 8.184676266 | AS58: 2.155953655 | AT58: =(RADIANS(AS58)) -> 0.03762848979 | AU58: -2.118325165 | AV58: -0.03696332649 | AW58: =ABS(AV58)*'Simple AR Calculator'!$C$8 -> 8.31674846 | AX58: 5.165325979 | AY58: 42.95871688 | BA58: =AW69 -> 6.852840052 | BB58: =AX69 -> 5.322067644 | BC58: =AY69 -> 36.47127831 | BD58: 134.3059195 | BE58: =ABS(BG57) -> 17.77645754 | BF58: =(RADIANS(BE58)) -> 0.3102577134 | BG58: =BF58-BE58 -> -17.46619983 | BH58: -0.3001431264 | BI58: 2.155953655 | BJ58: 8.245287417 | BK58: 67.98476459 | BL58: 2.187023017 | BM58: 8.12815293 | BN58: 66.06687005 | BO58: 0.0131287464 | BR58: =ABS(BT57) -> 30.13871627 | BS58: =(RADIANS(BR58)) -> 0.5260198312 | BT58: =BS58-BR58 -> -29.61269643 | BU58: 0.8693854533 | BY58: 5.162314108 | BZ58: 0.09009937821 | CA58: -5.07221473 | CB58: 0.9960840571 | CC58: 1.003931338 | CD58: =($AG$47/$AG$48) * ($AG$49/$AG$50)* ($AG$51/$AG$52) * Generic!CC58 -> 5.680583021 | CE58: 5.658338183
F59: c | J59: a | K59: =I51 -> 22.29175857 | L59: mm | M59: ='Simple AR Calculator'!C134 -> 25.401968 | T59: 5.42139185 | U59: 0.09462113783 | V59: -5.326770713 | W59: 0.9956814305 | X59: 21.887263 | Z59: 23.67446553 | AA59: =(RADIANS(Z59)) -> 0.4131973722 | AB59: -23.26126816 | AC59: =COS(RADIANS(AB59)) -> 0.9187135595 | AD59: 1.088478547 | AE59: =($AG$47/$AG$48) * ($AG$49/$AG$50)* ($AG$51/$AG$52) * Generic!AC59 -> 5.198392013 | AF59: 5.126289674 | AG59: 6.158979721 | AH59: 5.478606934 | AJ59: =X79 -> 20.78711893 | AK59: =AG79 -> 5.897009365 | AL59: =BE79 -> 12.28181405 | AM59: 5.421176352 | AN59: 31.15416491 | AO59: 12.84583509 | AP59: 5.746753636 | AQ59: 3.027554965 | AR59: 8.116319622 | AS59: 2.118325165 | AT59: 0.03697174875 | AU59: -2.081353416 | AV59: -0.03631848106 | AW59: =ABS(AV59)*'Simple AR Calculator'!$C$8 -> 8.171658238 | AX59: =AE58 -> 5.182141691 | AY59: 42.34669084 | AZ59: 5 | BA59: =AW74 -> 6.275487411 | BB59: =AX74 -> 5.375899861 | BC59: =AY74 -> 33.7363919 | BD59: 137.0366442 | BE59: 17.46619983 | BF59: 0.3048426948 | BG59: -17.16135713 | BH59: -0.2950636999 | BI59: 2.118325165 | BJ59: 8.245287417 | BK59: 67.98476459 | BL59: 2.171621446 | BM59: 8.042930253 | BN59: 64.68872706 | BO59: 0.01285488312 | BR59: =ABS(BT58) -> 29.61269643 | BS59: =(RADIANS(BR59)) -> 0.5168390532 | BT59: -29.09585738 | BU59: 0.8738073839 | BY59: 5.07221473 | BZ59: 0.0885268474 | CA59: -4.983687882 | CB59: 0.996219471 | CC59: 1.003794876 | CD59: =($AG$47/$AG$48) * ($AG$49/$AG$50)* ($AG$51/$AG$52) * Generic!CC59 -> 5.679810872 | CE59: 5.658338183
F60: =I11 -> 114 | M60: =J56/COS(RADIANS(M58)) -> 18.32142857 | T60: 5.326770713 | U60: 0.09296968743 | V60: -5.233801025 | W60: 0.9958307576 | X60: 21.81375744 | Z60: =ABS(AB59) -> 23.26126816 | AA60: 0.4059857176 | AB60: -22.85528244 | AC60: 0.921488824 | AD60: 1.085200356 | AE60: =($AG$47/$AG$48) * ($AG$49/$AG$50)* ($AG$51/$AG$52) * Generic!AC60 -> 5.214095398 | AF60: 5.143563671 | AG60: 6.140430611 | AH60: 5.462106915 | AJ60: =X84 -> 20.60795811 | AK60: =AG84 -> 5.857349669 | AL60: =BE84 -> 11.24678884 | AM60: 5.459238425 | AN60: 28.72951468 | AO60: 15.27048532 | AP60: 5.26254991 | AQ60: 3.511758691 | AR60: 8.059732251 | AS60: 2.081353416 | AT60: 0.03632647001 | AU60: -2.045026946 | AV60: -0.03568487558 | AW60: =ABS(AV60)*'Simple AR Calculator'!$C$8 -> 8.029097005 | AX60: 5.198392013 | AY60: 41.73839374 | BA60: =AW79 -> 5.746753636 | BB60: =AX79 -> 5.421176352 | BC60: =AY79 -> 31.15416491 | BD60: 139.3546435 | BE60: 17.16135713 | BF60: 0.2995221861 | BG60: -16.86183495 | BH60: -0.29006479 | BI60: 2.081353416 | BJ60: 8.245287417 | BK60: 67.98476459 | BL60: 2.156219876 | BM60: 7.959001458 | BN60: 63.3457042 | BO60: 0.01258799888 | BR60: =ABS(BT59) -> 29.09585738 | BS60: =(RADIANS(BR60)) -> 0.50781851 | BT60: -28.58803887 | BU60: 0.8780828885 | BY60: 4.983687882 | BZ60: 0.08698176244 | CA60: -4.89670612 | CB60: 0.9963502051 | CC60: 1.003663165 | CD60: =($AG$47/$AG$48) * ($AG$49/$AG$50)* ($AG$51/$AG$52) * Generic!CC60 -> 5.679065607 | CE60: 5.658338183
K61: =M60 -> 18.32142857 | L61: mm | T61: 5.233801025 | U61: 0.09134706028 | V61: -5.142453965 | W61: 0.9959749247 | X61: 21.74255607 | Z61: 22.85528244 | AA61: 0.3988999301 | AB61: -22.45638251 | AC61: 0.9241705897 | AD61: 1.082051313 | AE61: =($AG$47/$AG$48) * ($AG$49/$AG$50)* ($AG$51/$AG$52) * Generic!AC61 -> 5.229269735 | AF61: 5.160407541 | AG61: 6.12261226 | AH61: 5.446256929 | AJ61: =X89 -> 20.45649611 | AK61: =AG89 -> 5.824435495 | AL61: =BE89 -> 10.29898829 | AM61: 5.491222639 | AN61: 26.46291595 | AO61: 17.53708405 | AP61: 4.819130035 | AQ61: 3.955178565 | AR61: 8.012787478 | AS61: 2.045026946 | AT61: 0.0356924535 | AU61: -2.009334493 | AV61: -0.03506231462 | AW61: =ABS(AV61)*'Simple AR Calculator'!$C$8 -> 7.88902079 | AX61: 5.214095398 | AY61: 41.134107 | BA61: =AW84 -> 5.26254991 | BB61: =AX84 -> 5.459238425 | BC61: =AY84 -> 28.72951468 | BD61: 141.3183305 | BE61: 16.86183495 | BF61: 0.2942945377 | BG61: -16.56754041 | BH61: -0.2851454062 | BI61: 2.045026946 | BJ61: 8.245287417 | BK61: 67.98476459 | BL61: 2.140818305 | BM61: 7.876350322 | BN61: 62.0368944 | BO61: 0.01232791342 | BR61: =ABS(BT60) -> 28.58803887 | BS61: =(RADIANS(BR61)) -> 0.498955405 | BT61: -28.08908347 | BU61: =COS(RADIANS(BT61)) -> 0.8822165916 | BY61: 4.89670612 | BZ61: 0.08546364429 | CA61: -4.811242476 | CB61: 0.9964764209 | CC61: 1.003536039 | CD61: =($AG$47/$AG$48) * ($AG$49/$AG$50)* ($AG$51/$AG$52) * Generic!CC61 -> 5.678346285 | CE61: 5.658338183
G62: b | H62: =SQRT(H63) -> 94.34922803 | M62: c = a/h = cos 13.17 = a / 114 | T62: 5.142453965 | U62: 0.08975275332 | V62: -5.052701211 | W62: 0.99611411 | X62: 21.67359323 | Z62: 22.45638251 | AA62: 0.3919378129 | AB62: -22.0644447 | AC62: 0.9267619211 | AD62: 1.079025775 | AE62: =($AG$47/$AG$48) * ($AG$49/$AG$50)* ($AG$51/$AG$52) * Generic!AC62 -> 5.243932364 | AF62: 5.176827353 | AG62: 6.105492742 | AH62: 5.431028577 | AJ62: =X94 -> 20.32860548 | AK62: =AG94 -> 5.797072754 | AL62: =BE94 -> 9.431061736 | AM62: 5.518090385 | AN62: 24.35167505 | AO62: 19.64832495 | AP62: 4.413062012 | AQ62: 4.361246589 | AR62: 7.973772978 | AS62: 2.009334493 | AT62: 0.03506950267 | AU62: -1.97426499 | AV62: -0.03445060616 | AW62: =ABS(AV62)*'Simple AR Calculator'!$C$8 -> 7.751386385 | AX62: 5.229269735 | AY62: 40.53409023 | BA62: =AW89 -> 4.819130035 | BB62: =AX89 -> 5.491222639 | BC62: =AY89 -> 26.46291595 | BD62: 142.9790736 | BE62: 16.56754041 | BF62: 0.2891581291 | BG62: -16.27838228 | BH62: -0.280304554 | BI62: 2.009334493 | BJ62: 8.245287417 | BK62: 67.98476459 | BL62: 2.125416734 | BM62: 7.794960932 | BN62: 60.76141593 | BO62: 0.01207445154 | BR62: =ABS(BT61) -> 28.08908347 | BS62: 0.4902469904 | BT62: -27.59883648 | BU62: 0.8862129874 | BY62: 4.811242476 | BZ62: 0.08397202231 | CA62: -4.727270453 | CB62: 0.9965982745 | CC62: 1.003413337 | CD62: =($AG$47/$AG$48) * ($AG$49/$AG$50)* ($AG$51/$AG$52) * Generic!CC62 -> 5.677651996 | CE62: 5.658338183
H63: =K59^2+F60^2-(2*K59*F60*(COS(RADIANS(K58)))) -> 8901.77683 | J63: =SQRT(H62^2-F66^2) -> 8.110291625 | K63: =H62+K59 -> 116.6409866 | M63: a = cos 13.17 * 114 = 111 | T63: 5.052701211 | U63: 0.08818627226 | V63: -4.964514939 | W63: 0.9962484853 | X63: 21.60680478 | Z63: 22.0644447 | AA63: 0.3850972076 | AB63: -21.67934749 | AC63: 0.929265788 | AD63: 1.076118386 | AE63: =($AG$47/$AG$48) * ($AG$49/$AG$50)* ($AG$51/$AG$52) * Generic!AC63 -> 5.25810009 | AF63: 5.192829364 | AG63: 6.089041753 | AH63: 5.416394903 | AJ63: =X99 -> 20.22073047 | AK63: =AG99 -> 5.774292729 | AL63: =BE99 -> 8.636277947 | AM63: 5.54065371 | AN63: 22.39090035 | AO63: 21.60909965 | AP63: 4.04120191 | AQ63: 4.73310669 | AR63: 7.941301208 | AS63: 1.97426499 | AT63: 0.03445742438 | AU63: -1.939807566 | AV63: -0.03384956144 | AW63: =ABS(AV63)*'Simple AR Calculator'!$C$8 -> 7.616151324 | AX63: 5.243932364 | AY63: 39.93858242 | BA63: =AW94 -> 4.413062012 | BB63: =AX94 -> 5.518090385 | BC63: =AY94 -> 24.35167505 | BD63: 144.3816477 | BE63: 16.27838228 | BF63: 0.2841113677 | BG63: -15.99427091 | BH63: -0.2755412365 | BI63: 1.97426499 | BJ63: 8.245287417 | BK63: 67.98476459 | BL63: 2.110015164 | BM63: 7.714817674 | BN63: 59.51841175 | BO63: 0.01182744292 | BR63: 27.59883648 | BS63: 0.4816905662 | BT63: -27.11714591 | BU63: 0.8900764418 | BY63: 4.727270453 | BZ63: 0.08250643404 | CA63: -4.644764019 | CB63: 0.9967159165 | CC63: 1.003294904 | CD63: =($AG$47/$AG$48) * ($AG$49/$AG$50)* ($AG$51/$AG$52) * Generic!CC63 -> 5.676981865 | CE63: 5.658338183
G64: b 2 = a 2 + c 2 - 2 a c cos(B) | K64: =H62+K61 -> 112.6706566 | M64: and 111 - 17 = 94 | T64: 4.964514939 | U64: 0.08664713145 | V64: -4.877867808 | W64: 0.9963782167 | X64: 21.54212803 | Z64: 21.67934749 | AA64: 0.3783759934 | AB64: -21.3009715 | AC64: 0.9316850682 | AD64: 1.07332406 | AE64: =($AG$47/$AG$48) * ($AG$49/$AG$50)* ($AG$51/$AG$52) * Generic!AC64 -> 5.271789196 | AF64: 5.208419992 | AG64: 6.073230511 | AH64: 5.402330304 | AJ64: =X104 -> 20.12981992 | AK64: =AG104 -> 5.755305416 | AL64: =BE104 -> 7.908472967 | AM64: 5.559597697 | AN64: 20.57423563 | AO64: 23.42576437 | AP64: 3.700669861 | AQ64: 5.07363874 | AR64: 7.914241713 | AS64: 1.939807566 | AT64: 0.03385602887 | AU64: -1.905951537 | AV64: -0.03325899501 | AW64: =ABS(AV64)*'Simple AR Calculator'!$C$8 -> 7.483273878 | AX64: 5.25810009 | AY64: 39.34780305 | AZ64: 10 | BA64: =AW99 -> 4.04120191 | BB64: =AX99 -> 5.54065371 | BC64: =AY99 -> 22.39090035 | BD64: 145.5648072 | BE64: 15.99427091 | BF64: 0.2791526889 | BG64: -15.71511822 | BH64: -0.2708544551 | BI64: 1.939807566 | BJ64: 8.245287417 | BK64: 67.98476459 | BL64: 2.094613593 | BM64: 7.635905239 | BN64: 58.30704882 | BO64: 0.01158672201 | BR64: 27.11714591 | BS64: 0.4732834799 | BT64: -26.64386243 | BU64: 0.8938111957 | BY64: =ABS(CA63) -> 4.644764019 | BZ64: 0.08106642511 | CA64: =BZ64-BY64 -> -4.563697594 | CB64: 0.9968294921 | CC64: 1.003180592 | CD64: =($AG$47/$AG$48) * ($AG$49/$AG$50)* ($AG$51/$AG$52) * Generic!CC64 -> 5.676335048 | CE64: 5.658338183
J65: =J56 -> 18 | T65: 4.877867808 | U65: 0.08513485372 | V65: -4.792732954 | W65: 0.9965034644 | X65: 21.4795018 | Z65: 21.3009715 | AA65: 0.3717720865 | AB65: -20.92919941 | AC65: 0.9340225501 | AD65: 1.070637963 | AE65: =($AG$47/$AG$48) * ($AG$49/$AG$50)* ($AG$51/$AG$52) * Generic!AC65 -> 5.285015459 | AF65: 5.223605805 | AG65: 6.058031663 | AH65: 5.388810449 | AJ65: =X109 -> 20.05326463 | AK65: =AG109 -> 5.73946371 | AL65: =BE109 -> 7.242002289 | AM65: 5.575499738 | AN65: 18.89440968 | AO65: 25.10559032 | AP65: 3.388828009 | AQ65: 5.385480591 | AR65: 7.891669279 | AS65: 1.905951537 | AT65: 0.0332651297 | AU65: -1.872686407 | AV65: -0.0326787246 | AW65: =ABS(AV65)*'Simple AR Calculator'!$C$8 -> 7.352713035 | AX65: 5.271789196 | AY65: 38.76195314 | BA65: =AW104 -> 3.700669861 | BB65: =AX104 -> 5.559597697 | BC65: =AY104 -> 20.57423563 | BD65: 146.5619069 | BE65: 15.71511822 | BF65: 0.2742805553 | BG65: -15.44083767 | BH65: -0.2662432107 | BI65: 1.905951537 | BJ65: 8.245287417 | BK65: 67.98476459 | BL65: 2.079212023 | BM65: 7.558208615 | BN65: 57.12651746 | BO65: 0.01135212793 | BR65: 26.64386243 | BS65: 0.4650231249 | BT65: -26.17883931 | BU65: 0.8974213671 | BY65: 4.563697594 | BZ65: 0.07965154908 | CA65: -4.484046045 | CB65: 0.9969391419 | CC65: 1.003070256 | CD65: =($AG$47/$AG$48) * ($AG$49/$AG$50)* ($AG$51/$AG$52) * Generic!CC65 -> 5.675710727 | CE65: 5.658338183
F66: ='Simple AR Calculator'!C9 -> 94 | M66: =((COS(RADIANS((M58))))*F60) - J56 -> 94 | T66: 4.792732954 | U66: 0.08364897022 | V66: -4.709083984 | W66: 0.9966243833 | X66: 21.41886635 | Z66: 20.92919941 | AA66: 0.3652834395 | AB66: -20.56391597 | AC66: 0.9362809347 | AD66: 1.068055498 | AE66: =($AG$47/$AG$48) * ($AG$49/$AG$50)* ($AG$51/$AG$52) * Generic!AC66 -> 5.297794163 | AF66: 5.238393501 | AG66: 6.043419205 | AH66: 5.375812207 | AJ66: =X114 -> 19.98883989 | AK66: =AG114 -> 5.726235577 | AL66: =BE114 -> 6.631697089 | AM66: 5.588846063 | AN66: 17.34364399 | AO66: 26.65635601 | AP66: 3.103260278 | AQ66: 5.671048323 | AR66: 7.872823746 | AS66: 1.872686407 | AT66: 0.03268454366 | AU66: -1.840001863 | AV66: -0.03210857109 | AW66: =ABS(AV66)*'Simple AR Calculator'!$C$8 -> 7.224428494 | AX66: 5.285015459 | AY66: 38.18121627 | BA66: =AW109 -> 3.388828009 | BB66: =AX109 -> 5.575499738 | BC66: =AY109 -> 18.89440968 | BD66: 147.401524 | BE66: 15.44083767 | BF66: 0.2694934566 | BG66: -15.17134421 | BH66: -0.2617065046 | BI66: 1.872686407 | BJ66: 8.245287417 | BK66: 67.98476459 | BL66: 2.063810452 | BM66: 7.481713086 | BN66: 55.9760307 | BO66: 0.01112350428 | BR66: 26.17883931 | BS66: 0.4569069402 | BT66: -25.72193236 | BU66: 0.9009109541 | BY66: 4.484046045 | BZ66: 0.0782613673 | CA66: -4.405784678 | CB66: 0.9970450015 | CC66: 1.002963756 | CD66: =($AG$47/$AG$48) * ($AG$49/$AG$50)* ($AG$51/$AG$52) * Generic!CC66 -> 5.675108119 | CE66: 5.658338183
F67: =(J56*I18)/M60 -> 94 | T67: 4.709083984 | U67: 0.08218902027 | V67: -4.626894964 | W67: 0.9967411228 | X67: 21.36016338 | Z67: 20.56391597 | AA67: 0.3589080408 | AB67: -20.20500793 | AC67: 0.9384628384 | AD67: 1.065572294 | AE67: =($AG$47/$AG$48) * ($AG$49/$AG$50)* ($AG$51/$AG$52) * Generic!AC67 -> 5.310140112 | AF67: 5.252789892 | AG67: 6.0293684 | AH67: 5.363313572 | AJ67: =X119 -> 19.93465365 | AK67: =AG119 -> 5.71518222 | AL67: =BE119 -> 6.072824134 | AM67: 5.600045845 | AN67: 15.91395154 | AO67: 28.08604846 | AP67: 2.841753796 | AQ67: 5.932554804 | AR67: 7.857078534 | AS67: =ABS(AU66) -> 1.840001863 | AT67: 0.03211409076 | AU67: =AT67-AS67 -> -1.807887773 | AV67: -0.03154835845 | AW67: =ABS(AV67)*'Simple AR Calculator'!$C$8 -> 7.098380652 | AX67: 5.297794163 | AY67: 37.60575958 | BA67: =AW114 -> 3.103260278 | BB67: =AX114 -> 5.588846063 | BC67: =AY114 -> 17.34364399 | BD67: 148.1080519 | BE67: 15.17134421 | BF67: 0.2647899084 | BG67: -14.9065543 | BH67: -0.2572433392 | BI67: 1.840001863 | BJ67: 8.245287417 | BK67: 67.98476459 | BL67: 2.048408882 | BM67: 7.406404232 | BN67: 54.85482365 | BO67: 0.01090069907 | BR67: 25.72193236 | BS67: 0.4489324097 | BT67: -25.27299996 | BU67: 0.9042838373 | BY67: 4.405784678 | BZ67: 0.07689544876 | CA67: -4.328889229 | CB67: 0.9971472016 | CC67: 1.00286096 | CD67: =($AG$47/$AG$48) * ($AG$49/$AG$50)* ($AG$51/$AG$52) * Generic!CC67 -> 5.674526463 | CE67: 5.658338183
T68: 4.626894964 | U68: 0.08075455126 | V68: -4.546140412 | W68: 0.9968538272 | X68: 21.30333601 | Z68: =ABS(AB67) -> 20.20500793 | AA68: 0.3526439138 | AB68: =AA68-Z68 -> -19.85236402 | AC68: 0.9405707952 | AD68: 1.063184191 | AE68: =($AG$47/$AG$48) * ($AG$49/$AG$50)* ($AG$51/$AG$52) * Generic!AC68 -> 5.322067644 | AF68: 5.266801887 | AG68: 6.015855703 | AH68: 5.351293601 | AJ68: =X124 -> 19.88910025 | AK68: =AG124 -> 5.705940774 | AL68: =BE124 -> 5.561049076 | AM68: 5.609443217 | AN68: 14.59735239 | AO68: 29.40264761 | AP68: 2.602281872 | AQ68: 6.172026729 | AR68: 7.843915751 | AS68: 1.807887773 | AT68: 0.03155359414 | AU68: -1.776334178 | AV68: -0.03099791372 | AW68: =ABS(AV68)*'Simple AR Calculator'!$C$8 -> 6.974530586 | AX68: 5.310140112 | AY68: 37.03573463 | BA68: =AW119 -> 2.841753796 | BB68: =AX119 -> 5.600045845 | BC68: =AY119 -> 15.91395154 | BD68: 148.7022497 | BE68: 14.9065543 | BF68: 0.2601684527 | BG68: -14.64638585 | BH68: -0.2528527192 | BI68: 1.807887773 | BJ68: 8.245287417 | BK68: 67.98476459 | BL68: 2.033007311 | BM68: 7.332267927 | BN68: 53.76215295 | BO68: 0.01068356457 | BR68: 25.27299996 | BS68: 0.4410970611 | BT68: -24.83190289 | BU68: 0.9075437825 | BY68: 4.328889229 | BZ68: 0.07555337 | CA68: -4.253335859 | CB68: 0.9972458687 | CC68: 1.002761738 | CD68: =($AG$47/$AG$48) * ($AG$49/$AG$50)* ($AG$51/$AG$52) * Generic!CC68 -> 5.673965027 | CE68: 5.658338183
T69: 4.546140412 | U69: 0.07934511845 | V69: -4.466795294 | W69: 0.9969626358 | X69: 21.24832875 | Z69: 19.85236402 | AA69: 0.3464891164 | AB69: -19.5058749 | AC69: 0.9426072588 | AD69: 1.060887226 | AE69: =($AG$47/$AG$48) * ($AG$49/$AG$50)* ($AG$51/$AG$52) * Generic!AC69 -> 5.333590644 | AF69: 5.28043648 | AG69: 6.002858698 | AH69: 5.339732355 | AJ69: =X129 -> 19.8508196 | AK69: =AG129 -> 5.698210504 | AL69: =BE129 -> 5.092402832 | AM69: 5.617327467 | AN69: 13.38602603 | AO69: 30.61397397 | AP69: 2.38298837 | AQ69: 6.39132023 | AR69: 7.832906352 | AS69: 1.776334178 | AT69: 0.03100288003 | AU69: -1.745331298 | AV69: -0.0304570669 | AW69: =ABS(AV69)*'Simple AR Calculator'!$C$8 -> 6.852840052 | AX69: 5.322067644 | AY69: 36.47127831 | AZ69: 15 | BA69: =AW124 -> 2.602281872 | BB69: =AX124 -> 5.609443217 | BC69: =AY124 -> 14.59735239 | BD69: 149.2017395 | BE69: 14.64638585 | BF69: 0.2556276566 | BG69: -14.39075819 | BH69: -0.2485336515 | BI69: 1.776334178 | BJ69: 8.245287417 | BK69: 67.98476459 | BL69: 2.017605741 | BM69: 7.259290333 | BN69: 52.69729614 | BO69: 0.01047195723 | BR69: 24.83190289 | BS69: 0.433398465 | BT69: -24.39850443 | BU69: 0.9106944436 | BY69: 4.253335859 | BZ69: 0.07423471493 | CA69: -4.179101144 | CB69: 0.9973411248 | CC69: 1.002665964 | CD69: =($AG$47/$AG$48) * ($AG$49/$AG$50)* ($AG$51/$AG$52) * Generic!CC69 -> 5.673423107 | CE69: 5.658338183
T70: =ABS(V69) -> 4.466795294 | U70: 0.07796028489 | V70: =U70-T70 -> -4.388835009 | W70: 0.9970676832 | X70: 21.19508752 | Z70: 19.5058749 | AA70: 0.3404417405 | AB70: -19.16543316 | AC70: 0.9445746053 | AD70: 1.058677625 | AE70: =($AG$47/$AG$48) * ($AG$49/$AG$50)* ($AG$51/$AG$52) * Generic!AC70 -> 5.344722556 | AF70: 5.29370073 | AG70: 5.99035603 | AH70: 5.328610837 | AJ70: =X134 -> 19.81866144 | AK70: =AG134 -> 5.691741696 | AL70: =BE134 -> 4.66325081 | AM70: 5.623941686 | AN70: 12.27241594 | AO70: 31.72758406 | AP70: 2.182173397 | AQ70: 6.592135203 | AR70: 7.823694209 | AS70: 1.745331298 | AT70: 0.0304617777 | AU70: -1.714869521 | AV70: -0.02992565095 | AW70: =ABS(AV70)*'Simple AR Calculator'!$C$8 -> 6.733271464 | AX70: 5.333590644 | AY70: 35.91251368 | BA70: =AW129 -> 2.38298837 | BB70: =AX129 -> 5.617327467 | BC70: =AY129 -> 13.38602603 | BD70: 149.6214498 | BE70: 14.39075819 | BF70: 0.2511661123 | BG70: -14.13959208 | BH70: -0.2442851469 | BI70: 1.745331298 | BJ70: 8.245287417 | BK70: 67.98476459 | BL70: 2.00220417 | BM70: 7.187457907 | BN70: 51.65955116 | BO70: 0.01026573752 | BR70: 24.39850443 | BS70: 0.4258342348 | BT70: -23.97267019 | BU70: 0.9137393651 | BY70: 4.179101144 | BZ70: 0.07293907474 | CA70: -4.106162069 | CB70: 0.9974330877 | CC70: 1.002573518 | CD70: =($AG$47/$AG$48) * ($AG$49/$AG$50)* ($AG$51/$AG$52) * Generic!CC70 -> 5.672900019 | CE70: 5.658338183
T71: 4.388835009 | U71: 0.07659962123 | V71: -4.312235388 | W71: 0.9971690992 | X71: 21.14355958 | Z71: 19.16543316 | AA71: 0.3344999112 | AB71: -18.83093325 | AC71: 0.9464751351 | AD71: 1.056551792 | AE71: =($AG$47/$AG$48) * ($AG$49/$AG$50)* ($AG$51/$AG$52) * Generic!AC71 -> 5.355476396 | AF71: 5.306601752 | AG71: 5.978327346 | AH71: 5.317910943 | AJ71: =X139 -> 19.79165425 | AK71: =AG139 -> 5.686326673 | AL71: =BE139 -> 4.270264713 | AM71: 5.629490072 | AN71: 11.2492984 | AO71: 32.7507016 | AP71: 1.998280174 | AQ71: 6.776028426 | AR71: 7.815983231 | AS71: 1.714869521 | AT71: 0.02993011938 | AU71: -1.684939401 | AV71: -0.02940350172 | AW71: =ABS(AV71)*'Simple AR Calculator'!$C$8 -> 6.615787888 | AX71: 5.344722556 | AY71: 35.35955075 | BA71: =AW134 -> 2.182173397 | BB71: =AX134 -> 5.623941686 | BC71: =AY134 -> 12.27241594 | BD71: 149.9740059 | BE71: 14.13959208 | BF71: 0.2467824367 | BG71: -13.89280964 | BH71: -0.2401062201 | BI71: 1.714869521 | BJ71: 8.245287417 | BK71: 67.98476459 | BL71: 1.9868026 | BM71: 7.116757389 | BN71: 50.64823573 | BO71: 0.01006476986 | BR71: 23.97267019 | BS71: 0.4184020254 | BT71: -23.55426817 | BU71: 0.9166819846
T72: 4.312235388 | U72: 0.07526270564 | V72: -4.236972682 | W72: 0.9972670093 | X72: 21.09369352 | Z72: 18.83093325 | AA72: 0.3286617864 | AB72: -18.50227146 | AC72: 0.9483110751 | AD72: 1.054506297 | AE72: =($AG$47/$AG$48) * ($AG$49/$AG$50)* ($AG$51/$AG$52) * Generic!AC72 -> 5.365864765 | AF72: 5.3191467 | AG72: 5.966753243 | AH72: 5.307615412 | AJ72: =X144 -> 19.76897842 | AK72: =AG144 -> 5.681792492 | AL72: =BE144 -> 3.910396729 | AM72: 5.634144105 | AN72: 10.30982457 | AO72: 33.69017543 | AP72: 1.829883009 | AQ72: 6.944425591 | AR72: 7.809526909 | AS72: 1.684939401 | AT72: 0.02940774025 | AU72: -1.655531661 | AV72: -0.0288904579 | AW72: =ABS(AV72)*'Simple AR Calculator'!$C$8 -> 6.500353028 | AX72: 5.355476396 | AY72: 34.81248721 | BA72: =AW139 -> 1.998280174 | BB72: =AX139 -> 5.629490072 | BC72: =AY139 -> 11.2492984 | BD72: 150.2700702 | BE72: 13.89280964 | BF72: 0.2424752706 | BG72: -13.65033437 | BH72: -0.2359958905 | BI72: 1.684939401 | BJ72: 8.245287417 | BK72: 67.98476459 | BL72: 1.971401029 | BM72: 7.04717581 | BN72: 49.6626869 | BO72: 0.009868922525 | BR72: 23.55426817 | BS72: 0.4110995324 | BT72: -23.14316864 | BU72: 0.9195256358
T73: 4.236972682 | U73: 0.07394912362 | V73: -4.163023558 | W73: 0.9973615346 | X73: 21.04543929 | Z73: 18.50227146 | AA73: 0.3229255561 | AB73: -18.17934591 | AC73: 0.9500845809 | AD73: 1.052537869 | AE73: =($AG$47/$AG$48) * ($AG$49/$AG$50)* ($AG$51/$AG$52) * Generic!AC73 -> 5.375899861 | AF73: 5.331342756 | AG73: 5.955615212 | AH73: 5.297707782 | AJ73: =X149 -> 19.74994316 | AK73: =AG149 -> 5.677994973 | AL73: =BE149 -> 3.580855898 | AM73: 5.638047759 | AN73: 9.44754287 | AO73: 34.55245713 | AP73: 1.675676276 | AQ73: 7.098632325 | AR73: 7.804119774 | AS73: 1.655531661 | AT73: 0.02889447836 | AU73: -1.626637183 | AV73: -0.02838636097 | AW73: =ABS(AV73)*'Simple AR Calculator'!$C$8 -> 6.386931219 | AX73: 5.365864765 | AY73: 34.27140918 | BA73: =AW144 -> 1.829883009 | BB73: =AX144 -> 5.634144105 | BC73: =AY144 -> 10.30982457 | BD73: 150.5186366 | BE73: 13.65033437 | BF73: 0.2382432788 | BG73: -13.41209109 | BH73: -0.2319531827 | BI73: 1.655531661 | BJ73: 8.245287417 | BK73: 67.98476459 | BL73: 1.955999458 | BM73: 6.978700487 | BN73: 48.70226049 | BO73: 0.00967806749 | BR73: 23.14316864 | BS73: 0.403924492 | BT73: -22.73924414 | BU73: 0.9222735508
T74: 4.163023558 | U74: 0.07265846793 | V74: -4.090365091 | W74: 0.9974527919 | X74: 20.9987481 | Z74: 18.17934591 | AA74: 0.3172894419 | AB74: -17.86205646 | AC74: 0.9517977389 | AD74: 1.050643387 | AE74: =($AG$47/$AG$48) * ($AG$49/$AG$50)* ($AG$51/$AG$52) * Generic!AC74 -> 5.385593488 | AF74: 5.343197116 | AG74: 5.944895592 | AH74: 5.288172342 | AJ74: =X154 -> 19.7339667 | AK74: =AG154 -> 5.674813802 | AL74: =BE154 -> 3.279086458 | AM74: 5.641321884 | AN74: 8.656407107 | AO74: 35.34359289 | AP74: 1.534464313 | AQ74: 7.239844288 | AR74: 7.799590398 | AS74: 1.626637183 | AT74: 0.02839017457 | AU74: -1.598247008 | AV74: -0.02789105516 | AW74: =ABS(AV74)*'Simple AR Calculator'!$C$8 -> 6.275487411 | AX74: 5.375899861 | AY74: 33.7363919 | AZ74: 20 | BA74: =AW149 -> 1.675676276 | BB74: =AX149 -> 5.638047759 | BC74: =AY149 -> 9.44754287 | BD74: 150.7272845 | BE74: 13.41209109 | BF74: 0.2340851492 | BG74: -13.17800595 | BH74: -0.2279771269 | BI74: 1.626637183 | BJ74: 8.245287417 | BK74: 67.98476459 | BL74: 1.940597888 | BM74: 6.911319021 | BN74: 47.76633061 | BO74: 0.009492080383 | BR74: 22.73924414 | BS74: 0.3968746797 | BT74: -22.34236946 | BU74: 0.9249288627
T75: 4.090365091 | U75: 0.07139033844 | V75: -4.018974752 | W75: 0.9975408942 | X75: 20.95357246 | Z75: 17.86205646 | AA75: 0.3117516965 | AB75: -17.55030477 | AC75: 0.9534525684 | AD75: 1.048819871 | AE75: =($AG$47/$AG$48) * ($AG$49/$AG$50)* ($AG$51/$AG$52) * Generic!AC75 -> 5.394957073 | AF75: 5.354716982 | AG75: 5.934577524 | AH75: 5.278994094 | AS75: 1.598247008 | AT75: 0.02789467255 | AU75: -1.570352336 | AV75: -0.02740438739 | AW75: =ABS(AV75)*'Simple AR Calculator'!$C$8 -> 6.165987164 | AX75: 5.385593488 | AY75: 33.20750032 | BA75: =AW154 -> 1.534464313 | BB75: =AX154 -> 5.641321884 | BC75: =AY154 -> 8.656407107 | BD75: 150.9023959 | BE75: =ABS(BG74) -> 13.17800595 | BF75: 0.2299995926 | BG75: =BF75-BE75 -> -12.94800635 | BH75: -0.2240667597 | BI75: 1.598247008 | BJ75: 8.245287417 | BK75: 67.98476459 | BL75: 1.925196317 | BM75: 6.845019298 | BN75: 46.85428919 | BO75: =(BK75*$BD$52)*10000 -> 0 | BR75: 22.34236946 | BS75: 0.3899479099 | BT75: -21.95242155 | BU75: 0.9274946084
T76: 4.018974752 | U76: 0.07014434198 | V76: -3.94883041 | W76: 0.9976259504 | X76: 20.90986613 | Y76: 22 | Z76: 17.55030477 | AA76: 0.3063106029 | AB76: -17.24399416 | AC76: 0.9550510232 | AD76: 1.047064477 | AE76: =($AG$47/$AG$48) * ($AG$49/$AG$50)* ($AG$51/$AG$52) * Generic!AC76 -> 5.404001671 | AF76: 5.365909547 | AG76: 5.924644909 | AH76: 5.27015872 | AK76: HamRise | AS76: 1.570352336 | AT76: 0.02740781867 | AU76: -1.542944517 | AV76: -0.02692620726 | AW76: =ABS(AV76)*'Simple AR Calculator'!$C$8 -> 6.058396633 | AX76: 5.394957073 | AY76: 32.68478977 | BE76: 12.94800635 | BF76: 0.2259853424 | BG76: -12.72202101 | BH76: -0.2202211242 | BI76: 1.570352336 | BJ76: 8.245287417 | BK76: 67.98476459 | BL76: 1.909794747 | BM76: 6.77978949 | BN76: 45.96554553 | BO76: 0 | BR76: 21.95242155 | BS76: 0.3831420349 | BT76: -21.56927952 | BU76: 0.9299737309
T77: 3.94883041 | U77: 0.06892009226 | V77: -3.879910318 | W77: 0.9977080658 | X77: 20.8675841 | Z77: 17.24399416 | AA77: 0.3009644744 | AB77: -16.94302969 | AC77: 0.9565949941 | AD77: 1.045374486 | AE77: =($AG$47/$AG$48) * ($AG$49/$AG$50)* ($AG$51/$AG$52) * Generic!AC77 -> 5.41273798 | AF77: 5.376781987 | AG77: 5.915082368 | AH77: 5.261652537 | AK77: =AM54*AQ54 -> 0.03354277225 | AL77: ='Simple AR Calculator'!H89 -> 2.231533276 | AS77: 1.542944517 | AT77: 0.026929462 | AU77: -1.516015055 | AV77: -0.02645636694 | AW77: =ABS(AV77)*'Simple AR Calculator'!$C$8 -> 5.952682561 | AX77: 5.404001671 | AY77: 32.1683065 | BB77: =AVERAGE(BB55:BB75) -> 5.491407943 | BD77: =AVERAGE(BD55:BD75) -> 143.1185287 | BE77: 12.72202101 | BF77: 0.2220411541 | BG77: -12.49997986 | BH77: -0.2164392707 | BI77: 1.542944517 | BJ77: 8.245287417 | BK77: 67.98476459 | BL77: 1.894393176 | BM77: 6.715618051 | BN77: 45.0995258 | BO77: 0 | BR77: 21.56927952 | BS77: 0.3764549449 | BT77: -21.19282457 | BU77: 0.9323690819
T78: 3.879910318 | U78: 0.06771720973 | V78: -3.812193108 | W78: 0.997787342 | X78: 20.82668257 | Z78: 16.94302969 | AA78: 0.2957116534 | AB78: -16.64731804 | AC78: 0.9580863104 | AD78: 1.0437473 | AE78: =($AG$47/$AG$48) * ($AG$49/$AG$50)* ($AG$51/$AG$52) * Generic!AC78 -> 5.421176352 | AF78: 5.387341451 | AG78: 5.905875203 | AH78: 5.253462473 | AK78: 3.123019566 | AL78: ='Simple AR Calculator'!H90 -> 2.079981484 | AS78: 1.516015055 | AT78: 0.02645945422 | AU78: -1.489555601 | AV78: -0.02599472118 | AW78: =ABS(AV78)*'Simple AR Calculator'!$C$8 -> 5.848812266 | AX78: 5.41273798 | AY78: 31.65808829 | BE78: 12.49997986 | BF78: 0.2181658049 | BG78: -12.28181405 | BH78: -0.2127202567 | BI78: 1.516015055 | BJ78: 8.245287417 | BK78: 67.98476459 | BL78: 1.878991606 | BM78: 6.652493719 | BN78: 44.25567269 | BO78: 0 | BR78: 21.19282457 | BS78: 0.3698845666 | BT78: -20.82294001 | BU78: 0.9346834242
T79: 3.812193108 | U79: 0.06653532146 | V79: -3.745657787 | W79: 0.997863877 | X79: 20.78711893 | Z79: 16.64731804 | AA79: 0.2905505114 | AB79: -16.35676753 | AC79: 0.9595267419 | AD79: 1.042180438 | AE79: =($AG$47/$AG$48) * ($AG$49/$AG$50)* ($AG$51/$AG$52) * Generic!AC79 -> 5.429326801 | AF79: 5.397595052 | AG79: 5.897009365 | AH79: 5.24557603 | AK79: 6.788389791 | AL79: ='Simple AR Calculator'!H91 -> 1.904897878 | AS79: 1.489555601 | AT79: 0.02599764962 | AU79: -1.463557951 | AV79: -0.02554112727 | AW79: =ABS(AV79)*'Simple AR Calculator'!$C$8 -> 5.746753636 | AX79: 5.421176352 | AY79: 31.15416491 | AZ79: 25 | BE79: 12.28181405 | BF79: 0.2143580933 | BG79: -12.06745596 | BH79: -0.2090631476 | BI79: 1.489555601 | BJ79: 8.245287417 | BK79: 67.98476459 | BL79: 1.863590035 | BM79: 6.590405518 | BN79: 43.43344489 | BO79: 0 | BR79: 20.82294001 | BS79: 0.3634288631 | BT79: -20.45951115 | BU79: 0.9369194342
T80: 3.745657787 | U80: 0.06537406103 | V80: -3.680283726 | W80: 0.9979377657 | X80: 20.74885175 | Z80: 16.35676753 | AA80: 0.2854794483 | AB80: -16.07128808 | AC80: 0.9609180008 | AD80: 1.040671524 | AE80: =($AG$47/$AG$48) * ($AG$49/$AG$50)* ($AG$51/$AG$52) * Generic!AC80 -> 5.437199014 | AF80: 5.407549857 | AG80: 5.888471418 | AH80: 5.237981257 | AK80: 10.22618559 | AL80: ='Simple AR Calculator'!H92 -> 1.744522098 | AS80: 1.463557951 | AT80: 0.02554390504 | AU80: -1.438014046 | AV80: -0.02509544494 | AW80: =ABS(AV80)*'Simple AR Calculator'!$C$8 -> 5.646475111 | AX80: 5.429326801 | AY80: 30.65655865 | BE80: 12.06745596 | BF80: 0.2106168388 | BG80: -11.85683912 | BH80: -0.2054670167 | BI80: 1.463557951 | BJ80: 8.245287417 | BK80: 67.98476459 | BL80: 1.848188465 | BM80: 6.529342753 | BN80: 42.63231678 | BO80: 0 | BR80: 20.45951115 | BS80: 0.3570858328 | BT80: -20.10242531 | BU80: 0.9390797042
T81: 3.680283726 | U81: 0.06423306842 | V81: -3.616050657 | W81: 0.9980090993 | X81: 20.71184071 | Z81: 16.07128808 | AA81: 0.280496892 | AB81: -15.79079119 | AC81: 0.9622617431 | AD81: 1.039218287 | AE81: =($AG$47/$AG$48) * ($AG$49/$AG$50)* ($AG$51/$AG$52) * Generic!AC81 -> 5.444802363 | AF81: 5.417212882 | AG81: 5.880248512 | AH81: 5.230666722 | AK81: 13.43341248 | AL81: ='Simple AR Calculator'!H93 -> 1.597625563 | AS81: 1.438014046 | AT81: 0.02509807979 | AU81: -1.412915966 | AV81: -0.02465753638 | AW81: =ABS(AV81)*'Simple AR Calculator'!$C$8 -> 5.547945684 | AX81: 5.437199014 | AY81: 30.16528481 | BE81: 11.85683912 | BF81: 0.2069408815 | BG81: -11.64989824 | BH81: -0.2019309456 | BI81: 1.438014046 | BJ81: 8.245287417 | BK81: 67.98476459 | BL81: 1.832786894 | BM81: 6.469295016 | BN81: 41.851778 | BO81: 0 | BR81: 20.10242531 | BS81: 0.3508535093 | BT81: -19.7515718 | BU81: 0.9411667448
T82: 3.616050657 | U82: 0.06311198989 | V82: -3.552938667 | W82: 0.9980779663 | X82: 20.67604663 | Z82: 15.79079119 | AA82: 0.2756012977 | AB82: -15.51518989 | AC82: 0.9635595708 | AD82: 1.037818553 | AE82: =($AG$47/$AG$48) * ($AG$49/$AG$50)* ($AG$51/$AG$52) * Generic!AC82 -> 5.452145911 | AF82: 5.426591083 | AG82: 5.872328348 | AH82: 5.223621487 | AK82: 16.41290938 | AL82: ='Simple AR Calculator'!H94 -> 1.463080705 | AS82: 1.412915966 | AT82: 0.02466003567 | AU82: -1.388255931 | AV82: -0.02422726615 | AW82: =ABS(AV82)*'Simple AR Calculator'!$C$8 -> 5.451134883 | AX82: 5.444802363 | AY82: 29.68035209 | BE82: 11.64989824 | BF82: 0.2033290818 | BG82: -11.44656916 | BH82: -0.1984540248 | BI82: 1.412915966 | BJ82: 8.245287417 | BK82: 67.98476459 | BL82: 1.817385324 | BM82: 6.410252183 | BN82: 41.09133305 | BO82: 0 | BR82: 19.7515718 | BS82: 0.3447299604 | BT82: -19.40684184 | BU82: 0.943182987
T83: 3.552938667 | U83: 0.06201047787 | V83: -3.490928189 | W83: 0.9981444519 | X83: 20.64143144 | Z83: 15.51518989 | AA83: 0.2707911476 | AB83: -15.24439874 | AC83: 0.9648130333 | AD83: 1.036470244 | AE83: =($AG$47/$AG$48) * ($AG$49/$AG$50)* ($AG$51/$AG$52) * Generic!AC83 -> 5.459238425 | AF83: 5.435691349 | AG83: 5.864699157 | AH83: 5.21683508 | AK83: 19.17152798 | AL83: ='Simple AR Calculator'!H95 -> 1.339853043 | AS83: 1.388255931 | AT83: 0.02422963685 | AU83: -1.364026294 | AV83: -0.02380450118 | AW83: =ABS(AV83)*'Simple AR Calculator'!$C$8 -> 5.356012766 | AX83: 5.452145911 | AY83: 29.2017631 | BE83: 11.44656916 | BF83: 0.1997803198 | BG83: -11.24678884 | BH83: -0.1950353532 | BI83: 1.388255931 | BJ83: 8.245287417 | BK83: 67.98476459 | BL83: 1.801983753 | BM83: 6.352204417 | BN83: 40.35050096 | BO83: 0 | BR83: 19.40684184 | BS83: 0.3387132876 | BT83: -19.06812856 | BU83: 0.9451307847
T84: 3.490928189 | U84: 0.06092819086 | V84: -3.429999999 | W84: 0.9982086383 | X84: 20.60795811 | Z84: 15.24439874 | AA84: 0.2660649505 | AB84: -14.97833379 | AC84: 0.9660236288 | AD84: 1.035171367 | AE84: =($AG$47/$AG$48) * ($AG$49/$AG$50)* ($AG$51/$AG$52) * Generic!AC84 -> 5.466088384 | AF84: 5.444520496 | AG84: 5.857349669 | AH84: 5.210297479 | AK84: 21.71876608 | AL84: ='Simple AR Calculator'!H96 -> 1.226993783 | AS84: 1.364026294 | AT84: 0.02380674991 | AU84: -1.340219544 | AV84: -0.02338911071 | AW84: =ABS(AV84)*'Simple AR Calculator'!$C$8 -> 5.26254991 | AX84: 5.459238425 | AY84: 28.72951468 | AZ84: 30 | BE84: 11.24678884 | BF84: 0.1962934955 | BG84: -11.05049534 | BH84: -0.191674039 | BI84: 1.364026294 | BJ84: 8.245287417 | BK84: 67.98476459 | BL84: 1.786582183 | BM84: 6.295142169 | BN84: 39.62881493 | BO84: 0 | BR84: 19.06812856 | BS84: 0.3328016255 | BT84: -18.73532693 | BU84: 0.947012417
T85: 3.429999999 | U85: 0.05986479332 | V85: -3.370135205 | W85: 0.9982706051 | X85: 20.57559067 | Z85: 14.97833379 | AA85: 0.2614212411 | AB85: -14.71691255 | AC85: 0.9671928065 | AD85: 1.033920014 | AE85: =($AG$47/$AG$48) * ($AG$49/$AG$50)* ($AG$51/$AG$52) * Generic!AC85 -> 5.472703987 | AF85: 5.453085264 | AG85: 5.850269093 | AH85: 5.203999083 | AK85: 24.06575287 | AL85: ='Simple AR Calculator'!H97 -> 1.123632943 | AS85: 1.340219544 | AT85: 0.02339124374 | AU85: -1.3168283 | AV85: -0.02298096624 | AW85: =ABS(AV85)*'Simple AR Calculator'!$C$8 -> 5.170717403 | AX85: 5.466088384 | AY85: 28.26359833 | BE85: 11.05049534 | BF85: 0.1928675277 | BG85: -10.85762781 | BH85: -0.1883691993 | BI85: 1.340219544 | BJ85: 8.245287417 | BK85: 67.98476459 | BL85: 1.771180612 | BM85: 6.239056178 | BN85: 38.925822 | BO85: 0 | BR85: 18.73532693 | BS85: 0.3269931414 | BT85: -18.40833379 | BU85: 0.9488300898
T86: 3.370135205 | U86: 0.05881995557 | V86: -3.31131525 | W86: 0.9983304289 | X86: 20.5442942 | Z86: 14.71691255 | AA86: 0.2568585797 | AB86: -14.46005397 | AC86: 0.9683219674 | AD86: 1.032714359 | AE86: =($AG$47/$AG$48) * ($AG$49/$AG$50)* ($AG$51/$AG$52) * Generic!AC86 -> 5.479093161 | AF86: 5.461392306 | AG86: 5.84344709 | AH86: 5.197930696 | AK86: 26.22450514 | AL86: ='Simple AR Calculator'!H98 -> 1.028972979 | AS86: 1.3168283 | AT86: 0.02298298952 | AU86: -1.293845311 | AV86: -0.0225799415 | AW86: =ABS(AV86)*'Simple AR Calculator'!$C$8 -> 5.080486837 | AX86: 5.472703987 | AY86: 27.80400056 | BE86: 10.85762781 | BF86: 0.1895013543 | BG86: -10.66812646 | BH86: -0.1851199609 | BI86: 1.3168283 | BJ86: 8.245287417 | BK86: 67.98476459 | BL86: 1.755779041 | BM86: 6.183937475 | BN86: 38.2410827 | BO86: 0 | BR86: 18.40833379 | BS86: 0.3212860344 | BT86: -18.08704775 | BU86: 0.9505859386
T87: 3.31131525 | U87: 0.05779335368 | V87: -3.253521896 | W87: 0.9983881838 | X87: 20.51403476 | Z87: 14.46005397 | AA87: 0.2523755518 | AB87: -14.20767842 | AC87: 0.9694124666 | AD87: 1.031552651 | AE87: =($AG$47/$AG$48) * ($AG$49/$AG$50)* ($AG$51/$AG$52) * Generic!AC87 -> 5.485263575 | AF87: 5.46944819 | AG87: 5.836873753 | AH87: 5.192083505 | AK87: 28.20739025 | AL87: ='Simple AR Calculator'!H99 -> 0.9422828798 | AS87: 1.293845311 | AT87: 0.02258186068 | AU87: -1.27126345 | AV87: -0.02218591242 | AW87: =ABS(AV87)*'Simple AR Calculator'!$C$8 -> 4.991830294 | AX87: 5.479093161 | AY87: 27.35070323 | BE87: 10.66812646 | BF87: 0.1861939317 | BG87: -10.48193253 | BH87: -0.1819254599 | BI87: 1.293845311 | BJ87: 8.245287417 | BK87: 67.98476459 | BL87: 1.740377471 | BM87: 6.129777383 | BN87: 37.57417076 | BO87: 0 | BR87: 18.08704775 | BS87: 0.3156785353 | BT87: -17.77136922 | BU87: 0.9522820302
T88: 3.253521896 | U88: 0.05678466937 | V88: -3.196737227 | W88: 0.9984439414 | X88: 20.48477939 | Z88: 14.20767842 | AA88: 0.2479707674 | AB88: -13.95970765 | AC88: 0.9704656141 | AD88: 1.030433212 | AE88: =($AG$47/$AG$48) * ($AG$49/$AG$50)* ($AG$51/$AG$52) * Generic!AC88 -> 5.491222639 | AF88: 5.47725939 | AG88: 5.830539589 | AH88: 5.186449066 | AK88: 30.02674563 | AL88: ='Simple AR Calculator'!H100 -> 0.8628927219 | AS88: 1.27126345 | AT88: 0.02218773286 | AU88: -1.249075717 | AV88: -0.02179875709 | AW88: =ABS(AV88)*'Simple AR Calculator'!$C$8 -> 4.904720345 | AX88: 5.485263575 | AY88: 26.90368385 | BE88: 10.48193253 | BF88: 0.1829442346 | BG88: -10.29898829 | BH88: -0.178784842 | BI88: 1.27126345 | BJ88: 8.245287417 | BK88: 67.98476459 | BL88: 1.7249759 | BM88: 6.076567519 | BN88: 36.92467281 | BO88: 0 | BR88: 17.77136922 | BS88: 0.3101689055 | BT88: -17.46120031 | BU88: 0.9539203647
T89: 3.196737227 | U89: 0.05579358993 | V89: -3.140943637 | W89: 0.9984977706 | X89: 20.45649611 | Z89: 13.95970765 | AA89: 0.2436428611 | AB89: -13.71606479 | AC89: 0.9714826763 | AD89: 1.029354434 | AE89: =($AG$47/$AG$48) * ($AG$49/$AG$50)* ($AG$51/$AG$52) * Generic!AC89 -> 5.496977521 | AF89: 5.484832284 | AG89: 5.824435495 | AH89: 5.181019282 | AK89: 31.69461609 | AL89: ='Simple AR Calculator'!H111 -> 1.079877276 | AS89: 1.249075717 | AT89: 0.02180048387 | AU89: -1.227275233 | AV89: -0.02141835571 | AW89: =ABS(AV89)*'Simple AR Calculator'!$C$8 -> 4.819130035 | AX89: 5.491222639 | AY89: 26.46291595 | AZ89: 35 | BE89: 10.29898829 | BF89: 0.1797512553 | BG89: -10.11923704 | BH89: -0.1756972628 | BI89: 1.249075717 | BJ89: 8.245287417 | BK89: 67.98476459 | BL89: 1.70957433 | BM89: 6.024299799 | BN89: 36.29218807 | BO89: 0 | BR89: 17.46120031 | BS89: 0.3047554368 | BT89: -17.15644488 | BU89: 0.9555028775
T90: 3.140943637 | U90: 0.05481980808 | V90: -3.086123829 | W90: 0.9985497381 | X90: 20.42915386 | Z90: 13.71606479 | AA90: 0.239390491 | AB90: -13.4766743 | AC90: 0.9724648778 | AD90: 1.028314773 | AE90: =($AG$47/$AG$48) * ($AG$49/$AG$50)* ($AG$51/$AG$52) * Generic!AC90 -> 5.502535149 | AF90: 5.49217315 | AG90: 5.818552743 | AH90: 5.175786388 | AK90: 33.22257888 | AL90: ='Simple AR Calculator'!H101 -> 0.7901886381 | AS90: 1.227275233 | AT90: 0.02141999365 | AU90: -1.20585524 | AV90: -0.02104459057 | AW90: =ABS(AV90)*'Simple AR Calculator'!$C$8 -> 4.735032878 | AX90: 5.496977521 | AY90: 26.02836929 | BE90: 10.11923704 | BF90: 0.1766140041 | BG90: -9.942623033 | BH90: -0.1726618875 | BI90: 1.227275233 | BJ90: 8.245287417 | BK90: 67.98476459 | BL90: 1.694172759 | BM90: 5.972966441 | BN90: 35.67632811 | BO90: 0 | BR90: 17.15644488 | BS90: 0.299436451 | BT90: -16.85700843 | BU90: 0.9570314415
T91: 3.086123829 | U91: 0.05386302193 | V91: -3.032260807 | W91: 0.9985999083 | X91: 20.40272249 | Z91: 13.4766743 | AA91: 0.2352123387 | AB91: -13.24146196 | AC91: 0.9734134024 | AD91: 1.027312751 | AE91: =($AG$47/$AG$48) * ($AG$49/$AG$50)* ($AG$51/$AG$52) * Generic!AC91 -> 5.507902222 | AF91: 5.499288165 | AG91: 5.812882963 | AH91: 5.17074294 | AK91: 34.62163347 | AL91: ='Simple AR Calculator'!H102 -> 0.7236081875 | AS91: 1.20585524 | AT91: 0.02104614423 | AU91: -1.184809095 | AV91: -0.02067734599 | AW91: =ABS(AV91)*'Simple AR Calculator'!$C$8 -> 4.652402849 | AX91: 5.502535149 | AY91: 25.6000102 | BE91: 9.942623033 | BF91: 0.1735315082 | BG91: -9.769091525 | BH91: -0.1696778915 | BI91: 1.20585524 | BJ91: 8.245287417 | BK91: 67.98476459 | BL91: 1.678771189 | BM91: 5.922559965 | BN91: 35.07671654 | BO91: 0 | BR91: 16.85700843 | BS91: 0.2942102991 | BT91: -16.56279813 | BU91: 0.9585078685
T92: 3.032260807 | U92: 0.05292293486 | V92: -2.979337872 | W92: 0.9986483433 | X92: 20.37717275 | Z92: 13.24146196 | AA92: 0.231107109 | AB92: -13.01035485 | AC92: 0.9743293943 | AD92: 1.026346948 | AE92: =($AG$47/$AG$48) * ($AG$49/$AG$50)* ($AG$51/$AG$52) * Generic!AC92 -> 5.513085214 | AF92: 5.506183399 | AG92: 5.807418123 | AH92: 5.165881792 | AK92: 35.90213868 | AL92: ='Simple AR Calculator'!H103 -> 0.6626360923 | AS92: 1.184809095 | AT92: 0.02067881972 | AU92: -1.164130276 | AV92: -0.02031650833 | AW92: =ABS(AV92)*'Simple AR Calculator'!$C$8 -> 4.571214374 | AX92: 5.507902222 | AY92: 25.17780181 | BE92: 9.769091525 | BF92: 0.170502812 | BG92: -9.598588713 | BH92: -0.16674446 | BI92: 1.184809095 | BJ92: 8.245287417 | BK92: 67.98476459 | BL92: 1.663369618 | BM92: 5.873073199 | BN92: 34.4929888 | BO92: 0 | BR92: 16.56279813 | BS92: 0.2890753606 | BT92: -16.27372277 | BU92: 0.9599339116
T93: 2.979337872 | U93: 0.05199925539 | V93: -2.927338616 | W93: 0.9986951031 | X93: 20.35247626 | Z93: 13.01035485 | AA93: 0.227073529 | AB93: -12.78328132 | AC93: 0.9752139598 | AD93: 1.025416002 | AE93: =($AG$47/$AG$48) * ($AG$49/$AG$50)* ($AG$51/$AG$52) * Generic!AC93 -> 5.518090385 | AF93: 5.512864817 | AG93: 5.802150519 | AH93: 5.161196092 | AK93: 37.07378397 | AL93: ='Simple AR Calculator'!H104 -> 0.6068003178 | AS93: 1.164130276 | AT93: 0.02031790623 | AU93: -1.143812369 | AV93: -0.01996196589 | AW93: =ABS(AV93)*'Simple AR Calculator'!$C$8 -> 4.491442325 | AX93: 5.513085214 | AY93: 24.76170428 | BE93: 9.598588713 | BF93: 0.1675269766 | BG93: -9.431061736 | BH93: -0.1638607882 | BI93: 1.164130276 | BJ93: 8.245287417 | BK93: 67.98476459 | BL93: 1.647968048 | BM93: 5.824499283 | BN93: 33.9247919 | BO93: 0 | BR93: 16.27372277 | BS93: 0.2840300438 | BT93: -15.98969272 | BU93: 0.9613112664
T94: 2.927338616 | U94: 0.05109169718 | V94: -2.876246919 | W94: 0.9987402456 | X94: 20.32860548 | Z94: 12.78328132 | AA94: 0.2231103483 | AB94: -12.56017097 | AC94: 0.9760681679 | AD94: 1.024518607 | AE94: =($AG$47/$AG$48) * ($AG$49/$AG$50)* ($AG$51/$AG$52) * Generic!AC94 -> 5.522923783 | AF94: 5.519338274 | AG94: 5.797072754 | AH94: 5.15667926 | AK94: 38.14558475 | AL94: ='Simple AR Calculator'!H105 -> 0.5556684706 | AS94: 1.143812369 | AT94: 0.01996329187 | AU94: -1.123849077 | AV94: -0.01961360894 | AW94: =ABS(AV94)*'Simple AR Calculator'!$C$8 -> 4.413062012 | AX94: 5.518090385 | AY94: 24.35167505 | AZ94: 40 | BE94: 9.431061736 | BF94: 0.1646030793 | BG94: -9.266458657 | BH94: -0.1610260813 | BI94: 1.143812369 | BJ94: 8.245287417 | BK94: 67.98476459 | BL94: 1.632566477 | BM94: 5.776831675 | BN94: 33.3717842 | BO94: 0 | BR94: 15.98969272 | BS94: 0.2790727844 | BT94: -15.71061994 | BU94: 0.9626415733
T95: 2.876246919 | U95: 0.05019997884 | V95: -2.82604694 | W95: 0.9987838268 | X95: 20.30553372 | Z95: 12.56017097 | AA95: 0.2192163381 | AB95: -12.34095463 | AC95: 0.9768930522 | AD95: 1.023653508 | AE95: =($AG$47/$AG$48) * ($AG$49/$AG$50)* ($AG$51/$AG$52) * Generic!AC95 -> 5.527591257 | AF95: 5.525609512 | AG95: 5.792177731 | AH95: 5.152324982 | AK95: 39.12589451 | AL95: ='Simple AR Calculator'!H106 -> 0.5088444895 | AS95: 1.123849077 | AT95: 0.0196148667 | AU95: -1.104234211 | AV95: -0.01927132965 | AW95: =ABS(AV95)*'Simple AR Calculator'!$C$8 -> 4.336049171 | AX95: 5.522923783 | AY95: 23.94766909 | BE95: 9.266458657 | BF95: 0.1617302136 | BG95: -9.104728443 | BH95: -0.1582395549 | BI95: 1.123849077 | BJ95: 8.245287417 | BK95: 67.98476459 | BL95: 1.617164907 | BM95: 5.73006415 | BN95: 32.83363517 | BO95: 0 | BR95: 15.71061994 | BS95: 0.2742020454 | BT95: -15.43641789 | BU95: 0.9639264188
T96: 2.82604694 | U96: 0.04932382393 | V96: -2.776723117 | W96: 0.9988259005 | X96: 20.28323507 | Z96: 12.34095463 | AA96: 0.2153902912 | AB96: -12.12556434 | AC96: 0.9776896114 | AD96: 1.022819501 | AE96: =($AG$47/$AG$48) * ($AG$49/$AG$50)* ($AG$51/$AG$52) * Generic!AC96 -> 5.532098459 | AF96: 5.531684166 | AG96: 5.787458634 | AH96: 5.148127196 | AK96: 40.02242807 | AL96: ='Simple AR Calculator'!H107 -> 0.4659656087 | AS96: 1.104234211 | AT96: 0.01927252269 | AU96: -1.084961688 | AV96: -0.01893502205 | AW96: =ABS(AV96)*'Simple AR Calculator'!$C$8 -> 4.260379962 | AX96: 5.527591257 | AY96: 23.54963903 | BE96: 9.104728443 | BF96: 0.1589074888 | BG96: -8.945820954 | BH96: -0.1555004344 | BI96: 1.104234211 | BJ96: 8.245287417 | BK96: 67.98476459 | BL96: 1.601763336 | BM96: 5.684190815 | BN96: 32.31002522 | BO96: 0 | BR96: 15.43641789 | BS96: 0.2694163169 | BT96: -15.16700157 | BU96: 0.9651673373
T97: 2.776723117 | U97: 0.0484629608 | V97: -2.728260156 | W97: 0.998866519 | X97: 20.26168442 | Z97: 12.12556434 | AA97: 0.2116310215 | AB97: -11.91393332 | AC97: 0.978458811 | AD97: 1.022015428 | AE97: =($AG$47/$AG$48) * ($AG$49/$AG$50)* ($AG$51/$AG$52) * Generic!AC97 -> 5.53645085 | AF97: 5.537567753 | AG97: 5.782908917 | AH97: 5.144080079 | AS97: 1.084961688 | AT97: 0.01893615371 | AU97: -1.066025534 | AV97: -0.01860458205 | AW97: =ABS(AV97)*'Simple AR Calculator'!$C$8 -> 4.186030961 | AX97: 5.532098459 | AY97: 23.15753543 | BE97: 8.945820954 | BF97: 0.1561340299 | BG97: -8.789686925 | BH97: -0.1528079555 | BI97: 1.084961688 | BJ97: 8.245287417 | BK97: 67.98476459 | BL97: 1.586361766 | BM97: 5.639206106 | BN97: 31.8006455 | BO97: 0 | BR97: 15.16700157 | BS97: 0.2647141151 | BT97: -14.90228746 | BU97: 0.9663658129
T98: 2.728260156 | U98: 0.04761712257 | V98: -2.680643033 | W98: 0.9989057325 | X98: 20.24085742 | Y98: 44 | Z98: 11.91393332 | AA98: 0.2079373633 | AB98: -11.70599596 | AC98: 0.9792015837 | AD98: 1.021240178 | AE98: =($AG$47/$AG$48) * ($AG$49/$AG$50)* ($AG$51/$AG$52) * Generic!AC98 -> 5.54065371 | AF98: 5.54326568 | AG98: 5.778522295 | AH98: 5.14017804 | AS98: 1.066025534 | AT98: 0.01860565548 | AU98: -1.047419879 | AV98: -0.01827990733 | AW98: =ABS(AV98)*'Simple AR Calculator'!$C$8 -> 4.112979149 | AX98: 5.53645085 | AY98: 22.77130691 | BE98: 8.789686925 | BF98: 0.1534089771 | BG98: -8.636277947 | BH98: -0.1501613639 | BI98: 1.066025534 | BJ98: 8.245287417 | BK98: 67.98476459 | BL98: 1.570960195 | BM98: 5.595104798 | BN98: 31.3051977 | BO98: 0 | BR98: 14.90228746 | BS98: 0.2600939823 | BT98: -14.64219348 | BU98: 0.9675232804
T99: 2.680643033 | U99: 0.046786047 | V99: -2.633856986 | W99: 0.9989435897 | X99: 20.22073047 | Z99: 11.70599596 | AA99: 0.2043081717 | AB99: -11.50168779 | AC99: 0.9799188313 | AD99: 1.020492686 | AE99: =($AG$47/$AG$48) * ($AG$49/$AG$50)* ($AG$51/$AG$52) * Generic!AC99 -> 5.544712139 | AF99: 5.548783238 | AG99: 5.774292729 | AH99: 5.136415708 | AS99: 1.047419879 | AT99: 0.01828092554 | AU99: -1.029138953 | AV99: -0.01796089738 | AW99: =ABS(AV99)*'Simple AR Calculator'!$C$8 -> 4.04120191 | AX99: 5.54065371 | AY99: 22.39090035 | AZ99: 45 | BE99: 8.636277947 | BF99: 0.1507314853 | BG99: -8.485546462 | BH99: -0.1475599155 | BI99: 1.047419879 | BJ99: 8.245287417 | BK99: 67.98476459 | BL99: 1.555558624 | BM99: 5.551882013 | BN99: 30.82339389 | BO99: 0 | BR99: 14.64219348 | BS99: 0.2555544859 | BT99: -14.38663899 | BU99: 0.9686411277
T100: 2.633856986 | U100: 0.04596947644 | V100: -2.58788751 | W100: 0.9989801373 | X100: 20.20128068 | Z100: 11.50168779 | AA100: 0.2007423214 | AB100: -11.30094547 | AC100: 0.980611425 | AD100: 1.019771924 | AE100: =($AG$47/$AG$48) * ($AG$49/$AG$50)* ($AG$51/$AG$52) * Generic!AC100 -> 5.548631068 | AF100: 5.554125605 | AG100: 5.770214418 | AH100: 5.132787921 | AS100: 1.029138953 | AT100: 0.0179618632 | AU100: -1.01117709 | AV100: -0.01764745342 | AW100: =ABS(AV100)*'Simple AR Calculator'!$C$8 -> 3.970677019 | AX100: 5.544712139 | AY100: 22.01626107 | BE100: 8.485546462 | BF100: 0.1481007246 | BG100: -8.337445738 | BH100: -0.1450028761 | BI100: 1.029138953 | BJ100: 8.245287417 | BK100: 67.98476459 | BL100: 1.540157054 | BM100: 5.509533226 | BN100: 30.35495637 | BO100: 0 | BR100: 14.38663899 | BS100: 0.2510942187 | BT100: -14.13554477 | BU100: 0.9697206964
T101: 2.58788751 | U101: 0.04516715772 | V101: -2.542720352 | W101: 0.9990154208 | X101: 20.18248589 | Z101: 11.30094547 | AA101: 0.197238707 | AB101: -11.10370676 | AC101: 0.9812802067 | AD101: 1.019076909 | AE101: =($AG$47/$AG$48) * ($AG$49/$AG$50)* ($AG$51/$AG$52) * Generic!AC101 -> 5.552415261 | AF101: 5.559297845 | AG101: 5.766281786 | AH101: 5.129289721 | AS101: 1.01117709 | AT101: 0.01764836954 | AU101: -0.9935287206 | AV101: -0.0173394784 | AW101: =ABS(AV101)*'Simple AR Calculator'!$C$8 -> 3.901382639 | AX101: 5.548631068 | AY101: 21.64733292 | BE101: 8.337445738 | BF101: 0.1455158793 | BG101: -8.191929858 | BH101: -0.1424895218 | BI101: 1.01117709 | BJ101: 8.245287417 | BK101: 67.98476459 | BL101: 1.524755483 | BM101: 5.468054274 | BN101: 29.89961754 | BO101: 0 | BR101: 14.13554477 | BS101: 0.2467117979 | BT101: -13.88883298 | BU101: 0.9707632839
T102: 2.542720352 | U102: 0.0443788421 | V102: -2.49834151 | W102: 0.9990494838 | X102: 20.1643246 | Z102: 11.10370676 | AA102: 0.1937962421 | AB102: -10.90991052 | AC102: 0.98192599 | AD102: 1.018406693 | AE102: =($AG$47/$AG$48) * ($AG$49/$AG$50)* ($AG$51/$AG$52) * Generic!AC102 -> 5.556069321 | AF102: 5.564304906 | AG102: 5.762489475 | AH102: 5.125916341 | AS102: 0.9935287206 | AT102: 0.01734034739 | AU102: -0.9761883732 | AV102: -0.01703687695 | AW102: =ABS(AV102)*'Simple AR Calculator'!$C$8 -> 3.833297314 | AX102: 5.552415261 | AY102: 21.28405851 | BE102: 8.191929858 | BF102: 0.1429761481 | BG102: -8.04895371 | BH102: -0.1400191385 | BI102: 0.9935287206 | BJ102: 8.245287417 | BK102: 67.98476459 | BL102: 1.509353913 | BM102: 5.427441363 | BN102: 29.45711975 | BO102: 0 | BR102: 13.88883298 | BS102: 0.2424058647 | BT102: -13.64642711 | BU102: 0.9717701445
T103: 2.49834151 | U103: 0.04360428519 | V103: -2.454737225 | W103: 0.9990823685 | X103: 20.146776 | Z103: 10.90991052 | AA103: 0.1904138596 | AB103: -10.71949666 | AC103: 0.9825495609 | AD103: 1.017760365 | AE103: =($AG$47/$AG$48) * ($AG$49/$AG$50)* ($AG$51/$AG$52) * Generic!AC103 -> 5.559597697 | AF103: 5.569151624 | AG103: 5.758832336 | AH103: 5.1226632 | AS103: 0.9761883732 | AT103: 0.01703770123 | AU103: -0.959150672 | AV103: -0.01673955538 | AW103: =ABS(AV103)*'Simple AR Calculator'!$C$8 -> 3.76639996 | AX103: 5.556069321 | AY103: 20.92637927 | BE103: 8.04895371 | BF103: 0.1404807436 | BG103: -7.908472967 | BH103: -0.1375910222 | BI103: 0.9761883732 | BJ103: 8.245287417 | BK103: 67.98476459 | BL103: 1.493952342 | BM103: 5.387691081 | BN103: 29.02721518 | BO103: 0 | BR103: 13.64642711 | BS103: 0.2381750842 | BT103: -13.40825203 | BU103: 0.9727424906
C104: ITF=((Leverage*86)-194)+(StrikeWt-10)*(44+((Leverage-5)*8)) | T104: 2.454737225 | U104: 0.04284324684 | V104: -2.411893978 | W104: 0.9991141156 | X104: 20.12981992 | Z104: 10.71949666 | AA104: 0.1870905108 | AB104: -10.53240615 | AC104: 0.983151679 | AD104: 1.017137052 | AE104: =($AG$47/$AG$48) * ($AG$49/$AG$50)* ($AG$51/$AG$52) * Generic!AC104 -> 5.563004685 | AF104: 5.573842723 | AG104: 5.755305416 | AH104: 5.119525893 | AS104: 0.959150672 | AT104: 0.01674033725 | AU104: -0.9424103347 | AV104: -0.0164474216 | AW104: =ABS(AV104)*'Simple AR Calculator'!$C$8 -> 3.700669861 | AX104: 5.559597697 | AY104: 20.57423563 | AZ104: 50 | BE104: 7.908472967 | BF104: 0.1380288921 | BG104: -7.770444074 | BH104: -0.1352044789 | BI104: 0.959150672 | BJ104: 8.245287417 | BK104: 67.98476459 | BL104: 1.478550772 | BM104: 5.348800405 | BN104: 28.60966577 | BO104: 0 | BR104: 13.40825203 | BS104: 0.2340181448 | BT104: -13.17423388 | BU104: 0.9736814946
C105: Example: | T105: 2.411893978 | U105: 0.04209549112 | V105: -2.369798487 | W105: 0.9991447646 | X105: 20.11343683 | Z105: 10.53240615 | AA105: 0.1838251654 | AB105: -10.34858098 | AC105: 0.9837330782 | AD105: 1.01653591 | AE105: =($AG$47/$AG$48) * ($AG$49/$AG$50)* ($AG$51/$AG$52) * Generic!AC105 -> 5.566294438 | AF105: 5.578382812 | AG105: 5.751903954 | AH105: 5.116500186 | AS105: 0.9424103347 | AT105: 0.01644816325 | AU105: -0.9259621715 | AV105: -0.01616038516 | AW105: =ABS(AV105)*'Simple AR Calculator'!$C$8 -> 3.63608666 | AX105: 5.563004685 | AY105: 20.22756712 | BE105: 7.770444074 | BF105: 0.1356198334 | BG105: -7.634824241 | BH105: -0.1328588243 | BI105: 0.9424103347 | BJ105: 8.245287417 | BK105: 67.98476459 | BL105: 1.463149201 | BM105: 5.310766713 | BN105: 28.20424308 | BO105: 0 | BR105: 13.17423388 | BS105: 0.2299337577 | BT105: -12.94430012 | BU105: 0.9745882896
C106: Leverage 5.4 | T106: 2.369798487 | U106: 0.0413607862 | V106: -2.328437701 | W106: 0.9991743534 | X106: 20.09760779 | Z106: 10.34858098 | AA106: 0.180616811 | AB106: -10.16796417 | AC106: 0.9842944676 | AD106: 1.015956132 | AE106: =($AG$47/$AG$48) * ($AG$49/$AG$50)* ($AG$51/$AG$52) * Generic!AC106 -> 5.569470969 | AF106: 5.582776392 | AG106: 5.748623373 | AH106: 5.113582005 | AS106: 0.9259621715 | AT106: 0.01616108864 | AU106: -0.9098010828 | AV106: -0.01587835714 | AW106: =ABS(AV106)*'Simple AR Calculator'!$C$8 -> 3.572630357 | AX106: 5.566294438 | AY106: 19.88631249 | BE106: 7.634824241 | BF106: 0.1332528208 | BG106: -7.50157142 | BH106: -0.130553384 | BI106: 0.9259621715 | BJ106: 8.245287417 | BK106: 67.98476459 | BL106: 1.447747631 | BM106: 5.273587799 | BN106: 27.81072827 | BO106: 0 | BR106: 12.94430012 | BS106: 0.2259206565 | BT106: -12.71837947 | BU106: 0.975463971
C107: StrikeWt = 9.5 g | T107: 2.328437701 | U107: 0.0406389043 | V107: -2.287798796 | W107: 0.9992029186 | X107: 20.08231448 | Z107: 10.16796417 | AA107: 0.177464453 | AB107: -9.990499717 | AC107: 0.9848365323 | AD107: 1.015396939 | AE107: =($AG$47/$AG$48) * ($AG$49/$AG$50)* ($AG$51/$AG$52) * Generic!AC107 -> 5.572538154 | AF107: 5.58702785 | AG107: 5.745459269 | AH107: 5.110767435 | AS107: 0.9098010828 | AT107: 0.01587902443 | AU107: -0.8939220584 | AV107: -0.01560125022 | AW107: =ABS(AV107)*'Simple AR Calculator'!$C$8 -> 3.510281299 | AX107: 5.569470969 | AY107: 19.55040979 | BE107: 7.50157142 | BF107: 0.1309271204 | BG107: -7.3706443 | BH107: -0.1282874934 | BI107: 0.9098010828 | BJ107: 8.245287417 | BK107: 67.98476459 | BL107: 1.43234606 | BM107: 5.23726188 | BN107: 27.428912 | BO107: 0 | BR107: 12.71837947 | BS107: 0.2219775972 | BT107: -12.49640187 | BU107: 0.9763095974
C108: Result in ITF calculator: 247 | T108: 2.287798796 | U108: 0.03992962162 | V108: -2.247869175 | W108: 0.9992304956 | X108: 20.06753916 | Z108: 9.990499717 | AA108: 0.174367114 | AB108: -9.816132603 | AC108: 0.985359934 | AD108: 1.014857582 | AE108: =($AG$47/$AG$48) * ($AG$49/$AG$50)* ($AG$51/$AG$52) * Generic!AC108 -> 5.575499738 | AF108: 5.591141465 | AG108: 5.742407406 | AH108: 5.108052706 | AS108: 0.8939220584 | AT108: 0.01560188318 | AU108: -0.8783201752 | AV108: -0.01532897855 | AW108: =ABS(AV108)*'Simple AR Calculator'!$C$8 -> 3.449020174 | AX108: 5.572538154 | AY108: 19.21979652 | BE108: 7.3706443 | BF108: 0.128642011 | BG108: -7.242002289 | BH108: -0.1260604975 | BI108: 0.8939220584 | BJ108: 8.245287417 | BK108: 67.98476459 | BL108: 1.41694449 | BM108: 5.201787617 | BN108: 27.05859441 | BO108: 0 | BR108: 12.49640187 | BS108: 0.2181033573 | BT108: -12.27829851 | BU108: 0.9771261923
C109: Calculation: | T109: 2.247869175 | U109: 0.03923271825 | V109: -2.208636456 | W109: 0.9992571187 | X109: 20.05326463 | Z109: 9.816132603 | AA109: 0.1713238337 | AB109: -9.644808769 | AC109: 0.9858653123 | AD109: 1.014337342 | AE109: =($AG$47/$AG$48) * ($AG$49/$AG$50)* ($AG$51/$AG$52) * Generic!AC109 -> 5.578359339 | AF109: 5.59512141 | AG109: 5.73946371 | AH109: 5.105434196 | AS109: 0.8783201752 | AT109: 0.01532957894 | AU109: -0.8629905963 | AV109: -0.01506145782 | AW109: =ABS(AV109)*'Simple AR Calculator'!$C$8 -> 3.388828009 | AX109: 5.575499738 | AY109: 18.89440968 | AZ109: 55 | BE109: 7.242002289 | BF109: 0.1263967844 | BG109: -7.115605504 | BH109: -0.1238717511 | BI109: 0.8783201752 | BJ109: 8.245287417 | BK109: 67.98476459 | BL109: 1.401542919 | BM109: 5.167164123 | BN109: 26.69958508 | BO109: 0 | BR109: 12.27829851 | BS109: 0.2142967356 | BT109: -12.06400178 | BU109: 0.9779147445
C110: ((5.4*86)-194)+(9.5-10)*(44+((Leverage-5)*8)) | T110: 2.208636456 | U110: 0.03854797814 | V110: -2.170088478 | W110: 0.9992828208 | X110: 20.03947427 | Z110: 9.644808769 | AA110: 0.1683336687 | AB110: -9.4764751 | AC110: 0.9863532848 | AD110: 1.013835525 | AE110: =($AG$47/$AG$48) * ($AG$49/$AG$50)* ($AG$51/$AG$52) * Generic!AC110 -> 5.581120453 | AF110: 5.598971749 | AG110: 5.73662426 | AH110: 5.102908416 | AS110: 0.8629905963 | AT110: 0.01506202732 | AU110: -0.847928569 | AV110: -0.01479860515 | AW110: =ABS(AV110)*'Simple AR Calculator'!$C$8 -> 3.329686159 | AX110: 5.578359339 | AY110: 18.57418588 | BE110: 7.115605504 | BF110: 0.1241907443 | BG110: -6.99141476 | BH110: -0.1217206182 | BI110: 0.8629905963 | BJ110: 8.245287417 | BK110: 67.98476459 | BL110: 1.386141349 | BM110: 5.133390986 | BN110: 26.35170302 | BO110: 0 | BR110: 12.06400178 | BS110: 0.210556552 | BT110: -11.85344523 | BU110: 0.97867621
C111: (464.4-194) + -0.5*(44+(0.4*8)) | T111: 2.170088478 | U111: 0.037875189 | V111: -2.132213289 | W111: 0.9993076337 | X111: 20.02615195 | Z111: 9.4764751 | AA111: 0.165395692 | AB111: -9.311079408 | AC111: 0.9868244483 | AD111: 1.013351465 | AE111: =($AG$47/$AG$48) * ($AG$49/$AG$50)* ($AG$51/$AG$52) * Generic!AC111 -> 5.583786455 | AF111: 5.602696442 | AG111: 5.733885285 | AH111: 5.100472011 | AS111: 0.847928569 | AT111: 0.01479914535 | AU111: -0.8331294236 | AV111: -0.01454033913 | AW111: =ABS(AV111)*'Simple AR Calculator'!$C$8 -> 3.271576305 | AX111: 5.581120453 | AY111: 18.25906143 | BE111: 6.99141476 | BF111: 0.1220232069 | BG111: -6.869391553 | BH111: -0.1196064727 | BI111: 0.847928569 | BJ111: 8.245287417 | BK111: 67.98476459 | BL111: 1.370739778 | BM111: 5.100468282 | BN111: 26.01477669 | BO111: 0 | BR111: 11.85344523 | BS111: 0.2068816469 | BT111: -11.64656358 | BU111: 0.9794115126
C112: 270.4 + -0.5*(44+3.2) | T112: 2.132213289 | U112: 0.03721414225 | V112: -2.094999147 | W112: 0.9993315883 | X112: 20.0132821 | Z112: 9.311079408 | AA112: 0.1625089926 | AB112: -9.148570416 | AC112: 0.9872793792 | AD112: 1.01288452 | AE112: =($AG$47/$AG$48) * ($AG$49/$AG$50)* ($AG$51/$AG$52) * Generic!AC112 -> 5.586360608 | AF112: 5.606299343 | AG112: 5.731243153 | AH112: 5.098121751 | AS112: 0.8331294236 | AT112: 0.01454085154 | AU112: -0.8185885721 | AV112: -0.01428657976 | AW112: =ABS(AV112)*'Simple AR Calculator'!$C$8 -> 3.214480446 | AX112: 5.583786455 | AY112: 17.94897238 | BE112: 6.869391553 | BF112: 0.1198935002 | BG112: -6.749498053 | BH112: -0.1175286975 | BI112: 0.8331294236 | BJ112: 8.245287417 | BK112: 67.98476459 | BL112: 1.355338207 | BM112: 5.068396593 | BN112: 25.68864402 | BO112: 0 | BR112: 11.64656358 | BS112: 0.203270881 | BT112: -11.4432927 | BU112: 0.9801215449
C113: 270.4 + -0.5*47.2 | T113: 2.094999147 | U113: 0.03656463294 | V113: -2.058434514 | W113: 0.9993547142 | X113: 20.00084962 | Z113: 9.148570416 | AA113: 0.1596726756 | AB113: -8.98889774 | AC113: 0.9877186345 | AD113: 1.012434073 | AE113: =($AG$47/$AG$48) * ($AG$49/$AG$50)* ($AG$51/$AG$52) * Generic!AC113 -> 5.588846063 | AF113: 5.609784207 | AG113: 5.728694372 | AH113: 5.09585453 | AS113: 0.8185885721 | AT113: 0.0142870658 | AU113: -0.8043015063 | AV113: -0.01403724843 | AW113: =ABS(AV113)*'Simple AR Calculator'!$C$8 -> 3.158380897 | AX113: 5.586360608 | AY113: 17.64385463 | BE113: 6.749498053 | BF113: 0.1178009639 | BG113: -6.631697089 | BH113: -0.1154866851 | BI113: 0.8185885721 | BJ113: 8.245287417 | BK113: 67.98476459 | BL113: 1.339936637 | BM113: 5.037177033 | BN113: 25.37315246 | BO113: 0 | BR113: 11.4432927 | BS113: 0.1997231348 | BT113: -11.24356956 | BU113: 0.9808071697
C114: 270.4 - 23.6 | T114: 2.058434514 | U114: 0.03592645971 | V114: -2.022508054 | W114: 0.99937704 | X114: 19.98883989 | Z114: 8.98889774 | AA114: 0.1568858617 | AB114: -8.832011878 | AC114: 0.9881427521 | AD114: 1.011999529 | AE114: =($AG$47/$AG$48) * ($AG$49/$AG$50)* ($AG$51/$AG$52) * Generic!AC114 -> 5.591245864 | AF114: 5.613154685 | AG114: 5.726235577 | AH114: 5.093667354 | AS114: 0.8043015063 | AT114: 0.01403770946 | AU114: -0.7902637968 | AV114: -0.0137922679 | AW114: =ABS(AV114)*'Simple AR Calculator'!$C$8 -> 3.103260278 | AX114: 5.588846063 | AY114: 17.34364399 | AZ114: 60 | BE114: 6.631697089 | BF114: 0.1157449492 | BG114: -6.51595214 | BH114: -0.113479837 | BI114: 0.8043015063 | BJ114: 8.245287417 | BK114: 67.98476459 | BL114: 1.324535066 | BM114: 5.006811263 | BN114: 25.06815903 | BO114: 0 | BR114: 11.24356956 | BS114: 0.1962373085 | BT114: -11.04733225 | BU114: 0.9814692205
C115: = 246.8 | T115: 2.022508054 | U115: 0.0352994247 | V115: -1.98720863 | W115: 0.9993985935 | X115: 19.97723879 | Z115: 8.832011878 | AA115: 0.1541476869 | AB115: -8.677864191 | AC115: 0.9885522516 | AD115: 1.011580317 | AE115: =($AG$47/$AG$48) * ($AG$49/$AG$50)* ($AG$51/$AG$52) * Generic!AC115 -> 5.59356295 | AF115: 5.616414333 | AG115: 5.723863532 | AH115: 5.091557345 | AS115: 0.7902637968 | AT115: 0.01379270521 | AU115: -0.7764710916 | AV115: -0.01355156228 | AW115: =ABS(AV115)*'Simple AR Calculator'!$C$8 -> 3.049101513 | AX115: 5.591245864 | AY115: 17.04827623 | BE115: 6.51595214 | BF115: 0.1137248187 | BG115: -6.402227321 | BH115: -0.1115075639 | BI115: 0.7902637968 | BJ115: 8.245287417 | BK115: 67.98476459 | BL115: 1.309133496 | BM115: 4.977301521 | BN115: 24.77353043 | BO115: 0 | BR115: 11.04733225 | BS115: 0.1928123214 | BT115: -10.85451993 | BU115: 0.9821085029
T116: 1.98720863 | U116: 0.03468333351 | V116: -1.952525296 | W116: 0.9994194013 | X116: 19.96603264 | Z116: 8.677864191 | AA116: 0.1514573022 | AB116: -8.526406889 | AC116: 0.9889476349 | AD116: 1.011175885 | AE116: =($AG$47/$AG$48) * ($AG$49/$AG$50)* ($AG$51/$AG$52) * Generic!AC116 -> 5.595800163 | AF116: 5.619566606 | AG116: 5.72157512 | AH116: 5.08952173 | AS116: 0.7764710916 | AT116: 0.01355197709 | AU116: -0.7629191145 | AV116: -0.013315057 | AW116: =ABS(AV116)*'Simple AR Calculator'!$C$8 -> 2.995887826 | AX116: 5.59356295 | AY116: 16.75768715 | BE116: 6.402227321 | BF116: 0.1117399462 | BG116: -6.290487375 | BH116: -0.1095692856 | BI116: 0.7764710916 | BJ116: 8.245287417 | BK116: 67.98476459 | BL116: 1.293731925 | BM116: 4.948650641 | BN116: 24.48914316 | BO116: 0 | BR116: 10.85451993 | BS116: 0.1894471115 | BT116: -10.66507282 | BU116: 0.9827257953
C117: Data Entry | D117: MAR | E117: DAR | G117: Isolate variables | I117: =O5 -> 4.872976705 | J117: segmentation | T117: 1.952525296 | U117: 0.03407799515 | V117: -1.918447301 | W117: 0.9994394893 | X117: 19.9552082 | Z117: 8.526406889 | AA117: 0.1488138736 | AB117: -8.377593016 | AC117: 0.9893293868 | AD117: 1.010785703 | AE117: =($AG$47/$AG$48) * ($AG$49/$AG$50)* ($AG$51/$AG$52) * Generic!AC117 -> 5.597960245 | AF117: 5.622614865 | AG117: 5.719367339 | AH117: 5.087557839 | AS117: 0.7629191145 | AT117: 0.01331545047 | AU117: -0.749603664 | AV117: -0.0130826788 | AW117: =ABS(AV117)*'Simple AR Calculator'!$C$8 -> 2.943602729 | AX117: 5.595800163 | AY117: 16.47181263 | BE117: 6.290487375 | BF117: 0.1097897162 | BG117: -6.180697659 | BH117: -0.1076644307 | BI117: 0.7629191145 | BJ117: 8.245287417 | BK117: 67.98476459 | BL117: 1.278330355 | BM117: 4.920862085 | BN117: 24.21488366 | BO117: 0 | BR117: 10.66507282 | BS117: 0.1861406357 | BT117: -10.47893219 | BU117: 0.9833218496
D118: ='Simple AR Calculator'!C6 -> Krakauer 5'10" | G118: A = | H118: 5.02 | I118: ='Simple AR Calculator'!C47 -> 5.014640128 | J118: Rest | T118: 1.918447301 | U118: 0.03348322193 | V118: -1.884964079 | W118: 0.9994588823 | X118: 19.94475267 | Z118: 8.377593016 | AA118: 0.1462165815 | AB118: -8.231376434 | AC118: 0.9896979757 | AD118: 1.010409261 | AE118: =($AG$47/$AG$48) * ($AG$49/$AG$50)* ($AG$51/$AG$52) * Generic!AC118 -> 5.600045845 | AF118: 5.62556238 | AG118: 5.7172373 | AH118: 5.085663102 | AS118: 0.749603664 | AT118: 0.01308305202 | AU118: -0.736520612 | AV118: -0.01285435566 | AW118: =ABS(AV118)*'Simple AR Calculator'!$C$8 -> 2.892230025 | AX118: 5.597960245 | AY118: 16.1905887 | BE118: 6.180697659 | BF118: 0.1078735242 | BG118: -6.072824134 | BH118: -0.1057924366 | BI118: 0.749603664 | BJ118: 8.245287417 | BK118: 67.98476459 | BL118: 1.262928784 | BM118: 4.893939972 | BN118: 23.95064845 | BO118: 0 | BR118: 10.47893219 | BS118: 0.1828918687 | BT118: -10.29604032 | BU118: 0.9838973925
C119: Key Out | D119: ='Simple AR Calculator'!C7 -> 115 | E119: ='Simple AR Calculator'!D7 -> 124.6154084 | I119: ='Simple AR Calculator'!C48 -> 5.464530505 | J119: At let-off | T119: 1.884964079 | U119: 0.03289882946 | V119: -1.85206525 | W119: 0.9994776044 | X119: 19.93465365 | Z119: 8.231376434 | AA119: 0.1436646207 | AB119: -8.087711813 | AC119: 0.9900538539 | AD119: 1.010046066 | AE119: =($AG$47/$AG$48) * ($AG$49/$AG$50)* ($AG$51/$AG$52) * Generic!AC119 -> 5.602059525 | AF119: =($AG$47/$AG$48) * ($AG$49/X119)* ($AG$51/$AG$52) -> 5.628412325 | AG119: =($AG$47/$AG$48) * ($AG$49/$AG$50)* ($AG$51/$AG$52)*AD119 -> 5.71518222 | AH119: =($AG$47/$AG$48) * ($AG$49/$AH$50)* ($AG$51/$AG$52)*AD119 -> 5.083835044 | AS119: 0.736520612 | AT119: 0.01285470969 | AU119: -0.7236659023 | AV119: -0.01263001687 | AW119: =ABS(AV119)*'Simple AR Calculator'!$C$8 -> 2.841753796 | AX119: 5.600045845 | AY119: 15.91395154 | AZ119: 65 | BE119: 6.072824134 | BF119: 0.105990776 | BG119: -5.966833358 | BH119: -0.1039527498 | BI119: 0.736520612 | BJ119: 8.245287417 | BK119: 67.98476459 | BL119: 1.247527214 | BM119: 4.867889107 | BN119: 23.69634436 | BO119: 0 | BR119: 10.29604032 | BS119: 0.1796998034 | BT119: -10.11634051 | BU119: 0.9844531261
C120: Key In | D120: ='Simple AR Calculator'!C8 -> 225 | E120: ='Simple AR Calculator'!D8 -> 225 | I120: ='Simple AR Calculator'!C49 -> 5.637394182 | J120: Max cosign | T120: 1.85206525 | U120: 0.03232463657 | V120: -1.819740613 | W120: =COS(RADIANS(V120)) -> 0.9994956788 | X120: =SQRT($H$62^2+$F$60^2-2*$H$62*$F$60*(COS(RADIANS(V120)))) -> 19.92489916 | Y120: 66 | Z120: 8.087711813 | AA120: 0.1411572001 | AB120: -7.946554613 | AC120: =COS(RADIANS(AB120)) -> 0.9903974583 | AD120: =1/AC120 -> 1.009695645 | AE120: =($AG$47/$AG$48) * ($AG$49/$AG$50)* ($AG$51/$AG$52) * Generic!AC120 -> 5.604003754 | AF120: 5.631167786 | AG120: 5.713199418 | AH120: 5.082071279 | AS120: 0.7236659023 | AT120: 0.01263035268 | AU120: -0.7110355496 | AV120: -0.01240959291 | AW120: =ABS(AV120)*'Simple AR Calculator'!$C$8 -> 2.792158405 | AX120: =AE119 -> 5.602059525 | AY120: =AW120*AX120 -> 15.64183758 | BE120: 5.966833358 | BF120: 0.104140888 | BG120: -5.86269247 | BH120: -0.102144825 | BI120: =AS120 -> 0.7236659023 | BJ120: =BE120/BI120 -> 8.245287417 | BK120: =BJ120^2 -> 67.98476459 | BL120: 1.232125643 | BM120: =BE120/BL120 -> 4.84271502 | BN120: =BM120^2 -> 23.45188876 | BO120: =(BK120*$BD$52)*10000 -> 0 | BR120: 10.11634051 | BS120: 0.1765634502 | BT120: -9.939777063 | BU120: 0.9849897286
C121: Whip_out | D121: ='Simple AR Calculator'!C9 -> 94 | E121: ='Simple AR Calculator'!E9 -> 94.34922803 | I121: ='Simple AR Calculator'!F8 -> 5.641321884 | J121: AGP rotations to string | T121: 1.819740613 | U121: =(RADIANS(T121)) -> 0.03176046523 | V121: -1.787980148 | W121: 0.9995131279 | X121: 19.91547761 | Z121: 7.946554613 | AA121: =(RADIANS(Z121)) -> 0.1386935422 | AB121: -7.807861071 | AC121: 0.9907292108 | AD121: 1.009357541 | AE121: =($AG$47/$AG$48) * ($AG$49/$AG$50)* ($AG$51/$AG$52) * Generic!AC121 -> 5.605880922 | AF121: 5.633831762 | AG121: 5.711286314 | AH121: 5.080369513 | AS121: 0.7110355496 | AT121: 0.01240991144 | AU121: -0.6986256382 | AV121: =SIN(RADIANS(AU121)) -> -0.01219301548 | AW121: =ABS(AV121)*'Simple AR Calculator'!$C$8 -> 2.743428484 | AX121: 5.604003754 | AY121: 15.37418352 | BE121: 5.86269247 | BF121: 0.1023232866 | BG121: -5.760369184 | BH121: =SIN(RADIANS(BG121)) -> -0.1003681258 | BI121: 0.7110355496 | BJ121: 8.245287417 | BK121: 67.98476459 | BL121: =BL120- $BI$50 -> 1.216724073 | BM121: 4.818423998 | BN121: 23.21720982 | BO121: 0 | BR121: 9.939777063 | BS121: 0.1734818367 | BT121: -9.766295226 | BU121: 0.9855078553
C122: Whip_in | D122: ='Simple AR Calculator'!C10 -> 64 | E122: ='Simple AR Calculator'!D10 -> 64 | I122: =F127/I119 -> 8.05192687 | J122: Dip | T122: 1.787980148 | U122: 0.03120614054 | V122: -1.756774007 | W122: 0.9995299733 | X122: 19.90637777 | Z122: 7.807861071 | AA122: 0.1362728832 | AB122: -7.671588188 | AC122: 0.9910495189 | AD122: 1.009031316 | AE122: =($AG$47/$AG$48) * ($AG$49/$AG$50)* ($AG$51/$AG$52) * Generic!AC122 -> 5.607693334 | AF122: 5.636407164 | AG122: 5.709440421 | AH122: 5.078727533 | AS122: 0.6986256382 | AT122: =(RADIANS(AS122)) -> 0.01219331763 | AU122: -0.6864323206 | AV122: -0.01198021749 | AW122: =ABS(AV122)*'Simple AR Calculator'!$C$8 -> 2.695548935 | AX122: 5.605880922 | AY122: 15.11092635 | BE122: 5.760369184 | BF122: =(RADIANS(BE122)) -> 0.1005374084 | BG122: -5.659831775 | BH122: -0.098622124 | BI122: 0.6986256382 | BJ122: 8.245287417 | BK122: 67.98476459 | BL122: 1.201322502 | BM122: 4.79502313 | BN122: 22.99224682 | BO122: 0 | BR122: 9.766295226 | BS122: 0.1704540074 | BT122: =BS122-BR122 -> -9.595841219 | BU122: 0.9860081393
C123: Shank_out | D123: ='Simple AR Calculator'!C11 -> 128 | E123: ='Simple AR Calculator'!D11 -> 137.4190671 | G123: Ko = | H123: (AKiWiSi) / (WoSo) | J123: =(I118*E120*E122*E124)/ (E121*E123) -> 124.1541519 | K123: =J124/J123 -> 1.818996101 | T123: 1.756774007 | U123: 0.03066149064 | V123: -1.726112517 | W123: 0.9995462359 | X123: 19.89758882 | Z123: 7.671588188 | AA123: 0.1338944727 | AB123: -7.537693715 | AC123: 0.9913587763 | AD123: 1.008716545 | AE123: =($AG$47/$AG$48) * ($AG$49/$AG$50)* ($AG$51/$AG$52) * Generic!AC123 -> 5.609443217 | AF123: 5.638896819 | AG123: 5.707659344 | AH123: 5.077143208 | AS123: 0.6864323206 | AT123: 0.01198050409 | AU123: -0.6744518165 | AV123: -0.01177113299 | AW123: =ABS(AV123)*'Simple AR Calculator'!$C$8 -> 2.648504923 | AX123: 5.607693334 | AY123: 14.8520034 | BE123: 5.659831775 | BF123: 0.09878269959 | BG123: -5.561049076 | BH123: -0.09690629991 | BI123: 0.6864323206 | BJ123: 8.245287417 | BK123: 67.98476459 | BL123: 1.185920932 | BM123: 4.772520347 | BN123: 22.77695046 | BO123: 0 | BR123: 9.595841219 | BS123: 0.1674790238 | BT123: -9.428362195 | BU123: 0.9864911921
C124: Shank_in | D124: ='Simple AR Calculator'!C12 -> 18 | E124: ='Simple AR Calculator'!K13 -> 22.29175857 | F124: ='Simple AR Calculator'!F16 -> 19.82922312 | G124: Ki = | H124: (KoWoSo) / (AWiSi) | J124: =(E119*E121*E123) / (I118*E122*E124) -> 225.8359182 | T124: 1.726112517 | U124: 0.03012634667 | V124: -1.69598617 | W124: 0.9995619359 | X124: 19.88910025 | Z124: 7.537693715 | AA124: 0.1315575733 | AB124: -7.406136142 | AC124: 0.9916573632 | AD124: 1.008412822 | AE124: =($AG$47/$AG$48) * ($AG$49/$AG$50)* ($AG$51/$AG$52) * Generic!AC124 -> 5.611132722 | AF124: 5.641303472 | AG124: 5.705940774 | AH124: 5.075614486 | AS124: 0.6744518165 | AT124: 0.01177140484 | AU124: -0.6626804116 | AV124: -0.01156569721 | AW124: =ABS(AV124)*'Simple AR Calculator'!$C$8 -> 2.602281872 | AX124: 5.609443217 | AY124: 14.59735239 | AZ124: 70 | BE124: 5.561049076 | BF124: 0.09705861624 | BG124: -5.46399046 | BH124: -0.09522014201 | BI124: 0.6744518165 | BJ124: 8.245287417 | BK124: 67.98476459 | BL124: 1.170519361 | BM124: 4.750924471 | BN124: 22.57128333 | BO124: 0 | BR124: 9.428362195 | BS124: 0.1645559634 | BT124: -9.263806232 | BU124: 0.9869576047
C125: Knuckle Dia. | D125: ='Simple AR Calculator'!C13 -> 10 | F125: =AVERAGE(E124,F124) -> 21.06049084 | G125: Wi = | H125: (KoWoSo) / (AKiSi) | J125: =(E119*E121*E123) / (I118*E120*E124) -> 64.23777228 | T125: 1.69598617 | U125: 0.02960054273 | V125: -1.666385627 | W125: 0.9995770927 | X125: 19.88090192 | Z125: 7.406136142 | AA125: 0.1292614605 | AB125: -7.276874681 | AC125: 0.9919456467 | AD125: 1.008119753 | AE125: =($AG$47/$AG$48) * ($AG$49/$AG$50)* ($AG$51/$AG$52) * Generic!AC125 -> 5.612763928 | AF125: 5.643629789 | AG125: 5.704282489 | AH125: 5.074139389 | AS125: 0.6626804116 | AT125: 0.01156595507 | AU125: -0.6511144566 | AV125: -0.01136384648 | AW125: =ABS(AV125)*'Simple AR Calculator'!$C$8 -> 2.556865458 | AX125: 5.611132722 | AY125: 14.34691144 | BE125: 5.46399046 | BF125: 0.09536462382 | BG125: -5.368625836 | BH125: -0.09356314696 | BI125: 0.6626804116 | BJ125: 8.245287417 | BK125: 67.98476459 | BL125: 1.15511779 | BM125: 4.730245266 | BN125: 22.37522027 | BO125: 0 | BR125: 9.263806232 | BS125: =(RADIANS(BR125)) -> 0.16168392 | BT125: -9.102122312 | BU125: =COS(RADIANS(BT125)) -> 0.9874079477
C126: Shank Thickness | D126: ='Simple AR Calculator'!C14 -> 6.3 | G126: Si = | H126: (KoWoSo) / (AKiWi) | J126: =(E119*E121*E123) / (I118*E120*E122) -> 22.37457673 | T126: 1.666385627 | U126: 0.0290839158 | V126: -1.637301711 | W126: 0.9995917252 | X126: 19.87298402 | Z126: 7.276874681 | AA126: 0.1270054224 | AB126: -7.149869259 | AC126: 0.9922239814 | AD126: 1.007836959 | AE126: =($AG$47/$AG$48) * ($AG$49/$AG$50)* ($AG$51/$AG$52) * Generic!AC126 -> 5.61433884 | AF126: 5.645878354 | AG126: 5.702682346 | AH126: 5.072716012 | AS126: 0.6511144566 | AT126: 0.01136409107 | AU126: -0.6397503655 | AV126: -0.01116551826 | AW126: =ABS(AV126)*'Simple AR Calculator'!$C$8 -> 2.512241608 | AX126: 5.612763928 | AY126: 14.10061907 | BE126: 5.368625836 | BF126: 0.09370019714 | BG126: -5.274925639 | BH126: -0.09193481945 | BI126: 0.6511144566 | BJ126: 8.245287417 | BK126: 67.98476459 | BL126: 1.13971622 | BM126: 4.710493491 | BN126: 22.18874893 | BO126: 0 | BR126: =ABS(BT125) -> 9.102122312 | BS126: 0.1588620033 | BT126: -8.943260308 | BU126: 0.9878427724
C127: Blow Dist. (Ham Travel) | D127: ='Simple AR Calculator'!C15 -> 46 | F127: ='Simple AR Calculator'!E56 -> 44 | G127: Wo = | H127: (AKiWiSi) / (KoSo) | J127: =(I118*E120*E122*E124) / (E119*E123) -> 94 | T127: 1.637301711 | U127: 0.02857630571 | V127: -1.608725406 | W127: 0.9996058513 | X127: 19.86533706 | Z127: 7.149869259 | AA127: 0.1247887597 | AB127: -7.025080499 | AC127: 0.9924927098 | AD127: 1.007564076 | AE127: =($AG$47/$AG$48) * ($AG$49/$AG$50)* ($AG$51/$AG$52) * Generic!AC127 -> 5.615859396 | AF127: 5.648051676 | AG127: 5.701138282 | AH127: 5.071342518 | AS127: 0.6397503655 | AT127: 0.01116575027 | AU127: -0.6285846152 | AV127: -0.01097065109 | AW127: =ABS(AV127)*'Simple AR Calculator'!$C$8 -> 2.468396495 | AX127: 5.61433884 | AY127: 13.85841431 | BE127: 5.274925639 | BF127: 0.09206482019 | BG127: -5.182860818 | BH127: -0.09033467212 | BI127: 0.6397503655 | BJ127: 8.245287417 | BK127: 67.98476459 | BL127: 1.124314649 | BM127: 4.691680965 | BN127: 22.01187027 | BO127: 0 | BR127: 8.943260308 | BS127: 0.1560893382 | BT127: -8.78717097 | BU127: 0.9882626116
C128: Let-Off / Aftertouch | D128: ='Simple AR Calculator'!C16 -> 2 | E128: ='Simple AR Calculator'!C22 -> 1.25 | T128: 1.608725406 | U128: 0.02807755509 | V128: -1.580647851 | W128: 0.9996194888 | X128: 19.85795188 | Z128: 7.025080499 | AA128: 0.1226107849 | AB128: -6.902469714 | AC128: 0.9927521626 | AD128: 1.007300752 | AE128: =($AG$47/$AG$48) * ($AG$49/$AG$50)* ($AG$51/$AG$52) * Generic!AC128 -> 5.617327467 | AF128: 5.65015219 | AG128: 5.699648307 | AH128: 5.070017138 | AS128: 0.6285846152 | AT128: 0.01097087116 | AU128: -0.6176137441 | AV128: -0.01077918459 | AW128: =ABS(AV128)*'Simple AR Calculator'!$C$8 -> 2.425316532 | AX128: 5.615859396 | AY128: 13.62023664 | BE128: 5.182860818 | BF128: 0.09045798595 | BG128: -5.092402832 | BH128: -0.08876222544 | BI128: 0.6285846152 | BJ128: 8.245287417 | BK128: 67.98476459 | BL128: 1.108913079 | BM128: 4.673820624 | BN128: 21.84459923 | BO128: 0 | BR128: 8.78717097 | BS128: 0.1533650654 | BT128: -8.633805905 | BU128: 0.9886679795
C129: Spread | D129: ='Simple AR Calculator'!C17 -> 114 | T129: 1.580647851 | U129: 0.02758750931 | V129: -1.553060341 | W129: 0.9996326544 | X129: 19.8508196 | Y129: 74 | Z129: 6.902469714 | AA129: 0.120470823 | AB129: -6.781998891 | AC129: 0.9930026591 | AD129: 1.007046649 | AE129: =($AG$47/$AG$48) * ($AG$49/$AG$50)* ($AG$51/$AG$52) * Generic!AC129 -> 5.618744861 | AF129: 5.652182256 | AG129: 5.698210504 | AH129: 5.068738167 | AS129: 0.6176137441 | AT129: 0.01077939334 | AU129: -0.6068343507 | AV129: -0.01059105942 | AW129: =ABS(AV129)*'Simple AR Calculator'!$C$8 -> 2.38298837 | AX129: 5.617327467 | AY129: 13.38602603 | AZ129: 75 | BE129: 5.092402832 | BF129: 0.08887919626 | BG129: -5.003523636 | BH129: -0.08721700761 | BI129: 0.6176137441 | BJ129: 8.245287417 | BK129: 67.98476459 | BL129: 1.093511508 | BM129: 4.656926602 | BN129: 21.68696538 | BO129: 0 | BR129: 8.633805905 | BS129: 0.15068834 | BT129: -8.483117565 | BU129: 0.9890593731
C130: Key Length (optional) | D130: ='Simple AR Calculator'!C18 -> 452 | H130: Ar = Outs / Ins | J130: =(J123*E121*E123) / (E120*E122*F125) -> 5.307812998 | K130: =O24 -> 5.222222222 | T130: 1.553060341 | U130: 0.02710601644 | V130: -1.525954325 | W130: 0.9996453646 | X130: 19.84393165 | Z130: 6.781998891 | AA130: 0.1183682105 | AB130: -6.663630681 | AC130: 0.9932445079 | AD130: 1.006801439 | AE130: =($AG$47/$AG$48) * ($AG$49/$AG$50)* ($AG$51/$AG$52) * Generic!AC130 -> 5.620113324 | AF130: 5.654144163 | AG130: 5.696823026 | AH130: 5.067503961 | AS130: 0.6068343507 | AT130: 0.01059125743 | AU130: -0.5962430933 | AV130: -0.0104062173 | AW130: =ABS(AV130)*'Simple AR Calculator'!$C$8 -> 2.341398892 | AX130: 5.618744861 | AY130: 13.15572299 | BE130: 5.003523636 | BF130: 0.08732796165 | BG130: -4.916195675 | BH130: -0.0856985545 | BI130: 0.6068343507 | BJ130: 8.245287417 | BK130: 67.98476459 | BL130: 1.078109938 | BM130: 4.641014298 | BN130: 21.53901372 | BO130: 0 | BR130: 8.483117565 | BS130: 0.1480583323 | BT130: -8.335059232 | BU130: 0.9894372724
C131: Key ratio Front to Back | D131: ='Simple AR Calculator'!C23 -> 1.956521739 | E131: ='Simple AR Calculator'!D23 -> 1.805555212 | T131: 1.525954325 | U131: 0.0266329272 | V131: -1.499321398 | W131: 0.9996576349 | X131: 19.83727974 | Z131: 6.663630681 | AA131: 0.1163022955 | AB131: -6.547328385 | AC131: 0.9934780068 | AD131: 1.006564809 | AE131: =($AG$47/$AG$48) * ($AG$49/$AG$50)* ($AG$51/$AG$52) * Generic!AC131 -> 5.621434539 | AF131: 5.656040132 | AG131: 5.695484091 | AH131: 5.066312936 | AS131: =ABS(AU130) -> 0.5962430933 | AT131: 0.01040640512 | AU131: =AT131-AS131 -> -0.5858366882 | AV131: -0.01022460093 | AW131: =ABS(AV131)*'Simple AR Calculator'!$C$8 -> 2.300535209 | AX131: 5.620113324 | AY131: 12.92926858 | BE131: 4.916195675 | BF131: 0.08580380119 | BG131: -4.830391873 | BH131: -0.08420640947 | BI131: 0.5962430933 | BJ131: 8.245287417 | BK131: 67.98476459 | BL131: 1.062708367 | BM131: 4.626100468 | BN131: 21.40080554 | BO131: 0 | BR131: 8.335059232 | BS131: 0.145474227 | BT131: -8.189585006 | BU131: 0.9898021411
C132: Key ratio Back / Front | D132: ='Simple AR Calculator'!C24 -> 0.5111111111 | E132: ='Simple AR Calculator'!D24 -> 0.5538462594 | T132: 1.499321398 | U132: 0.02616809493 | V132: -1.473153303 | W132: 0.9996694808 | X132: 19.83085585 | Z132: =ABS(AB131) -> 6.547328385 | AA132: 0.1142724375 | AB132: =AA132-Z132 -> -6.433055948 | AC132: 0.9937034434 | AD132: 1.006336454 | AE132: =($AG$47/$AG$48) * ($AG$49/$AG$50)* ($AG$51/$AG$52) * Generic!AC132 -> 5.622710136 | AF132: 5.657872314 | AG132: 5.694191985 | AH132: 5.065163567 | AS132: 0.5858366882 | AT132: 0.01022477909 | AU132: -0.5756119091 | AV132: -0.01004615403 | AW132: =ABS(AV132)*'Simple AR Calculator'!$C$8 -> 2.260384658 | AX132: 5.621434539 | AY132: 12.70660439 | BE132: 4.830391873 | BF132: 0.08430624235 | BG132: -4.746085631 | BH132: -0.08274012333 | BI132: 0.5858366882 | BJ132: 8.245287417 | BK132: 67.98476459 | BL132: 1.047306797 | BM132: 4.612203309 | BN132: 21.27241937 | BO132: 0 | BR132: 8.189585006 | BS132: 0.1429352227 | BT132: -8.046649783 | BU132: 0.9901544269
C133: Whip ratio | D133: ='Simple AR Calculator'!C25 -> 1.46875 | E133: ='Simple AR Calculator'!D25 -> 1.46875 | T133: 1.473153303 | U133: 0.02571137552 | V133: -1.447441927 | W133: 0.9996809168 | X133: 19.82465225 | Y133: 78 | Z133: 6.433055948 | AA133: 0.1122780073 | AB133: -6.32077794 | AC133: 0.9939210957 | AD133: 1.006116083 | AE133: =($AG$47/$AG$48) * ($AG$49/$AG$50)* ($AG$51/$AG$52) * Generic!AC133 -> 5.623941686 | AF133: 5.659642797 | AG133: 5.692945051 | AH133: 5.06405438 | AS133: 0.5756119091 | AT133: 0.01004632303 | AU133: -0.5655655861 | AV133: -0.009870821315 | AW133: =ABS(AV133)*'Simple AR Calculator'!$C$8 -> 2.220934796 | AX133: 5.622710136 | AY133: 12.48767259 | BE133: 4.746085631 | BF133: 0.08283482084 | BG133: -4.66325081 | BH133: -0.08129925422 | BI133: 0.5756119091 | BJ133: 8.245287417 | BK133: 67.98476459 | BL133: 1.031905226 | BM133: 4.599342566 | BN133: 21.15395204 | BO133: 0 | BR133: 8.046649783 | BS133: 0.1404405325 | BT133: -7.90620925 | BU133: 0.9904945623
C134: Shank ratio | D134: ='Simple AR Calculator'!C26 -> 7.111111111 | E134: ='Simple AR Calculator'!D26 -> 6.16456825 | T134: =ABS(V133) -> 1.447441927 | U134: 0.02526262736 | V134: =U134-T134 -> -1.4221793 | W134: 0.9996919571 | X134: 19.81866144 | Y134: 79 | Z134: 6.32077794 | AA134: 0.1103183863 | AB134: -6.210459554 | AC134: 0.9941312317 | AD134: 1.005903414 | AE134: =($AG$47/$AG$48) * ($AG$49/$AG$50)* ($AG$51/$AG$52) * Generic!AC134 -> 5.625130707 | AF134: 5.661353601 | AG134: 5.691741696 | AH134: 5.062983957 | AS134: 0.5655655861 | AT134: 0.009870981613 | AU134: -0.5556946044 | AV134: -0.009698548433 | AW134: =ABS(AV134)*'Simple AR Calculator'!$C$8 -> 2.182173397 | AX134: 5.623941686 | AY134: 12.27241594 | AZ134: 80 | BE134: 4.66325081 | BF134: 0.08138908048 | BG134: -4.58186173 | BH134: -0.0798833675 | BI134: 0.5655655861 | BJ134: 8.245287417 | BK134: 67.98476459 | BL134: 1.016503656 | BM134: 4.587539636 | BN134: 21.04551991 | BO134: 0 | BR134: 7.90620925 | BS134: 0.1379893828 | BT134: -7.768219868 | BU134: 0.9908229651
T135: 1.4221793 | U135: 0.02482171134 | V135: -1.397357589 | W135: 0.9997026155 | X135: 19.81287618 | Z135: 6.210459554 | AA135: 0.1083929673 | AB135: -6.102066587 | AC135: 0.9943341107 | AD135: 1.005698175 | AE135: =($AG$47/$AG$48) * ($AG$49/$AG$50)* ($AG$51/$AG$52) * Generic!AC135 -> 5.626278665 | AF135: 5.663006687 | AG135: 5.690580381 | AH135: 5.061950932 | AS135: 0.5556946044 | AT135: 0.009698700483 | AU135: -0.545995904 | AV135: -0.009529281999 | AW135: =ABS(AV135)*'Simple AR Calculator'!$C$8 -> 2.14408845 | AX135: 5.625130707 | AY135: 12.06077778 | BE135: 4.58186173 | BF135: 0.07996857305 | BG135: -4.501893157 | BH135: -0.07849203564 | BI135: 0.5556946044 | BJ135: 8.245287417 | BK135: 67.98476459 | BL135: 1.001102085 | BM135: 4.576817687 | BN135: 20.94726014 | BO135: 0 | BR135: 7.768219868 | BS135: 0.1355810137 | BT135: -7.632638854 | BU135: 0.9911400389
T136: 1.397357589 | U136: 0.02438849075 | V136: -1.372969098 | W136: 0.9997129051 | X136: 19.80728948 | Z136: 6.102066587 | AA136: 0.1065011531 | AB136: -5.995565434 | AC136: 0.9945299827 | AD136: 1.005500103 | AE136: =($AG$47/$AG$48) * ($AG$49/$AG$50)* ($AG$51/$AG$52) * Generic!AC136 -> 5.627386975 | AF136: 5.664603953 | AG136: 5.689459625 | AH136: 5.060953984 | AS136: 0.545995904 | AT136: 0.009529426227 | AU136: -0.5364664777 | AV136: -0.009362969557 | AW136: =ABS(AV136)*'Simple AR Calculator'!$C$8 -> 2.10666815 | AX136: 5.626278665 | AY136: 11.85270207 | BE136: 4.501893157 | BF136: 0.07857285816 | BG136: -4.423320298 | BH136: -0.07712483817 | BI136: 0.545995904 | BJ136: 8.245287417 | BK136: 67.98476459 | BL136: 0.9857005145 | BM136: 4.567201792 | BN136: 20.85933221 | BO136: 0 | BR136: 7.632638854 | BS136: 0.1332146786 | BT136: -7.499424175 | BU136: 0.9914461731
T137: 1.372969098 | U137: 0.02396283128 | V137: -1.349006266 | W137: 0.9997228387 | X137: 19.80189458 | Z137: 5.995565434 | AA137: 0.1046423573 | AB137: -5.890923076 | AC137: 0.9947190893 | AD137: 1.005308947 | AE137: =($AG$47/$AG$48) * ($AG$49/$AG$50)* ($AG$51/$AG$52) * Generic!AC137 -> 5.628457004 | AF137: 5.666147239 | AG137: 5.688377999 | AH137: 5.059991843 | AS137: 0.5364664777 | AT137: 0.009363106363 | AU137: -0.5271033714 | AV137: -0.009199559561 | AW137: =ABS(AV137)*'Simple AR Calculator'!$C$8 -> 2.069900901 | AX137: 5.627386975 | AY137: 11.64813337 | BE137: 4.423320298 | BF137: 0.07720150308 | BG137: -4.346118795 | BH137: -0.07578136152 | BI137: 0.5364664777 | BJ137: 8.245287417 | BK137: 67.98476459 | BL137: 0.970298944 | BM137: 4.558719069 | BN137: 20.78191955 | BO137: 0 | BR137: 7.499424175 | BS137: 0.1308896439 | BT137: -7.368534531 | BU137: 0.9917417443
T138: 1.349006266 | U138: 0.02354460098 | V138: -1.325461665 | W138: 0.9997324286 | X138: 19.79668494 | Z138: 5.890923076 | AA138: 0.1028160037 | AB138: -5.788107073 | AC138: 0.9949016637 | AD138: 1.005124463 | AE138: =($AG$47/$AG$48) * ($AG$49/$AG$50)* ($AG$51/$AG$52) * Generic!AC138 -> 5.629490072 | AF138: 5.667638326 | AG138: 5.687334124 | AH138: 5.059063284 | AS138: 0.5271033714 | AT138: 0.009199689329 | AU138: -0.517903682 | AV138: -0.009039001369 | AW138: =ABS(AV138)*'Simple AR Calculator'!$C$8 -> 2.033775308 | AX138: 5.628457004 | AY138: 11.44701688 | BE138: 4.346118795 | BF138: 0.07585408266 | BG138: -4.270264713 | BH138: -0.07446119894 | BI138: 0.5271033714 | BJ138: 8.245287417 | BK138: 67.98476459 | BL138: 0.9548973734 | BM138: 4.551398837 | BN138: 20.71523138 | BO138: 0 | BR138: 7.368534531 | BS138: 0.1286051886 | BT138: -7.239929343 | BU138: 0.9920271159
T139: 1.325461665 | U139: 0.02313367017 | V139: -1.302327995 | W139: 0.9997416867 | X139: 19.79165425 | Z139: 5.788107073 | AA139: 0.1010215259 | AB139: -5.687085547 | AC139: 0.9950779313 | AD139: 1.004946415 | AE139: =($AG$47/$AG$48) * ($AG$49/$AG$50)* ($AG$51/$AG$52) * Generic!AC139 -> 5.630487454 | AF139: 5.66907894 | AG139: 5.686326673 | AH139: 5.058167124 | AS139: 0.517903682 | AT139: 0.00903912446 | AU139: -0.5088645576 | AV139: -0.008881245219 | AW139: =ABS(AV139)*'Simple AR Calculator'!$C$8 -> 1.998280174 | AX139: 5.629490072 | AY139: 11.2492984 | AZ139: 85 | BE139: =ABS(BG138) -> 4.270264713 | BF139: 0.07453017917 | BG139: =BF139-BE139 -> -4.195734534 | BH139: -0.07316395042 | BI139: 0.517903682 | BJ139: 8.245287417 | BK139: 67.98476459 | BL139: 0.9394958029 | BM139: 4.545272794 | BN139: 20.65950477 | BO139: 0 | BR139: 7.239929343 | BS139: 0.1263606046 | BT139: -7.113568738 | BU139: 0.9923026389
T140: 1.302327995 | U140: 0.02272991146 | V140: -1.279598084 | W140: 0.9997506245 | X140: 19.7867964 | Z140: 5.687085547 | AA140: 0.09925836763 | AB140: -5.587827179 | AC140: 0.9952481096 | AD140: 1.004774579 | AE140: =($AG$47/$AG$48) * ($AG$49/$AG$50)* ($AG$51/$AG$52) * Generic!AC140 -> 5.63145038 | AF140: 5.670470754 | AG140: 5.685354364 | AH140: 5.057302224 | AS140: 0.5088645576 | AT140: 0.008881361977 | AU140: -0.4999831956 | AV140: -0.008726242218 | AW140: =ABS(AV140)*'Simple AR Calculator'!$C$8 -> 1.963404499 | AX140: 5.630487454 | AY140: 11.0549244 | BE140: 4.195734534 | BF140: 0.07322938215 | BG140: -4.122505151 | BH140: -0.07188922257 | BI140: 0.5088645576 | BJ140: 8.245287417 | BK140: 67.98476459 | BL140: 0.9240942324 | BM140: 4.540375198 | BN140: 20.61500694 | BO140: 0 | BR140: 7.113568738 | BS140: 0.124155196 | BT140: -6.989413542 | BU140: 0.9925686523
T141: 1.279598084 | U141: 0.02233319967 | V141: -1.257264884 | W141: 0.999759253 | X141: 19.7821055 | Z141: 5.587827179 | AA141: 0.09752598231 | AB141: -5.490301197 | AC141: 0.9954124085 | AD141: 1.004608734 | AE141: =($AG$47/$AG$48) * ($AG$49/$AG$50)* ($AG$51/$AG$52) * Generic!AC141 -> 5.632380038 | AF141: 5.671815384 | AG141: 5.684415961 | AH141: 5.056467485 | AS141: 0.4999831956 | AT141: 0.008726352968 | AU141: -0.4912568426 | AV141: -0.008573944325 | AW141: =ABS(AV141)*'Simple AR Calculator'!$C$8 -> 1.929137473 | AX141: 5.63145038 | AY141: 10.86384195 | BE141: 4.122505151 | BF141: 0.07195128832 | BG141: -4.050553863 | BH141: -0.07063662852 | BI141: 0.4999831956 | BJ141: 8.245287417 | BK141: 67.98476459 | BL141: 0.9086926618 | BM141: 4.536743087 | BN141: 20.58203783 | BO141: 0 | BR141: 6.989413542 | BS141: 0.1219882791 | BT141: -6.867425263 | BU141: 0.9928254836
H142: DAR = | I142: ='Simple AR Calculator'!H8 -> 5.014640128 | T142: 1.257264884 | U142: 0.0219434118 | V142: -1.235321472 | W142: 0.999767583 | X142: 19.77757584 | Y142: 87 | Z142: 5.490301197 | AA142: 0.09582383281 | AB142: -5.394477364 | AC142: 0.9955710309 | AD142: 1.004448672 | AE142: =($AG$47/$AG$48) * ($AG$49/$AG$50)* ($AG$51/$AG$52) * Generic!AC142 -> 5.633277578 | AF142: 5.6731144 | AG142: 5.683510274 | AH142: 5.055661848 | AS142: 0.4912568426 | AT142: 0.008574049377 | AU142: -0.4826827933 | AV142: -0.008424304338 | AW142: =ABS(AV142)*'Simple AR Calculator'!$C$8 -> 1.895468476 | AX142: 5.632380038 | AY142: 10.67599881 | BE142: 4.050553863 | BF142: 0.07069550144 | BG142: -3.979858362 | BH142: -0.06940578786 | BI142: 0.4912568426 | BJ142: 8.245287417 | BK142: 67.98476459 | BL142: 0.8932910913 | BM142: 4.534416499 | BN142: 20.56093299 | BO142: 0 | BR142: 6.867425263 | BS142: 0.119859182 | BT142: -6.747566081 | BU142: 0.993073449
T143: 1.235321472 | U143: 0.02156042701 | V143: -1.213761045 | W143: 0.9997756248 | X143: 19.77320192 | Z143: 5.394477364 | AA143: 0.09415139143 | AB143: -5.300325973 | AC143: 0.9957241726 | AD143: 1.004294189 | AE143: =($AG$47/$AG$48) * ($AG$49/$AG$50)* ($AG$51/$AG$52) * Generic!AC143 -> 5.634144105 | AF143: 5.674369317 | AG143: 5.682636154 | AH143: 5.05488429 | AS143: 0.4826827933 | AT143: 0.008424403985 | AU143: -0.4742583893 | AV143: -0.008277275878 | AW143: =ABS(AV143)*'Simple AR Calculator'!$C$8 -> 1.862387073 | AX143: 5.633277578 | AY143: 10.49134334 | BE143: 3.979858362 | BF143: 0.06946163217 | BG143: -3.910396729 | BH143: -0.0681963265 | BI143: 0.4826827933 | BJ143: 8.245287417 | BK143: 67.98476459 | BL143: 0.8778895207 | BM143: 4.533438739 | BN143: 20.5520668 | BO143: 0 | BR143: 6.747566081 | BS143: 0.1177672446 | BT143: -6.629798836 | BU143: 0.9933128538
P144: 10 | T144: 1.213761045 | U144: 0.02118412657 | V144: -1.192576919 | W144: 0.9997833883 | X144: 19.76897842 | Z144: 5.300325973 | AA144: 0.09250813965 | AB144: -5.207817833 | AC144: 0.9958720228 | AD144: 1.004145088 | AE144: =($AG$47/$AG$48) * ($AG$49/$AG$50)* ($AG$51/$AG$52) * Generic!AC144 -> 5.634980692 | AF144: 5.675581606 | AG144: 5.681792492 | AH144: 5.054133827 | AS144: 0.4742583893 | AT144: 0.008277370398 | AU144: -0.4659810189 | AV144: -0.008132813374 | AW144: =ABS(AV144)*'Simple AR Calculator'!$C$8 -> 1.829883009 | AX144: 5.634144105 | AY144: 10.30982457 | AZ144: 90 | BE144: 3.910396729 | BF144: 0.06824929799 | BG144: -3.842147431 | BH144: -0.06700787659 | BI144: 0.4742583893 | BJ144: 8.245287417 | BK144: 67.98476459 | BL144: 0.8624879502 | BM144: 4.533856651 | BN144: 20.55585613 | BO144: 0 | BR144: 6.629798836 | BS144: 0.1157118184 | BT144: -6.514087018 | BU144: 0.993543993
F145: ='Simple AR Calculator'!C7 -> 115 | H145: 3.33 | K145: ='Simple AR Calculator'!C8 -> 225 | T145: 1.192576919 | U145: 0.02081439382 | V145: -1.171762525 | W145: 0.9997908833 | X145: =SQRT($H$62^2+$F$60^2-2*$H$62*$F$60*(COS(RADIANS(V145)))) -> 19.7649002 | Z145: 5.207817833 | AA145: 0.09089356803 | AB145: -5.116924265 | AC145: 0.996014764 | AD145: 1.004001182 | AE145: =($AG$47/$AG$48) * ($AG$49/$AG$50)* ($AG$51/$AG$52) * Generic!AC145 -> 5.63578837 | AF145: 5.676752687 | AG145: 5.680978222 | AH145: 5.053409507 | AS145: 0.4659810189 | AT145: 0.008132903031 | AU145: -0.4578481158 | AV145: -0.007990872052 | AW145: =ABS(AV145)*'Simple AR Calculator'!$C$8 -> 1.797946212 | AX145: 5.634980692 | AY145: 10.13139219 | BE145: 3.842147431 | BF145: 0.06705812303 | BG145: -3.775089308 | BH145: -0.06584007643 | BI145: 0.4659810189 | BJ145: 8.245287417 | BK145: 67.98476459 | BL145: 0.8470863797 | BM145: 4.535720941 | BN145: 20.57276446 | BO145: 0 | BR145: 6.514087018 | BS145: 0.1136922662 | BT145: -6.400394752 | BU145: 0.9937671511
T146: 1.171762525 | U146: 0.02045111411 | V146: -1.151311411 | W146: 0.9997981189 | X146: 19.76096228 | Z146: 5.116924265 | AA146: 0.089307176 | AB146: -5.027617089 | AC146: 0.9961525725 | AD146: 1.003862287 | AE146: =($AG$47/$AG$48) * ($AG$49/$AG$50)* ($AG$51/$AG$52) * Generic!AC146 -> 5.636568137 | AF146: 5.677883937 | AG146: 5.680192311 | AH146: 5.052710415 | AS146: 0.4578481158 | AT146: 0.007990957096 | AU146: -0.4498571588 | AV146: -0.007851407915 | AW146: =ABS(AV146)*'Simple AR Calculator'!$C$8 -> 1.766566781 | AX146: 5.63578837 | AY146: 9.955996518 | BE146: 3.775089308 | BF146: 0.06588773799 | BG146: -3.70920157 | BH146: -0.06469257037 | BI146: 0.4578481158 | BJ146: 8.245287417 | BK146: 67.98476459 | BL146: 0.8316848091 | BM146: 4.539086523 | BN146: 20.60330646 | BO146: 0 | BR146: 6.400394752 | BS146: 0.1117079618 | BT146: -6.28868679 | BU146: 0.9939826034
D147: BalHt.+ | F147: BalHtTot | G147: Dip+ | H147: DipDiff | I147: Cap Rise | J147: DAR*BHT | K147: DAR*BHT | N147: tan | O147: angle | P147: RODD/BalHt+ | T147: 1.151311411 | U147: 0.02009417484 | V147: -1.131217236 | W147: 0.9998051041 | X147: 19.75715986 | Z147: 5.027617089 | AA147: 0.08774847173 | AB147: -4.939868617 | AC147: 0.9962856186 | AD147: 1.003728229 | AE147: =($AG$47/$AG$48) * ($AG$49/$AG$50)* ($AG$51/$AG$52) * Generic!AC147 -> 5.637320956 | AF147: 5.678976689 | AG147: 5.679433766 | AH147: 5.052035665 | AS147: 0.4498571588 | AT147: 0.007851488584 | AU147: -0.4420056702 | AV147: -0.007714377739 | AW147: =ABS(AV147)*'Simple AR Calculator'!$C$8 -> 1.735734991 | AX147: 5.636568137 | AY147: 9.783588546 | BE147: 3.70920157 | BF147: 0.06473778002 | BG147: -3.64446379 | BH147: -0.06356500875 | BI147: 0.4498571588 | BJ147: 8.245287417 | BK147: 67.98476459 | BL147: 0.8162832386 | BM147: 4.544012905 | BN147: 20.64805328 | BO147: 0 | BR147: 6.28868679 | BS147: 0.1097582901 | BT147: -6.1789285 | BU147: 0.9941906153
D148: mm | E148: inches | F148: 3.33 | G148: 10 | I148: =G148*($F$145/$K$145) -> 5.111111111 | J148: mm | K148: inches | N148: =G148/($F$145+$K$145) -> 0.02941176471 | O148: =DEGREES(ATAN(N148)) -> 1.684684318 | P148: =G148-10 -> 0 | T148: 1.131217236 | U148: 0.01974346532 | V148: -1.111473771 | W148: 0.9998118477 | X148: 19.75348832 | Z148: 4.939868617 | AA148: 0.08621697199 | AB148: -4.853651645 | AC148: 0.9964140666 | AD148: 1.003598839 | AE148: =($AG$47/$AG$48) * ($AG$49/$AG$50)* ($AG$51/$AG$52) * Generic!AC148 -> 5.638047759 | AF148: 5.68003223 | AG148: 5.678701628 | AH148: 5.051384406 | AS148: 0.4420056702 | AT148: 0.007714454257 | AU148: -0.4342912159 | AV148: -0.007579739049 | AW148: =ABS(AV148)*'Simple AR Calculator'!$C$8 -> 1.705441286 | AX148: 5.637320956 | AY148: 9.614119902 | BE148: 3.64446379 | BF148: 0.06360789261 | BG148: -3.580855898 | BH148: -0.06245704774 | BI148: 0.4420056702 | BJ148: 8.245287417 | BK148: 67.98476459 | BL148: 0.800881668 | BM148: 4.550564629 | BN148: 20.70763844 | BO148: 0 | BR148: 6.1789285 | BS148: 0.1078426466 | BT148: -6.071085853 | BU148: 0.9943914434
D149: =E149*25.4 -> 0.127 | E149: 0.005 | F149: =$H$145+D149 -> 3.457 | G149: =F149*3 -> 10.371 | H149: =G149-10 -> 0.371 | I149: 5.300733333 | J149: =$I$142*D149 -> 0.6368592962 | K149: =J149/25.4 -> 0.02507320064 | L149: =(I149-$I$148)*(1-Q149) -> 0.1247111111 | M149: =J149-D149 -> 0.5098592962 | N149: 0.03050294118 | O149: =DEGREES(ATAN(N149)) -> 1.747148061 | P149: =H149/D149 -> 2.921259843 | Q149: =1/P149 -> 0.3423180593 | R149: =1/P149 -> 0.3423180593 | T149: 1.111473771 | U149: 0.01939887685 | V149: -1.092074894 | W149: 0.9998183579 | X149: 19.74994316 | Z149: 4.853651645 | AA149: 0.08471220195 | AB149: -4.768939443 | AC149: 0.9965380753 | AD149: 1.003473951 | AE149: =($AG$47/$AG$48) * ($AG$49/$AG$50)* ($AG$51/$AG$52) * Generic!AC149 -> 5.638749442 | AF149: 5.681051808 | AG149: 5.677994973 | AH149: 5.050755814 | AS149: 0.4342912159 | AT149: 0.00757981163 | AU149: -0.4267114043 | AV149: -0.007447450114 | AW149: =ABS(AV149)*'Simple AR Calculator'!$C$8 -> 1.675676276 | AX149: 5.638047759 | AY149: 9.44754287 | AZ149: 95 | BE149: 3.580855898 | BF149: 0.06249772546 | BG149: -3.518358172 | BH149: -0.06136834932 | BI149: 0.4342912159 | BJ149: 8.245287417 | BK149: 67.98476459 | BL149: 0.7854800975 | BM149: 4.55881175 | BN149: 20.78276457 | BO149: 0 | BR149: 6.071085853 | BS149: 0.1059604373 | BT149: -5.965125416 | BU149: 0.9945853351
D150: 0.254 | E150: =D150/25.4 -> 0.01 | F150: 3.584 | G150: 10.752 | H150: 0.752 | I150: 5.389165714 | J150: 1.233259874 | K150: 0.04855353834 | L150: 0.2496097959 | M150: 0.9792598738 | N150: 0.02923327896 | O150: 1.674466623 | P150: 2.960629921 | Q150: 0.3377659574 | R150: 0.3377659574 | S150: =P150-P149 -> 0.03937007874 | T150: 1.092074894 | U150: 0.01906030258 | V150: -1.073014591 | W150: 0.9998246429 | X150: 19.74652006 | Z150: 4.768939443 | AA150: 0.08323369511 | AB150: -4.685705748 | AC150: 0.996657798 | AD150: 1.00335341 | AE150: =($AG$47/$AG$48) * ($AG$49/$AG$50)* ($AG$51/$AG$52) * Generic!AC150 -> 5.639426873 | AF150: 5.68203663 | AG150: 5.677312909 | AH150: 5.050149096 | AS150: 0.4267114043 | AT150: 0.00744751896 | AU150: -0.4192638853 | AV150: -0.007317469929 | AW150: =ABS(AV150)*'Simple AR Calculator'!$C$8 -> 1.646430734 | AX150: 5.638749442 | AY150: 9.283810383 | BE150: 3.518358172 | BF150: 0.06140693437 | BG150: -3.456951238 | BH150: -0.06029858114 | BI150: 0.4267114043 | BJ150: 8.245287417 | BK150: 67.98476459 | BL150: 0.770078527 | BM150: 4.568830384 | BN150: 20.87421108 | BO150: 0 | BR150: 5.965125416 | BS150: 0.1041110788 | BT150: -5.861014337 | BU150: 0.9947725298
D151: 0.381 | E151: 0.015 | F151: 3.711 | G151: 11.133 | H151: 1.133 | I151: 5.6902 | J151: 1.910577889 | K151: 0.07521960192 | L151: 0.3843555556 | M151: 1.529577889 | N151: 0.03274411765 | O151: 1.875429672 | P151: 2.973753281 | Q151: 0.3362753751 | R151: 0.3362753751 | S151: =P151-P150 -> 0.01312335958 | T151: 1.073014591 | U151: 0.01872763754 | V151: -1.054286954 | W151: 0.9998307105 | X151: 19.74321484 | Z151: 4.685705748 | AA151: 0.08178099308 | AB151: -4.603924755 | AC151: 0.9967733825 | AD151: 1.003237062 | AE151: =($AG$47/$AG$48) * ($AG$49/$AG$50)* ($AG$51/$AG$52) * Generic!AC151 -> 5.64008089 | AF151: 5.682987863 | AG151: 5.676654576 | AH151: 5.049563488 | AS151: 0.4192638853 | AT151: 0.007317535234 | AU151: -0.4119463501 | AV151: -0.007189758206 | AW151: =ABS(AV151)*'Simple AR Calculator'!$C$8 -> 1.617695596 | AX151: 5.639426873 | AY151: 9.122876019 | BE151: 3.456951238 | BF151: 0.06033518118 | BG151: -3.396616057 | BH151: -0.05924741648 | BI151: 0.4192638853 | BJ151: 8.245287417 | BK151: 67.98476459 | BL151: 0.7546769564 | BM151: 4.580703318 | BN151: 20.98284288 | BO151: 0 | BR151: 5.861014337 | BS151: 0.1022939977 | BT151: -5.758720339 | BU151: 0.9949532582
D152: 0.508 | E152: 0.02 | F152: 3.838 | G152: 11.514 | H152: 1.514 | I152: 5.884933333 | J152: 2.547437185 | K152: 0.1002928026 | L152: 0.5141777778 | M152: 2.039437185 | N152: 0.03386470588 | O152: 1.939563506 | P152: 2.980314961 | Q152: 0.3355350066 | R152: 0.3355350066 | S152: =P152-P151 -> 0.00656167979 | T152: 1.054286954 | U152: 0.0184007786 | V152: -1.035886175 | W152: 0.999836568 | X152: 19.74002345 | Z152: 4.603924755 | AA152: 0.08035364549 | AB152: -4.52357111 | AC152: 0.9968849718 | AD152: 1.003124762 | AE152: =($AG$47/$AG$48) * ($AG$49/$AG$50)* ($AG$51/$AG$52) * Generic!AC152 -> 5.6407123 | AF152: 5.683906637 | AG152: 5.676019142 | AH152: 5.04899825 | AS152: 0.4119463501 | AT152: 0.007189820151 | AU152: -0.4047565299 | AV152: -0.007064275359 | AW152: =ABS(AV152)*'Simple AR Calculator'!$C$8 -> 1.589461956 | AX152: 5.64008089 | AY152: 8.964694002 | BE152: 3.396616057 | BF152: 0.05928213362 | BG152: -3.337333923 | BH152: -0.0582145341 | BI152: 0.4119463501 | BJ152: 8.245287417 | BK152: 67.98476459 | BL152: 0.7392753859 | BM152: 4.594520691 | BN152: 21.10962038 | BO152: 0 | BR152: 5.758720339 | BS152: 0.1005086306 | BT152: -5.658211709 | BU152: 0.9951277435
D153: 0.635 | E153: 0.025 | F153: 3.965 | G153: 11.895 | H153: 1.895 | I153: 6.079666667 | J153: 3.184296481 | K153: 0.1253660032 | L153: 0.644 | M153: 2.549296481 | N153: 0.03498529412 | O153: 2.003692478 | P153: 2.984251969 | Q153: 0.3350923483 | R153: 0.3350923483 | S153: =P153-P152 -> 0.003937007874 | T153: 1.035886175 | U153: 0.01807962443 | V153: -1.017806551 | W153: 0.999842223 | X153: 19.73694199 | Z153: 4.52357111 | AA153: 0.07895120981 | AB153: -4.4446199 | AC153: 0.9969927039 | AD153: 1.003016367 | AE153: =($AG$47/$AG$48) * ($AG$49/$AG$50)* ($AG$51/$AG$52) * Generic!AC153 -> 5.641321884 | AF153: 5.684794044 | AG153: 5.675405809 | AH153: 5.04845267 | AS153: 0.4047565299 | AT153: 0.007064334116 | AU153: -0.3976921958 | AV153: -0.006940982492 | AW153: =ABS(AV153)*'Simple AR Calculator'!$C$8 -> 1.561721061 | AX153: 5.6407123 | AY153: 8.809219196 | BE153: 3.337333923 | BF153: 0.0582474652 | BG153: -3.279086458 | BH153: -0.05719961822 | BI153: 0.4047565299 | BJ153: 8.245287417 | BK153: 67.98476459 | BL153: 0.7238738153 | BM153: =BE153/BL153 -> 4.610380777 | BN153: 21.25561091 | BO153: 0 | BR153: 5.658211709 | BS153: 0.09875442409 | BT153: -5.559457285 | BU153: 0.9952962009
D154: 0.762 | E154: 0.03 | F154: 4.092 | G154: 12.276 | H154: 2.276 | I154: 6.2744 | J154: 3.821155777 | K154: 0.1504392038 | L154: 0.7738222222 | M154: 3.059155777 | N154: 0.03610588235 | O154: 2.067816427 | P154: 2.98687664 | Q154: 0.334797891 | R154: 0.334797891 | S154: =P154-P153 -> 0.002624671916 | T154: 1.017806551 | U154: 0.01776407546 | V154: -1.000042475 | W154: 0.9998476822 | X154: 19.7339667 | Z154: =ABS(AB153) -> 4.4446199 | AA154: 0.07757325125 | AB154: =AA154-Z154 -> -4.367046648 | AC154: 0.9970967118 | AD154: 1.002911742 | AE154: =($AG$47/$AG$48) * ($AG$49/$AG$50)* ($AG$51/$AG$52) * Generic!AC154 -> 5.641910396 | AF154: 5.685651141 | AG154: 5.674813802 | AH154: 5.047926062 | AS154: 0.3976921958 | AT154: 0.006941038227 | AU154: -0.3907511576 | AV154: -0.006819841389 | AW154: =ABS(AV154)*'Simple AR Calculator'!$C$8 -> 1.534464313 | AX154: 5.641321884 | AY154: 8.656407107 | AZ154: 100 | BE154: 3.279086458 | BF154: 0.05723085515 | BG154: -3.221855603 | BH154: -0.05620235838 | BI154: 0.3976921958 | BJ154: 8.245287417 | BK154: 67.98476459 | BL154: 0.7084722448 | BR154: 5.559457285 | BS154: 0.09703083424 | BT154: -5.46242645 | BU154: 0.9954588383
T155: 1.000042475 | U155: 0.01745403385 | V155: -0.9825884414 | W155: 0.9998529526 | X155: =SQRT($H$62^2+$F$60^2-2*$H$62*$F$60*(COS(RADIANS(V155)))) -> 19.73109393 | Z155: 4.367046648 | AA155: 0.0762193426 | AB155: -4.290827306 | AC155: 0.9971971244 | AD155: 1.002810754 | AE155: =($AG$47/$AG$48) * ($AG$49/$AG$50)* ($AG$51/$AG$52) * Generic!AC155 -> 5.642478564 | AF155: 5.68647895 | AG155: 5.674242378 | AH155: 5.047417762 | AS155: 0.3907511576 | AT155: 0.006819894256 | AU155: -0.3839312633 | AV155: -0.0067008145 | AW155: =ABS(AV155)*'Simple AR Calculator'!$C$8 -> 1.507683263 | AX155: 5.641910396 | AY155: 8.506213873 | BE155: 3.221855603 | BF155: 0.05623198829 | BG155: -3.165623615 | BH155: -0.05522244938 | BI155: 0.3907511576 | BJ155: 8.245287417 | BK155: 67.98476459 | BL155: 0.6930706743 | BO155: =AVERAGE(BM55:BM153) -> 5.721356922 | BP155: =AVERAGE(BN55:BN153) -> 34.06850513 | BR155: 5.46242645 | BS155: 0.09533732671 | BT155: -5.367089124 | BU155: 0.9956158565
D156: =J149/D149 -> 5.014640128 | E156: 5.014640128 | T156: 0.9825884414 | U156: 0.01714940349 | V156: -0.9654390379 | W156: 0.9998580406 | X156: 19.72832016 | Z156: 4.290827306 | AA156: 0.07488906412 | AB156: -4.215938242 | AC156: 0.9972940656 | AD156: 1.002713276 | AE156: =($AG$47/$AG$48) * ($AG$49/$AG$50)* ($AG$51/$AG$52) * Generic!AC156 -> 5.643027091 | AF156: 5.68727846 | AG156: 5.673690818 | AH156: 5.046927131 | AS156: 0.3839312633 | AT156: 0.006700864647 | AU156: -0.3772303987 | AV156: -0.006583864929 | AW156: =ABS(AV156)*'Simple AR Calculator'!$C$8 -> 1.481369609 | AX156: 5.642478564 | AY156: 8.358596265 | BE156: 3.165623615 | BF156: 0.05525055495 | BG156: -3.11037306 | BH156: -0.05425959121 | BI156: 0.3839312633 | BJ156: 8.245287417 | BK156: 67.98476459 | BL156: 0.6776691037 | BR156: 5.367089124 | BS156: 0.09367337646 | BT156: -5.273415747 | BU156: 0.9957674494
D157: 4.855353834 | E157: 4.855353834 | T157: 0.9654390379 | U157: 0.01685008994 | V157: -0.948588948 | W157: 0.9998629526 | X157: 19.72564199 | Z157: 4.215938242 | AA157: 0.07358200338 | AB157: -4.142356238 | AC157: 0.9973876555 | AD157: 1.002619187 | AE157: =($AG$47/$AG$48) * ($AG$49/$AG$50)* ($AG$51/$AG$52) * Generic!AC157 -> 5.643556654 | AF157: 5.688050626 | AG157: 5.673158427 | AH157: 5.046453553 | AS157: 0.3772303987 | AT157: 0.006583912496 | AU157: -0.3706464862 | AV157: -0.006468956426 | AW157: =ABS(AV157)*'Simple AR Calculator'!$C$8 -> 1.455515196 | AX157: 5.643027091 | AY157: 8.213511681 | BE157: 3.11037306 | BF157: 0.05428625086 | BG157: -3.056086809 | BH157: -0.05331348894 | BI157: 0.3772303987 | BJ157: 8.245287417 | BK157: 67.98476459 | BL157: 0.6622675332 | BR157: 5.273415747 | BS157: 0.09203846762 | BT157: -5.18137728 | BU157: 0.9959138041
D158: 5.014640128 | E158: 5.014640128 | T158: 0.948588948 | U158: 0.01655600039 | V158: -0.9320329476 | W158: 0.9998676946 | X158: 19.72305615 | Z158: 4.142356238 | AA158: 0.07229775515 | AB158: -4.070058483 | AC158: 0.9974780097 | AD158: 1.002528367 | AE158: =($AG$47/$AG$48) * ($AG$49/$AG$50)* ($AG$51/$AG$52) * Generic!AC158 -> 5.644067909 | AF158: 5.688796374 | AG158: 5.672644537 | AH158: 5.045996432 | AS158: 0.3706464862 | AT158: 0.006469001545 | AU158: -0.3641774846 | AV158: -0.006356053371 | AW158: =ABS(AV158)*'Simple AR Calculator'!$C$8 -> 1.430112009 | AX158: 5.643556654 | AY158: 8.070918141 | BE158: 3.056086809 | BF158: 0.05333877704 | BG158: -3.002748032 | BH158: -0.05238385265 | BI158: 0.3706464862 | BJ158: 8.245287417 | BK158: 67.98476459 | BL158: 0.6468659627 | BR158: 5.18137728 | BS158: 0.09043209332 | BT158: -5.090945186 | BU158: 0.9960551015
D159: 5.014640128 | E159: 5.014640128 | T159: 0.9320329476 | U159: 0.01626704367 | V159: -0.9157659039 | W159: 0.9998722725 | X159: 19.72055945 | Z159: 4.070058483 | AA159: 0.07103592128 | AB159: -3.999022562 | AC159: 0.9975652401 | AD159: 1.002440702 | AE159: =($AG$47/$AG$48) * ($AG$49/$AG$50)* ($AG$51/$AG$52) * Generic!AC159 -> 5.644561488 | AF159: 5.689516597 | AG159: 5.672148502 | AH159: 5.045555193 | AS159: 0.3641774846 | AT159: 0.006356096169 | AU159: -0.3578213885 | AV159: -0.006245120767 | AW159: =ABS(AV159)*'Simple AR Calculator'!$C$8 -> 1.405152173 | AX159: 5.644067909 | AY159: 7.930774285 | BE159: 3.002748032 | BF159: 0.05240783976 | BG159: -2.950340192 | BH159: -0.05147039736 | BI159: 0.3641774846 | BJ159: 8.245287417 | BK159: 67.98476459 | BL159: 0.6314643921 | BR159: 5.090945186 | BS159: 0.08885375554 | BT159: -5.002091431 | BU159: 0.996191516
D160: 5.014640128 | E160: 5.014640128 | T160: 0.9157659039 | U160: 0.0159831302 | V160: -0.8997827737 | W160: 0.999876692 | X160: 19.71814884 | Z160: 3.999022562 | AA160: 0.06979611057 | AB160: -3.929226451 | AC160: 0.9976494546 | AD160: 1.002356083 | AE160: =($AG$47/$AG$48) * ($AG$49/$AG$50)* ($AG$51/$AG$52) * Generic!AC160 -> 5.645038002 | AF160: 5.690212159 | AG160: 5.6716697 | AH160: 5.045129283 | AS160: 0.3578213885 | AT160: 0.006245161363 | AU160: -0.3515762271 | AV160: -0.006136124228 | AW160: =ABS(AV160)*'Simple AR Calculator'!$C$8 -> 1.380627951 | AX160: 5.644561488 | AY160: 7.793039363 | BE160: 2.950340192 | BF160: 0.0514931504 | BG160: -2.898847042 | BH160: -0.05057284292 | BI160: 0.3578213885 | BJ160: 8.245287417 | BK160: 67.98476459 | BL160: 0.6160628216 | BR160: 5.002091431 | BS160: 0.08730296495 | BT160: -4.914788466 | BU160: 0.9963232163
D161: 5.014640128 | E161: 5.014640128 | T161: 0.8997827737 | U161: 0.01570417195 | V161: -0.8840786018 | W161: 0.9998809586 | X161: 19.71582136 | Z161: 3.929226451 | AA161: 0.06857793863 | AB161: -3.860648513 | AC161: 0.9977307573 | AD161: 1.002274404 | AE161: =($AG$47/$AG$48) * ($AG$49/$AG$50)* ($AG$51/$AG$52) * Generic!AC161 -> 5.64549804 | AF161: 5.690883897 | AG161: 5.671207529 | AH161: 5.044718168 | AS161: 0.3515762271 | AT161: 0.006136162735 | AU161: -0.3454400644 | AV161: -0.006029029966 | AW161: =ABS(AV161)*'Simple AR Calculator'!$C$8 -> 1.356531742 | AX161: 5.645038002 | AY161: 7.657673236 | BE161: 2.898847042 | BF161: 0.05059442539 | BG161: -2.848252616 | BH161: -0.04969091397 | BI161: 0.3515762271 | BJ161: 8.245287417 | BK161: 67.98476459 | BL161: 0.600661251 | BR161: 4.914788466 | BS161: 0.08577924077 | BT161: -4.829009225 | BU161: 0.9964503649
T162: 0.8840786018 | U162: 0.01543008245 | V162: -0.8686485193 | W162: 0.9998850776 | X162: 19.71357415 | Z162: 3.860648513 | AA162: 0.06738102781 | AB162: -3.793267485 | AC162: 0.9978092489 | AD162: 1.002195561 | AE162: =($AG$47/$AG$48) * ($AG$49/$AG$50)* ($AG$51/$AG$52) * Generic!AC162 -> 5.645942172 | AF162: 5.691532618 | AG162: 5.670761409 | AH162: 5.04432133 | AS162: 0.3454400644 | AT162: 0.006029066492 | AU162: -0.3394109979 | AV162: -0.005923804784 | AW162: =ABS(AV162)*'Simple AR Calculator'!$C$8 -> 1.332856076 | AX162: 5.64549804 | AY162: 7.524636367 | BE162: 2.848252616 | BF162: 0.04971138608 | BG162: -2.79854123 | BH162: -0.04882433984 | BI162: 0.3454400644 | BJ162: 8.245287417 | BK162: 67.98476459 | BL162: 0.5852596805 | BR162: 4.829009225 | BS162: 0.08428211059 | BT162: -4.744727115 | BU162: 0.9965731191
T163: 0.8686485193 | U163: 0.0151607767 | V163: -0.8534877426 | W163: 0.9998890541 | X163: 19.71140445 | Z163: 3.793267485 | AA163: 0.06620500702 | AB163: -3.727062478 | AC163: 0.9978850265 | AD163: 1.002119456 | AE163: =($AG$47/$AG$48) * ($AG$49/$AG$50)* ($AG$51/$AG$52) * Generic!AC163 -> 5.646370947 | AF163: 5.692159103 | AG163: 5.670330782 | AH163: 5.043938274 | AS163: 0.3394109979 | AT163: 0.005923839431 | AU163: -0.3334871585 | AV163: -0.005820416064 | AW163: =ABS(AV163)*'Simple AR Calculator'!$C$8 -> 1.309593615 | AX163: 5.645942172 | AY163: 7.393889816 | BE163: 2.79854123 | BF163: 0.04884375872 | BG163: -2.749697471 | BH163: -0.04797285448 | BI163: 0.3394109979 | BJ163: 8.245287417 | BK163: 67.98476459 | BL163: 0.56985811 | BR163: 4.744727115 | BS163: 0.08281111026 | BT163: -4.661916004 | BU163: 0.9966916304
T164: 0.8534877426 | U164: 0.01489617123 | V164: -0.8385915714 | W164: 0.999892893 | X164: 19.7093096 | Z164: 3.727062478 | AA164: 0.06504951167 | AB164: -3.662012966 | AC164: 0.9979581838 | AD164: 1.002045994 | AE164: =($AG$47/$AG$48) * ($AG$49/$AG$50)* ($AG$51/$AG$52) * Generic!AC164 -> 5.646784896 | AF164: 5.692764107 | AG164: 5.669915107 | AH164: 5.043568518 | AS164: 0.3334871585 | AT164: 0.005820448928 | AU164: -0.3276667095 | AV164: -0.005718831758 | AW164: =ABS(AV164)*'Simple AR Calculator'!$C$8 -> 1.286737145 | AX164: 5.646370947 | AY164: 7.265395235 | BE164: 2.749697471 | BF164: 0.04799127431 | BG164: -2.701706197 | BH164: -0.04713619639 | BI164: 0.3334871585 | BJ164: 8.245287417 | BK164: 67.98476459 | BL164: 0.5544565394 | BR164: 4.661916004 | BS164: 0.08136578373 | BT164: -4.580550221 | BU164: 0.9968060456
AE165: Cos | AF165: Parts Calc | AG165: AR invCos | AS165: 0.3276667095 | AT165: 0.005718862931 | AU165: -0.3219478466 | AV165: -0.005619020374 | AW165: =ABS(AV165)*'Simple AR Calculator'!$C$8 -> 1.264279584 | AX165: =AE164 -> 5.646784896 | AY165: 7.13911486 | BE165: 2.701706197 | BF165: 0.04715366856 | BG165: -2.654552528 | BH165: -0.04631410852 | BI165: 0.3276667095 | BJ165: 8.245287417 | BK165: 67.98476459 | BL165: 0.5390549689 | BR165: 4.580550221 | BS165: 0.0799456829 | BT165: -4.500604538 | BU165: 0.9969165058
AS166: 0.3219478466 | AT166: 0.005619049943 | AU166: -0.3163287967 | AV166: -0.005520950973 | AW166: =ABS(AV166)*'Simple AR Calculator'!$C$8 -> 1.242213969 | AX166: =AE165 -> Cos | AY166: =AW166*AX166 ->  | BE166: 2.654552528 | BF166: 0.04633068179 | BG166: -2.608221847 | BH166: -0.04550633824 | BI166: 0.3219478466 | BJ166: 8.245287417 | BK166: 67.98476459 | BL166: 0.5236533983
AK167: =3.1416/180 -> 0.01745333333 | AL167: =TAN(RADIANS(AF171)) -> 0.09994456353 | AN167: tanA = Tpi/180 | AS167: 0.3163287967 | AT167: 0.005520979021 | AU167: -0.3108078176 | AV167: -0.005424593154 | AW167: =ABS(AV167)*'Simple AR Calculator'!$C$8 -> 1.22053346 | AX167: 0 | AY167: 0 | BE167: 2.608221847 | BF167: 0.04552205885 | BG167: -2.562699788 | BH167: -0.04471263722 | BI167: 0.3163287967 | BJ167: 8.245287417 | BK167: 67.98476459 | BL167: 0.5082518278
S168: angle | T168: Involute T = tanA - A | V168: [where T is the involute curve pts. And where ang A is in rads] | AI168: T*pi/180=tan(A)-A*pi/180 | AK168: =(AE171*AK167) -> 0.09961399754 | AL168: =((TAN(RADIANS(S172))-(S172*AK167))) -> 0.09961399754 | AN168: =AJ170*3.1416/180 -> 0.630941558 | AO168: =DEGREES(TAN(AN168)) -> 41.85787969 | AS168: 0.3108078176 | AT168: 0.005424619759 | AU168: -0.3053831979 | AV168: -0.005329917048 | AW168: =ABS(AV168)*'Simple AR Calculator'!$C$8 -> 1.199231336 | AX168: 0 | AY168: 0 | BE168: 2.562699788 | BF168: 0.04472754904 | BG168: -2.517972239 | BH168: -0.04393276141 | BI168: 0.3108078176 | BJ168: 8.245287417 | BK168: 67.98476459 | BL168: 0.4928502573
S169: =Generic!Z54 -> 25.401968 | X169: mm | AE169: Involute T = tanA - A | AG169: [where T is the involute curve pts. And where ang A is in rads] | AO169: =AO168-AE171 -> 36.15043139 | AS169: 0.3053831979 | AT169: 0.005329942283 | AU169: -0.3000532556 | AV169: -0.005236893304 | AW169: =ABS(AV169)*'Simple AR Calculator'!$C$8 -> 1.178300993 | AX169: 0 | AY169: 0 | BE169: 2.517972239 | BF169: 0.04394690604 | BG169: -2.474025333 | BH169: -0.04316647092 | BI169: 0.3053831979 | BJ169: 8.245287417 | BK169: 67.98476459 | BL169: 0.4774486867
T170: A Rads | U170: Δ Inv. T | W170: a | X170: ='Simple AR Calculator'!G128 -> 19.82922312 | AE170: ang T | AF170: A Rads | AG170: Δ Inv. T | AI170: a | AJ170: =S171 -> 36.15020386 | AK170: =$AO$168-AE171 -> 36.15043139 | AS170: 0.3000532556 | AT170: 0.005236917241 | AU170: -0.2948163384 | AV170: -0.005145493087 | AW170: =ABS(AV170)*'Simple AR Calculator'!$C$8 -> 1.157735945 | AX170: Involute T = tanA - A | BE170: 2.474025333 | BF170: 0.04317988783 | BG170: -2.430845445 | BH170: -0.04241352998 | BI170: 0.3000532556 | BJ170: 8.245287417 | BK170: 67.98476459 | BL170: 0.4620471162
R171: ='Simple AR Calculator'!$J$131 -> 6.993996684 | S171: =N185 -> 36.15020386 | U171: =S171 -> 36.15020386 | V171: =TAN(RADIANS(S172)) -> 0.7305555556 | W171: =V171*$O$186 -> 13.15 | X171: =SQRT($W$171^2+$O$186^2) -> 22.29175857 | Y171: =$S$171-U171 -> 0 | AE171: ='Simple AR Calculator'!L212 -> 5.707448293 | AF171: =AE171 -> 5.707448293 | AG171: =AE171 -> 5.707448293 | AH171: =TAN(RADIANS(AE171)) -> 0.09994456353 | AI171: =AH171*$AB$186 ->  | AJ171: =SQRT($AI$171^2+$AB$186^2) ->  | AK171: =$AO$168-AE172 -> 36.15043139 | AS171: 0.2948163384 | AT171: 0.005145515793 | AU171: -0.2896708226 | AV171: -0.005055688063 | AW171: =ABS(AV171)*'Simple AR Calculator'!$C$8 -> 1.137529814 | AX171: =AH170 -> 0 | AY171: 0 | BE171: 2.430845445 | BF171: 0.04242625662 | BG171: -2.388419188 | BH171: -0.04167370688 | BI171: 0.2948163384 | BJ171: 8.245287417 | BK171: 67.98476459 | BL171: 0.4466455456
S172: =S171 -> 36.15020386 | T172: =(RADIANS(S172)) -> 0.6309400826 | U172: =T172-S172 -> -35.51926378 | V172: =TAN(RADIANS(S172)) -> 0.7305555556 | W172: 13.15 | X172: =SQRT($W$171^2+$O$186^2) -> 22.29175857 | Y172: =$S$171+U172 -> 0.6309400826 | AE172: =AE171 -> 5.707448293 | AF172: =(RADIANS(AE172)) -> 0.0996137646 | AG172: =AF172-AE172 -> -5.607834528 | AH172: =TAN(RADIANS(AE172)) -> 0.09994456353 | AI172: =AH172*$AB$186 ->  | AJ172: =SQRT($AI$172^2+$AB$186^2) ->  | AK172: 36.25004516 | AS172: 0.2896708226 | AT172: 0.005055709601 | AU172: -0.284615113 | AV172: -0.004967450393 | AW172: =ABS(AV172)*'Simple AR Calculator'!$C$8 -> 1.117676338 | AX172: =AH171 -> 0.09994456353 | AY172: 0.1117056738 | BE172: 2.388419188 | BF172: 0.04168577875 | BG172: -2.34673341 | BH172: -0.04094677387 | BI172: 0.2896708226 | BJ172: 8.245287417 | BK172: 67.98476459 | BL172: 0.4312439751
S173: =ABS(U172) -> 35.51926378 | T173: =(RADIANS(S173)) -> 0.6199281008 | U173: =T173-S173 -> -34.89933568 | V173: =TAN(RADIANS(S173)) -> 0.7138004684 | W173: 12.84840843 | X173: =SQRT(W173^2+$O$186^2) -> 22.11518933 | Y173: 1.250868183 | AE173: =ABS(AG172) -> 5.607834528 | AF173: =ABS(AH172) -> 0.09994456353 | AG173: -5.507889965 | AH173: =TAN(RADIANS(AE173)) -> 0.09818891205 | AJ173: =SQRT(AI173^2+$AB$186^2) ->  | AK173: 36.34998972 | AS173: 0.284615113 | AT173: 0.004967470822 | AU173: -0.2796476421 | AV173: -0.004880752723 | AW173: =ABS(AV173)*'Simple AR Calculator'!$C$8 -> 1.098169363 | AX173: =AH172 -> 0.09994456353 | AY173: 0.1097560576 | BE173: 2.34673341 | BF173: 0.04095822466 | BG173: -2.305775185 | BH173: -0.04023250712 | BI173: 0.284615113 | BJ173: 8.245287417 | BK173: 67.98476459 | BL173: 0.4158424046
S174: =ABS(U173) -> 34.89933568 | T174: =(RADIANS(S174)) -> 0.6091083143 | U174: -34.29022736 | V174: =TAN(RADIANS(S174)) -> 0.6975924255 | W174: 12.55666366 | X174: =SQRT(W174^2+$O$186^2) -> 21.94697706 | Y174: 1.859976498 | AE174: =ABS(AG173) -> 5.507889965 | AF174: =ABS(AH173) -> 0.09818891205 | AG174: -5.409701053 | AH174: 0.09642803266 | AJ174: =SQRT(AI174^2+$AB$186^2) ->  | AK174: 36.44817863 | AS174: 0.2796476421 | AT174: 0.004880772101 | AU174: -0.27476687 | AV174: -0.004795568176 | AW174: =ABS(AV174)*'Simple AR Calculator'!$C$8 -> 1.07900284 | AX174: 5.607834528 | AY174: 6.050869381 | BE174: 2.305775185 | BF174: 0.04024336879 | BG174: -2.265531816 | BH174: -0.03953068665 | BI174: 0.2796476421 | BJ174: 8.245287417 | BK174: 67.98476459 | BL174: 0.400440834
S175: 34.29022736 | T175: 0.5984773687 | U175: -33.69174999 | V175: =TAN(RADIANS(S175)) -> 0.6819038442 | W175: 12.2742692 | X175: 21.78664004 | Y175: 2.458453866 | AE175: =ABS(AG174) -> 5.409701053 | AF175: 0.09642803266 | AG175: -5.31327302 | AH175: 0.09469866215 | AK175: 36.54460667 | AS175: 0.27476687 | AT175: 0.004795586558 | AU175: -0.2699712835 | AV175: -0.004711870347 | AW175: =ABS(AV175)*'Simple AR Calculator'!$C$8 -> 1.060170828 | AX175: 5.507889965 | AY175: 5.839304265 | BE175: 2.265531816 | BF175: 0.0395409895 | BG175: -2.225990827 | BH175: -0.03884109626 | BI175: 0.27476687 | BJ175: 8.245287417 | BK175: 67.98476459 | BL175: 0.3850392635
S176: 33.69174999 | T176: 0.5880319681 | U176: -33.10371802 | V176: 0.666709083 | W176: 12.00076349 | X176: 21.63373117 | Y176: 3.046485835 | AE176: 5.31327302 | AF176: 0.09469866215 | AG176: -5.218574358 | AH176: 0.09300085172 | AK176: 36.63930533 | AS176: 0.2699712835 | AT176: 0.004711887783 | AU176: -0.2652593957 | AV176: -0.004629633288 | AW176: =ABS(AV176)*'Simple AR Calculator'!$C$8 -> 1.04166749 | AX176: 5.409701053 | AY176: 5.635109717 | BE176: 2.225990827 | BF176: 0.03885086904 | BG176: -2.187139958 | BH176: -0.03816352348 | BI176: 0.2699712835 | BJ176: 8.245287417 | BK176: 67.98476459 | BL176: 0.3696376929
S177: 33.10371802 | T177: 0.5777688742 | U177: -32.52594915 | V177: 0.651984271 | W177: 11.73571688 | X177: 21.48783495 | Y177: 3.624254709 | AE177: 5.218574358 | AF177: 0.09300085172 | AG177: -5.125573506 | AH177: 0.09133400761 | AK177: 36.73230618 | AS177: 0.2652593957 | AT177: 0.004629649827 | AU177: -0.2606297459 | AV177: -0.004548831507 | AW177: =ABS(AV177)*'Simple AR Calculator'!$C$8 -> 1.023487089 | AX177: 5.31327302 | AY177: 5.438066336 | BE177: 2.187139958 | BF177: 0.03817279346 | BG177: -2.148967164 | BH177: -0.03749775948 | BI177: 0.2652593957 | BJ177: 8.245287417 | BK177: 67.98476459 | BL177: 0.3542361224
S178: 32.52594915 | T178: 0.567684905 | U178: -31.95826425 | V178: 0.6377071553 | W178: 11.47872879 | X178: 21.3485647 | Y178: 4.191939614 | AE178: 5.125573506 | AF178: 0.09133400761 | AG178: -5.034239499 | AH178: 0.08969753738 | AK178: 36.82364019 | AS178: 0.2606297459 | AT178: 0.004548847194 | AU178: -0.2560808987 | AV178: -0.004469439953 | AW178: =ABS(AV178)*'Simple AR Calculator'!$C$8 -> 1.005623989 | AX178: 5.218574358 | AY178: 5.247923565 | BE178: 2.148967164 | BF178: 0.03750655253 | BG178: -2.111460612 | BH178: -0.03684359904 | BI178: 0.2606297459 | BJ178: 8.245287417 | BK178: 67.98476459 | BL178: 0.3388345519
S179: 31.95826425 | T179: 0.5577769343 | U179: -31.40048731 | V179: 0.6238569636 | W179: 11.22942534 | X179: 21.21556018 | Y179: 4.749716548 | AE179: 5.034239499 | AF179: 0.08969753738 | AG179: -4.944541961 | AH179: 0.0880908612 | AK179: 36.91333772 | AS179: 0.2560808987 | AT179: 0.004469454833 | AU179: -0.2516114438 | AV179: -0.004391434016 | AW179: =ABS(AV179)*'Simple AR Calculator'!$C$8 -> 0.9880726536 | AX179: 5.125573506 | AY179: 5.064439016 | BE179: 2.111460612 | BF179: 0.0368519397 | BG179: -2.074608672 | BH179: -0.03620084048 | BI179: 0.2560808987 | BJ179: 8.245287417 | BK179: 67.98476459 | BL179: 0.3234329813
J180: =X170 -> 19.82922312 | M180: =N185 -> 36.15020386 | S180: 31.40048731 | T180: 0.5480418903 | U180: -30.85244542 | V180: 0.6104142812 | W180: 10.98745706 | X180: 21.08848531 | Y180: 5.297758438 | AE180: 4.944541961 | AF180: 0.0880908612 | AG180: -4.8564511 | AH180: 0.08651341168 | AJ180: =SQRT($AI$171^2+$AB$186^2) ->  | AK180: 37.00142859 | AS180: 0.2516114438 | AT180: 0.004391448131 | AU180: -0.2472199957 | AV180: -0.004314789513 | AW180: =ABS(AV180)*'Simple AR Calculator'!$C$8 -> 0.9708276405 | AX180: 5.034239499 | AY180: 4.887378854 | BE180: 2.074608672 | BF180: 0.03620875201 | BG180: -2.03839992 | BH180: -0.03556928558 | BI180: 0.2516114438 | BJ180: 8.245287417 | BK180: 67.98476459 | BL180: 0.3080314108
M181: ang | O181: =Q190 -> 22.29175857 | P181: mm | S181: 30.85244542 | T181: 0.5384767549 | U181: =T181-S181 -> -30.31396867 | V181: 0.5973609392 | W181: 10.7524969 | X181: 20.96702625 | Y181: 5.836235193 | AB181: =AD190 ->  | AC181: mm | AE181: 4.8564511 | AF181: 0.08651341168 | AG181: -4.769937688 | AH181: 0.08496463355 | AJ181: =SQRT($AI$172^2+$AB$186^2) ->  | AK181: 37.087942 | AS181: 0.2472199957 | AT181: 0.004314802902 | AU181: -0.2429051928 | AV181: -0.004239482685 | AW181: =ABS(AV181)*'Simple AR Calculator'!$C$8 -> 0.9538836042 | AX181: 4.944541961 | AY181: 4.716517507 | BE181: 2.03839992 | BF181: 0.03557679007 | BG181: -2.00282313 | BH181: -0.03494873955 | BI181: 0.2472199957 | BJ181: 8.245287417 | BK181: 67.98476459 | BL181: 0.2926298402
K182: =X171 -> 22.29175857 | S182: 30.31396867 | T182: 0.5290785626 | U182: -29.7848901 | V182: 0.5846799144 | W182: 10.52423846 | X182: 20.85088955 | Y182: 6.365313756 | AE182: 4.769937688 | AF182: 0.08496463355 | AG182: -4.684973055 | AH182: 0.08344398333 | AJ182: =SQRT(AI182^2+$AB$186^2) ->  | AK182: 37.17290663 | AS182: 0.2429051928 | AT182: 0.004239495385 | AU182: -0.2386656974 | AV182: -0.004165490185 | AW182: =ABS(AV182)*'Simple AR Calculator'!$C$8 -> 0.9372352917 | AX182: 4.8564511 | AY182: 4.551637364 | BE182: 2.00282313 | BF182: 0.03495585795 | BG182: -1.967867272 | BH182: -0.03433901098 | BI182: 0.2429051928 | BJ182: 8.245287417 | BK182: 67.98476459 | BL182: 0.2772282697
P183: a | Q183: =Q189 -> 13.15 | R183: mm | S183: 29.7848901 | T183: 0.5198443996 | U183: -29.2650457 | V183: 0.5723552383 | W183: 10.30239429 | X183: 20.73980058 | Y183: 6.885158155 | AC183: a | AD183: =AD189 ->  | AE183: 4.684973055 | AF183: 0.08344398333 | AG183: -4.601529072 | AH183: 0.08195092902 | AJ183: =SQRT(AI183^2+$AB$186^2) ->  | AK183: 37.25635061 | AS183: 0.2386656974 | AT183: 0.004165502232 | AU183: -0.2345001952 | AV183: -0.004092789076 | AW183: =ABS(AV183)*'Simple AR Calculator'!$C$8 -> 0.9208775422 | AX183: 4.769937688 | AY183: 4.392528495 | BE183: 1.967867272 | BF183: 0.03434576314 | BG183: -1.933521509 | BH183: -0.03373991172 | BI183: 0.2386656974 | BJ183: 8.245287417 | BK183: 67.98476459 | BL183: 0.2618266992
S184: 29.2650457 | T184: 0.5107714033 | U184: -28.7542743 | V184: 0.5603719146 | W184: 10.08669446 | X184: 20.63350201 | Y184: 7.395929559 | AD184: mm | AE184: =ABS(AG183) -> 4.601529072 | AF184: =ABS(AH183) -> 0.08195092902 | AG184: =AF184-AE184 -> -4.519578142 | AH184: =TAN(RADIANS(AE184)) -> 0.08048494977 | AK184: 37.33830154 | AS184: 0.2345001952 | AT184: 0.004092800503 | AU184: -0.2304073947 | AV184: -0.00402135682 | AW184: =ABS(AV184)*'Simple AR Calculator'!$C$8 -> 0.9048052845 | AX184: =AD184 -> mm | AY184: =AW184*AX184 ->  | BE184: 1.933521509 | BF184: 0.03374631648 | BG184: -1.899775192 | BH184: -0.03315125691 | BI184: =AS184 -> 0.2345001952 | BJ184: =BE184/BI184 -> 8.245287417 | BK184: =BJ184^2 -> 67.98476459 | BL184: 0.2464251286
N185: =K56 -> 36.15020386 | S185: 28.7542743 | T185: 0.5018567606 | U185: -28.25241754 | V185: 0.5487158447 | W185: 9.876885204 | X185: 20.53175252 | Y185: 7.897786319 | AA185: =AE171 -> 5.707448293 | AE185: 4.519578142 | AF185: 0.08048494977 | AG185: -4.439093193 | AH185: 0.07904553563 | AK185: 37.41878649 | AS185: 0.2304073947 | AT185: 0.004021367658 | AU185: -0.226386027 | AV185: =SIN(RADIANS(AU185)) -> -0.003951171271 | AW185: =ABS(AV185)*'Simple AR Calculator'!$C$8 -> 0.8890135361 | AX185: =AE184 -> 4.601529072 | AY185: 4.090821631 | BE185: 1.899775192 | BF185: 0.03315733215 | BG185: -1.86661786 | BH185: =SIN(RADIANS(BG185)) -> -0.03257286486 | BI185: 0.2304073947 | BJ185: 8.245287417 | BK185: 67.98476459 | BL185: =BL184- $BI$50 -> 0.2310235581
O186: ='Simple AR Calculator'!C12 -> 18 | P186: mm | S186: 28.25241754 | T186: 0.4930977077 | U186: -27.75931983 | V186: 0.5373737593 | W186: 9.672727668 | X186: 20.43432555 | Y186: 8.390884027 | AB186: ='Simple AR Calculator'!#REF! ->  | AC186: mm | AE186: 4.439093193 | AF186: 0.07904553563 | AG186: -4.360047657 | AH186: 0.07763218725 | AK186: 37.49783203 | AS186: 0.226386027 | AT186: =(RADIANS(AS186)) -> 0.003951181552 | AU186: -0.2224348455 | AV186: -0.003882210673 | AW186: =ABS(AV186)*'Simple AR Calculator'!$C$8 -> 0.8734974014 | AX186: 4.519578142 | AY186: 3.947839763 | BE186: 1.86661786 | BF186: =(RADIANS(BE186)) -> 0.03257862753 | BG186: -1.834039233 | BH186: -0.03200455703 | BI186: 0.226386027 | BJ186: 8.245287417 | BK186: 67.98476459 | BL186: 0.2156219876
S187: 27.75931983 | T187: 0.4844915292 | U187: -27.2748283 | V187: 0.5263331571 | W187: 9.473996828 | X187: 20.34100823 | Y187: 8.875375556 | AE187: 4.360047657 | AF187: 0.07763218725 | AG187: -4.28241547 | AH187: 0.0762444156 | AK187: 37.57546422 | AS187: 0.2224348455 | AT187: 0.003882220425 | AU187: -0.2185526251 | AV187: -0.003814453646 | AW187: =ABS(AV187)*'Simple AR Calculator'!$C$8 -> 0.8582520703 | AX187: 4.439093193 | AY187: 3.809860923 | BE187: 1.834039233 | BF187: 0.03201002322 | BG187: -1.802029209 | BH187: -0.03144615797 | BI187: 0.2224348455 | BJ187: 8.245287417 | BK187: 67.98476459 | BL187: 0.200220417
S188: 27.2748283 | T188: 0.4760355568 | U188: -26.79879275 | V188: 0.5155822479 | W188: 9.280480462 | X188: 20.25160037 | Y188: 9.351411113 | AE188: 4.28241547 | AF188: 0.0762444156 | AG188: -4.206171054 | AH188: 0.07488174173 | AK188: 37.65170863 | AS188: 0.2185526251 | AT188: 0.003814462896 | AU188: -0.2147381622 | AV188: -0.003747879185 | AW188: =ABS(AV188)*'Simple AR Calculator'!$C$8 -> 0.8432728167 | AX188: 4.360047657 | AY188: 3.676709669 | BE188: 1.802029209 | BF188: 0.03145134292 | BG188: -1.770577866 | BH188: -0.03089749524 | BI188: 0.2185526251 | BJ188: 8.245287417 | BK188: 67.98476459 | BL188: 0.1848188465
N189: a = TanA* | O189: b | P189: =TAN(RADIANS(N185)) -> 0.7305555556 | Q189: =P189*O186 -> 13.15 | S189: 26.79879275 | T189: 0.467727169 | U189: -26.33106558 | V189: 0.5051099014 | W189: 9.091978225 | X189: 20.16591352 | Y189: 9.819138282 | AA189: a = TanA* | AB189: b | AC189: =TAN(RADIANS(AA185)) -> 0.09994456353 | AD189: =AC189*AB186 ->  | AE189: 4.206171054 | AF189: 0.07488174173 | AG189: -4.131289313 | AH189: 0.07354369649 | AK189: 37.72659037 | AS189: 0.2147381622 | AT189: 0.003747887959 | AU189: -0.2109902742 | AV189: -0.003682466652 | AW189: =ABS(AV189)*'Simple AR Calculator'!$C$8 -> 0.8285549966 | AX189: 4.28241547 | AY189: 3.548216735 | BE189: 1.770577866 | BF189: 0.03090241343 | BG189: -1.739675453 | BH189: -0.03035839942 | BI189: 0.2147381622 | BJ189: 8.245287417 | BK189: 67.98476459 | BL189: 0.1694172759
N190: c = sqrt(a2=b2) | Q190: =SQRT($Q$183^2+$O$186^2) -> 22.29175857 | S190: 26.33106558 | T190: 0.4595637899 | U190: -25.87150179 | V190: 0.4949056001 | W190: 8.908300801 | X190: 20.08377014 | Y190: 10.27870207 | AA190: c = sqrt(a2=b2) | AD190: =SQRT($AD$183^2+$AB$186^2) ->  | AE190: 4.131289313 | AF190: 0.07354369649 | AG190: -4.057745616 | AH190: 0.07222982031 | AK190: 37.80013407 | AS190: 0.2109902742 | AT190: 0.003682474974 | AU190: -0.2073077992 | AV190: -0.003618195767 | AW190: =ABS(AV190)*'Simple AR Calculator'!$C$8 -> 0.8140940476 | AX190: 4.206171054 | AY190: 3.424218818 | BE190: 1.739675453 | BF190: 0.03036306457 | BG190: -1.709312388 | BH190: -0.02982870399 | BI190: 0.2109902742 | BJ190: 8.245287417 | BK190: 67.98476459 | BL190: 0.1540157054
K191: T | L191: T | S191: 25.87150179 | T191: 0.4515428886 | U191: -25.4199589 | V191: 0.4849593961 | W191: 8.729269129 | X191: 20.00500286 | Y191: 10.73024496 | AE191: 4.057745616 | AF191: 0.07222982031 | AG191: -3.985515796 | AH191: 0.07093966295 | AK191: 37.87236389 | AS191: 0.2073077992 | AT191: 0.003618203662 | AU191: -0.2036895956 | AV191: -0.003555046606 | AW191: =ABS(AV191)*'Simple AR Calculator'!$C$8 -> 0.7998854864 | AX191: 4.131289313 | AY191: 3.304558361 | BE191: 1.709312388 | BF191: 0.02983312912 | BG191: -1.679479259 | BH191: -0.02930824534 | BI191: 0.2073077992 | BJ191: 8.245287417 | BK191: 67.98476459 | BL191: 0.1386141349
S192: 25.4199589 | T192: 0.4436619785 | U192: -24.97629692 | V192: 0.4752618717 | W192: 8.55471369 | X192: 19.92945374 | Y192: 11.17390694 | AE192: 3.985515796 | AF192: 0.07093966295 | AG192: -3.914576133 | AH192: 0.06967278326 | AK192: 37.94330355 | AS192: 0.2036895956 | AT192: 0.003555054095 | AU192: -0.2001345415 | AV192: -0.003492999593 | AW192: =ABS(AV192)*'Simple AR Calculator'!$C$8 -> 0.7859249083 | AX192: 4.057745616 | AY192: 3.189083351 | BE192: 1.679479259 | BF192: 0.02931244279 | BG192: -1.650166816 | BH192: -0.02879686266 | BI192: 0.2036895956 | BJ192: 8.245287417 | BK192: 67.98476459 | BL192: 0.1232125643
S193: 24.97629692 | T193: 0.4359186162 | U193: -24.5403783 | V193: 0.4658041031 | W193: 8.384473855 | X193: 19.85697363 | Y193: 11.60982556 | AE193: 3.914576133 | AF193: 0.06967278326 | AG193: -3.84490335 | AH193: 0.06842874899 | AK193: 38.01297634 | AS193: 0.2001345415 | AT193: 0.003493006696 | AU193: -0.1966415348 | AV193: -0.00343203549 | AW193: =ABS(AV193)*'Simple AR Calculator'!$C$8 -> 0.7722079853 | AX193: 3.985515796 | AY193: 3.077647123 | BE193: 1.650166816 | BF193: 0.02880084415 | BG193: -1.621365972 | BH193: -0.02829439795 | BI193: 0.2001345415 | BJ193: 8.245287417 | BK193: 67.98476459 | BL193: 0.1078109938
S194: 24.5403783 | T194: 0.4283104011 | U194: -24.1120679 | V194: 0.4565776272 | W194: 8.21839729 | X194: 19.78742161 | Y194: 12.03813596 | AE194: 3.84490335 | AF194: 0.06842874899 | AG194: -3.776474601 | AH194: 0.06720713657 | AK194: 38.08140508 | AS194: 0.1966415348 | AT194: 0.003432042228 | AU194: -0.1932094925 | AV194: -0.0033721354 | AW194: =ABS(AV194)*'Simple AR Calculator'!$C$8 -> 0.758730465 | AX194: 3.914576133 | AY194: 2.97010817 | BE194: 1.621365972 | BF194: 0.0282981746 | BG194: -1.593067798 | BH194: -0.02780069594 | BI194: 0.1966415348 | BJ194: 8.245287417 | BK194: 67.98476459 | BL194: 0.09240942324
S195: 24.1120679 | T195: 0.4208349744 | U195: -23.69123293 | V195: 0.4475744109 | W195: 8.056339397 | X195: 19.7206644 | Y195: 12.45897093 | AE195: 3.776474601 | AF195: 0.06720713657 | AG195: -3.709267464 | AH195: 0.06600753087 | AK195: 38.14861222 | AS195: =ABS(AU194) -> 0.1932094925 | AT195: 0.003372141791 | AU195: =AT195-AS195 -> -0.1898373508 | AV195: -0.003313280752 | AW195: =ABS(AV195)*'Simple AR Calculator'!$C$8 -> 0.7454881692 | AX195: 3.84490335 | AY195: 2.866329959 | BE195: 1.593067798 | BF195: 0.02780427828 | BG195: -1.565263519 | BH195: -0.02731560405 | BI195: 0.1932094925 | BJ195: 8.245287417 | BK195: 67.98476459 | BL195: 0.0770078527
S196: 23.69123293 | T196: 0.4134900185 | U196: -23.27774291 | V196: 0.4387868229 | W196: 7.898162812 | X196: 19.65657589 | Y196: 12.87246095 | AE196: 3.709267464 | AF196: 0.06600753087 | AG196: -3.643259933 | AH196: 0.06482952503 | AK196: 38.21461975 | AS196: 0.1898373508 | AT196: 0.003313286814 | AU196: -0.1865240639 | AV196: -0.0032554533 | AW196: =ABS(AV196)*'Simple AR Calculator'!$C$8 -> 0.7324769924 | AX196: 3.776474601 | AY196: 2.766180757 | BE196: 1.565263519 | BF196: 0.02731900208 | BG196: -1.537944517 | BH196: -0.02683897234 | BI196: 0.1898373508 | BJ196: 8.245287417 | BK196: 67.98476459 | BL196: 0.06160628216
S197: 23.27774291 | T197: 0.4062732562 | U197: -22.87146965 | V197: 0.4302076076 | W197: 7.743736937 | X197: 19.59503666 | Y197: 13.27873421 | AE197: 3.643259933 | AF197: 0.06482952503 | AG197: -3.578430408 | AH197: 0.06367272027 | AK197: 38.27944928 | AS197: 0.1865240639 | AT197: 0.00325545905 | AU197: -0.1832686049 | AV197: -0.003198635117 | AW197: =ABS(AV197)*'Simple AR Calculator'!$C$8 -> 0.7196929012 | AX197: 3.709267464 | AY197: 2.669533463 | BE197: 1.537944517 | BF197: 0.02684219554 | BG197: -1.511102322 | BH197: -0.02637065348 | BI197: 0.1865240639 | BJ197: 8.245287417 | BK197: 67.98476459 | BL197: 0.04620471162
S198: 22.87146965 | T198: 0.3991824502 | U198: -22.4722872 | V198: 0.4218298614 | W198: 7.592937504 | X198: 19.53593356 | Y198: 13.67791666 | AE198: 3.578430408 | AF198: 0.06367272027 | AG198: -3.514757688 | AH198: 0.06253672566 | AK198: 38.343122 | AS198: 0.1832686049 | AT198: 0.003198640571 | AU198: -0.1800699643 | AV198: -0.003142808588 | AW198: =ABS(AV198)*'Simple AR Calculator'!$C$8 -> 0.7071319322 | AX198: 3.643259933 | AY198: 2.576265436 | BE198: 1.511102322 | BF198: 0.02637371085 | BG198: -1.484728611 | BH198: -0.0259105027 | BI198: 0.1832686049 | BJ198: 8.245287417 | BK198: 67.98476459 | BL198: 0.03080314108
S199: 22.4722872 | T199: 0.3922154022 | U199: -22.0800718 | V199: 0.41364701 | W199: 7.44564618 | X199: 19.4791593 | Y199: 14.07013206 | AE199: 3.514757688 | AF199: 0.06253672566 | AG199: -3.452220962 | AH199: 0.06142115801 | AK199: 38.40565872 | AS199: 0.1800699643 | AT199: 0.003142813761 | AU199: -0.1769271506 | AV199: -0.003087956406 | AW199: =ABS(AV199)*'Simple AR Calculator'!$C$8 -> 0.6947901913 | AX199: 3.578430408 | AY199: 2.486258348 | BE199: 1.484728611 | BF199: 0.02591340276 | BG199: -1.458815208 | BH199: -0.02545837771 | BI199: 0.1800699643 | BJ199: 8.245287417 | BK199: 67.98476459 | BL199: 0.01540157054
S200: 22.0800718 | T200: 0.385369952 | U200: -21.69470185 | V200: 0.4056527886 | W200: 7.301750194 | X200: 19.42461212 | Y200: 14.45550201 | AE200: 3.452220962 | AF200: 0.06142115801 | AG200: -3.390799804 | AH200: 0.06032564161 | AK200: 38.46707988 | AS200: 0.1769271506 | AT200: 0.003087961313 | AU200: -0.1738391892 | AV200: -0.003034061566 | AW200: =ABS(AV200)*'Simple AR Calculator'!$C$8 -> 0.6826638524 | AX200: 3.514757688 | AY200: 2.399398023
S201: 21.69470185 | T201: 0.3786439775 | U201: -21.31605787 | V201: 0.3978412222 | W201: 7.161141999 | X201: 19.3721954 | Y201: 14.83414599 | AE201: 3.390799804 | AF201: 0.06032564161 | AG201: -3.330474162 | AH201: 0.05924980812 | AK201: 38.52740552 | AS201: 0.1738391892 | AT201: 0.003034066221 | AU201: -0.170805123 | AV201: -0.002981107361 | AW201: =ABS(AV201)*'Simple AR Calculator'!$C$8 -> 0.6707491561 | AX201: 3.452220962 | AY201: 2.315574297
S202: 21.31605787 | T202: 0.3720353934 | U202: -20.94402248 | V202: 0.3902066085 | W202: 7.023718953 | X202: 19.32181741 | Y202: 15.20618138 | AE202: 3.330474162 | AF202: 0.05924980812 | AG202: -3.271224354 | AH202: 0.05819329639 | AK202: 38.58665533 | AS202: 0.170805123 | AT202: 0.002981111776 | AU202: -0.1678240112 | AV202: -0.002929077372 | AW202: =ABS(AV202)*'Simple AR Calculator'!$C$8 -> 0.6590424087 | AX202: 3.390799804 | AY202: 2.23468087
S203: 20.94402248 | T203: 0.3655421509 | U203: -20.57848033 | V203: 0.3827435015 | W203: =V203*$O$186 -> 6.889383027 | X203: 19.27339094 | Y203: 15.57172353 | AE203: 3.271224354 | AF203: 0.05819329639 | AG203: -3.213031058 | AH203: 0.05715575227 | AK203: 38.64484863 | AS203: 0.1678240112 | AT203: 0.00292908156 | AU203: -0.1648949297 | AV203: -0.00287795547 | AW203: =ABS(AV203)*'Simple AR Calculator'!$C$8 -> 0.6475399808 | AX203: 3.330474162 | AY203: 2.156615175
... 78 more rows

Sheet Flow Chart (hidden)
H4: Click here for Why We Evaluate Actions
B70: activation code
B71: =DATEVALUE(MONTH(A71) & "/" & DAY(A71) & "/" & YEAR(A71)) -> 

Sheet HRK (hidden)
E22: ='Max Summary'!E19 -> 8.4026642 | G22: ='Max Summary'!E10 -> 5.338271605 | I22: ='Max Summary'!E14 -> 1.956521739
E26: =G22/E22 -> 0.6353070262 | G26: =E22/G22 -> 1.574042091 | N26: =E22/E27 -> 1.120355227
E27: 7.5 | G27: =G22 -> 5.338271605 | N27: =1/N26 -> 0.8925740481
E28: =E22/2 -> 4.2013321 | G28: =IF(E22<E27,((E28 * N27)+0.4),E27/2) -> 3.75 | N28: =G27*N26 -> 5.980760494
E30: =udfsizeoval("Oval 2",E28) ->  | G30: =udfsizeautoshape("AutoShape 12",G28) -> 

Sheet Identities (hidden)
X3: Thus Shk_ang = (AR * K_ang * Ki / So)
X4: =(AA22*U22*(O11/O16)) -> 18.66695233
C5: ='[5]Simple AR Calculator'!C6:D6 -> SSA ca 1916
C6: Sa = arc length = profile rise (which is primarily vertical) | N6: Equations | Q6: DIP | R6: involute | S6: ∆ knuck | T6: key rads | U6: ∆key ang | V6: cap rise | W6: whip ang | X6: whip rise | Y6: ∆shk ang | Z6: ∆hamRise | AA6: ∆AR | AC6: Saham | AD6: key ang | AE6: shk ang | AF6: shk ang | AG6: AR
C7: Sa = radius θ = rθ | N7: Sa = radiusθ | Q7: 1.5 | R7: =[5]Generic!AJ54 -> 19.91230775 | S7: =L11 -> 19.91230775 | T7: =Q7/$O$11 -> 0.00612244898 | U7: =DEGREES(T7) -> 0.3507904868 | V7: =T7*$O$10 -> 0.7900094633 | W7: =(V7*360)/(6.28*$O$13) -> 0.6786546093 | X7: =(W7/360) * (6.28 * $O$12) -> 1.115766496 | Y7: =(X7*360) / (6.28 * R7) -> 3.212140829 | Z7: =(Y7/360) * (6.28 * $O$16) -> 7.708496238 | AA7: =Z7/Q7 -> 5.138997492 | AB7: ='[5]Simple AR Calculator'!C35 -> 5.138997492 | AH7: 1 | AI7: =AH7*R7 -> 19.91230775
C8: Linear speed = rω | N8: angle = (n ͦ / 360) * ( 2πr) | Q8: =Q7+$Q$27 -> 1.923130968 | R8: =[5]Generic!AJ55 -> 19.58001214 | S8: =S7 - (S7* $L$16%) -> 19.78087318 | T8: 0.007849514157 | U8: 0.4497440324 | V8: 1.012861109 | W8: 0.8700944639 | X8: 1.430510068 | Y8: 4.188136416 | Z8: 10.05069065 | AA8: 5.226212264 | AH8: 2 | AI8: 39.16002429
C9: Key Sa = | D9: =L9*O10 -> 4.355635802 | E9: mm | I9: key ang. | J9: =DEGREES(L9) -> 1.934047216 | K9: degs | L9: =(Q23 ) /O11 -> 0.03375549181 | N9: DATA | Q9: 2.346261937 | R9: =[5]Generic!AJ56 -> 19.29689876 | S9: 19.65030616 | T9: 0.009576579333 | U9: 0.548697578 | V9: 1.235712756 | W9: 1.061534319 | X9: 1.745253641 | Y9: 5.184583714 | Z9: 12.44196509 | AA9: 5.302888349 | AH9: 3 | AI9: 57.89069627
C10: Whip Sa = | D10: =(J10/360) * ((6.28 *O12)) -> 6.148545018 | E10: mm | G10: diff | I10: whip ang | J10: =(D9*360)/(2*PI()*O13) -> 3.739795405 | K10: degs | L10: =RADIANS(J10) -> 0.06527174318 | N10: Ko = | O10: ='[5]Simple AR Calculator'!D7 -> 129.034879 | Q10: 2.769392905 | R10: =[5]Generic!AJ57 -> 19.05621151 | S10: 19.52060098 | T10: 0.01130364451 | U10: 0.6476511236 | V10: 1.458564402 | W10: 1.252974173 | X10: 2.059997213 | Y10: 6.196877703 | Z10: 14.87126841 | AA10: 5.36986586 | AH10: 4 | AI10: 76.22484603
C11: Shk Sa = | D11: =(J11/360)*(2*PI()* O16) -> 42.47845431 | E11: mm | F11: ='[5]Simple AR Calculator'!E44 -> 42.5 | G11: =D11-F11 -> -0.02154568877 | I11: shk ang | J11: =(D10*360) / (2*PI()*S7) -> 17.69185591 | K11: degs Re | L11: ='[5]Simple AR Calculator'!E77 -> 19.91230775 | N11: Ki = | O11: ='[5]Simple AR Calculator'!D8 -> 245 | Q11: 3.192523873 | R11: =[5]Generic!AJ58 -> 18.85198559 | S11: 19.39175193 | T11: 0.01303070969 | U11: 0.7466046691 | V11: 1.681416048 | W11: 1.444414028 | X11: 2.374740785 | Y11: 7.221076882 | Z11: 17.32914182 | AA11: 5.428038288 | AH11: 5 | AI11: 94.25992796
C12: Shk Sa = | D12: =(J12/360)*(2*PI()*O16) -> 47.24502073 | E12: mm | F12: ='[5]Simple AR Calculator'!A15 -> 46.96622805 | G12: =D12-F12 -> 0.2787926736 | I12: shk ang | J12: =(D10*360)/(2*PI()*O15) -> 19.67708366 | K12: degs Re | L12: ='[5]Simple AR Calculator'!F16 -> 17.90334816 | N12: Wo = | O12: ='[5]Simple AR Calculator'!D9 -> 94.24696431 | Q12: 3.615654842 | R12: =[5]Generic!AJ59 -> 18.67899001 | S12: 19.26375337 | T12: 0.01475777486 | U12: 0.8455582147 | V12: 1.904267694 | W12: 1.635853883 | X12: 2.689484357 | Y12: 8.253886448 | Z12: 19.80767843 | AA12: 5.478310099 | AH12: 6 | AI12: 112.07394
I13: shk ang | J13: =DEGREES(F11/O16) -> 17.70082948 | N13: Wi = | O13: ='[5]Simple AR Calculator'!D10 -> 66.73080248 | Q13: 4.03878581 | R13: =[5]Generic!AJ60 -> 18.53266489 | S13: 19.1365997 | T13: 0.01648484004 | U13: 0.9445117603 | V13: 2.12711934 | W13: 1.827293737 | X13: 3.004227929 | Y13: 9.29261327 | Z13: 22.30041528 | AA13: 5.521564234 | AH13: 7 | AI13: 129.7286542
C14: Angular Velocity ω | G14: Identity | N14: Si = | O14: ='[5]Simple AR Calculator'!K13 -> 19.91230775 | Q14: 4.461916778 | R14: =[5]Generic!AJ61 -> 18.40905672 | S14: 19.01028532 | T14: 0.01821190522 | U14: 1.043465306 | V14: 2.349970986 | W14: 2.018733592 | X14: 3.318971501 | Y14: 10.33510384 | Z14: 24.80218436 | AA14: 5.558638942 | AH14: 8 | AI14: 147.2724538
C15: Interpret | G15: e.g. 21.4 / 19.2 = 0.2279 / 0.2045 | J15: =L11/L12 -> 1.11221139 | K15: same as | L15: =G30/H30 -> 1.11221139 | N15: Si = | O15: ='[5]Simple AR Calculator'!F16 -> 17.90334816 | Q15: 4.885047747 | R15: =[5]Generic!AJ62 -> 18.304754 | S15: 18.88480469 | T15: 0.0199389704 | U15: 1.142418851 | V15: 2.572822632 | W15: 2.210173447 | X15: 3.633715073 | Y15: 11.37967426 | Z15: 27.30894468 | AA15: 5.590312746 | AH15: 9 | AI15: 164.742786
C16: ω of gear pairs A | E16: =G28 -> 94.24696431 | F16: =G30 -> 0.2112779748 | G16: e.g. 21.4 / 19.2 = 11.4% | J16: =(J15-1)*100 -> 11.22113903 | K16: % | L16: =J16/17 -> 0.6600670019 | N16: So = | O16: ='[5]Simple AR Calculator'!D11 -> 137.5681649 | P16: ='[5]Simple AR Calculator'!C11 -> 130 | Q16: 5.308178715 | R16: =[5]Generic!AJ63 -> 18.21682507 | S16: 18.76015233 | T16: 0.02166603557 | U16: 1.241372397 | V16: 2.795674279 | W16: 2.401613301 | X16: 3.948458645 | Y16: 12.42503906 | Z16: 29.81761135 | AA16: 5.617296054 | AH16: 10 | AI16: 182.1682507
D17: B | E17: =G29 -> 19.91230775 | G17: 0.2279 / 0.2045 = 11.4% | J17: =(L15-1)*100 -> 11.22113903 | K17: % | N17: at = | O17: ='[5]Simple AR Calculator'!C22 -> 1.25 | Q17: 5.731309684 | R17: =[5]Generic!AJ64 -> 18.14275979 | S17: 18.63632276 | T17: 0.02339310075 | U17: 1.340325943 | V17: 3.018525925 | W17: 2.593053156 | X17: 4.263202217 | Y17: 13.47024329 | Z17: 32.32589267 | AA17: 5.640227881 | AH17: 11 | AI17: 199.5703577
C18: is faster than A | E18: =H28 -> 94.24696431 | F18: =H30 -> 0.1899620672 | G18: Hammer rise | N18: LO = | O18: ='[5]Simple AR Calculator'!C16 -> 2 | Q18: 6.154440652 | R18: =[5]Generic!AJ65 -> 18.08041558 | S18: 18.51331054 | T18: 0.02512016593 | U18: 1.439279488 | V18: 3.241377571 | W18: 2.784493011 | X18: 4.577945789 | Y18: 14.51460074 | Z18: 34.83214192 | AA18: 5.659676303 | AH18: 12 | AI18: 216.9649869
D19: B | E19: =H29 -> 17.90334816 | G19: 44.67 mm / 40 mm = 11.7% | J19: =((D12/D11) -1) *100 -> 11.22113903 | K19: % | N19: dip = | O19: =[5]Compare!H9 -> 9.520095494 | P19: =O19-O17 -> 8.270095494 | Q19: 6.57757162 | R19: =[5]Generic!AJ66 -> 18.02796855 | S19: 18.39111029 | T19: 0.0268472311 | U19: 1.538233034 | V19: 3.464229217 | W19: 2.975932865 | X19: 4.892689361 | Y19: 15.55763966 | Z19: 37.33522693 | AA19: 5.676141452 | AH19: 13 | AI19: 234.3635912
Q20: 7.000702589 | R20: =[5]Generic!AJ67 -> 17.98386966 | S20: 18.26971663 | T20: 0.02857429628 | U20: 1.637186579 | V20: 3.687080863 | W20: 3.16737272 | X20: 5.207432933 | Y20: 16.59905622 | Z20: 39.83441862 | AA20: 5.690060121 | AH20: 14 | AI20: 251.7741753
C21: But with either ω, the hammer must rise the same final distance of = | I21: =D11 -> 42.47845431 | J21: mm | Q21: 7.423833557 | R21: =[5]Generic!AJ68 -> 17.94680589 | S21: 18.14912426 | T21: 0.03030136146 | U21: 1.736140125 | V21: 3.909932509 | W21: 3.358812575 | X21: 5.522176505 | Y21: 17.63867569 | Z21: 42.32929763 | AA21: 5.701811242 | AH21: 15 | AI21: 269.2020884
C22: So, as A driver slows down from | F22: =G30 -> 0.2112779748 | G22: to | H22: =H30 -> 0.1899620672 | I22: B follower speeds up from | K22: =G31 -> 4.733101029 | L22: to | M22: =H31 -> 5.264208876 | Q22: 7.846964525 | R22: =[5]Generic!AJ69 -> 17.91566614 | S22: 18.02932788 | T22: 0.03202842663 | U22: 1.835093671 | V22: 4.132784155 | W22: 3.550252429 | X22: 5.836920077 | Y22: 18.67642048 | Z22: 44.8196778 | AA22: 5.71172173 | AH22: 16 | AI22: 286.6506582
Q23: 8.270095494 | R23: =[5]Generic!AJ70 -> 17.8895115 | S23: 17.91032224 | T23: 0.03375549181 | U23: 1.934047216 | V23: 4.355635802 | W23: 3.741692284 | X23: 6.151663649 | Y23: 19.71228443 | Z23: 47.30554433 | AA23: 5.720072322 | AB23: ='[5]Simple AR Calculator'!C37 -> 5.715651545 | AH23: 17 | AI23: 304.1216955
C24: The size of the gears and the sequence in which they engage define the ratio of the angular velocity ωA of the input gear to the angular velocity ωB of the output gear,
C25: known as the speed ratio, or gear ratio, of the gear train. Let R be the speed ratio, then | Q25: ='[5]Simple AR Calculator'!D37 -> 7.43572271 | S25: 1 | U25: =L11 -> 19.91230775
Q26: ='[5]Simple AR Calculator'!D35 -> 8.270095494 | S26: 1.5 | U26: =L11 - (S7* $L$16%) -> 19.78087318
F27: f/d | G27: speed ratio R = ang. Velocity | M27: radius proportions = ang. Velocity | Q27: =(Q26-1.5) / 16 -> 0.4231309684 | S27: 2 | U27: =U26 - (S8* $L$16%) -> 19.65030616
C28: of input | D28: Wa = drive | E28: =O11 -> 245 | F28: driver A = | G28: ='[5]Simple AR Calculator'!D9 -> 94.24696431 | H28: =G28 -> 94.24696431 | I28: =O10 -> 129.034879 | L28: output | M28: rB = radius | N28: =G29 -> 19.91230775 | O28: =H29 -> 17.90334816 | S28: 2.5 | U28: 19.52060098
C29: to output | D29: Wb = follow | E29: ='[5]Simple AR Calculator'!C7 -> 123 | F29: follow B = | G29: ='[5]Simple AR Calculator'!K13 -> 19.91230775 | H29: =O15 -> 17.90334816 | I29: =O13 -> 66.73080248 | L29: input | M29: rA = radius | N29: =G28 -> 94.24696431 | O29: =N29 -> 94.24696431 | S29: 3 | U29: 19.39175193
D30: R = wA / wB | E30: =E28/E29 -> 1.991869919 | G30: =G29/G28 -> 0.2112779748 | H30: =H29/H28 -> 0.1899620672 | I30: =I29/I28 -> 0.5171532147 | J30: =G30*I30 -> 0.1092630839 | L30: O:I | M30: R = rB / rA | N30: =N28/N29 -> 0.2112779748 | O30: =O28/O29 -> 0.1899620672 | S30: 3.5 | U30: 19.26375337 | AG30: 2141
G31: =1/G30 -> 4.733101029 | H31: =1/H30 -> 5.264208876 | S31: 4 | U31: 19.1365997 | AG31: 2127
S32: 4.5 | U32: 19.01028532 | AG32: 2114
C33: The speed ratio (aka gear ratio R) of two gears rolling without slipping on their pitch circles is given by, | S33: 5 | U33: 18.88480469 | AG33: 2102
I34: rB out / | J34: rA in | S34: 5.5 | U34: 18.76015233 | AG34: 2089
S35: 6 | U35: 18.63632276 | AG35: 2078
S36: 6.5 | U36: 18.51331054 | AG36: 2066
C37: therefore | I37: =O13 -> 66.73080248 | J37: =O10 -> 129.034879 | K37: 66.7 | L37: 129 | S37: 7 | U37: 18.39111029 | AG37: 2056
I38: =O14 -> 19.91230775 | J38: =O12 -> 94.24696431 | K38: =O15 -> 17.90334816 | L38: 94.2 | S38: 7.5 | U38: 18.26971663 | AG38: 2045
I39: =O15 -> 17.90334816 | S39: 8 | U39: 18.14912426 | AG39: 2036
F40: GR = VR = rB / rA = out / in | I40: =I38/J38 -> 0.2112779748 | J40: is VR of IN as a function of OUT, or A as a function of B | S40: 8.5 | U40: 18.02932788 | AG40: 2026
J41: meaning that the input V is mult. X | M41: =I40 -> 0.2112779748 | N41: of the the output veloctiy of | Q41: 1 | S41: 8.75 | U41: =L12 -> 17.90334816 | AG41: 2017
C42: Wa = rB / Ra | E42: =I38/J38 -> 0.2112779748 | F42: Wa = (Wb * rB) / rA | I42: =(I40*I38) / J38 -> 0.04463838265 | AG42: 2009
C43: Wb = rA/Rb | E43: =J38/I38 -> 4.733101029 | F43: Wb = (Wa * rA) / rB | I43: =(I42 * J38) / I38 -> 0.2112779748 | J43: =1/I43 -> 4.733101029 | K43: Linear speed = rω = | M43: =I38*E42 -> 4.207032056 | N43: 4.22434787 | AG43: 2001
F44: Wa / Wb proof = | I44: =I42/I43 -> 0.2112779748 | M44: =I38*I40 -> 4.207032056 | N44: 4.22434787 | AG44: 1994
F45: Wb / Wa proof = | I45: =I43/I42 -> 4.733101029 | M45: =J38*I42 -> 4.207032056 | N45: 4.22434787 | AG45: 1987
D46: =(G30-H30) / 16 -> 0.001332244229 | E46: =G30 -> 0.2112779748 | F46: =(I38-I39) / 16 -> 0.1255599743 | G46: =I38 -> 19.91230775 | H46: =(O12*H30) / G30 -> 84.73835561 | I46: =DEGREES(I40) -> 12.10533626 | J46: degs shank proportion of rotation | M46: 4.8 | AG46: 1981
E47: =E46-$D$46 -> 0.2099457306 | G47: =G46-$F$46 -> 19.78674778 | H47: =H48-$I$51 -> 85.33264365 | I47: =DEGREES(I42) -> 2.55759093 | J47: degs whip proportion of rotation | AG47: 1975
E48: 0.2086134864 | G48: 19.6611878 | H48: 85.9269317 | I48: =I46/I47 -> 4.733101029 | J48: ratio shank/whip | AG48: 1970
E49: 0.2072812421 | G49: 19.53562783 | H49: 86.52121974 | I49: =(J10*I46) / I47 -> 17.70082948 | J49: cf to shank angle above | L49: =J11 -> 17.69185591 | M49: =J12 -> 19.67708366 | AG49: 1965
E50: 0.2059489979 | G50: 19.41006785 | H50: 87.11550778 | AG50: 1961
E51: 0.2046167537 | G51: 19.28450788 | H51: 87.70979583 | I51: =(H62-H46) / 16 -> 0.5942880435 | AG51: 1958
E52: 0.2032845094 | G52: 19.15894791 | H52: 88.30408387 | AG52: 1955
E53: 0.2019522652 | G53: 19.03338793 | H53: 88.89837191 | S53: =S7 -> 19.91230775
E54: 0.200620021 | G54: 18.90782796 | H54: 89.49265996 | S54: =S7 -> 19.91230775
E55: 0.1992877768 | G55: 18.78226798 | H55: 90.086948 | S55: =-(7.7289492*10^(-4))*P55^3+0.0311787*P55^2-0.4643636*P55+$S$54 -> 19.91230775
E56: 0.1979555325 | G56: 18.65670801 | H56: 90.68123604 | S56: 19.91230775
E57: 0.1966232883 | G57: 18.53114803 | H57: 91.27552409 | S57: 19.91230775
E58: 0.1952910441 | G58: 18.40558806 | H58: 91.86981213 | S58: 19.91230775
E59: 0.1939587998 | G59: 18.28002809 | H59: 92.46410018 | S59: 19.91230775
E60: 0.1926265556 | G60: 18.15446811 | H60: 93.05838822 | S60: 19.91230775
E61: 0.1912943114 | G61: 18.02890814 | H61: 93.65267626 | S61: 19.91230775
E62: 0.1899620672 | G62: 17.90334816 | H62: =O12 -> 94.24696431 | S62: 19.91230775
E63: VR recession | G63: Shk I recession | S63: 19.91230775
S64: 19.91230775
S65: 19.91230775
S66: 19.91230775
S67: 19.91230775
S68: 19.91230775
S69: 19.91230775
S70: 19.91230775
S72: c | T72: b
S73: =R75 -> 1
S74: x | T74: f(x) = cx^b | U74: =LINEST(S75:S91,R75:R91^1,2,3) -> -0.1148992136
H75: avg | R75: 1 | S75: 21.40701053 | T75: =S75+$U$74 -> 21.29211132
R76: 2 | S76: 21.28719836 | T76: 21.17229915
R77: 3 | S77: 21.16805676 | T77: 21.05315754
R78: 4 | S78: 21.04958197 | T78: 20.93468276
R79: 5 | S79: 20.93177028 | T79: 20.81687107
R80: 6 | S80: 20.81461796 | T80: 20.69971875
R81: 7 | S81: 20.69812133 | T81: 20.58322211
R82: 8 | S82: 20.58227671 | T82: 20.4673775
R83: 9 | S83: 20.46708046 | T83: 20.35218125
R84: 10 | S84: 20.35252895 | T84: 20.23762973
R85: 11 | S85: 20.23861857 | T85: 20.12371935
R86: 12 | S86: 20.12534572 | T86: 20.01044651
R87: 13 | S87: 20.01270686 | T87: 19.89780764
R88: 14 | S88: 19.90069841 | T88: 19.7857992
R89: 15 | S89: 19.78931686 | T89: 19.67441765
R90: 16 | S90: 19.67855871 | T90: 19.56365949
R91: 17 | S91: 19.56842044 | T91: 19.45352123

Sheet Unit Circle (hidden)
V1: Kθ = | W1: =AC29 -> 2.233227728
K2: =O27 -> 44.1855335 | L2: =B28 -> 44 | V2: Si = | W2: ='Simple AR Calculator'!K13 -> 22.29175857 | X2: ='Simple AR Calculator'!F16 -> 19.82922312
A3: ='Simple AR Calculator'!F7/1000 -> 0.05 | E3: = copy in | G3: ='Simple AR Calculator'!C6 -> Krakauer 5'10" | I3: Ham Rise = | K3: =O23 -> 43.28649245 | L3: =((L2/K3) -1) * 100 -> -0.6618518446 | M3: % reduction | P3: =AE14 -> 44.1855335 | V3: Ko = | W3: ='Simple AR Calculator'!D7 -> 124.6154084
A4: ='Simple AR Calculator'!H7 -> 5.338271605 | B4: =1/A4 -> 0.1873265495 | C4: =50*B4 -> 9.366327475 | K4: =G11 -> 40.50121268 | M4: Hammer shortfall mm | P4: =L2-K4 -> 3.498787324 | V4: Wo = | W4: ='Simple AR Calculator'!E9 -> 94.34922803
A5: ARCS & Standard | I5: 360 | M5: 1.25 | N5: AT | O5: mm | P5: =M5*'Simple AR Calculator'!H8 -> 6.26830016 | V5: Wi = | W5: ='Simple AR Calculator'!D10 -> 64
A6: Key ro | B6: =B17 -> 0.5534256054 | C6: arc L = | D6: =(D13/360) * (6.28 *E10) -> 7.133945492 | E6: Jack Top | G6: =V27*D10*E35 -> 43.85328057 | I6: =B37+I7 -> 55.06173869 | J6: =I5-I6 -> 304.9382613 | O6: mm | P6: =P4+P5 -> 9.767087483 | V6: Sθ = | W6: =(W4 * ((W3 * W1) / W5)) / W2 -> 18.40427877
A7: Whip ro | B7: =D10 -> 1.469494237 | C7: arc L = | D7: =(E13/360) * (6.28 *E10) -> 41.56927883 | E7: Ro | G7: =E36*G8 -> 45.46180786 | H7: per 19.3 | I7: =Generic!H52 -> 36.15020386 | J7: =I5-I7 -> 323.8497961 | K7: Knuckle | M7: ='Simple AR Calculator'!D12 -> 22.29175857 | N7: =P7/Compare!H9 -> 5.220945063 | O7: mm | P7: =K3+P6 -> 52.76393153 | S7: Key Back | T7: arc L = θ / 360 * (2πr) | V7: =(T13/360)*((PI()*2*U10)) -> 4.857156804 | AA7: Hammer | AN7: =AE9 -> 137.4190671
A8: Sk ro | B8: =E35 -> 6.16456825 | C8: arc L = | D8: =(E16/360) * (6.28 *E10) -> 34.43533333 | E8: =G15/G18 -> 1.194736962 | G8: =G15-G18 -> 6.560023659 | H8: net vert | K8: Rest | M8: Ro | N8: AR | P8: =((P7/L2) - 1) * 100 -> 22.70681752 | Q8: % | Y8: mm | AC8: ='Simple AR Calculator'!C11 -> 128
A9: AR prod | B9: =B6*B7*B8 -> 5.0133705 | C9: diff | D9: =D7-D8 -> 7.133945492 | E9: ='Simple AR Calculator'!C9 -> 94 | G9: =(V11*'Simple AR Calculator'!D25) -> 7.126725891 | H9: per ratio | J9: arc | K9: =(J16/360) * (6.28 * M15) -> 125.93461 | M9: =N15/N13 -> 1.383833283 | U9: ='Simple AR Calculator'!C7 -> 115 | W9: =U9/1000 -> 0.115 | AC9: =AE9 -> 137.4190671 | AE9: ='Simple AR Calculator'!D11 -> 137.4190671 | AF9: arc L = θ / 360 * (2πr) | AH9: =(AA20/360) * (6.28 * AE9) -> 44.96004752 | AI9: mm
A10: AR arc | B10: =AH9/AE30 -> 5.079988666 | C10: WipRo = | D10: =D6/S10 -> 1.469494237 | E10: ='Simple AR Calculator'!D9 -> 94 | G10: =G9*E35 -> 43.93318815 | H10: per 21.4 | J10: arc | K10: =(J13/360) * (6.28 * M13) -> 112.2460396 | M10: lift Ro | R10: arc L = | S10: =(T13/360) * (6.28 * U10) -> 4.854694433 | U10: ='Simple AR Calculator'!D7 -> 124.6154084 | W10: =U10/1000 -> 0.1246154084 | AE10: =(AC17*360) /( 6.28*AC9) -> 18.73491274 | AF10: is Sk ang. | AR10: =H33 -> 22.29175857
A11: AR vert | B11: =AE14/AE30 -> 4.992477138 | C11: VertRo = | D11: =G8/V27 -> 1.355107879 | G11: =(G8*B28) / G9 -> 40.50121268 | H11: proportion | J11: diff = | K11: =K9-K10 -> 6.896214822 | M11: =-(O19/O20) * -1 -> 6.519525375 | V11: =W15 -> 4.852238904 | AE11: =(D6*360) / (6.28 * W2) -> 18.34544763 | AF11: is Sk ang. | AR11: =AN7/AR10 -> 6.16456825 | AS11: sk ro
A12: Arc Tvl | B12: =AE30 * B6*B7*B8 -> 43.95544974 | K12: =K9/K10 -> 1.06143838 | AE12: =(AC29 * AC26 / AC9) * B10 -> 18.72948997 | AF12: is (θKey*Ki/So) * DAR
A13: Arc tvl2 | B13: =AH9 -> 44.96004752 | C13: wip ang> | D13: =T29 -> 4.35055627 | E13: =E16+T29 -> 25.35055627 | F13: degrees | J13: =J6 -> 304.9382613 | K13: degrees | M13: =H33 -> 22.29175857 | N13: =O17 -> -13.15 | O13: =M15*K14 -> 12.08437423 | P13: mm initial | T13: ='Simple AR Calculator'!F72 -> 2.233227728 | U13: degrees | AB13: degrees = | AC13: =AE10 -> 18.73491274 | AE13: =AE9*AC14 -> 130.2790798 | AF13: mm shortening
A14: Sk angle | B14: =AE10 -> 18.73491274 | E14: cos = | F14: =COS(RADIANS(E13)) -> 0.9037051086 | G14: =F14*E10 -> 84.9482802 | H14: mm shortening | J14: cos = | K14: =COS(RADIANS(J13)) -> 0.5726934317 | O14: =K15*M15 -> -17.29791604 | P14: mm vertical | T14: cos = | U14: =COS(RADIANS(T13)) -> 0.999240486 | W14: =U10*U14 -> 124.5207612 | X14: mm shortening | AB14: cos = | AC14: =COS(RADIANS(AC13)) -> 0.9470147389 | AE14: =AC15*AE9 -> 44.1855335 | AF14: mm vertical rise
A15: Sk ang2 | B15: ='Simple AR Calculator'!J145 -> 18.41360449 | E15: sine = | F15: =SIN(RADIANS(E13)) -> 0.4281554353 | G15: =F15*E10 -> 40.24661092 | H15: mm vertical | J15: sine = | K15: =SIN(RADIANS(J13)) -> -0.8197696221 | M15: =H33 -> 22.29175857 | N15: =O14 -> -17.29791604 | O15: =O14*M11 -> -112.7742026 | P15: ham rise | T15: sine = | U15: =SIN(RADIANS(T13)) -> 0.0389673084 | W15: =U15*W14 -> 4.852238904 | X15: mm vertical rise | AB15: sine = | AC15: =SIN(RADIANS(AC13)) -> 0.3211901062 | AE15: =AC14*AE9 -> 130.2790798 | AF15: mm horizontal | AQ15: =AN37 -> 17.74140405 | AR15: mm
A16: Verticals | E16: 21 | F16: degrees | J16: =J7 -> 323.8497961 | K16: degrees | O16: =M13*K17 -> 18 | P16: mm lengthening | T16: degrees = | U16: =(S10*360) / (6.28 * U10) -> 2.233227728 | W16: =U10-W14 -> 0.09464714636 | X16: run scrub | AA16: mm vertical rise = | AC16: =AC15*AE9 -> 44.1855335 | AE16: =AE9-AE13 -> 7.289085139 | AF16: run | AN16: =AE9 -> 137.4190671
A17: Key ro | B17: =AB24 -> 0.5534256054 | E17: cos = | F17: =COS(RADIANS(E16)) -> 0.9335804265 | G17: =F17*E10 -> 87.75656009 | H17: mm shortening | J17: cos = | K17: =COS(RADIANS(J16)) -> 0.8074733066 | O17: =K18*M13 -> -13.15 | P17: mm vertical | W17: =W15/W16 -> 51.26661596 | X17: slope | AA17: arc distance = | AC17: =AH9 -> 44.96004752 | AE17: =AE14/AE16 -> 6.061876444 | AF17: slope
A18: Whip ro | B18: =G8/V27 -> 1.355107879 | E18: sine = | F18: =SIN(RADIANS(E16)) -> 0.3583679495 | G18: =F18*E10 -> 33.68658726 | H18: mm vertical | J18: sine = | K18: =SIN(RADIANS(J16)) -> -0.5899041101 | O18: =O17*M11 -> -81.49406719 | P18: =ABS(O15-O18) -> 31.28013538 | W18: =S10-W16 -> 4.760047286 | AE18: for every 6.07 mm or ham rise | AR18: =H34 -> 19.82922312
A19: Sk ro | B19: =E35 -> 6.16456825 | C19: =AC15*M13 -> 6.77741568 | J19: arc L = θ / 360 * (2πr) | O19: =O20*E35 -> 31.28013538 | P19: net ham rise | AE19: there is 1 mm of run | AR19: =AN16/AR18 -> 6.930128643 | AS19: sk ro
A20: Sk ro | B20: =E36 -> 6.930128643 | C20: =AE14/G8 -> 7.285484771 | D20: =AC16 / C19 -> 6.519525375 | F20: Si = | G20: =G8/ SIN(RADIANS(B14)) -> 18.88249983 | H20: =G20* AC15 -> 6.064872124 | J20: =AE10 / 360 *(6.28 * M13) -> 6.896214822 | O20: =ABS(O14-O17) -> 4.797916042 | P20: NET RISE | R20: =AE14/O20 -> 9.209317779 | AA20: =AE10 -> 18.73491274
A21: AR = | B21: =B17*B18*B20 -> 5.197259668 | C21: =B17*B18*C20 -> 5.004059666 | D21: =B17*B18*C20 -> 5.004059666 | F21: Sro = | G21: =AC9 / G20 -> 7.285484771 | O21: =O14/O17 -> 1.383833283 | P21: verticals ro | V21: arc L = θ / 360 * (2πr) | X21: =(T29/360) * (6.28 * U26) -> 4.857154378 | Y21: mm
A22: =AE30 * B17 * B18* B20 -> 45.56772457 | B22: =B21*AE30 -> 45.56772457 | C22: =C21*AE30 -> 44.28804378 | D22: =B13-C22 -> 0.6720037462 | F22: Ham rise> | G22: =G21*G8 -> 44.1855335 | H22: =AE14 -> 44.1855335 | O22: =K11/O20 -> 1.437335452 | P22: knk_arc/net rise | AD22: arc L = θ / 360 * (2πr) | AF22: =(AC29/360) * (6.28 * AC26) -> 8.765418833 | AG22: mm | AQ22: =AP37 -> 13.64953646 | AR22: mm
K23: Knuckle | O23: =O21*P18 -> 43.28649245 | P23: verts ro*net vert ham_rise | T23: ro | AB23: key ro
D24: SHANK RATIO IDENTITIES | K24: Deployed | O24: =(D6*E27) / H33 -> 43.97769388 | P24: jack_arc*sk ro | S24: Wippen | T24: =G8/V27 -> 1.355107879 | AB24: =V11/AE30 -> 0.5534256054
D25: arc L = θ / 360 * (2πr) | F25: =(B37/360) * (6.28 * E27) -> 44.96004752 | G25: mm arc | O25: =(K11*E27) / H33 -> 44.96004752 | P25: knk_arc*sk ro | R25: arc L = | S25: =(T29/360) * (6.28 * U26) -> 4.857154378 | U25: ='Simple AR Calculator'!C10 -> 64
F26: =AE14 -> 44.1855335 | G26: mm vert | O26: =P18/O20 -> 6.519525375 | P26: aka skro / 21.4 | U26: ='Simple AR Calculator'!D10 -> 64 | AC26: ='Simple AR Calculator'!C8 -> 225
E27: ='Simple AR Calculator'!D11 -> 137.4190671 | O27: =G8*C20 -> 44.1855335 | P27: sk ro * jack_vert | V27: =W30 -> 4.840960457
B28: =C28-2 -> 44 | C28: ='Simple AR Calculator'!C15 -> 46
C29: =DEGREES(ATAN(C30)) -> 17.75446625 | D29: degrees | J29: 360 | K29: degrees | N29: =ABS(O33) -> 6.423030757 | O29: =M30*K30 -> 19.82922312 | P29: mm shortening | T29: ='Simple AR Calculator'!C149 -> 4.35055627 | U29: degrees | W29: =U26*U30 -> 63.81558951 | X29: mm shortening | AC29: ='Simple AR Calculator'!F72 -> 2.233227728 | AD29: degs | AE29: =AC26*AC30 -> 224.8291094 | AF29: mm shortening
C30: =B28/E27 -> 0.3201884639 | E30: =B28/E27 -> 0.3201884639 | G30: =B28/D33 -> 0.3384615385 | H30: =DEGREES(ATAN(G30)) -> 18.6989828 | I30: degrees | J30: cos = | K30: =COS(RADIANS(J29)) -> 1 | M30: =H34 -> 19.82922312 | O30: =K31*M30 -> -4.858748413e-15 | P30: mm vertical | T30: cos = | U30: =COS(RADIANS(T29)) -> 0.9971185861 | W30: =U31*W29 -> 4.840960457 | X30: mm vertical rise | AB30: cos = | AC30: =COS(RADIANS(AC29)) -> 0.999240486 | AE30: =AC31*AC26 -> 8.76764439 | AF30: mm vertical rise | AP30: 21.4
D31: degrees | E31: =DEGREES(ASIN(E30)) -> 18.67432276 | J31: sine = | K31: =SIN(RADIANS(J29)) -> -2.45029691e-16 | O31: =O30*E36 -> -3.367175154e-14 | P31: ham rise | T31: sine = | U31: =SIN(RADIANS(T29)) -> 0.07585858712 | W31: =U26-W29 -> 0.1844104892 | X31: run scrub | AB31: sine = | AC31: =SIN(RADIANS(AC29)) -> 0.0389673084 | AE31: =AC26-AE29 -> 0.1708906484 | AF31: capstan scrub run
J32: 341.1 | K32: degrees | O32: =M30*K33 -> 18.76013767 | P32: mm lengthening | T32: Degrees = | U32: =(S25*360) / (6.28 * U26) -> 4.35055627 | W32: =W30/W31 -> 26.25100383 | X32: slope | AB32: Degrees = | AC32: =(AE30*360) / (6.28 * AC26) -> 2.233794749 | AE32: =AE30/AE31 -> 51.30558327 | AF32: slope | AP32: =AR18 -> 19.82922312
D33: 130 | H33: ='Simple AR Calculator'!D12 -> 22.29175857 | I33: mm | J33: cos = | K33: =COS(RADIANS(J32)) -> 0.9460853588 | O33: =K34*M30 -> -6.423030757 | P33: mm vertical | AB33: radians = | AC33: =RADIANS(AC29) -> 0.0389771768
H34: ='Simple AR Calculator'!F16 -> 19.82922312 | I34: mm | J34: sine = | K34: =SIN(RADIANS(J32)) -> -0.3239174182 | O34: =(O33*E36) * -1 -> 44.51242942 | P34: ham rise | AM34: degrees = | AN34: 56 | AP34: 43.5
C35: SkRo @ 21.4 | E35: =E27/H33 -> 6.16456825 | F35: Ro | H35: 21.4 | I35: ? | AM35: sine | AN35: =SIN(RADIANS(AN34)) -> 0.8290375726 | AP35: =SIN(RADIANS(AP34)) -> 0.6883545757
C36: SkRo @ 19.3 | E36: =E27/H34 -> 6.930128643 | F36: Ro | O36: =O33*-1 -> 6.423030757 | P36: NET RISE | AM36: cos | AN36: =COS(RADIANS(AN34)) -> 0.5591929035 | AP36: =COS(RADIANS(AP34)) -> 0.725374371
B37: =AE10 -> 18.73491274 | C37: degrees at AE 10 | AM37: y = | AN37: =AN35*AP30 -> 17.74140405 | AP37: =AP35*AP32 -> 13.64953646
AM38: x = | AN38: =AN36*AP30 -> 11.96672813 | AP38: =AP36*AP32 -> 14.38361025
Z39: 94 | AE39: sine | AF39: cos | AG39: Sine Up | AH39: Cos over | AM39: slope = | AN39: =AN35/AN36 -> 1.482560969 | AP39: =AP35/AP36 -> 0.9489645667
AD40: 21 | AE40: 0.35837 | AF40: 0.93358 | AG40: 33.7 | AH40: 87.8 | AM40: diff y - x = | AN40: =AN37-AP37 -> 4.091867588
E41: 94 | AD41: 21.5 | AE41: 0.3665 | AF41: 0.93042 | AG41: 34.5 | AH41: 87.5 | AM41: ham rise = | AN41: =AN40*AR11 -> 25.22459701 | AP41: =AN40*AR19 -> 28.35716878
AD42: 22 | AE42: 0.37461 | AF42: 0.92718 | AG42: 35.2 | AH42: 87.2
F43: =D60-D57 -> 6.608035777 | G43: mm net rise | AD43: 22.5 | AE43: 0.38268 | AF43: 0.92388 | AG43: 36 | AH43: 86.8
AD44: 23 | AE44: 0.39073 | AF44: 0.9205 | AG44: 36.7 | AH44: 86.5
AD45: 23.5 | AE45: 0.39875 | AF45: 0.91706 | AG45: 37.5 | AH45: 86.2
AD46: 24 | AE46: 0.40674 | AF46: 0.91355 | AG46: 38.2 | AH46: 85.9
M47: 19.1 | AD47: 24.5 | AE47: 0.41469 | AF47: 0.90996 | AG47: 39 | AH47: 85.5
L48: 21.4 | Z48: sine | AA48: =SIN(RADIANS(AD52)) -> 0.7071067812 | AC48: =AA48*Z39 -> 66.46803743 | AD48: 25 | AE48: 0.42262 | AF48: 0.90631 | AG48: 39.7 | AH48: 85.2
I49: =E10 -> 94 | Z49: cos | AA49: =COS(RADIANS(AD52)) -> 0.7071067812 | AC49: =AA49*Z39 -> 66.46803743 | AD49: 30 | AE49: 0.55 | AF49: 0.86603 | AG49: =AG48-AG40 -> 6 | AH49: =AH48-AH40 -> -2.6
AD50: 35 | AE50: 0.57358 | AF50: 0.81915
AD51: 40 | AE51: 0.64279 | AF51: 0.76604
AD52: 45 | AE52: 0.70711 | AF52: 0.70711
N54: arc L = | O54: =(D13/360) * (6.28 *E41) -> 7.133945492
B55: 20 | C55: degrees jack top at rest | I55: INERTIA Torque Rads | O55: INERTIA Torque
B56: cos = | C56: =COS(RADIANS(B55)) -> 0.9396926208 | D56: =C56*I49 -> 88.33110635 | E56: mm horizontal | H56: Rθ = So ang. / Ki ang. | K56: =B14/AC29 -> 9.049750524 | L56: =K56^2 -> 81.89798454 | N56: Rθ = So ang. / Ki ang. | Q56: =B14/AC29 -> 9.049750524 | R56: =Q56^2 -> 81.89798454
B57: sine = | C57: =SIN(RADIANS(B55)) -> 0.3420201433 | D57: =C57*I49 -> 32.14989347 | E57: mm vertical | H57: Rθ = ratio of dip / Ki to x / So | N57: Rθ = ratio of dip / Ki to x / So
B58: =B55+T29 -> 24.35055627 | C58: degrees jack top deployed | H58: where x = (dip * So) / Ki | K58: =(AE30 * AC9) / AC26 -> 5.354851167 | N58: where x = (dip * So) / Ki | Q58: =(AE30 * AC8) / AC26 -> 4.987815475
B59: cos = | C59: =COS(RADIANS(B58)) -> 0.9110398126 | D59: =C59*I49 -> 85.63774238 | E59: mm horizontal | H59: Then: Rθ = (AR * dip) / x | K59: =(B9 * AE30) / K58 -> 8.208528747 | L59: =K59^2 -> 67.37994419 | N59: Then: Rθ = (AR * dip) / x | Q59: =(A4 * AE30) / Q58 -> 9.383680556 | R59: =Q59^2 -> 88.05346077
B60: sine = | C60: =SIN(RADIANS(B58)) -> 0.4123183963 | D60: =C60*I49 -> 38.75792925 | E60: mm vertical | H60: SW_A61 = | K60: =C4 -> 9.366327475 | L60: =1/K59 -> 0.1218245109 | N60: SW_A61 = | Q60: =C4 -> 9.366327475 | R60: =1/Q59 -> 0.1065679926
H61: I_SW = | K61: =K60*(AC9/1000)^2 -> 0.176873728 | N61: I_SW = | Q61: =Q60*(AC9/1000)^2 -> 0.176873728
H62: SW_E44 = | K62: ='Key Leads'!H189 -> 10.4558395 | M62: 8.74 | N62: SW_E44 = | Q62: ='Key Leads'!H189 -> 10.4558395
H63: I_SW = | K63: =K62*(AC9/1000)^2 -> 0.1974480731 | M63: =M62*(AC9/1000)^2 -> 0.16504616 | N63: I_SW = | Q63: =K62*(AC9/1000)^2 -> 0.1974480731
H64: I_sys = | K64: =(K61*L59) * 10 -> 119.1774192 | L64: =('Key Leads'!F60/1000*'Key Leads'!D67^2) * 10000 -> 2.63993 | M64: =(M63*L59) * 10 -> 111.2080105 | N64: I_sys = | Q64: =(Q63*R59) * 10 -> 173.8598616 | R64: =('Key Leads'!F60 / 1000*'Key Leads'!D67^2) * 10000 -> 2.63993
H65: Plus I_ki (motor) | K65: =(AC26/10)^2 * A3 -> 25.3125 | N65: Plus I_ki (motor) | Q65: =(AC26/10)^2 * A3 -> 25.3125
H66: Total I felt at key | K66: =K64+K65 -> 144.4899192 | N66: Total I felt at key | Q66: =Q64+Q65 -> 199.1723616
H67: Force_capstan = | K67: =((K60/1000 * 'Simple AR Calculator'!C26* 'Simple AR Calculator'!C25) ) + 'Key Leads'!F60 / 1000 -> 0.114826087 | N67: Force_capstan = | Q67: =((K60/1000 * 'Simple AR Calculator'!C26* 'Simple AR Calculator'!C25) ) + 'Key Leads'!F60 / 1000 -> 0.114826087
H68: I_capstan = | K68: =(K67 * W10 ^2) -> 0.001783134304 | L68: =K66+L64 -> 147.1298492 | N68: I_capstan = | Q68: =(Q67 * W9 ^2) -> 0.001518575 | R68: =Q66+R64 -> 201.8122916
H69: Torq_o = | I69: =(K64/10000) * K59 -> 0.09782712717 | J69: =K60/50 -> 0.1873265495 | K69: Inertia = | L69: =I69/K59 -> 0.01191774192 | N69: Torq_o = | O69: =(Q64/10000) * Q59 -> 0.1631445403 | P69: =Q60/50 -> 0.1873265495 | Q69: Inertia = | R69: =O69/Q59 -> 0.01738598616
I70: =B4 -> 0.1873265495 | O70: =B4 -> 0.1873265495
B71: =G3 -> Krakauer 5'10" | S71: torque = (moment of inertia)(angular acceleration)
B72: Kodar = | C72: WH * (v * Ss) / (s*rs + v * Ss) | F72: =(C79*(C80*C85)/(C84 * C82 + C80 * C85)) -> 118.0934259 | G72: is Kodar | I72: H | K72: KoDar | L72: ='Simple AR Calculator'!D7 -> 124.6154084 | M72: per sarc
B73: WH = | C73: line from balance hole to wippen center, aka the magic line | J73: ra = Widar | L73: =F72 -> 118.0934259 | M73: per here | S73: τ = Iα
B74: v = | C74: kidar (e.g. 240 mm) | L74: =L72-L73 -> 6.521982481 | M74: mm
B75: Ss = | C75: (profile rise * Wodar) / Widar | F75: =(C81 * C82) / U26 -> 7.160449468 | K75: P | S75: τ = torque, around a defined axis (N∙m)
B76: s = | C76: full dip, inc AT
B77: rs = | C77: Wodar | K77: =C90 ->  | S77: I = moment of inertia (kg∙m2)
N78: v
B79: WH = | C79: =((C83 * C86) / C87) + C83 -> 179 | E79: 206.5 | F79: enter actual when available | K79: =C86 -> 115 | Q79: A | S79: α = angular acceleration (radians/s2)
B80: v = | C80: ='Simple AR Calculator'!D8 -> 225 | I80: C | K80: =C88 -> 179 | M80: W | N80: underside of key | P80: =C80 -> 225
B81: pro_rise = | C81: =S25 -> 4.857154378 | D81: =C81/2 -> 2.428577189
B82: Wod = | C82: ='Simple AR Calculator'!E9 -> 94.34922803
B83: Wid = | C83: ='Simple AR Calculator'!D10 -> 64 | J83: =C79-F72 -> 60.90657412 | K83: is Wid here | M83: =L73/J83 -> 1.938927408 | N83: Ro key out to whip in
B84: s = targ | C84: =AF22 -> 8.765418833 | D84: =Compare!H9 -> 10.0243086 | E84: =C84/2 -> 4.382709417 | J84: =C83-J83 -> 3.093425876 | K84: diff
B85: Ss = | C85: =G9 -> 7.126725891 | D85: =H9 -> per ratio | E85: =C85/2 -> 3.563362945
B86: Kom = | C86: ='Simple AR Calculator'!C7 -> 115 | J86: S S = o/h
B87: Wim = | C87: ='Simple AR Calculator'!C10 -> 64 | J87: sine = | K87: =C90/F72 ->  | L87: per here | N87: tan = | O87: =SQRT(L73^2 - K79^2) -> 26.85250892 | P87: is new cap
B88: CW = | C88: =C86+C87 -> 179 | J88: Ang W = | K88: =DEGREES(ASIN(K87)) ->  | L88: degrees per here
B89: heel ht. = | C89: 22 | F89: heel + cap | G89: =C89+C90 -> 
B90: Cap ht | C90: =Archives!#REF! ->  | J90: sine = | K90: =C90/L72 ->  | L90: per sarc
B91: Cos HCW | C91: =C88/C79 -> 1 | J91: Ang W | K91: =DEGREES(ASIN(K90)) ->  | L91: degrees per sarc
B92: ang. HWC | C92: =DEGREES(ACOS(C91)) -> 0 | D92: degrees | E92: =C92+C93 -> 90
B93: ang. CHW | C93: =90 - C92 -> 90 | D93: degrees | F93: new cap | G93: =O87 -> 26.85250892 | K93: =SQRT(L73^2 - K77^2) -> 
F94: new heel | G94: =G89-G93 ->  | K94: =K79-K93 -> 
B95: Pfieffer | C95: jack top rise | G95: =G93+G94 -> 
B96: Ss = (dip * kod * wod) / (ki * wid)
B97: Ss = | C97: =(C84 * L72 * C82) / (C80 * C83) -> 7.156823001 | D97: mm

Sheet INSTRUCTIONS

Sheet Compare Page Instructions

Sheet DipCalc (hidden)
C3: Carried In Action Ratio | G3: ='Simple AR Calculator'!C47 -> 5.014640128 | H3: ='Simple AR Calculator'!H9 -> 5.014640128 | J3: Aftertouch Chart
J4: mm | K4: Dec. Inch
C5: Dip Target (inc. Aftertouch) | G5: =Compare!F9 -> 10 | J5: 1.25 | K5: 0.04921259843
C6: Aftertouch Target from Main Page | G6: ='Simple AR Calculator'!C22 -> 1.25 | J6: 1.113 | K6: 0.04381889764
C7: Let-off Target from Main Page | G7: ='Simple AR Calculator'!C16 -> 2 | J7: 1 | K7: 0.03937007874
A8: BACK TO MAIN | C8: Hammer Flange Center Height (optional) | G8: 146
C9: String Height from Keybed (optional) | G9: 203 | J9: 1.2 | K9: 0.04724409449
J10: 1.15 | K10: 0.04527559055
J11: 1.1 | K11: 0.04330708661
C12: Computed Key Travel to Pt. Of A'touch | G12: =G5-G6 -> 8.75 | H12: ='Simple AR Calculator'!D47 -> 8.7743086 | I12: =H12+G6 -> 10.0243086 | J12: 1.05 | K12: 0.04133858268
C13: Computed Hammer Trvl. to Pt. of L-O | G13: =G3*H12 -> 44 | H13: =G12*G3 -> 43.87810112 | J13: 0.95 | K13: 0.0374015748
C15: Computed Hammer Bore | G15: =G9-G8 -> 57
C16: Computed Hammer Trvl. to String | G16: =G7+G13 -> 46 | H16: =G7+H13 -> 45.87810112 | J16: ='Simple AR Calculator'!E28 -> 1609706.117 | K16: =(J16*G12) / J17 -> 43.87810112
J17: ='Simple AR Calculator'!E27 -> 321001.3234
G18: =G16 -> 46
G19: =G7 -> 2
D25: Convenience Conversions | K25: Dec. Units | L25: Fractions
C26: Inches to mm --- enter inches --> | G26: =F26*25.4 -> 0 | I26: 1 | J26: 16 | K26: =I26/J26 -> 0.0625 | L26: 1/16"
C27: mm to inches --- enter mm --> | G27: =F27/25.4 -> 0 | I27: 2 | J27: 16 | K27: 0.125 | L27: 1/8"
I28: 3 | J28: 16 | K28: 0.1875 | L28: 3/16"
I29: 4 | J29: 16 | K29: 0.25 | L29: 1/4"
I30: 5 | J30: 16 | K30: 0.3125 | L30: 5/16"
I31: 6 | J31: 16 | K31: 0.375 | L31: 3/8"
I32: 7 | J32: 16 | K32: 0.4375 | L32: 7/16"
I33: 8 | J33: 16 | K33: =I33/J33 -> 0.5 | L33: 1/2"
I34: 9 | J34: 16 | K34: 0.5625 | L34: 9/16"
I35: 10 | J35: 16 | K35: 0.625 | L35: 5/8"
I36: 11 | J36: 16 | K36: 0.6875 | L36: 11/16'
I37: 12 | J37: 16 | K37: 0.75 | L37: 3/4"
I38: 13 | J38: 16 | K38: 0.8125 | L38: 13/16'
I39: 14 | J39: 16 | K39: 0.875 | L39: 7/8"
I40: 15 | J40: 16 | K40: 0.9375 | L40: 15/16"
I41: 16 | J41: 16 | K41: 1 | L41: 1.00"

Sheet Archives
C2: ENTRY AND / OR OUTGOING DATA | F2: Using this page: Read >
A3: Compare Page | C3: Data Entry | D3: Inputs in mm | F3: < Read | G3: Archives Below | J3: INCOMING DATA | M3: Action Geometry Program ver. AGP2023 © Oct 2023 by Nick Gravagne. All rights reserved. Do not copy or distribute without express permission.
C4: Piano Name | D4: Krakauer 5'10" | E4: orig | J4: Krakauer 5'10" | K4: mod | U4: SSBadRick Orig | X4: SSA ca 1916 | AA4: SSD orig | AB4: note 44 | AD4: SSO 215,109 12/2017 | AG4: YC Model mod | AH4: Low Ratio Mdl. Orig | AJ4: SSA Jason 179--- | AM4: SSL 367 ca 1949 | AN4: mod | AP4: SSL 367 ca 1949 | AS4: SSBadRick Orig | AT4: new KB | AV4: Louie B 185644 | AY4: Yamaha Model | BB4: Louie B 185644 | BE4: Bechstein 275 | BQ4: R 220 | BT4: R 220 | BU4: Mod | BW4: SSO 215,109 12/2017 | BZ4: SSBadRick Orig | CA4: New Keyboard | CC4: YC Model mod | CD4: cap chg. | CF4: Steinert C revision 1
C5: Key Output Arm | D5: 112 | J5: 115 | K5: 124.6154084 | U5: 136 | V5: 141.4814475 | X5: 126 | Y5: 131.8976876 | AA5: 156 | AB5: 160.4130917 | AD5: 114 | AE5: 120.8139065 | AG5: 127 | AH5: 132.0037878 | AJ5: 112 | AK5: 120.442891 | AM5: 112 | AN5: 118.2387838 | AP5: 112 | AQ5: 118.2387838 | AS5: 128.5 | AT5: 134.2879369 | AV5: 135 | AW5: 141.9894362 | AY5: 117 | AZ5: 123.3288287 | BB5: 135 | BC5: 141.9894362 | BE5: 146.75 | BF5: 151.8438754 | BQ5: 144 | BR5: 148.8659212 | BT5: 144 | BU5: 148.8659212 | BW5: 113.5 | BX5: 120.3422204 | BZ5: 128.1 | CA5: 133.9052277 | CC5: 130 | CD5: 134.8925498 | CF5: 117.25 | CG5: 124.955202
C6: Key Input Arm | D6: 225 | J6: 225 | K6: 225 | U6: 245 | V6: 245 | X6: 245 | Y6: 245 | AA6: 288 | AB6: 308 | AD6: 240 | AE6: 240 | AG6: 276 | AH6: 276 | AJ6: 236 | AK6: 236 | AM6: 241 | AN6: 241 | AP6: 241 | AQ6: 241 | AS6: 254 | AT6: 254 | AV6: 260 | AW6: 260 | AY6: 246 | AZ6: 246 | BB6: 260 | BC6: 260 | BE6: 290 | BF6: 290 | BQ6: 280 | BR6: 280 | BT6: 280 | BU6: 280 | BW6: 240 | BX6: 240 | BZ6: 254 | CA6: 254 | CC6: 276 | CD6: 276 | CF6: 234.8 | CG6: 234.8
C7: Whippen Output Arm | D7: 94 | J7: 94 | K7: 94 | L7: ='Simple AR Calculator'!E9 -> 94.34922803 | U7: 95.2 | V7: 95.2 | X7: 91 | Y7: 94.24696431 | AA7: 93.9 | AB7: 93.9 | AD7: 94.8 | AE7: 94.8 | AG7: 92 | AH7: 92 | AJ7: 92.3 | AK7: 92.3 | AM7: 92.8 | AN7: 92.8 | AP7: 93.5 | AQ7: 93.5 | AS7: 94.5 | AT7: 94.5 | AV7: 89.5 | AW7: 93.01253903 | AY7: 92 | AZ7: 93.18971992 | BB7: 93 | BC7: 93 | BE7: 95.2 | BF7: 95.2 | BQ7: 92 | BR7: 95.42865993 | BT7: 92 | BU7: 93.21372963 | BW7: 93 | BX7: 93 | BZ7: 94.5 | CA7: 94.5 | CC7: 92 | CD7: 92 | CF7: 95 | CG7: 95
C8: Whippen Input Arm | D8: 67 | J8: 64 | K8: 64 | U8: 68.1 | V8: 68.1 | X8: 60 | Y8: 63.90618123 | AA8: 68 | AB8: 68 | AD8: 65.9 | AE8: 65.9 | AG8: 62 | AH8: 62 | AJ8: 64 | AK8: 64 | AM8: 61 | AN8: 61 | AP8: 61 | AQ8: 61 | AS8: 66.6 | AT8: 66.6 | AV8: 63 | AW8: 67.41661516 | AY8: 60 | AZ8: 63.90618123 | BB8: 67.4 | BC8: 67.4 | BE8: 59.5 | BF8: 59.5 | BQ8: 67 | BR8: 70.21395873 | BT8: 62 | BU8: 65.4599114 | BW8: 62.5 | BX8: 62.5 | BZ8: 67 | CA8: 67 | CC8: 59 | CD8: 59 | CF8: 67.6 | CG8: 67.6
C9: Shank Output Arm | D9: 128 | J9: 128 | K9: 137.4190671 | U9: 130 | V9: 137.5681649 | X9: 130 | Y9: 137.5681649 | AA9: 130 | AB9: 140.014285 | AD9: 130 | AE9: 137.8985134 | AG9: 130 | AH9: 141.9471733 | AJ9: 130 | AK9: 137.8985134 | AM9: 130 | AN9: 138.5784976 | AP9: 130 | AQ9: 138.5784976 | AS9: 130 | AT9: 137.5681649 | AV9: 130 | AW9: 137.5681649 | AY9: 130 | AZ9: 137.5681649 | BB9: 130 | BC9: 137.5681649 | BE9: 128 | BF9: 135.67977 | BQ9: 130 | BR9: 139.2838828 | BT9: 130 | BU9: 139.2838828 | BW9: 130 | BX9: 137.5681649 | BZ9: 130 | CA9: 137.5681649 | CC9: 130 | CD9: 141.9471733 | CF9: 129.2 | CG9: 138.8648624
C10: Shank Input Arm | D10: 18 | J10: 18 | K10: 22.29175857 | U10: 15.5 | V10: 0 | X10: 15.5 | AA10: 16.2 | AB10: 20.52315765 | AD10: 15.5 | AE10: 20.26209515 | AG10: 17 | AH10: 21.56601261 | AJ10: 16.2 | AK10: 20.73363451 | AM10: 16.2 | AN10: 20.77113382 | AP10: 15.5 | AQ10: 20.22992832 | AS10: 16.2 | AT10: 20.77113382 | AV10: 16.2 | AW10: 20.89688972 | AY10: 17 | AZ10: 21.40093456 | BB10: 16.2 | BC10: 20.89688972 | BE10: 17 | BF10: 21.40093456 | BQ10: 17 | BR10: 21.31015016 | BT10: 17 | BU10: 21.31015016 | BW10: 15.5 | BX10: 20.26209515 | BZ10: 16.2 | CA10: 20.77113382 | CC10: 17 | CD10: 21.56601261 | CF10: 16.2 | CG10: 21.11971827
C11: Knuckle Diameter | D11: 10 | J11: 10 | U11: 10 | X11: 9.5 | AA11: 9.6 | AD11: 10 | AG11: 10 | AJ11: 10 | AM11: 10 | AP11: 10 | AS11: 10 | AV11: 10 | AY11: 10 | BB11: 10 | BE11: 10 | BQ11: 9.75 | BT11: 9.75 | BW11: 10 | BZ11: 10 | CC11: 10 | CF11: 10.4
C12: Shank Thickness | D12: 6.3 | J12: 6.3 | U12: 6 | X12: 6 | AA12: 6 | AD12: 6.1 | AG12: 6.54 | AJ12: 5.88 | AM12: 6 | AP12: 6 | AS12: 6 | AV12: 6.4 | AY12: 6 | BB12: 6.4 | BE12: 6 | BQ12: 6.2 | BT12: 6.2 | BW12: 6.1 | BZ12: 6 | CC12: 6.54 | CF12: 6.3
C13: Mfg. Blow Distance | D13: 46 | J13: 46 | U13: 45 | X13: 45 | AA13: 45 | AD13: 45 | AG13: 46 | AJ13: 45 | AM13: 45 | AP13: 45 | AS13: 45 | AV13: 45 | AY13: 47 | BB13: 45 | BE13: 46 | BQ13: 46 | BT13: 46 | BW13: 45 | BZ13: 45 | CC13: 46 | CF13: 45
C14: Let-Off | D14: 2 | J14: 2 | U14: 1.5 | X14: 2 | AA14: 2 | AD14: 1.6 | AG14: 2 | AJ14: 2 | AM14: 2 | AP14: 2 | AS14: 1.5 | AV14: 2 | AY14: 2 | BB14: 2 | BE14: 2 | BQ14: 2 | BT14: 2 | BW14: 1.6 | BZ14: 1.5 | CC14: 2 | CF14: 2
C15: Spread | D15: 114 | J15: 114 | U15: 112.5 | X15: 111 | AA15: 112.5 | AD15: 113 | AG15: 113.5 | AJ15: 111.5 | AM15: 112 | AP15: 112 | AS15: 112.5 | AV15: 112.5 | AY15: 112.5 | BB15: 112.5 | BE15: 115 | BQ15: 115.5 | BT15: 112.5 | BW15: 111 | BZ15: 112.5 | CC15: 113.5 | CF15: 113
C16: Key Length (optional) | D16: 452 | J16: 452 | U16: 520 | X16: 500 | AA16: 420 | AD16: 483 | AG16: 535 | AJ16: 480 | AM16: 515 | AP16: 515 | AS16: 520 | AV16: 515 | AY16: 492 | BB16: 515 | BE16: 482 | BQ16: 541 | BT16: 541 | BW16: 483 | BZ16: 520 | CC16: 535 | CF16: 487.4
C17: Capstan Height | D17: 48 | J17: 48 | U17: 39 | X17: 39 | AA17: 39 | AD17: 40 | AG17: 36 | AJ17: 44.3 | AM17: 37.9 | AP17: 37.9 | AS17: 39 | AV17: 44 | AY17: 39 | BB17: 44 | BE17: 39 | BQ17: 37.75 | BT17: 37.75 | BW17: 40 | BZ17: 39 | CC17: 36 | CF17: 43.2
AA18: 0 | AD18: 0 | AG18: 0 | AJ18: 0 | AM18: 0 | AP18: 0 | BE18: 0 | BQ18: 21 | BT18: 21 | BW18: 0 | CC18: 0 | CF18: 0
C19: Hammer Bore | D19: 50 | J19: 50 | U19: 45 | X19: 45 | AA19: 52 | AD19: 46 | AG19: 57 | AJ19: 46 | AM19: 48 | AP19: 48 | AS19: 45 | AV19: 45 | AY19: 45 | BB19: 45 | BE19: 45 | BQ19: 50 | BT19: 50 | BW19: 45 | BZ19: 45 | CC19: 57 | CF19: 50.9
C20: Aftertouch | D20: 1.25 | J20: 1.25 | U20: 1.25 | X20: 1.25 | AA20: 1.25 | AD20: 1.25 | AG20: 1.25 | AJ20: 1.25 | AM20: 1.25 | AP20: 1.25 | AS20: 1.25 | AV20: 1.25 | AY20: 1.25 | BB20: 1.25 | BE20: 1.25 | BQ20: 1.3 | BT20: 1.3 | BW20: 1.25 | BZ20: 1.25 | CC20: 1.25 | CF20: 1.25
C21: Key Ratio Front | H21: Key Ratio Front | J21: 1.956521739 | K21: 1.805555212
C22: Key Ratio Back | H22: Key Ratio Back | J22: 0.5111111111 | K22: 0.5538462594
C23: Whip ratio | H23: Whip Ratio | J23: 1.46875 | K23: 1.46875
C24: Shank ratio | H24: Shank Ratio | J24: 7.111111111 | K24: 6.16456825
C25: Whip Weight | H25: Whip Weight | J25: 17
C26: DW Target | H26: DW Target | J26: 50
C28: MAR | H28: MAR | J28: 5.338271605
C29: DAR | H29: DAR | J29: 5.014640128
C30: Dip | H30: DIP | J30: 10.0243086
C31: Inertia | H31: Inertia | J31: 211.5563528
C32: Capstan Change | H32: Capstan Change | J32: 3
B38: To copy any data block below, left click in the name-heading box and drag down to capture the entire two column grid of all cells of any color. Right click, then select copy.
C39: Go to top, left grid (Entry and / or Outgoing Data). Right click in Piano Name entry cell, right click and choose paste.
D40: TOP | P40: TOP | Z40: TOP | AK40: TOP | AN40: TOP
C42: Piano Name | G42: Yamaha Model | J42: SSM 1927 mod | M42: SSA ca 1916 | N42: mod | S42: Standard Action | V42: Louie B 185644 | Y42: SSM c1957 | AB42: Yamaha | AE42: SSBadRick Orig | AH42: Louie B 185644 | AK42: M&H AA mod 18905 | AZ42: Bosie D. Skol
C43: Key Output Arm | G43: 119.8 | H43: 125.957334 | J43: 113 | K43: 119.2182872 | M43: 122.8 | N43: 128.8442471 | S43: 122 | T43: 130.3840481 | V43: 133 | W43: 139.5494984 | Y43: 121.9 | Z43: 127.9867571 | AB43: 123 | AC43: 129.034879 | AE43: 134.5 | AF43: 140.0401728 | AH43: 134 | AI43: 140.7302384 | AK43: 121.7 | AL43: 127.7962832 | AZ43: 152 | BA43: 157.6295102
C44: Key Input Arm | G44: 246 | H44: 246 | J44: 238 | K44: 238 | M44: 245 | N44: 245 | S44: 240 | T44: 240 | V44: 260 | W44: 260 | Y44: 240 | Z44: 240 | AB44: 246 | AC44: 246 | AE44: 245 | AF44: 245 | AH44: 260 | AI44: 260 | AK44: 232 | AL44: 232 | AZ44: 308 | BA44: 308
C45: Whippen Output Arm | G45: 92.9 | H45: 92.9 | J45: 93.4 | K45: 93.4 | M45: 89.5 | N45: 89.5 | S45: 93.5 | T45: 93.5 | V45: 93.6 | W45: 93.6 | Y45: 93.5 | Z45: 93.5 | AB45: 94.2 | AC45: 94.2 | AE45: 95.2 | AF45: 95.2 | AH45: 93.6 | AI45: 93.6 | AK45: 93.6 | AL45: 93.6 | AZ45: 89.3 | BA45: 89.3
C46: Whippen Input Arm | G46: 62.2 | H46: 62.2 | J46: 63 | K46: 63 | M46: 63.2 | N46: 63.2 | S46: 66.3 | T46: 66.3 | V46: 69.6 | W46: 69.6 | Y46: 64.8 | Z46: 64.8 | AB46: 64.8 | AC46: 64.8 | AE46: 66.3 | AF46: 66.3 | AH46: 67.1 | AI46: 67.1 | AK46: 66.7 | AL46: 66.7 | AZ46: 62.63 | BA46: 62.63
C47: Shank Output Arm | G47: 130 | H47: 138.9280389 | J47: 130 | K47: 137.5681649 | M47: 130 | N47: 137.5681649 | S47: 130 | T47: 137.5681649 | V47: 131 | W47: 139.1761474 | Y47: 130 | Z47: 137.5681649 | AB47: 130 | AC47: 137.5681649 | AE47: 130 | AF47: 137.5681649 | AH47: 130 | AI47: 137.2443077 | AK47: 127 | AL47: 135.7681848 | AZ47: 130 | BA47: 138.7874634
C48: Shank Input Arm | G48: 17 | H48: 21.14546346 | J48: 16.2 | K48: 20.77113382 | M48: 17 | N48: 21.10094785 | S48: 17 | T48: 21.40093456 | V48: 16.2 | W48: 20.78365704 | Y48: 16.2 | Z48: 20.46191584 | AB48: 17 | AC48: 21.40093456 | AE48: 15.5 | AF48: 20.22992832 | AH48: 16.2 | AI48: 20.78365704 | AK48: 17 | AL48: 21.40093456 | AZ48: 17 | BA48: 19.94193133
C49: Knuck Diameter | G49: 10 | J49: 10 | M49: 9.5 | S49: 10 | V49: 10 | Y49: 9.5 | AB49: 10 | AE49: 10 | AH49: 10 | AK49: 10 | AZ49: 8
C50: Shank Thickness | G50: 5.15 | J50: 6 | M50: 6 | S50: 6 | V50: 6.04 | Y50: 6 | AB50: 6 | AE50: 6 | AH50: 6.04 | AK50: 6 | AZ50: 4.85
C51: Blow Distance | G51: 46 | J51: 45 | M51: 45 | S51: 45 | V51: 45 | Y51: 45 | AB51: 46 | AE51: 45 | AH51: 45 | AK51: 47 | AZ51: 46
C52: Let-Off | G52: 2 | J52: 2 | M52: 2 | S52: 2 | V52: 2 | Y52: 2 | AB52: 2 | AE52: 1.5 | AH52: 2 | AK52: 2 | AZ52: 2
C53: Spread | G53: 112.5 | J53: 112 | M53: 111 | S53: 113 | V53: 112.5 | Y53: 112 | AB53: 113.5 | AE53: 112.5 | AH53: 112.5 | AK53: 113 | AZ53: 112.5
C54: Key Length (optional) | G54: 492 | J54: 482 | M54: 500 | S54: 515 | V54: 515 | Y54: 485 | AB54: 492 | AE54: 520 | AH54: 515 | AK54: 482 | AZ54: 582.2
C55: Capstan Height | G55: 38.9 | J55: 38 | M55: 39 | S55: 46 | V55: 42.25 | Y55: 39 | AB55: 39 | AE55: 39 | AH55: 43 | AK55: 39 | AZ55: 41.75
C56: Whippen Heel Height
C57: Hammer Bore | G57: 49 | J57: 45 | M57: 45 | S57: 45 | V57: 47 | Y57: 45 | AB57: 45 | AE57: 45 | AH57: 44 | AK57: 48 | AZ57: 48.6
C58: Aftertouch | G58: 1.25 | J58: 1.25 | M58: 1.25 | S58: 1.25 | V58: 1.25 | Y58: 1.25 | AB58: 1.25 | AE58: 1.25 | AH58: 1.25 | AK58: 1.25 | AZ58: 1.25
C59: Key Ratio Front | M59: 1.995114007 | N59: 1.901520678
C60: Key Ratio Back | M60: 0.5012244898 | N60: 0.525894886
C61: Whip ratio | M61: 1.416139241 | N61: 1.416139241
C62: Shank ratio | M62: 7.647058824 | N62: 6.519525375
C63: Whip Weight | M63: 17
C64: DW Target | M64: 50
C66: MAR | M66: 5.427910405
C67: DAR | M67: 4.855353834
C68: Dip | M68: 10.10620317
C69: Inertia | M69: 217.7569248
C70: Capstan Change | M70: 0
D73: TOP | P73: TOP | Z73: TOP
C75: Piano Name | D75: Yamaha Model | G75: Krakauer 5'10" | H75: orig | J75: Krakauer 5'10" | K75: mod | M75: SSA1 60402 mod | P75: Scott SSL | S75: SSB-VB | V75: SSB-VB | W75: mod | Y75: Bechstein | AB75: SSA1 59673 mod | AK75: SSO Asu 186339 Orig
C76: Key Output Arm | D76: 117 | E76: 123.3288287 | G76: 112 | H76: 121.8523697 | J76: 115 | K76: 124.6154084 | M76: 120 | N76: 126.0860421 | P76: 114 | Q76: 120.1665511 | S76: 130 | T76: 135.4400236 | V76: 130 | W76: 135.4400236 | Y76: 143.75 | Z76: 148.9465089 | AB76: 120 | AC76: 125.9942856 | AK76: 116.86 | AL76: 122.8831136
C77: Key Input Arm | D77: 246 | E77: 246 | G77: 225 | H77: 225 | J77: 225 | K77: 225 | M77: 230 | N77: 230 | P77: 237 | Q77: 237 | S77: 245 | T77: 245 | V77: 245 | W77: 245 | Y77: 290 | Z77: 290 | AB77: 230 | AC77: 230 | AK77: 236 | AL77: 236
C78: Whippen Output Arm | D78: 93.2 | E78: 93.2 | G78: 94 | H78: 94 | J78: 94 | K78: 94 | M78: 91.7 | N78: 91.7 | P78: 94.4 | Q78: 94.4 | S78: 92.8 | T78: 92.8 | V78: 92.8 | W78: 92.82675059 | Y78: 95.2 | Z78: 95.2 | AB78: 94.1 | AC78: 94.1 | AK78: 93.9 | AL78: 93.9
C79: Whippen Input Arm | D79: 63.9 | E79: 63.9 | G79: 67 | H79: 67 | J79: 64 | K79: 64 | M79: 66.5 | N79: 66.5 | P79: 66.7 | Q79: 66.7 | S79: 65.8 | T79: 65.8 | V79: 65.8 | W79: 65.78753681 | Y79: 62.3 | Z79: 62.3 | AB79: 68.1 | AC79: 68.1 | AK79: 65.9 | AL79: 65.9
C80: Shank Output Arm | D80: 130 | E80: 137.5681649 | G80: 128 | H80: 137.4190671 | J80: 128 | K80: 137.4190671 | M80: 129 | N80: 136.2330356 | P80: 130 | Q80: 137.5681649 | S80: 127 | T80: 134.7367804 | V80: 127 | W80: 134.7367804 | Y80: 128 | Z80: 135.67977 | AB80: 128 | AC80: 135.2865108 | AK80: 130 | AL80: 137.5681649
C81: Shank Input Arm | D81: 17 | E81: 21.40093456 | G81: 18 | H81: 22.29175857 | J81: 18 | K81: 22.29175857 | M81: 16.2 | N81: 20.89688972 | P81: 16.2 | Q81: 20.77113382 | S81: 17 | T81: 21.50768758 | V81: 17 | W81: 21.50768758 | Y81: 17 | Z81: 21.40093456 | AB81: 16.2 | AC81: 20.52315765 | AK81: 16.2 | AL81: 20.84330168
C82: Knuck Diameter | D82: 10 | G82: 10 | J82: 10 | M82: 10.1 | P82: 10 | S82: 10 | V82: 10 | Y82: 10 | AB82: 9.5 | AK82: 10
C83: Shank Thickness | D83: 6 | G83: 6.3 | J83: 6.3 | M83: 6.2 | P83: 6 | S83: 6.35 | V83: 6.35 | Y83: 6 | AB83: 6.2 | AK83: 6.23
C84: Blow Distance | D84: 47 | G84: 46 | J84: 46 | M84: 45 | P84: 45 | S84: 45 | V84: 45 | Y84: 46 | AB84: 45 | AK84: 45
C85: Let-Off | D85: 2 | G85: 2 | J85: 2 | M85: 2 | P85: 2 | S85: 2 | V85: 2 | Y85: 2 | AB85: 2 | AK85: 2
C86: Spread | D86: 112.5 | G86: 114 | J86: 114 | M86: 112.5 | P86: 113 | S86: 112.5 | V86: 112.5 | Y86: 115 | AB86: 112.5 | AK86: 112.85
C87: Key Length (optional) | D87: 492 | G87: 452 | J87: 452 | M87: 541 | P87: 485 | S87: 515 | V87: 515 | Y87: 482 | AB87: 541 | AK87: 500
C88: Capstan Height | D88: 39 | G88: 48 | J88: 48 | M88: 38.7 | P88: 38 | S88: 38 | V88: 38 | Y88: 39 | AB88: 38.4 | AK88: 38
S89: 0 | Y89: 0 | AK89: 0
C90: Hammer Bore | D90: 45 | G90: 50 | J90: 50 | M90: 43.8 | P90: 45 | S90: 45 | V90: 45 | Y90: 45 | AB90: 43.8 | AK90: 45
C91: Aftertouch | D91: 1.25 | G91: 1.25 | J91: 1.25 | M91: 1.25 | P91: 1.25 | S91: 1.25 | V91: 1.25 | Y91: 1.25 | AB91: 1.25 | AK91: 1.25
C92: Key Ratio Front | G92: 2.008928571 | H92: 1.846496712 | J92: 1.956521739 | K92: 1.805555212
C93: Key Ratio Back | G93: 0.4977777778 | H93: 0.5415660875 | J93: 0.5111111111 | K93: 0.5538462594
C94: Whip ratio | G94: 1.402985075 | H94: 1.402985075 | J94: 1.46875 | K94: 1.46875
C95: Shank ratio | G95: 7.111111111 | H95: 6.16456825 | J95: 7.111111111 | K95: 6.16456825
C96: Whip Weight | G96: 17 | J96: 17
C97: DW Target | G97: 50 | J97: 50
C99: MAR | G99: 4.966220748 | J99: 5.338271605
C100: DAR | G100: 4.683895286 | J100: 5.014640128
C101: Dip | G101: 10.64389062 | J101: 10.0243086
C102: Inertia | G102: 211.9338898 | J102: 211.5563528
C103: Capstan Change | G103: 0 | J103: 3
D108: TOP | P108: TOP | X108: TOP
C110: Piano Name | D110: SSA1 60402 orig | E110: hank lea | G110: SSA1 59673 orig | H110: hank lea | J110: SSB Teflon | M110: SSB Teflon | N110: mod | S110: SSD Orig | V110: SSD Orig Mod | AB110: SSO 106…JS | AE110: M&H AA.orig.18905 | AH110: Petrov | AK110: Petrov | AL110: mod
C111: Key Output Arm | D111: 120 | E111: 126.0860421 | G111: 120 | H111: 125.9942856 | J111: 133.9 | K111: 139.1876791 | M111: 134.9 | N111: 140.1499554 | S111: 171 | T111: 175.1713447 | V111: 169 | W111: 173.2195139 | AB111: 108 | AC111: 114.4901743 | AE111: 124.7 | AF111: 130.3613823 | AH111: 118 | AI111: 123.9677377 | AK111: 119.5 | AL111: 125.3963716
C112: Key Input Arm | D112: 230 | E112: 230 | G112: 230 | H112: 230 | J112: 262 | K112: 262 | M112: 262 | N112: 262 | S112: 324 | T112: 324 | V112: 324 | W112: 324 | AB112: 237 | AC112: 237 | AE112: 232 | AF112: 232 | AH112: 234 | AI112: 234 | AK112: 234 | AL112: 234
C113: Whippen Output Arm | D113: 92.4 | E113: 92.4 | G113: 94.5 | H113: 94.5 | J113: 94.6 | K113: 94.6 | M113: 94.6 | N113: 94.6 | S113: 93.9 | T113: 93.9 | V113: 93.4 | W113: 93.4 | AB113: 93 | AC113: 93 | AE113: 94.6 | AF113: 94.6 | AH113: 93.5 | AI113: 93.5 | AK113: 93.5 | AL113: 93.5
C114: Whippen Input Arm | D114: 66.5 | E114: 66.5 | G114: 68.1 | H114: 68.1 | J114: 67.8 | K114: 67.8 | M114: 66.8 | N114: 66.8 | S114: 66.7 | T114: 66.7 | V114: 68.6 | W114: 68.6 | AB114: 65.8 | AC114: 65.8 | AE114: 64.8 | AF114: 64.8 | AH114: 65.8 | AI114: 65.8 | AK114: 64.3 | AL114: 64.3
C115: Shank Output Arm | D115: 129 | E115: 136.2330356 | G115: 128 | H115: 135.2865108 | J115: 130 | K115: 137.5681649 | M115: 130 | N115: 137.5681649 | S115: 130 | T115: 140.014285 | V115: 130 | W115: 140.014285 | AB115: 130 | AC115: 137.5681649 | AE115: 127.3 | AF115: 135.0195912 | AH115: 130 | AI115: 137.5681649 | AK115: 130 | AL115: 137.5681649
C116: Shank Input Arm | D116: 15.5 | E116: 20.35902748 | G116: 16 | H116: 20.36565737 | J116: 17 | K116: 21.10094785 | M116: 17 | N116: 21.10094785 | S116: 16.2 | T116: 20.52315765 | V116: 17 | W116: 21.16034026 | AB116: 17 | AC116: 21.40093456 | AE116: 17.3 | AF116: 21.16908123 | AH116: 17 | AI116: 21.40093456 | AK116: 17 | AL116: 21.40093456
C117: Knuck Diameter | D117: 10.1 | G117: 9.5 | J117: 9.5 | M117: 9.5 | S117: 9.6 | V117: 9.6 | AB117: 10 | AE117: 9.17 | AH117: 10 | AK117: 10
C118: Shank Thickness | D118: 6.2 | G118: 6.2 | J118: 6 | M118: 6 | S118: 6 | V118: 6 | AB118: 6 | AE118: 6.06 | AH118: 6 | AK118: 6
C119: Blow Distance | D119: 45 | G119: 45 | J119: 45 | M119: 45 | S119: 45 | V119: 45 | AB119: 44.9667646 | AE119: 47 | AH119: 46 | AK119: 46
C120: Let-Off | D120: 2 | G120: 2 | J120: 2 | M120: 2 | S120: 2 | V120: 2 | AB120: 2 | AE120: 2 | AH120: 2 | AK120: 2
C121: Spread | D121: 112.5 | G121: 112.5 | J121: 114 | M121: 114 | S121: 112.5 | V121: 112.5 | AB121: 112 | AE121: 113.7 | AH121: 113 | AK121: 113
C122: Key Length (optional) | D122: 541 | G122: 541 | J122: 520 | M122: 520 | S122: 515 | V122: 515 | AB122: 482 | AE122: 482 | AH122: 485 | AK122: 485
C123: Capstan Height | D123: 38.7 | G123: 38.4 | J123: 38 | M123: 38 | S123: 38 | V123: 38 | AB123: 38 | AE123: 38 | AH123: 38 | AK123: 38
C124: Whippen Heel Height
C125: Hammer Bore | D125: 43.8 | G125: 43.8 | J125: 45 | M125: 45 | S125: 52 | V125: 52 | AB125: 45 | AE125: 45 | AH125: 45 | AK125: 45
C126: Aftertouch | D126: 1.25 | G126: 1.25 | J126: 1.25 | M126: 1.25 | S126: 1.25 | V126: 1.25 | AB126: 1.25 | AE126: 1.25 | AH126: 1.25 | AK126: 1.25
C127: Key Ratio Front
C128: Key Ratio Back
C129: Whip ratio
C130: Shank ratio
C131: Whip Weight
C132: DW Target
C134: MAR
C135: DAR
C136: Dip
C137: Inertia
C138: Capstan Change
D142: TOP | P142: TOP | X142: TOP | AI142: TOP
C144: Piano Name | D144: SSB David Orig | G144: SSB David Mod. | M144: SSO 106529 Az | P144: SSO 106529 Az mod | V144: Baldwin M W.T. | Y144: Baldwin M Tru orig | AB144: M&H AA mod 18905 | AE144: SSO 106529 Az mod | AH144: M&H AA JS
C145: Key Output Arm | D145: 135 | E145: 140.2462121 | G145: 133 | H145: =SQRT(G157^2 + G145^2) -> 138.3220879 | M145: 108 | N145: 114.8259553 | P145: 110.3 | Q145: 127.7962832 | V145: 114 | W145: 120.4865138 | Y145: 125 | Z145: =SQRT(Y157^2 + Y145^2) -> 130.9427356 | AB145: 121.7 | AC145: 127.7962832 | AE145: 108 | AF145: 114.8259553 | AH145: 123 | AI145: 129.034879
C146: Key Input Arm | D146: 260 | E146: 260 | G146: 260 | H146: =G146 -> 260 | M146: 237 | N146: 237 | P146: 237 | Q146: 232 | V146: 228 | W146: 228 | Y146: 250 | Z146: =Y146 -> 250 | AB146: 232 | AC146: 232 | AE146: 237 | AF146: 237 | AH146: 231 | AI146: 231
C147: Whippen Output Arm | D147: 92.6 | E147: 92.56136459 | G147: 92 | H147: =I147 -> 0 | M147: 92.3 | N147: 92.99449842 | P147: 93.1 | Q147: 93.57263734 | V147: 92 | W147: 93.40016551 | Y147: 93 | Z147: =AA147 -> 0 | AB147: 92.15494334 | AC147: 93.57263734 | AE147: 92.3 | AF147: 92.99449842 | AH147: 93 | AI147: 94.02588486
C148: Whippen Input Arm | D148: 65.8 | E148: 65.78753681 | G148: 64 | H148: =SQRT(G158^2 + G148^2) -> 67.67569726 | M148: 62 | N148: 65.78753681 | P148: 59.7 | Q148: 66.73080248 | V148: 65 | W148: 68.62215386 | Y148: 63 | Z148: =SQRT(Y158^2 + Y148^2) -> 66.73080248 | AB148: 63 | AC148: 66.73080248 | AE148: 62 | AF148: 65.78753681 | AH148: 63 | AI148: 66.73080248
C149: Shank Output Arm | D149: 130 | E149: 137.5681649 | G149: 130 | H149: =SQRT(G159^2 + G149^2) -> 137.5681649 | M149: 130 | N149: 138.5784976 | P149: 130 | Q149: 135.7681848 | V149: 130 | W149: 138.5784976 | Y149: 141.4 | Z149: =SQRT(Y159^2 + Y149^2) -> 149.3250146 | AB149: 127 | AC149: 135.7681848 | AE149: 130 | AF149: 138.5784976 | AH149: 127 | AI149: 135.7681848
C150: Shank Input Arm | D150: 17 | E150: 21.58448517 | G150: 17 | M150: 17 | P150: 16.2 | V150: 17 | Y150: 17 | AB150: 17 | AE150: 17 | AH150: 17.75
C151: Knuck Diameter | D151: 10 | G151: 10 | H151: capstan -2 | M151: 10 | P151: 10 | V151: 9.4 | Y151: 10.6 | AB151: 10 | AE151: 10 | AH151: 10 | AI151: NOTES: dims at note 1
C152: Shank Thickness | D152: 6.6 | G152: 6.6 | M152: 6.2 | P152: 6.2 | V152: 6.65 | Y152: 6.65 | AB152: 6 | AE152: 6.2 | AH152: 6.35
C153: Blow Distance | D153: 45 | G153: 45 | M153: 44.5 | P153: 44.5 | V153: 47.6 | Y153: 47.6 | AB153: 45 | AE153: 44.5 | AH153: 47.83004537
C154: Let-Off | D154: 2 | G154: 2 | M154: 2 | P154: 2 | V154: 1.6 | Y154: 1.6 | AB154: 2 | AE154: 2 | AH154: 1.6
C155: Spread | D155: 111.5 | G155: 111.5 | M155: 112 | P155: 112 | V155: 112.75 | Y155: 112.3 | AB155: 113 | AE155: 112 | AH155: 114
C156: Key Length (optional) | D156: 515 | G156: 515 | M156: 482 | P156: 482 | V156: 515 | Y156: 515 | AB156: 482 | AE156: 482 | AH156: 482
C157: Capstan Height | D157: 38 | G157: 38 | M157: 39 | P157: 39 | V157: 39 | Y157: 39 | AB157: 39 | AE157: 39 | AH157: 39
C158: Whippen Heel Height | D158: 22 | G158: 22 | M158: 22 | P158: 22 | V158: 22 | Y158: 22 | AB158: 22 | AE158: 22 | AH158: 22
C159: Hammer Bore | D159: 45 | G159: 45 | M159: 48 | P159: 48 | V159: 48 | Y159: 48 | AB159: 48 | AE159: 48 | AH159: 48
C160: Aftertouch | D160: 1.25 | G160: 1.25 | M160: 1.25 | P160: 1.25 | V160: 1.25 | Y160: 1.25 | AB160: 1.25 | AE160: 1.25 | AH160: 1.25
C161: Key Ratio Front
C162: Key Ratio Back
C163: Whip ratio
C164: Shank ratio
C165: Whip Weight
C166: DW Target
C168: MAR
C169: DAR
C170: Dip
C171: Inertia
C172: Capstan Change
D176: TOP | P176: TOP | AI176: TOP
C178: Piano Name | D178: M&H AA JS | M178: M. I. | P178: SSL 367,119
C179: Key Output Arm | D179: 123 | E179: 129.034879 | M179: 115 | N179: =SQRT(M191^2 + M179^2) -> 121.4331092 | P179: 113 | Q179: 121.2424167
C180: Key Input Arm | D180: 231 | E180: 231 | M180: 250 | N180: =M180 -> 250 | P180: 239 | Q180: 239
C181: Whippen Output Arm | D181: 91.79350085 | E181: 93.45512665 | M181: 94.15 | N181: =O181 -> 0 | P181: 93 | Q181: 93.86975846
C182: Whippen Input Arm | D182: 61.79350085 | E182: 65.59296263 | M182: 57 | N182: =SQRT(M192^2 + M182^2) -> 61.09828148 | P182: 60 | Q182: 62.64183905
C183: Shank Output Arm | D183: 127 | E183: 135.7681848 | M183: 130 | N183: =SQRT(M193^2 + M183^2) -> 140.014285 | P183: 130 | Q183: 138.5784976
C184: Shank Input Arm | D184: 17 | M184: 16.2 | P184: 16
C185: Knuck Diameter | D185: 10 | M185: 10 | N185: change to 16.2 k and +2 to cap | P185: 10 | Q185: new shanks and Abel hammers
C186: Shank Thickness | D186: 6 | M186: 6 | P186: 6
C187: Blow Distance | D187: 47.83004537 | M187: 47 | P187: 44.5
C188: Let-Off | D188: 1.6 | M188: 2 | P188: 2
C189: Spread | D189: 113 | M189: 113.5 | P189: 112
C190: Key Length (optional) | D190: 482 | M190: 515 | P190: 492
C191: Capstan Height | D191: 39 | M191: 39 | P191: 43.94
C192: Whippen Heel Height | D192: 22 | M192: 22 | P192: 18
C193: Hammer Bore | D193: 48 | M193: 52 | P193: 48
C194: Aftertouch | D194: 1.25 | M194: 1.25 | P194: 1.25
C195: Key Ratio Front
C196: Key Ratio Back
C197: Whip ratio
C198: Shank ratio
C199: Whip Weight
C200: DW Target
C202: MAR
C203: DAR
C204: Dip
C205: Inertia
C206: Capstan Change
C212: Stuff below is interesting, but you don't need to use it.
B215: Number | D215: TOP | P215: TOP | Y215: TOP | AD215: TOP
C217: MEASURE WHIPPEN HEEL HEIGHT --- ONE SIMPLE MEASUREMENT
E220: =C239 -> 
D223: 61
D224: 130
E226: =C240 -> 
C238: =#REF! ->  | D238: Whippen Heel Height here
C239: =#REF! ->  | D239: is carried in from Main Form
C240: =SQRT(C238^2 + C239^2) ->  | D240: is Whippen Input Distance Radial Arm
C245: MEASURE CAPSTAN-KEY HEIGHT --- ONE SIMPLE MEASUREMENT
L246: `
G253: =C266 -> 
D254: =C264 -> 
G259: =C265 -> 
C264: =#REF! ->  | D264: Height of Capstan Screw
C265: =#REF! ->  | D265: is carried in from Main Form
C266: =SQRT(C264^2 + C265^2) ->  | D266: is Key Out Distance Radial Arm
C270: MEASURE HAMMER BORE --- ONE SIMPLE MEASUREMENT
D281: =C297 ->  | H281: =C305 -> 
I292: =C298 -> 
C297: =#REF! ->  | D297: Hammer Bore Dimension
C298: =#REF! ->  | D298: is carried in from Main Form
... 6 more rows

Sheet Compare
B1: Click for Instructions for this Page
B3: ='Simple AR Calculator'!C6 -> Krakauer 5'10" | H3: Read Why You Are Here --->>>
L4: ='Simple AR Calculator'!H7 -> 5.338271605
B5: Piano Size | C5: = Large Grands to Medium Large | G5: =((H5/F6)-1) *100 -> -0.2770429145 | H5: ='Simple AR Calculator'!H8 -> 5.014640128 | I5: Action Ratio per your measurements | S5: =H9 -> 10.0243086 | T5: mm
A6: ='Simple AR Calculator'!C16 -> 2 | B6: Nominal Action Ratio per Mfg. Specs | F6: =(F8-A6)/(F9-A7) -> 5.028571429 | G6: =((H6/F6)-1) *100 -> -0.2770429145 | H6: ='Simple AR Calculator'!H9 -> 5.014640128 | I6: AR per Comp. Blow and Comp. Dip below
A7: ='Simple AR Calculator'!C22 -> 1.25 | B7: This is what you want | I7: This is what you have
A8: ='Simple AR Calculator'!F47 -> 9.173140809 | B8: Blow Distance per Mfg. spec | E8: =F8/25.4 -> 1.811023622 | F8: =Archives!D13 -> 46 | G8: ` | H8: =M8 -> 45.87810112 | I8: Computed Total Blow Distance | M8: =DipCalc!H16 -> 45.87810112 | P8: =H12 -> 18
A9: =F9-A7 -> 8.75 | B9: Dip -- target dip you prefer | E9: =F9/25.4 -> 0.3937007874 | F9: 10 | H9: ='Simple AR Calculator'!H47 -> 10.0243086 | I9: Total dip req'd to meet Mfg. Blow spec.
A10: ='Simple AR Calculator'!C7 -> 115 | B10: Piano Size | C10: 0.93 | H10: =DipCalc!G13 -> 44
A11: ='Simple AR Calculator'!C8 -> 225 | B11: Enter a trial knuckle dimension change >> | H11: The items under consideration are below.
A12: ='Simple AR Calculator'!D25 -> 1.46875 | H12: ='Simple AR Calculator'!C12 -> 18 | I12: Knuckle dimension mm | O12: MOVE CAPSTAN
A13: ='Simple AR Calculator'!D26 -> 6.16456825 | B13: Enter capstan change trial >> | E13: =(F8-M8) - 0.3 -> -0.1781011176 | F13: 3 | G13: =IF(E13<>E29,E29,E13) -> -1.363636364 | H13: ='Simple AR Calculator'!C23 -> 1.956521739 | I13: Key Ratio | K13: =1/H13 -> 0.5111111111 | O13: <<plus<< | P13: =F13 -> 3 | Q13: >>minus>>
H14: ='Key Leads'!I185 -> 9.217160037 | I14: Hammer weight grams @ note C40
F15: Hammers Page | H15: =Archives!D15 -> 114 | I15: Action Spread
B16: Try a 2 to 1 Key Ratio | F16: Archives
N19: Archives
B20: Comp_Res
N22: THEORETICAL MAXIMUM HAMMER WEIGHTS FOR THIS ACTION
N23: Note # to Hammer Weight Summary for Action | S23: =B3 -> Krakauer 5'10"
B24: WRW -> | C24: 17 | E24: ='What If...'!G66 -> 113.3333333 | F24: if 2 to 1 | K24: DW C40 | L24: ='Key Leads'!F189 -> 50 | N24: Note -->> | O24: A 1 | P24: E 20 | Q24: A# 26 | R24: B 27 | S24: C 40 | T24: A 49 | U24: A 61 | V24: C 88 | W24: Inert. Avg
E25: =Archives!D5 -> 112 | F25: original | N25: Ham gms | O25: ='Key Leads'!D140 -> 11.74775439 | P25: ='Key Leads'!E140 -> 10.70678076 | Q25: ='Key Leads'!F140 -> 10.20586957 | R25: ='Key Leads'!G140 -> 10.15360546 | S25: ='Key Leads'!H140 -> 9.217160037 | T25: ='Key Leads'!I140 -> 8.4026642 | U25: ='Key Leads'!J140 -> 7.239740981 | V25: ='Key Leads'!K140 -> 4.073360315 | W25: ='Key Leads'!L140 -> 127.6438041
E26: ='What If...'!H19 -> 115 | F26: your final
H27: ='What If...'!K66 -> 226.6666667 | I27: if 2 to 1
E28: =H29/1.98 -> 113.6363636 | H28: =Archives!D6 -> 225 | I28: original
E29: =E28-E26 -> -1.363636364 | H29: ='Simple AR Calculator'!D8 -> 225 | I29: your final
O31: Changes (if any) made here on the Compare Page | R31: Original Input Data from the Archives Page
O34: MAR | P34: DAR | R34: MAR | S34: DAR
O35: =B3 -> Krakauer 5'10" | R35: =O35 -> Krakauer 5'10" | Y35: =O35 -> Krakauer 5'10"
N36: ='Simple AR Calculator'!B7 -> Key Out | O36: ='Simple AR Calculator'!C7 -> 115 | P36: ='Simple AR Calculator'!D7 -> 124.6154084 | R36: =Archives!D5 -> 112 | S36: =Archives!E5 -> 0 | Y36: 115 | Z36: =P36 -> 124.6154084
N37: ='Simple AR Calculator'!B8 -> Key In | O37: ='Simple AR Calculator'!C8 -> 225 | P37: ='Simple AR Calculator'!D8 -> 225 | R37: =Archives!D6 -> 225 | S37: =Archives!E6 -> 0 | Y37: 225 | Z37: 225
N38: ='Simple AR Calculator'!B9 -> Whip_out | O38: ='Simple AR Calculator'!C9 -> 94 | P38: ='Simple AR Calculator'!D9 -> 94 | R38: =Archives!D7 -> 94 | S38: =Archives!E7 -> 0 | Y38: 94 | Z38: 94
N39: ='Simple AR Calculator'!B10 -> Whip_in | O39: ='Simple AR Calculator'!C10 -> 64 | P39: ='Simple AR Calculator'!D10 -> 64 | R39: =Archives!D8 -> 67 | S39: =Archives!E8 -> 0 | Y39: 64 | Z39: 64
N40: ='Simple AR Calculator'!B11 -> Shank_out | O40: ='Simple AR Calculator'!C11 -> 128 | P40: ='Simple AR Calculator'!D11 -> 137.4190671 | R40: =Archives!D9 -> 128 | S40: =Archives!E9 -> 0 | Y40: 128 | Z40: 137.4190671
N41: ='Simple AR Calculator'!B12 -> Shank_Input | O41: ='Simple AR Calculator'!C12 -> 18 | P41: ='Simple AR Calculator'!K13 -> 22.29175857 | R41: =Archives!D10 -> 18 | Y41: 18 | Z41: 22.29175857
N42: Knuckle Dia. | O42: ='Simple AR Calculator'!C13 -> 10 | R42: =Archives!D11 -> 10 | Y42: 10
N43: Shank Thk. | O43: ='Simple AR Calculator'!C14 -> 6.3 | P43: modified 10/31/18 | R43: =Archives!D12 -> 6.3 | Y43: 6.3
N44: Blow Dist. | O44: ='Simple AR Calculator'!C15 -> 46 | R44: =Archives!D13 -> 46 | Y44: 46
N45: ='Simple AR Calculator'!B16 -> Let-Off | O45: ='Simple AR Calculator'!C16 -> 2 | R45: =Archives!D14 -> 2 | Y45: 2
N46: ='Simple AR Calculator'!B17 -> Spread | O46: ='Simple AR Calculator'!C17 -> 114 | R46: =Archives!D15 -> 114 | Y46: 114
N47: Key Length | O47: ='Simple AR Calculator'!C18 -> 452 | R47: =Archives!D16 -> 452 | Y47: 452
N48: Capstan Hl. | O48: ='Simple AR Calculator'!C19 -> 48 | R48: =Archives!D17 -> 48 | Y48: 48
O49: ='Simple AR Calculator'!C20 ->  | R49: =Archives!D18 -> 
N50: Ham Bore | O50: ='Simple AR Calculator'!C21 -> 50 | R50: =Archives!D19 -> 50 | Y50: 50
N51: ='Simple AR Calculator'!B22 -> Aftertouch | O51: ='Simple AR Calculator'!C22 -> 1.25 | R51: =Archives!D20 -> 1.25 | Y51: 1.25
N52: Key Ro Fr. | O52: ='Simple AR Calculator'!C23 -> 1.956521739 | P52: ='Simple AR Calculator'!D23 -> 1.805555212 | R52: =Archives!D21 -> 0 | S52: =Archives!E21 -> 0 | Y52: =O52 -> 1.956521739 | Z52: 1.805555212
N53: Key Ro Bk. | O53: ='Simple AR Calculator'!C24 -> 0.5111111111 | P53: ='Simple AR Calculator'!D24 -> 0.5538462594 | R53: =Archives!D22 -> 0 | S53: =Archives!E22 -> 0 | Y53: 0.5111111111 | Z53: 0.5538462594
N54: ='Simple AR Calculator'!B25 -> Whip ratio | O54: ='Simple AR Calculator'!C25 -> 1.46875 | P54: ='Simple AR Calculator'!D25 -> 1.46875 | R54: =Archives!D23 -> 0 | S54: =Archives!E23 -> 0 | Y54: 1.46875 | Z54: 1.46875
N55: ='Simple AR Calculator'!B26 -> Shank ratio | O55: ='Simple AR Calculator'!C26 -> 7.111111111 | P55: ='Simple AR Calculator'!D26 -> 6.16456825 | R55: =Archives!D24 -> 0 | S55: =Archives!E24 -> 0 | Y55: 7.111111111 | Z55: 6.16456825
N56: Whip Wt. | O56: ='Simple AR Calculator'!C27 -> 17 | R56: =C24 -> 17 | Y56: =O56 -> 17
N57: DW Target | O57: ='Simple AR Calculator'!C28 -> 50 | R57: ='Simple AR Calculator'!F7 -> 50 | Y57: =O57 -> 50
N59: MAR = | O59: ='Simple AR Calculator'!C30 -> 5.338271605 | R59: =Archives!D28 -> 0 | Y59: =O59 -> 5.338271605
N60: DAR = | O60: ='Simple AR Calculator'!C31 -> 5.014640128 | R60: ='Simple AR Calculator'!H8 -> 5.014640128 | Y60: =O60 -> 5.014640128
N61: Dip = | O61: ='Simple AR Calculator'!C32 -> 10.0243086 | R61: =Archives!D30 -> 0 | Y61: =O61 -> 10.0243086
N62: Inertia = | O62: ='Simple AR Calculator'!C33 -> 211.5563528 | R62: =Archives!D31 -> 0 | Y62: =O62 -> 211.5563528
N63: Capstan Chg | O63: ='Simple AR Calculator'!C34 -> 3 | R63: =Archives!D33 -> 0 | Y63: =O63 -> 3
B98: 320
C142: 0.93

Sheet Hammers
A1: ='Simple AR Calculator'!C24 -> 0.5111111111
A2: ='Simple AR Calculator'!C25 -> 1.46875 | E2: =E6+1.5 -> 11.3 | V2: DRAG CURSOR TO COPY ANY COLUMN (don't include heading text), PASTE DATA TO LEFT IN EITHER THE MY WEIGHTS OR ORGINAL WEIGHTS COLUMNS
A3: ='Simple AR Calculator'!C26 -> 7.111111111
A4: ='Simple AR Calculator'!F6 -> 17 | C4: ='Simple AR Calculator'!C6:D6 -> Krakauer 5'10" | G4: Back to Compare Page | X4: Go to My Weights | AH4: Go to My Weights
A5: ='Key Leads'!P75 -> 38 | B5: My FWs | C5: Note | D5: Ham Wts | E5: My Wts. | F5: Orig. Wts. | T5: Back to Calc Page | V5: RENNER HAMMERS TRENDLINE CURVES | AB5: NY SSB Trendline | AC5: Renner AB BP Actual Weights | AD5: NY SSB Trendline Original | AE5: Renner SMOL BP Actual Weights | AF5: Ren G5-PBP Mdl D tapered no T-Pins | AG5: Jason SSO Act Trendline | AI5: Renner SMLO Blue Points | AJ5: AB Blue Points | AM5: NY S&S D smooth Trendline | AV5: f(x)=-(4.690744*10^(-4))*x^2-0.0256072*x+9.8644805
B6: =(((E6+1.5)*$A$3*$A$2)+$A$4)*$A$1-$A$5 -> 31.01135802 | C6: A 1 | D6: ='Key Leads'!I146 -> 11.74775439 | E6: 9.8 | F6: 7.7 | V6: SMOL BP | W6: AB BP | X6: D PB | Y6: G4L Std | Z6: G4L Full | AA6: G4L Std | AK6: Mdl. D Blue Points | AL6: NY S&S D per samples | AN6: NY S&S D full side taper | AO6: NY SSD full taper to note 30 | AP6: SSB new from factory | AQ6: SSL new Abels | AR6: SSB 185644 Original | AS6: Abel GA - S5 | AT6: Ren G4L Mdl D stnd taper 8 mm tail
B7: =(((E7+1.5)*$A$3*$A$2)+$A$4)*$A$1-$A$5 -> 29.40987654 | C7: A# 2 | D7: ='Key Leads'!I147 -> 11.71291166 | E7: 9.5 | V7: Trendline | W7: Trendline | X7: Trendline | Y7: 8mm tpr | Z7: Side tpr | AA7: 8mm tpr | AV7: x f(x)
B8: 27.80839506 | C8: B 3 | D8: ='Key Leads'!I148 -> 11.66064755 | E8: 9.2 | U8: Note | Y8: Trendline | Z8: Trendline | AA8: Trendline2 | AH8: Note
B9: 27.2745679 | C9: C 4 | D9: ='Key Leads'!I149 -> 11.62580481 | E9: 9.1 | U9: A 1 | V9: 9.2923 | W9: 9.2289002 | X9: 10.416005 | Y9: 11.1421995 | Z9: 9.7015881 | AA9: 10.9861003 | AB9: 9.527441687 | AC9: 9.8 | AD9: 8.927441687 | AE9: 9.1 | AF9: 10.5 | AG9: 8.6626314 | AH9: A 1 | AI9: 9.1 | AJ9: 9.8 | AK9: 10.5 | AL9: 12.08 | AM9: 12.0751883 | AN9: =AM9-1 -> 11.0751883 | AO9: 11.45772852 | AP9: 9.8 | AQ9: 9.74 | AR9: 7.4874991 | AS9: 9.8384042 | AT9: 10.8
B10: 27.2745679 | C10: C# 5 | D10: ='Key Leads'!I150 -> 11.5735407 | E10: 9.1 | U10: A# 2 | V10: 9.2457 | W10: 9.2115016 | X10: 10.42724 | Y10: 11.083996 | Z10: 9.6654009 | AA10: 10.9366024 | AB10: 9.482263027 | AC10: 9.5 | AD10: 8.882263027 | AE10: 9 | AF10: 10.5 | AG10: 8.6492824 | AH10: A# 2 | AI10: 9 | AJ10: 9.5 | AK10: 10.5 | AL10: 11.9 | AM10: 12.0047651 | AN10: =AM10-1 -> 11.0047651 | AO10: 11.42220078 | AP10: 10.1 | AQ10: 9.7 | AR10: 7.4554473 | AS10: 9.8113898 | AT10: 11.1
B11: 27.2745679 | C11: D 6 | D11: ='Key Leads'!I151 -> 11.53869796 | E11: 9.1 | U11: B 3 | V11: 9.1987 | W11: 9.1931054 | X11: 10.435735 | Y11: 11.0253865 | Z11: 9.6284161 | AA11: 10.8865081 | AB11: 9.452143921 | AC11: 9.2 | AD11: 8.852143921 | AE11: 8.8 | AF11: 10.6 | AG11: 8.6348154 | AH11: B 3 | AI11: 8.8 | AJ11: 9.2 | AK11: 10.6 | AL11: 11.8 | AM11: 11.9336225 | AN11: 10.9336225 | AO11: 11.36890918 | AP11: 10 | AQ11: 9.45 | AR11: 7.4228093 | AS11: 9.7834372 | AT11: 10.6
B12: 26.20691358 | C12: D# 7 | D12: ='Key Leads'!I152 -> 11.48643386 | E12: 8.9 | U12: C 4 | V12: 9.1513 | W12: 9.1737128 | X12: 10.44152 | Y12: 10.966368 | Z12: 9.5906413 | AA12: 10.8358192 | AB12: 9.406965261 | AC12: 9.1 | AD12: 8.806965261 | AE12: 8.8 | AF12: 10.7 | AG12: 8.6192303 | AH12: C 4 | AI12: 8.8 | AJ12: 9.1 | AK12: 10.7 | AL12: 11.7 | AM12: 11.8617605 | AN12: 10.8617605 | AO12: 11.33338144 | AP12: 10.1 | AQ12: 9.47 | AR12: 7.389585 | AS12: 9.7545465 | AT12: 10.8 | AV12: `
B13: 25.13925926 | C13: E 8 | D13: ='Key Leads'!I153 -> 11.43416975 | E13: 8.7 | U13: C# 5 | V13: 9.1035 | W13: 9.153325 | X13: 10.444625 | Y13: 10.9069375 | Z13: 9.5520838 | AA13: 10.7845375 | AB13: 9.376846154 | AC13: 9.1 | AD13: 8.776846154 | AE13: 8.9 | AF13: 10.6 | AG13: 8.6025273 | AH13: C# 5 | AI13: 8.9 | AJ13: 9.1 | AK13: 10.6 | AL13: 11.6 | AM13: 11.7891791 | AN13: 10.7891791 | AO13: 11.28008984 | AP13: 10.4 | AQ13: 9.28 | AR13: 7.3557744 | AS13: 9.7247176 | AT13: 10.9
B14: 25.13925926 | C14: F 9 | D14: ='Key Leads'!I154 -> 11.39932701 | E14: 8.7 | U14: D 6 | V14: 9.0553 | W14: 9.1319432 | X14: 10.44508 | Y14: 10.847092 | Z14: 9.5127513 | AA14: 10.7326648 | AB14: 9.331667494 | AC14: 9.1 | AD14: 8.731667494 | AE14: 8.8 | AF14: 10.5 | AG14: 8.5847063 | AH14: D 6 | AI14: 8.8 | AJ14: 9.1 | AK14: 10.5 | AL14: 11.55 | AM14: 11.7158782 | AN14: 10.7158782 | AO14: 11.2445621 | AP14: 10.3 | AQ14: 9.36 | AR14: 7.3213775 | AS14: 9.6939506 | AT14: 10.9
B15: 25.13925926 | C15: F# 10 | D15: ='Key Leads'!I155 -> 11.3470629 | E15: 8.7 | U15: D# 7 | V15: 9.0067 | W15: 9.1095686 | X15: 10.442915 | Y15: 10.7868285 | Z15: 9.4726511 | AA15: 10.6802029 | AB15: 9.286488834 | AC15: 8.9 | AD15: 8.686488834 | AE15: 8.7 | AF15: 10.6 | AG15: 8.5657672 | AH15: D# 7 | AI15: 8.7 | AJ15: 8.9 | AK15: 10.6 | AL15: 11.5 | AM15: 11.6418579 | AN15: 10.6418579 | AO15: 11.1912705 | AP15: 10.3 | AQ15: 9.27 | AR15: 7.2863944 | AS15: 9.6622455 | AT15: 11
B16: 25.67308642 | C16: G 11 | D16: ='Key Leads'!I156 -> 11.31222017 | E16: 8.8 | U16: E 8 | V16: 8.9577 | W16: 9.0862024 | X16: 10.43816 | Y16: 10.726144 | Z16: 9.4317908 | AA16: 10.6271536 | AB16: 9.256369727 | AC16: 8.7 | AD16: 8.656369727 | AE16: 8.8 | AF16: 10.5 | AG16: 8.5457102 | AH16: E 8 | AI16: 8.8 | AJ16: 8.7 | AK16: 10.5 | AL16: 11.45 | AM16: 11.5671182 | AN16: 10.5671182 | AO16: 11.13797889 | AP16: 10.4 | AQ16: 9.18 | AR16: 7.2508249 | AS16: 9.6296021 | AT16: 11
B17: 25.13925926 | C17: G# 12 | D17: ='Key Leads'!I157 -> 11.25995606 | E17: 8.7 | U17: F 9 | V17: 8.9083 | W17: 9.0618458 | X17: 10.430845 | Y17: 10.6650355 | Z17: 9.3901778 | AA17: 10.5735187 | AB17: 9.211191067 | AC17: 8.7 | AD17: 8.611191067 | AE17: 9 | AF17: 10.2 | AG17: 8.5245351 | AH17: F 9 | AI17: 9 | AJ17: 8.7 | AK17: 10.2 | AL17: 11.4 | AM17: 11.4916591 | AN17: 10.4916591 | AO17: 11.10245116 | AP17: 10.3 | AQ17: 9.16 | AR17: 7.2146692 | AS17: 9.5960207 | AT17: 11
B18: 28.34222222 | C18: A 13 | D18: ='Key Leads'!I158 -> 11.03778677 | E18: 9.3 | U18: F# 10 | V18: 8.8585 | W18: 9.0365 | X18: 10.421 | Y18: 10.6035 | Z18: 9.3478196 | AA18: 10.5193 | AB18: 9.18107196 | AC18: 8.7 | AD18: 8.58107196 | AE18: 9.1 | AF18: 10.5 | AG18: 8.5022421 | AH18: F# 10 | AI18: 9.1 | AJ18: 8.7 | AK18: 10.5 | AL18: 11.36 | AM18: 11.4154805 | AN18: 10.4154805 | AO18: 11.04915955 | AP18: 10.1 | AQ18: 9.06 | AR18: 7.1779271 | AS18: 9.5615011 | AT18: 11
B19: 27.2745679 | C19: A# 14 | D19: ='Key Leads'!I159 -> 10.98552266 | E19: 9.1 | U19: G 11 | V19: 8.8083 | W19: 9.0101662 | X19: 10.408655 | Y19: 10.5415345 | Z19: 9.3047238 | AA19: 10.4644993 | AB19: 9.1358933 | AC19: 8.8 | AD19: 8.5358933 | AE19: 9.3 | AF19: 10.5 | AG19: 8.478831 | AH19: G 11 | AI19: 9.3 | AJ19: 8.8 | AK19: 10.5 | AL19: 11.32 | AM19: 11.3385826 | AN19: 10.3385826 | AO19: 11.01363181 | AP19: 10.3 | AQ19: 9.06 | AR19: 7.1405988 | AS19: 9.5260433 | AT19: 11
B20: 26.20691358 | C20: B 15 | D20: ='Key Leads'!I160 -> 10.95067993 | E20: 8.9 | U20: G# 12 | V20: 8.7577 | W20: 8.9828456 | X20: 10.39384 | Y20: 10.479136 | Z20: 9.2608978 | AA20: 10.4091184 | AB20: 9.105774194 | AC20: 8.7 | AD20: 8.505774194 | AE20: 9.3 | AF20: 10.4 | AG20: 8.4543019 | AH20: G# 12 | AI20: 9.3 | AJ20: 8.7 | AK20: 10.4 | AL20: 11.28 | AM20: 11.2609651 | AN20: 10.2609651 | AO20: 10.96034021 | AP20: 10.3 | AQ20: 9.11 | AR20: 7.1026842 | AS20: 9.4896474 | AT20: 10.4
B21: 26.74074074 | C21: C 16 | D21: ='Key Leads'!I161 -> 10.89841582 | E21: 9 | U21: A 13 | V21: 8.7067 | W21: 8.9545394 | X21: 10.376585 | Y21: 10.4163015 | Z21: 9.2163491 | AA21: 10.3531591 | AB21: 9.060595533 | AC21: 9.3 | AD21: 8.460595533 | AE21: 9.2 | AF21: 10.3 | AG21: 8.4286548 | AH21: A 13 | AI21: 9.2 | AJ21: 9.3 | AK21: 10.3 | AL21: 11.23 | AM21: 11.1826283 | AN21: 10.1826283 | AO21: 10.74717379 | AP21: 10.3 | AQ21: 9.02 | AR21: 7.0641833 | AS21: 9.4523133 | AT21: 10.5
B22: 26.20691358 | C22: C# 17 | D22: ='Key Leads'!I162 -> 10.84615171 | E22: 8.9 | U22: A# 14 | V22: 8.6553 | W22: 8.9252488 | X22: 10.35692 | Y22: 10.353028 | Z22: 9.1710851 | AA22: 10.2966232 | AB22: 9.030476427 | AC22: 9.1 | AD22: 8.430476427 | AE22: 9.1 | AF22: 10.1 | AG22: 8.4018897 | AH22: A# 14 | AI22: 9.1 | AJ22: 9.1 | AK22: 10.1 | AL22: 11.18 | AM22: 11.1035721 | AN22: 10.1035721 | AO22: 10.69388219 | AP22: 10.1 | AQ22: 8.85 | AR22: 7.0250961 | AS22: 9.4140411 | AT22: 10.4
B23: 25.67308642 | C23: D 18 | D23: ='Key Leads'!I163 -> 10.81130897 | E23: 8.8 | U23: B 15 | V23: 8.6035 | W23: 8.894975 | X23: 10.334875 | Y23: 10.2893125 | Z23: 9.1251135 | AA23: 10.2395125 | AB23: 8.985297767 | AC23: 8.9 | AD23: 8.385297767 | AE23: 9.2 | AF23: 10 | AG23: 8.3740066 | AH23: B 15 | AI23: 9.2 | AJ23: 8.9 | AK23: 10 | AL23: 11.13 | AM23: 11.0237964 | AN23: 10.0237964 | AO23: 10.65835445 | AP23: 9.9 | AQ23: 9.1 | AR23: 6.9854227 | AS23: 9.3748308 | AT23: 10.4
B24: 25.13925926 | C24: D# 19 | D24: ='Key Leads'!I164 -> 10.75904487 | E24: 8.7 | U24: C 16 | V24: 8.5513 | W24: 8.8637192 | X24: 10.31048 | Y24: 10.225152 | Z24: 9.0784416 | AA24: 10.1818288 | AB24: 8.940119107 | AC24: 9 | AD24: 8.340119107 | AE24: 9.1 | AF24: 9.8 | AG24: 8.3450055 | AH24: C 16 | AI24: 9.1 | AJ24: 9 | AK24: 9.8 | AL24: 11.08 | AM24: 10.9433013 | AN24: 9.9433013 | AO24: 10.60506284 | AP24: 10 | AQ24: 8.91 | AR24: 6.9451629 | AS24: 9.3346823 | AT24: 10.4
B25: 25.13925926 | C25: E 20 | D25: ='Key Leads'!I165 -> 10.70678076 | E25: 8.7 | F25: 6.7 | U25: C# 17 | V25: 8.4987 | W25: 8.8314826 | X25: 10.283765 | Y25: 10.1605435 | Z25: 9.0310769 | AA25: 10.1235739 | AB25: 8.91 | AC25: 8.9 | AD25: 8.31 | AE25: 8.8 | AF25: 9.9 | AG25: 8.3148864 | AH25: C# 17 | AI25: 8.8 | AJ25: 8.9 | AK25: 9.9 | AL25: 11.02 | AM25: 10.8620868 | AN25: 9.8620868 | AO25: 10.55177124 | AP25: 9.9 | AQ25: 9.04 | AR25: 6.9043169 | AS25: 9.2935956 | AT25: 10.2
B26: 25.13925926 | C26: F 21 | D26: ='Key Leads'!I166 -> 10.65451665 | E26: 8.7 | F26: 6.5 | U26: D 18 | V26: 8.4457 | W26: 8.7982664 | X26: 10.25476 | Y26: 10.095484 | Z26: 8.9830269 | AA26: 10.0647496 | AB26: 8.86482134 | AC26: 8.8 | AD26: 8.26482134 | AE26: 8.8 | AF26: 10.1 | AG26: 8.2836493 | AH26: D 18 | AI26: 8.8 | AJ26: 8.8 | AK26: 10.1 | AL26: 10.95 | AM26: 10.7801528 | AN26: 9.7801528 | AO26: 10.5162435 | AP26: 9.7 | AQ26: 8.66 | AR26: 6.8628845 | AS26: 9.2515708 | AT26: 10.2
B27: 24.6054321 | C27: F# 22 | D27: ='Key Leads'!I167 -> 10.60225254 | E27: 8.6 | U27: D# 19 | V27: 8.3923 | W27: 8.7640718 | X27: 10.223495 | Y27: 10.0299705 | Z27: 8.9342992 | AA27: 10.0053577 | AB27: 8.81964268 | AC27: 8.7 | AD27: 8.21964268 | AE27: 8.5 | AF27: 9.9 | AG27: 8.2512942 | AH27: D# 19 | AI27: 8.5 | AJ27: 8.7 | AK27: 9.9 | AL27: 10.88 | AM27: 10.6974994 | AN27: 9.6974994 | AO27: 10.4629519 | AP27: 9.8 | AQ27: 8.44 | AR27: 6.8208659 | AS27: 9.2086078 | AT27: 10
B28: 25.67308642 | C28: G 23 | D28: ='Key Leads'!I168 -> 10.54998844 | E28: 8.8 | U28: E 20 | V28: 8.3385 | W28: 8.7289 | X28: 10.19 | Y28: 9.964 | Z28: 8.8849012 | AA28: 9.9454 | AB28: 8.77446402 | AC28: 8.7 | AD28: 8.17446402 | AE28: 8.3 | AF28: 9.9 | AG28: 8.217821 | AH28: E 20 | AI28: 8.3 | AJ28: 8.7 | AK28: 9.9 | AL28: 10.81 | AM28: 10.6141266 | AN28: 9.6141266 | AO28: 10.40966029 | AP28: 9.3 | AQ28: 8.54 | AR28: 6.778261 | AS28: 9.1647067 | AT28: 10.1
B29: 25.67308642 | C29: G# 24 | D29: ='Key Leads'!I169 -> 10.49772433 | E29: 8.8 | U29: F 21 | V29: 8.2843 | W29: 8.6927522 | X29: 10.154305 | Y29: 9.8975695 | Z29: 8.8348404 | AA29: 9.8848783 | AB29: 8.72928536 | AC29: 8.7 | AD29: 8.12928536 | AE29: 8 | AF29: 9.5 | AG29: 8.1832299 | AH29: F 21 | AI29: 8 | AJ29: 8.7 | AK29: 9.5 | AL29: 10.73 | AM29: 10.5300344 | AN29: 9.5300344 | AO29: 10.35636869 | AP29: 9 | AQ29: 8.21 | AR29: 6.7350698 | AS29: 9.1198675 | AT29: 9.9
B30: 26.20691358 | C30: A 25 | D30: ='Key Leads'!I170 -> 10.25813367 | E30: 8.9 | U30: F# 22 | V30: 8.2297 | W30: 8.6556296 | X30: 10.11644 | Y30: 9.830676 | Z30: 8.7841242 | AA30: 9.8237944 | AB30: 8.6841067 | AC30: 8.6 | AD30: 8.0841067 | AE30: 7.9 | AF30: 9.6 | AG30: 8.1475207 | AH30: F# 22 | AI30: 7.9 | AJ30: 8.6 | AK30: 9.6 | AL30: 10.65 | AM30: 10.4452228 | AN30: 9.4452228 | AO30: 10.30307708 | AP30: 9.6 | AQ30: 8.28 | AR30: 6.6912923 | AS30: 9.0740901 | AT30: 9.8
B31: 25.67308642 | C31: A# 26 | D31: ='Key Leads'!I171 -> 10.20586957 | E31: 8.8 | U31: G 23 | V31: 8.1747 | W31: 8.6175334 | X31: 10.076435 | Y31: 9.7633165 | Z31: 8.7327602 | AA31: 9.7621501 | AB31: 8.63892804 | AC31: 8.8 | AD31: 8.03892804 | AE31: 7.9 | AF31: 9.5 | AG31: 8.1106936 | AH31: G 23 | AI31: 7.9 | AJ31: 8.8 | AK31: 9.5 | AL31: 10.56 | AM31: 10.3596917 | AN31: 9.3596917 | AO31: 10.24978548 | AP31: 9.3 | AQ31: 8.25 | AR31: 6.6469286 | AS31: 9.0273745 | AT31: 9.7
B32: 22.47012346 | C32: B 27 | D32: ='Key Leads'!I172 -> 10.15360546 | E32: 8.2 | U32: G# 24 | V32: 8.1193 | W32: 8.5784648 | X32: 10.03432 | Y32: 9.695488 | Z32: 8.6807559 | AA32: 9.6999472 | AB32: 8.59374938 | AC32: 8.8 | AD32: 7.99374938 | AE32: 7.9 | AF32: 9.5 | AG32: 8.0727484 | AH32: G# 24 | AI32: 7.9 | AJ32: 8.8 | AK32: 9.5 | AL32: 10.47 | AM32: 10.2734412 | AN32: 9.2734412 | AO32: 10.19649387 | AP32: 9.6 | AQ32: 8.3 | AR32: 6.6019785 | AS32: 8.9797208 | AT32: 9.5
B33: 22.47012346 | C33: C 28 | D33: ='Key Leads'!I173 -> 10.10134135 | E33: 8.2 | F33: 6.3 | U33: A 25 | V33: 8.0635 | W33: 8.538425 | X33: 9.990125 | Y33: 9.6271875 | Z33: 8.6281187 | AA33: 9.6371875 | AB33: 8.54857072 | AC33: 8.9 | AD33: 7.94857072 | AE33: 7.8 | AF33: 9.4 | AG33: 8.0336853 | AH33: A 25 | AI33: 7.8 | AJ33: 8.9 | AK33: 9.4 | AL33: 10.38 | AM33: 10.1864713 | AN33: 9.1864713 | AO33: 9.965563587 | AP33: 9.3 | AQ33: 7.99 | AR33: 6.5564422 | AS33: 8.931129 | AT33: 9.6
B34: 23.00395062 | C34: C# 29 | D34: ='Key Leads'!I174 -> 10.04907724 | E34: 8.3 | U34: A# 26 | V34: 8.0073 | W34: 8.4974152 | X34: 9.94388 | Y34: 9.558412 | Z34: 8.5748561 | AA34: 9.5738728 | AB34: 8.50339206 | AC34: 8.8 | AD34: 7.90339206 | AE34: 7.7 | AF34: 9.4 | AG34: 7.9935041 | AH34: A# 26 | AI34: 7.7 | AJ34: 8.8 | AK34: 9.4 | AL34: 10.29 | AM34: 10.0987819 | AN34: 9.0987819 | AO34: 9.912271983 | AP34: 9.5 | AQ34: 8.22 | AR34: 6.5103195 | AS34: 8.881599 | AT34: 9.1
B35: 22.47012346 | C35: D 30 | D35: ='Key Leads'!I175 -> 9.979391767 | E35: 8.2 | U35: B 27 | V35: 7.9507 | W35: 8.4554366 | X35: 9.895615 | Y35: 9.4891585 | Z35: 8.5209756 | AA35: 9.5100049 | AB35: 8.4582134 | AC35: 8.2 | AD35: 7.8582134 | AE35: 7.7 | AF35: 9.4 | AG35: 7.9522049 | AH35: B 27 | AI35: 7.7 | AJ35: 8.2 | AK35: 9.4 | AL35: 10.19 | AM35: 10.0103732 | AN35: 9.0103732 | AO35: 9.858980378 | AP35: 9.3 | AQ35: 7.99 | AR35: 6.4636106 | AS35: 8.8311309 | AT35: 9.2
B36: 22.47012346 | C36: D# 31 | D36: ='Key Leads'!I176 -> 9.92712766 | E36: 8.2 | U36: C 28 | V36: 7.8937 | W36: 8.4124904 | X36: 9.84536 | Y36: 9.419424 | Z36: 8.4664847 | AA36: 9.4455856 | AB36: 8.413034739 | AC36: 8.2 | AD36: 7.813034739 | AE36: 7.6 | AF36: 9.3 | AG36: 7.9097877 | AH36: C 28 | AI36: 7.6 | AJ36: 8.2 | AK36: 9.3 | AL36: 10.09 | AM36: 9.921245 | AN36: 8.921245 | AO36: 9.805688773 | AP36: 8.9 | AQ36: 7.8 | AR36: 6.4163154 | AS36: 8.7797246 | AT36: 9.2
B37: 20.86864198 | C37: E 32 | D37: ='Key Leads'!I177 -> 9.874863552 | E37: 7.9 | U37: C# 29 | V37: 7.8363 | W37: 8.3685778 | X37: 9.793145 | Y37: 9.3492055 | Z37: 8.4113909 | AA37: 9.3806167 | AB37: 8.352796526 | AC37: 8.3 | AD37: 7.752796526 | AE37: 7.6 | AF37: 9.3 | AG37: 7.8662525 | AH37: C# 29 | AI37: 7.6 | AJ37: 8.3 | AK37: 9.3 | AL37: 9.99 | AM37: 9.8313974 | AN37: 8.8313974 | AO37: 9.752397168 | AP37: 8.8 | AQ37: 7.97 | AR37: 6.3684339 | AS37: 8.7273801 | AT37: 9.1
B38: 20.33481481 | C38: F 33 | D38: ='Key Leads'!I178 -> 9.822599445 | E38: 7.8 | U38: D 30 | V38: 7.7785 | W38: 8.3237 | X38: 9.739 | Y38: 9.2785 | Z38: 8.3557017 | AA38: 9.3151 | AB38: 8.307617866 | AC38: 8.2 | AD38: 7.707617866 | AE38: 7.7 | AF38: 8.6 | AG38: 7.8215993 | AH38: D 30 | AI38: 7.7 | AJ38: 8.2 | AK38: 8.6 | AL38: 9.89 | AM38: 9.7408303 | AN38: 8.7408303 | AO38: 9.681341695 | AP38: 9 | AQ38: 7.8 | AR38: 6.3199661 | AS38: 8.6740975 | AT38: 9.2
B39: 21.40246914 | C39: F# 34 | D39: ='Key Leads'!I179 -> 9.770335338 | E39: 8 | U39: D# 31 | V39: 7.7203 | W39: 8.2778582 | X39: 9.682955 | Y39: 9.2073045 | Z39: 8.2994246 | AA39: 9.2490373 | AB39: 8.262439206 | AC39: 8.2 | AD39: 7.662439206 | AE39: 7.7 | AF39: 8.7 | AG39: 7.7758281 | AH39: D# 31 | AI39: 7.7 | AJ39: 8.2 | AK39: 8.7 | AL39: 9.8 | AM39: 9.6495439 | AN39: 8.6495439 | AO39: 9.6495439 | AP39: 8.8 | AQ39: 7.7 | AR39: 6.2709121 | AS39: 8.6198768 | AT39: 9.1
B40: 21.40246914 | C40: G 35 | D40: ='Key Leads'!I180 -> 9.700649861 | E40: 8 | U40: E 32 | V40: 7.6617 | W40: 8.2310536 | X40: 9.62504 | Y40: 9.135616 | Z40: 8.242567 | AA40: 9.1824304 | AB40: 8.217260546 | AC40: 7.9 | AD40: 7.617260546 | AE40: 7.6 | AF40: 8.6 | AG40: 7.7289389 | AH40: E 32 | AI40: 7.6 | AJ40: 7.9 | AK40: 8.6 | AL40: 9.7 | AM40: 9.557538 | AN40: 8.557538 | AO40: 9.557538 | AP40: 9.1 | AQ40: 7.76 | AR40: 6.2212717 | AS40: 8.5647179 | AT40: 9.3
B41: 21.9362963 | C41: G# 36 | D41: ='Key Leads'!I181 -> 9.648385754 | E41: 8.1 | U41: F 33 | V41: 7.6027 | W41: 8.1832874 | X41: 9.565285 | Y41: 9.0634315 | Z41: 8.1851364 | AA41: 9.1152811 | AB41: 8.172081886 | AC41: 7.8 | AD41: 7.572081886 | AE41: 7.6 | AF41: 8.4 | AG41: 7.6809317 | AH41: F 33 | AI41: 7.6 | AJ41: 7.8 | AK41: 8.4 | AL41: 9.6 | AM41: 9.4648127 | AN41: 8.4648127 | AO41: 9.4648127 | AP41: 8.9 | AQ41: 7.85 | AR41: 6.1710451 | AS41: 8.5086209 | AT41: 9.1
B42: 21.9362963 | C42: A 37 | D42: ='Key Leads'!I182 -> 9.391373728 | E42: 8.1 | U42: F# 34 | V42: 7.5433 | W42: 8.1345608 | X42: 9.50372 | Y42: 8.990748 | Z42: 8.1271403 | AA42: 9.0475912 | AB42: 8.111843672 | AC42: 8 | AD42: 7.511843672 | AE42: 7.6 | AF42: 8.4 | AG42: 7.6318064 | AH42: F# 34 | AI42: 7.6 | AJ42: 8 | AK42: 8.4 | AL42: 9.5 | AM42: 9.3713679 | AN42: 8.3713679 | AO42: 9.3713679 | AP42: 9.2 | AQ42: 7.76 | AR42: 6.1202321 | AS42: 8.4515857 | AT42: 8.8
B43: 20.86864198 | C43: A# 38 | D43: ='Key Leads'!I183 -> 9.339109621 | E43: 7.9 | U43: G 35 | V43: 7.4835 | W43: 8.084875 | X43: 9.440375 | Y43: 8.9175625 | Z43: 8.0685863 | AA43: 8.9793625 | AB43: 8.066665012 | AC43: 8 | AD43: 7.466665012 | AE43: 7.5 | AF43: 8.3 | AG43: 7.5815632 | AH43: G 35 | AI43: 7.5 | AJ43: 8 | AK43: 8.3 | AL43: 9.4 | AM43: 9.2772038 | AN43: 8.2772038 | AO43: 9.2772038 | AP43: 9.5 | AQ43: 7.81 | AR43: 6.0688329 | AS43: 8.3936124 | AT43: 8.8
B44: 20.86864198 | C44: B 39 | D44: ='Key Leads'!I184 -> 9.286845513 | E44: 7.9 | U44: G# 36 | V44: 7.4233 | W44: 8.0342312 | X44: 9.37528 | Y44: 8.843872 | Z44: 8.0094817 | AA44: 8.9105968 | AB44: 8.006426799 | AC44: 8.1 | AD44: 7.406426799 | AE44: 7.3 | AF44: 8.4 | AG44: 7.530202 | AH44: G# 36 | AI44: 7.3 | AJ44: 8.1 | AK44: 8.4 | AL44: 9.3 | AM44: 9.1823202 | AN44: 8.1823202 | AO44: 9.1823202 | AP44: 9.4 | AQ44: 7.6 | AR44: 6.0168474 | AS44: 8.3347009 | AT44: 8.8
B45: 20.33481481 | C45: C 40 | D45: ='Key Leads'!I185 -> 9.217160037 | E45: 7.8 | F45: 5.9 | U45: A 37 | V45: 7.3627 | W45: 7.9826306 | X45: 9.308465 | Y45: 8.7696735 | Z45: 7.9498341 | AA45: 8.8412959 | AB45: 7.961248139 | AC45: 8.1 | AD45: 7.361248139 | AE45: 7.3 | AF45: 8.4 | AG45: 7.4777227 | AH45: A 37 | AI45: 7.3 | AJ45: 8.1 | AK45: 8.4 | AL45: 9.2 | AM45: 9.0867172 | AN45: 8.0867172 | AO45: 9.0867172 | AP45: 9.4 | AQ45: 7.6 | AR45: 5.9642756 | AS45: 8.2748512 | AT45: 8.9
B46: 20.33481481 | C46: C# 41 | D46: ='Key Leads'!I186 -> 9.147474561 | E46: 7.8 | U46: A# 38 | V46: 7.3017 | W46: 7.9300744 | X46: 9.23996 | Y46: 8.694964 | Z46: 7.889651 | AA46: 8.7714616 | AB46: 7.916069479 | AC46: 7.9 | AD46: 7.316069479 | AE46: 7.3 | AF46: 8.4 | AG46: 7.4241255 | AH46: A# 38 | AI46: 7.3 | AJ46: 7.9 | AK46: 8.4 | AL46: 9.1 | AM46: 8.9903947 | AN46: 7.9903947 | AO46: 8.9903947 | AP46: 9.2 | AQ46: 7.63 | AR46: 5.9111176 | AS46: 8.2140635 | AT46: 8.5
B47: 20.33481481 | C47: D 42 | D47: ='Key Leads'!I187 -> 9.095210453 | E47: 7.8 | U47: B 39 | V47: 7.2403 | W47: 7.8765638 | X47: 9.169795 | Y47: 8.6197405 | Z47: 7.8289399 | AA47: 8.7010957 | AB47: 7.855831266 | AC47: 7.9 | AD47: 7.255831266 | AE47: 7.3 | AF47: 8.3 | AG47: 7.3694102 | AH47: B 39 | AI47: 7.3 | AJ47: 7.9 | AK47: 8.3 | AL47: 9 | AM47: 8.8933529 | AN47: 7.8933529 | AO47: 8.8933529 | AP47: 9.3 | AQ47: 7.55 | AR47: 5.8573732 | AS47: 8.1523375 | AT47: 8.4
B48: 19.80098765 | C48: D# 43 | D48: ='Key Leads'!I188 -> 9.025524977 | E48: 7.7 | U48: C 40 | V48: 7.1785 | W48: 7.8221 | X48: 9.098 | Y48: 8.544 | Z48: 7.7677081 | AA48: 8.6302 | AB48: 7.795593052 | AC48: 7.8 | AD48: 7.195593052 | AE48: 7.1 | AF48: 8.1 | AG48: 7.3135769 | AH48: C 40 | AI48: 7.1 | AJ48: 7.8 | AK48: 8.1 | AL48: 8.9 | AM48: 8.7955916 | AN48: 7.7955916 | AO48: 8.7955916 | AP48: 8.9 | AQ48: 7.39 | AR48: 5.8030425 | AS48: 8.0896735 | AT48: 8.4
B49: 19.26716049 | C49: E 44 | D49: ='Key Leads'!I189 -> 8.9558395 | E49: 7.6 | F49: 5.5 | U49: C# 41 | V49: 7.1163 | W49: 7.7666842 | X49: 9.024605 | Y49: 8.4677395 | Z49: 7.7059634 | AA49: 8.5587763 | AB49: 7.750414392 | AC49: 7.8 | AD49: 7.150414392 | AE49: 7 | AF49: 8 | AG49: 7.2566257 | AH49: C# 41 | AI49: 7 | AJ49: 7.8 | AK49: 8 | AL49: 8.8 | AM49: 8.6971109 | AN49: 7.6971109 | AO49: 8.6971109 | AP49: 8.9 | AQ49: 7.33 | AR49: 5.7481256 | AS49: 8.0260712 | AT49: 8.3
B50: 19.80098765 | C50: F 45 | D50: ='Key Leads'!I190 -> 8.886154024 | E50: 7.7 | U50: D 42 | V50: 7.0537 | W50: 7.7103176 | X50: 8.94964 | Y50: 8.390956 | Z50: 7.643713 | AA50: 8.4868264 | AB50: 7.690176179 | AC50: 7.8 | AD50: 7.090176179 | AE50: 6.8 | AF50: 7.9 | AG50: 7.1985564 | AH50: D 42 | AI50: 6.8 | AJ50: 7.8 | AK50: 7.9 | AL50: 8.7 | AM50: 8.5979108 | AN50: 7.5979108 | AO50: 8.5979108 | AP50: 8.7 | AQ50: 7.33 | AR50: 5.6926224 | AS50: 7.9615309 | AT50: 8.3
B51: 19.26716049 | C51: F# 46 | D51: ='Key Leads'!I191 -> 8.816468548 | E51: 7.6 | U51: D# 43 | V51: 6.9907 | W51: 7.6530014 | X51: 8.873135 | Y51: 8.3136465 | Z51: 7.5809645 | AA51: 8.4143521 | AB51: 7.629937965 | AC51: 7.7 | AD51: 7.029937965 | AE51: 6.9 | AF51: 7.8 | AG51: 7.1393691 | AH51: D# 43 | AI51: 6.9 | AJ51: 7.7 | AK51: 7.8 | AL51: 8.6 | AM51: 8.4979912 | AN51: 7.4979912 | AO51: 8.4979912 | AP51: 8.8 | AQ51: 7.28 | AR51: 5.6365328 | AS51: 7.8960523 | AT51: 8.3
B52: 18.73333333 | C52: G 47 | D52: ='Key Leads'!I192 -> 8.746783071 | E52: 7.5 | U52: E 44 | V52: 6.9273 | W52: 7.5947368 | X52: 8.79512 | Y52: 8.235808 | Z52: 7.5177254 | AA52: 8.3413552 | AB52: 7.569699752 | AC52: 7.6 | AD52: 6.969699752 | AE52: 6.7 | AF52: 7.7 | AG52: 7.0790638 | AH52: E 44 | AI52: 6.7 | AJ52: 7.6 | AK52: 7.7 | AL52: 8.54 | AM52: 8.3973522 | AN52: 7.3973522 | AO52: 8.3973522 | AP52: 8.5 | AQ52: 7.24 | AR52: 5.579857 | AS52: 7.8296357 | AT52: 8.3
B53: 17.66567901 | C53: G# 48 | D53: ='Key Leads'!I193 -> 8.677097595 | E53: 7.3 | U53: F 45 | V53: 6.8635 | W53: 7.535525 | X53: 8.715625 | Y53: 8.1574375 | Z53: 7.4540032 | AA53: 8.2678375 | AB53: 7.509461538 | AC53: 7.7 | AD53: 6.909461538 | AE53: 6.8 | AF53: 7.9 | AG53: 7.0176405 | AH53: F 45 | AI53: 6.8 | AJ53: 7.7 | AK53: 7.9 | AL53: 8.45 | AM53: 8.2959938 | AN53: 7.2959938 | AO53: 8.2959938 | AP53: 8.2 | AQ53: 7.52 | AR53: 5.5225949 | AS53: 7.7622808 | AT53: 8.4
B54: 17.13185185 | C54: A 49 | D54: ='Key Leads'!I194 -> 8.4026642 | E54: 7.2 | F54: 5.2 | U54: F# 46 | V54: 6.7993 | W54: 7.4753672 | X54: 8.63468 | Y54: 8.078532 | Z54: 7.3898054 | AA54: 8.1938008 | AB54: 7.449223325 | AC54: 7.6 | AD54: 6.849223325 | AE54: 6.8 | AF54: 7.7 | AG54: 6.9550992 | AH54: F# 46 | AI54: 6.8 | AJ54: 7.6 | AK54: 7.7 | AL54: 8.35 | AM54: 8.193916 | AN54: 7.193916 | AO54: 8.193916 | AP54: 8.6 | AQ54: 7.2 | AR54: 5.4647466 | AS54: 7.6939879 | AT54: 8.3
B55: 17.13185185 | C55: A# 50 | D55: ='Key Leads'!I195 -> 8.332978723 | E55: 7.2 | U55: G 47 | V55: 6.7347 | W55: 7.4142646 | X55: 8.552315 | Y55: 7.9990885 | Z55: 7.3251394 | AA55: 8.1192469 | AB55: 7.388985112 | AC55: 7.5 | AD55: 6.788985112 | AE55: 6.7 | AF55: 7.4 | AG55: 6.8914398 | AH55: G 47 | AI55: 6.7 | AJ55: 7.5 | AK55: 7.4 | AL55: 8.3 | AM55: 8.0911187 | AN55: 7.0911187 | AO55: 8.0911187 | AP55: 7.8 | AQ55: 7.57 | AR55: 5.4063119 | AS55: 7.6247568 | AT55: 8.3
B56: 17.13185185 | C56: B 51 | D56: ='Key Leads'!I196 -> 8.263293247 | E56: 7.2 | U56: G# 48 | V56: 6.6697 | W56: 7.3522184 | X56: 8.46856 | Y56: 7.919104 | Z56: 7.2600127 | AA56: 8.0441776 | AB56: 7.313687345 | AC56: 7.3 | AD56: 6.713687345 | AE56: 6.7 | AF56: 7.2 | AG56: 6.8266625 | AH56: G# 48 | AI56: 6.7 | AJ56: 7.3 | AK56: 7.2 | AL56: 8.2 | AM56: 7.9876021 | AN56: 6.9876021 | AO56: 7.9876021 | AP56: 8.1 | AQ56: 7.49 | AR56: 5.3472909 | AS56: 7.5545875 | AT56: 8.2
B57: 16.59802469 | C57: C 52 | D57: ='Key Leads'!I197 -> 8.176186401 | E57: 7.1 | U57: A 49 | V57: 6.6043 | W57: 7.2892298 | X57: 8.383445 | Y57: 7.8385755 | Z57: 7.1944328 | AA57: 7.9685947 | AB57: 7.253449132 | AC57: 7.2 | AD57: 6.653449132 | AE57: 6.7 | AF57: 7 | AG57: 6.7607672 | AH57: A 49 | AI57: 6.7 | AJ57: 7.2 | AK57: 7 | AL57: 8 | AM57: 7.883366 | AN57: 6.883366 | AO57: 7.883366 | AP57: 8.1 | AQ57: 7.38 | AR57: 5.2876837 | AS57: 7.4834801 | AT57: 8.2
B58: 16.06419753 | C58: C# 53 | D58: ='Key Leads'!I198 -> 8.106500925 | E58: 7 | U58: A# 50 | V58: 6.5385 | W58: 7.2253 | X58: 8.297 | Y58: 7.7575 | Z58: 7.1284073 | AA58: 7.8925 | AB58: 7.193210918 | AC58: 7.2 | AD58: 6.593210918 | AE58: 6.5 | AF58: 6.9 | AG58: 6.6937539 | AH58: A# 50 | AI58: 6.5 | AJ58: 7.2 | AK58: 6.9 | AL58: 7.9 | AM58: 7.7784104 | AN58: 6.7784104 | AO58: 7.7784104 | AP58: 8 | AQ58: 7.08 | AR58: 5.2274902 | AS58: 7.4114345 | AT58: 8.1
B59: 15.53037037 | C59: D 54 | D59: ='Key Leads'!I199 -> 8.01939408 | E59: 6.9 | U59: B 51 | V59: 6.4723 | W59: 7.1604302 | X59: 8.209255 | Y59: 7.6758745 | Z59: 7.0619436 | AA59: 7.8158953 | AB59: 7.117913151 | AC59: 7.2 | AD59: 6.517913151 | AE59: 6.5 | AF59: 6.6 | AG59: 6.6256225 | AH59: B 51 | AI59: 6.5 | AJ59: 7.2 | AK59: 6.6 | AL59: 7.8 | AM59: 7.6727355 | AN59: 6.6727355 | AO59: 7.6727355 | AP59: 8 | AQ59: 7.33 | AR59: 5.1667104 | AS59: 7.3384508 | AT59: 7.8
B60: 15.53037037 | C60: D# 55 | D60: ='Key Leads'!I200 -> 7.949708603 | E60: 6.9 | U60: C 52 | V60: 6.4057 | W60: 7.0946216 | X60: 8.12024 | Y60: 7.593696 | Z60: 6.9950491 | AA60: 7.7387824 | AB60: 7.057674938 | AC60: 7.1 | AD60: 6.457674938 | AE60: 6.5 | AF60: 6.6 | AG60: 6.5563732 | AH60: C 52 | AI60: 6.5 | AJ60: 7.1 | AK60: 6.6 | AL60: 7.7 | AM60: 7.5663411 | AN60: 6.5663411 | AO60: 7.5663411 | AP60: 7.8 | AQ60: 7.56 | AR60: 5.1053443 | AS60: 7.2645289 | AT60: 7.6
B61: 13.92888889 | C61: E 56 | D61: ='Key Leads'!I201 -> 7.862601758 | E61: 6.6 | U61: C# 53 | V61: 6.3387 | W61: 7.0278754 | X61: 8.029985 | Y61: 7.5109615 | Z61: 6.9277314 | AA61: 7.6611631 | AB61: 6.982377171 | AC61: 7 | AD61: 6.382377171 | AE61: 6.5 | AF61: 6.7 | AG61: 6.4860058 | AH61: C# 53 | AI61: 6.5 | AJ61: 7 | AK61: 6.7 | AL61: 7.6 | AM61: 7.4592273 | AN61: 6.4592273 | AO61: 7.4592273 | AP61: 7.3 | AQ61: 7.31 | AR61: 5.0433919 | AS61: 7.1896689 | AT61: 7.6
B62: 13.39506173 | C62: F 57 | D62: ='Key Leads'!I202 -> 7.775494912 | E62: 6.5 | U62: D 54 | V62: 6.2713 | W62: 6.9601928 | X62: 7.93852 | Y62: 7.427668 | Z62: 6.859998 | AA62: 7.5830392 | AB62: 6.922138958 | AC62: 6.9 | AD62: 6.322138958 | AE62: 6.2 | AF62: 6.3 | AG62: 6.4145204 | AH62: D 54 | AI62: 6.2 | AJ62: 6.9 | AK62: 6.3 | AL62: 7.5 | AM62: 7.3513941 | AN62: 6.3513941 | AO62: 7.3513941 | AP62: 7.6 | AQ62: 7.06 | AR62: 4.9808532 | AS62: 7.1138707 | AT62: 7.6
B63: 12.86123457 | C63: F# 58 | D63: ='Key Leads'!I203 -> 7.688388067 | E63: 6.4 | U63: D# 55 | V63: 6.2035 | W63: 6.891575 | X63: 7.845875 | Y63: 7.3438125 | Z63: 6.7918563 | AA63: 7.5044125 | AB63: 6.846841191 | AC63: 6.9 | AD63: 6.246841191 | AE63: 6.1 | AF63: 6.2 | AG63: 6.3419171 | AH63: D# 55 | AI63: 6.1 | AJ63: 6.9 | AK63: 6.2 | AL63: 7.4 | AM63: 7.2428414 | AN63: 6.2428414 | AO63: 7.2428414 | AP63: 7.6 | AQ63: 7.06 | AR63: 4.9177282 | AS63: 7.0371344 | AT63: 7.6
B64: 12.32740741 | C64: G 59 | D64: ='Key Leads'!I204 -> 7.601281221 | E64: 6.3 | U64: E 56 | V64: 6.1353 | W64: 6.8220232 | X64: 7.75208 | Y64: 7.259392 | Z64: 6.7233139 | AA64: 7.4252848 | AB64: 6.771543424 | AC64: 6.6 | AD64: 6.171543424 | AE64: 6 | AF64: 5.9 | AG64: 6.2681957 | AH64: E 56 | AI64: 6 | AJ64: 6.6 | AK64: 5.9 | AL64: 7.2 | AM64: 7.1335694 | AN64: 6.1335694 | AO64: 7.1335694 | AP64: 7.2 | AQ64: 7.04 | AR64: 4.854017 | AS64: 6.95946 | AT64: 7.6
B65: 13.39506173 | C65: G# 60 | D65: ='Key Leads'!I205 -> 7.514174376 | E65: 6.5 | U65: F 57 | V65: 6.0667 | W65: 6.7515386 | X65: 7.657165 | Y65: 7.1744035 | Z65: 6.6543781 | AA65: 7.3456579 | AB65: 6.696245658 | AC65: 6.5 | AD65: 6.096245658 | AE65: 5.8 | AF65: 5.8 | AG65: 6.1933563 | AH65: F 57 | AI65: 5.8 | AJ65: 6.5 | AK65: 5.8 | AL65: 7.16 | AM65: 7.0235779 | AN65: 6.0235779 | AO65: 7.0235779 | AP65: 7.2 | AQ65: 6.71 | AR65: 4.7897194 | AS65: 6.8808474 | AT65: 7.5
B66: 13.39506173 | C66: A 61 | D66: ='Key Leads'!I206 -> 7.239740981 | E66: 6.5 | F66: 4.7 | U66: F# 58 | V66: 5.9977 | W66: 6.6801224 | X66: 7.56116 | Y66: 7.088844 | Z66: 6.5850566 | AA66: 7.2655336 | AB66: 6.620947891 | AC66: 6.4 | AD66: 6.020947891 | AE66: 5.9 | AF66: 6.6 | AG66: 6.1173989 | AH66: F# 58 | AI66: 5.9 | AJ66: 6.4 | AK66: 6.6 | AL66: 7 | AM66: 6.9128669 | AN66: 5.9128669 | AO66: 6.9128669 | AP66: 7.3 | AQ66: 6.35 | AR66: 4.7248356 | AS66: 6.8012966 | AT66: 7.5
B67: 12.86123457 | C67: A# 62 | D67: ='Key Leads'!I207 -> 7.135212766 | E67: 6.4 | U67: G 59 | V67: 5.9283 | W67: 6.6077758 | X67: 7.464095 | Y67: 7.0027105 | Z67: 6.5153568 | AA67: 7.1849137 | AB67: 6.545650124 | AC67: 6.3 | AD67: 5.945650124 | AE67: 5.8 | AF67: 6.4 | AG67: 6.0403235 | AH67: G 59 | AI67: 5.8 | AJ67: 6.3 | AK67: 6.4 | AL67: 6.9 | AM67: 6.8014366 | AN67: 5.8014366 | AO67: 6.8014366 | AP67: 7.1 | AQ67: 6.35 | AR67: 4.6593655 | AS67: 6.7208077 | AT67: 7.5
B68: 12.32740741 | C68: B 63 | D68: ='Key Leads'!I208 -> 7.04810592 | E68: 6.3 | H68: NOTE | U68: G# 60 | V68: 5.8585 | W68: 6.5345 | X68: 7.366 | Y68: 6.916 | Z68: 6.4452861 | AA68: 7.1038 | AB68: 6.470352357 | AC68: 6.5 | AD68: 5.870352357 | AE68: 5.7 | AF68: 6.4 | AG68: 5.9621301 | AH68: G# 60 | AI68: 5.7 | AJ68: 6.5 | AK68: 6.4 | AL68: 6.8 | AM68: 6.6892868 | AN68: 5.6892868 | AO68: 6.6892868 | AP68: 7.1 | AQ68: 6.3 | AR68: 4.5933091 | AS68: 6.6393807 | AT68: 7
B69: 12.32740741 | C69: C 64 | D69: ='Key Leads'!I209 -> 6.943577706 | E69: 6.3 | F69: 4.6 | U69: A 61 | V69: 5.7883 | W69: 6.4602962 | X69: 7.266905 | Y69: 6.8287095 | Z69: 6.3748521 | AA69: 7.0221943 | AB69: 6.379995037 | AC69: 6.5 | AD69: 5.779995037 | AE69: 5.7 | AF69: 6.3 | AG69: 5.8828187 | AH69: A 61 | AI69: 5.7 | AJ69: 6.5 | AK69: 6.3 | AL69: 6.65 | AM69: 6.5764176 | AN69: 5.5764176 | AO69: 6.5764176 | AP69: 7.1 | AQ69: 6.11 | AR69: 4.5266664 | AS69: 6.5570155 | AT69: 7
B70: 11.79358025 | C70: C# 65 | D70: ='Key Leads'!I210 -> 6.85647086 | E70: 6.2 | U70: A# 62 | V70: 5.7177 | W70: 6.3851656 | X70: 7.16684 | Y70: 6.740836 | Z70: 6.3040623 | AA70: 6.9400984 | AB70: 6.30469727 | AC70: 6.4 | AD70: 5.70469727 | AE70: 5.6 | AF70: 6.2 | AG70: 5.8023893 | AH70: A# 62 | AI70: 5.6 | AJ70: 6.4 | AK70: 6.2 | AL70: 6.5 | AM70: 6.462829 | AN70: 5.462829 | AO70: 6.462829 | AP70: 6.5 | AQ70: 5.91 | AR70: 4.4594374 | AS70: 6.4737121 | AT70: 6.8
B71: =(((E71+1.5)*$A$3*$A$2)+$A$4)*$A$1-$A$5 -> 10.72592593 | C71: D 66 | D71: ='Key Leads'!I211 -> 6.751942646 | E71: 6 | U71: B 63 | V71: 5.6467 | W71: 6.3091094 | X71: 7.065835 | Y71: 6.6523765 | Z71: 6.232924 | AA71: 6.8575141 | AB71: 6.21433995 | AC71: 6.3 | AD71: 5.61433995 | AE71: 5.75 | AF71: 6.1 | AG71: 5.7208418 | AH71: B 63 | AI71: 5.75 | AJ71: 6.3 | AK71: 6.1 | AL71: 6.4 | AM71: 6.348521 | AN71: 5.348521 | AO71: 6.348521 | AP71: 6.5 | AQ71: 6.29 | AR71: 4.3916221 | AS71: 6.3894706 | AT71: 6.9
B72: 9.658271605 | C72: D# 67 | D72: ='Key Leads'!I212 -> 6.647414431 | E72: 5.8 | U72: C 64 | V72: 5.5753 | W72: 6.2321288 | X72: 6.96392 | Y72: 6.563328 | Z72: 6.161445 | AA72: 6.7744432 | AB72: 6.139042184 | AC72: 6.3 | AD72: 5.539042184 | AE72: 5.6 | AF72: 6 | AG72: 5.6381764 | AH72: C 64 | AI72: 5.6 | AJ72: 6.3 | AK72: 6 | AL72: 6.2 | AM72: 6.2334935 | AN72: 5.2334935 | AO72: 6.2334935 | AP72: 6.4 | AQ72: 5.98 | AR72: 4.3232206 | AS72: 6.304291 | AT72: 6.8
B73: 9.658271605 | C73: E 68 | D73: ='Key Leads'!I213 -> 6.542886216 | E73: 5.8 | T73: Back | U73: C# 65 | V73: 5.5035 | W73: 6.154225 | X73: 6.861125 | Y73: 6.4736875 | Z73: 6.0896325 | AA73: 6.6908875 | AB73: 6.048684864 | AC73: 6.2 | AD73: 5.448684864 | AE73: 5.4 | AF73: 5.9 | AG73: 5.554393 | AH73: C# 65 | AI73: 5.4 | AJ73: 6.2 | AK73: 5.9 | AL73: 6 | AM73: 6.1177466 | AN73: 5.1177466 | AO73: 6.1177466 | AP73: 6.2 | AQ73: 6.07 | AR73: 4.2542327 | AS73: 6.2181732 | AT73: 6.9
B74: 8.590617284 | C74: F 69 | D74: ='Key Leads'!I214 -> 6.438358002 | E74: 5.6 | U74: D 66 | V74: 5.4313 | W74: 6.0753992 | X74: 6.75748 | Y74: 6.383452 | Z74: 6.0174941 | AA74: 6.6068488 | AB74: 5.958327543 | AC74: 6 | AD74: 5.358327543 | AE74: 5.3 | AF74: 5.8 | AG74: 5.4694915 | AH74: D 66 | AI74: 5.3 | AJ74: 6 | AK74: 5.8 | AL74: 5.9 | AM74: 6.0012803 | AN74: =AM74-1 -> 5.0012803 | AO74: 6.0012803 | AP74: 6.2 | AQ74: 5.88 | AR74: 4.1846586 | AS74: 6.1311172 | AT74: 6.7
B75: 8.590617284 | C75: F# 70 | D75: ='Key Leads'!I215 -> 6.316408418 | E75: 5.6 | U75: D# 67 | V75: 5.3587 | W75: 5.9956526 | X75: 6.653015 | Y75: 6.2926185 | Z75: 5.9450373 | AA75: 6.5223289 | AB75: 5.867970223 | AC75: 5.8 | AD75: 5.267970223 | AE75: 5.4 | AF75: 5.5 | AG75: 5.383472 | AH75: D# 67 | AI75: 5.4 | AJ75: 5.8 | AK75: 5.5 | AL75: 5.8 | AM75: 5.8840946 | AN75: 4.8840946 | AO75: 5.8840946 | AP75: 6.2 | AQ75: 5.91 | AR75: 4.1144982 | AS75: 6.0431231 | AT75: 6.7
B76: 8.056790123 | C76: G 71 | D76: ='Key Leads'!I216 -> 6.211880204 | E76: 5.5 | U76: E 68 | V76: 5.2857 | W76: 5.9149864 | X76: 6.54776 | Y76: 6.201184 | Z76: 5.8722696 | AA76: 6.4373296 | AB76: 5.777612903 | AC76: 5.8 | AD76: 5.177612903 | AE76: 5.1 | AF76: 5.5 | AG76: 5.2963346 | AH76: E 68 | AI76: 5.1 | AJ76: 5.8 | AK76: 5.5 | AL76: 5.7 | AM76: 5.7661894 | AN76: 4.7661894 | AO76: 5.7661894 | AP76: 6.1 | AQ76: 6.06 | AR76: 4.0437515 | AS76: 5.9541909 | AT76: 6.5
B77: 6.989135802 | C77: G# 72 | D77: ='Key Leads'!I217 -> 6.107351989 | E77: 5.3 | U77: F 69 | V77: 5.2123 | W77: 5.8334018 | X77: 6.441745 | Y77: 6.1091455 | Z77: 5.7991985 | AA77: 6.3518527 | AB77: 5.67219603 | AC77: 5.6 | AD77: 5.07219603 | AE77: 4.8 | AF77: 5.4 | AG77: 5.2080791 | AH77: F 69 | AI77: 4.8 | AJ77: 5.6 | AK77: 5.4 | AL77: 5.5 | AM77: 5.6475648 | AN77: 4.6475648 | AO77: 5.6475648 | AP77: 5.8 | AQ77: 6 | AR77: 3.9724185 | AS77: 5.8643205 | AT77: 6.5
B78: 6.989135802 | C78: A 73 | D78: ='Key Leads'!I218 -> 5.798075856 | E78: 5.3 | U78: F# 70 | V78: 5.1385 | W78: 5.7509 | X78: 6.335 | Y78: 6.0165 | Z78: 5.7258314 | AA78: 6.2659 | AB78: 5.58183871 | AC78: 5.6 | AD78: 4.98183871 | AE78: 4.7 | AF78: 5.2 | AG78: 5.1187056 | AH78: F# 70 | AI78: 4.7 | AJ78: 5.6 | AK78: 5.2 | AL78: 5.4 | AM78: 5.5282208 | AN78: 4.5282208 | AO78: 5.5282208 | AP78: 5.7 | AQ78: 6.1 | AR78: 3.9004992 | AS78: 5.7735119 | AT78: 6.4
B79: 5.387654321 | C79: A# 74 | D79: ='Key Leads'!I219 -> 5.693547641 | E79: 5 | U79: G 71 | V79: 5.0643 | W79: 5.6674822 | X79: 6.227555 | Y79: 5.9232445 | Z79: 5.6521758 | AA79: 6.1794733 | AB79: 5.49148139 | AC79: 5.5 | AD79: 4.89148139 | AE79: 4.7 | AF79: 4.7 | AG79: 5.0282142 | AH79: G 71 | AI79: 4.7 | AJ79: 5.5 | AK79: 4.7 | AL79: 5.23 | AM79: 5.4081574 | AN79: 4.4081574 | AO79: 5.4081574 | AP79: 5.6 | AQ79: 6.11 | AR79: 3.8279937 | AS79: 5.6817652 | AT79: 5.9
B80: 5.921481481 | C80: B 75 | D80: ='Key Leads'!I220 -> 5.571598057 | E80: 5.1 | U80: G# 72 | V80: 4.9897 | W80: 5.5831496 | X80: 6.11944 | Y80: 5.829376 | Z80: 5.5782393 | AA80: 6.0925744 | AB80: 5.386064516 | AC80: 5.3 | AD80: 4.786064516 | AE80: 4.6 | AF80: 4.7 | AG80: 4.9366047 | AH80: G# 72 | AI80: 4.6 | AJ80: 5.3 | AK80: 4.7 | AL80: 5 | AM80: 5.2873745 | AN80: 4.2873745 | AO80: 5.2873745 | AP80: 5.7 | AQ80: 6 | AR80: 3.7549018 | AS80: 5.5890804 | AT80: 5.7
B81: 6.455308642 | C81: C 76 | D81: ='Key Leads'!I221 -> 5.449648474 | E81: 5.2 | F81: 3.5 | U81: A 73 | V81: 4.9147 | W81: 5.4979034 | X81: 6.010685 | Y81: 5.7348915 | Z81: 5.5040292 | AA81: 6.0052051 | AB81: 5.295707196 | AC81: 5.3 | AD81: 4.695707196 | AE81: 4.5 | AF81: 4.6 | AG81: 4.8438772 | AH81: A 73 | AI81: 4.5 | AJ81: 5.3 | AK81: 4.6 | AL81: 4.9 | AM81: 5.1658722 | AN81: 4.1658722 | AO81: 5.1658722 | AP81: 5.5 | AQ81: 5.91 | AR81: 3.6812237 | AS81: 5.4954574 | AT81: 5.6
B82: 6.455308642 | C82: C# 77 | D82: ='Key Leads'!I222 -> 5.345120259 | E82: 5.2 | U82: A# 74 | V82: 4.8393 | W82: 5.4117448 | X82: 5.90132 | Y82: 5.639788 | Z82: 5.4295532 | AA82: 5.9173672 | AB82: 5.190290323 | AC82: 5 | AD82: 4.590290323 | AE82: 4.4 | AF82: 4.4 | AG82: 4.7500317 | AH82: A# 74 | AI82: 4.4 | AJ82: 5 | AK82: 4.4 | AL82: 4.8 | AM82: 5.0436505 | AN82: 4.0436505 | AO82: 5.0436505 | AP82: 5.5 | AQ82: 5.72 | AR82: 3.6069592 | AS82: 5.4008963 | AT82: 5.5
B83: 4.85382716 | C83: D 78 | D83: ='Key Leads'!I223 -> 5.223170675 | E83: 4.9 | U83: B 75 | V83: 4.7635 | W83: 5.324675 | X83: 5.791375 | Y83: 5.5440625 | Z83: 5.3548186 | AA83: 5.8290625 | AB83: 5.084873449 | AC83: 5.1 | AD83: 4.484873449 | AE83: 4.5 | AF83: 4.3 | AG83: 4.6550682 | AH83: B 75 | AI83: 4.5 | AJ83: 5.1 | AK83: 4.3 | AL83: 4.7 | AM83: 4.9207094 | AN83: 3.9207094 | AO83: 4.9207094 | AP83: 5.4 | AQ83: 5.65 | AR83: 3.5321085 | AS83: 5.305397 | AT83: 5.3
B84: 4.32 | C84: D# 79 | D84: ='Key Leads'!I224 -> 5.101221092 | E84: 4.8 | U84: C 76 | V84: 4.6873 | W84: 5.2366952 | X84: 5.68088 | Y84: 5.447712 | Z84: 5.279833 | AA84: 5.7402928 | AB84: 4.994516129 | AC84: 5.2 | AD84: 4.394516129 | AE84: 4.4 | AF84: 4.3 | AG84: 4.5589866 | AH84: C 76 | AI84: 4.4 | AJ84: 5.2 | AK84: 4.3 | AL84: 4.6 | AM84: 4.7970488 | AN84: 3.7970488 | AO84: 4.7970488 | AP84: 5.6 | AQ84: 5.47 | AR84: 3.4566715 | AS84: 5.2089596 | AT84: 5.1
B85: 3.78617284 | C85: E 80 | D85: ='Key Leads'!I225 -> 4.996692877 | E85: 4.7 | U85: C# 77 | V85: 4.6107 | W85: 5.1478066 | X85: 5.569865 | Y85: 5.3507335 | Z85: 5.2046039 | AA85: 5.6510599 | AB85: 4.889099256 | AC85: 5.2 | AD85: 4.289099256 | AE85: 4.4 | AF85: 4.3 | AG85: 4.4617871 | AH85: C# 77 | AI85: 4.4 | AJ85: 5.2 | AK85: 4.3 | AL85: 4.5 | AM85: 4.6726688 | AN85: 3.6726688 | AO85: 4.6726688 | AP85: 5.7 | AQ85: 5.51 | AR85: 3.3806482 | AS85: 5.111584 | AT85: 5.1
B86: 3.252345679 | C86: F 81 | D86: ='Key Leads'!I226 -> 4.874743293 | E86: 4.6 | U86: D 78 | V86: 4.5337 | W86: 5.0580104 | X86: 5.45836 | Y86: 5.253124 | Z86: 5.1291387 | AA86: 5.5613656 | AB86: 4.783682382 | AC86: 4.9 | AD86: 4.183682382 | AE86: 4.3 | AF86: 4.1 | AG86: 4.3634696 | AH86: D 78 | AI86: 4.3 | AJ86: 4.9 | AK86: 4.1 | AL86: 4.4 | AM86: 4.5475694 | AN86: 3.5475694 | AO86: 4.5475694 | AP86: 5.5 | AQ86: 5.43 | AR86: 3.3040386 | AS86: 5.0132703 | AT86: 5
B87: 1.650864198 | C87: F# 82 | D87: ='Key Leads'!I227 -> 4.75279371 | E87: 4.3 | U87: D# 79 | V87: 4.4563 | W87: 4.9673078 | X87: 5.346395 | Y87: 5.1548805 | Z87: 5.0534449 | AA87: 5.4712117 | AB87: 4.693325062 | AC87: 4.8 | AD87: 4.093325062 | AE87: 4.2 | AF87: 4 | AG87: 4.2640341 | AH87: D# 79 | AI87: 4.2 | AJ87: 4.8 | AK87: 4 | AL87: 4.3 | AM87: 4.4217506 | AN87: 3.4217506 | AO87: 4.4217506 | AP87: 5.2 | AQ87: 5.08 | AR87: 3.2268428 | AS87: 4.9140184 | AT87: 4.9
B88: 2.184691358 | C88: G 83 | D88: ='Key Leads'!I228 -> 4.648265495 | E88: 4.4 | U88: E 80 | V88: 4.3785 | W88: 4.8757 | X88: 5.234 | Y88: 5.056 | Z88: 4.97753 | AA88: 5.3806 | AB88: 4.587908189 | AC88: 4.7 | AD88: 3.987908189 | AE88: 4.2 | AF88: 4 | AG88: 4.1634805 | AH88: E 80 | AI88: 4.2 | AJ88: 4.7 | AK88: 4 | AL88: 4.2 | AM88: 4.2952123 | AN88: 3.2952123 | AO88: 4.2952123 | AP88: 5.5 | AQ88: 5.05 | AR88: 3.1490606 | AS88: 4.8138283 | AT88: 4.8
B89: 2.184691358 | C89: G# 84 | D89: ='Key Leads'!I229 -> 4.526315911 | E89: 4.4 | U89: F 81 | V89: 4.3003 | W89: 4.7831882 | X89: 5.121205 | Y89: 4.9564795 | Z89: 4.9014016 | AA89: 5.2895323 | AB89: 4.482491315 | AC89: 4.6 | AD89: 3.882491315 | AE89: 4.1 | AF89: 4 | AG89: 4.061809 | AH89: F 81 | AI89: 4.1 | AJ89: 4.6 | AK89: 4 | AL89: 4.1 | AM89: 4.1679547 | AN89: 3.1679547 | AO89: 4.1679547 | AP89: 5.6 | AQ89: 5.32 | AR89: 3.0706922 | AS89: 4.7127002 | AT89: 4.7
B90: 2.184691358 | C90: A 85 | D90: ='Key Leads'!I230 -> 4.404366327 | E90: 4.4 | U90: F# 82 | V90: 4.2217 | W90: 4.6897736 | X90: 5.00804 | Y90: 4.856316 | Z90: 4.825067 | AA90: 5.1980104 | AB90: 4.392133995 | AC90: 4.3 | AD90: 3.792133995 | AE90: 4.1 | AF90: 4.1 | AG90: 3.9590194 | AH90: F# 82 | AI90: 4.1 | AJ90: 4.3 | AK90: 4.1 | AL90: 4 | AM90: 4.0399776 | AN90: 3.0399776 | AO90: 4.0399776 | AP90: 5.1 | AQ90: 5.33 | AR90: 2.9917375 | AS90: 4.6106338 | AT90: 4.8
B91: 2.184691358 | C91: A# 86 | D91: ='Key Leads'!I231 -> 4.299838113 | E91: 4.4 | U91: G 83 | V91: 4.1427 | W91: 4.5954574 | X91: 4.894535 | Y91: 4.7555065 | Z91: 4.7485338 | AA91: 5.1060361 | AB91: 4.286717122 | AC91: 4.4 | AD91: 3.686717122 | AE91: 4 | AF91: 4 | AG91: 3.8551118 | AH91: G 83 | AI91: 4 | AJ91: 4.4 | AK91: 4 | AL91: 3.91 | AM91: 3.911281 | AN91: 2.911281 | AO91: 3.911281 | AP91: 5.3 | AQ91: 4.94 | AR91: 2.9121964 | AS91: 4.5076294 | AT91: 4.7
B92: 0.5832098765 | C92: B 87 | D92: ='Key Leads'!I232 -> 4.177888529 | E92: 4.1 | U92: G# 84 | V92: 4.0633 | W92: 4.5002408 | X92: 4.78072 | Y92: 4.654048 | Z92: 4.6718095 | AA92: 5.0136112 | AB92: 4.181300248 | AC92: 4.4 | AD92: 3.581300248 | AE92: 4 | AF92: 3.8 | AG92: 3.7500863 | AH92: G# 84 | AI92: 4 | AJ92: 4.4 | AK92: 3.8 | AL92: 3.9 | AM92: 3.7818651 | AN92: 2.7818651 | AO92: 3.7818651 | AP92: 5.5 | AQ92: 4.69 | AR92: 2.8320691 | AS92: 4.4036867 | AT92: 5.1
B93: -0.4844444444 | C93: C 88 | D93: ='Key Leads'!I233 -> 4.073360315 | E93: 3.9 | F93: 2.3 | U93: A 85 | V93: 3.9835 | W93: 4.404125 | X93: 4.666625 | Y93: 4.5519375 | Z93: 4.5949015 | AA93: 4.9207375 | AB93: 4.090942928 | AC93: 4.4 | AD93: 3.490942928 | AE93: 3.8 | AF93: 3.7 | AG93: 3.6439427 | AH93: A 85 | AI93: 3.8 | AJ93: 4.4 | AK93: 3.7 | AL93: 3.88 | AM93: 3.6517297 | AN93: 2.6517297 | AO93: 3.6517297 | AP93: 5.1 | AQ93: 4.67 | AR93: 2.7513556 | AS93: 4.298806 | AT93: 5.2
U94: A# 86 | V94: 3.9033 | W94: 4.3071112 | X94: 4.55228 | Y94: 4.449172 | Z94: 4.5178174 | AA94: 4.8274168 | AB94: 3.985526055 | AC94: 4.4 | AD94: 3.385526055 | AE94: 3.8 | AF94: 3.7 | AG94: 3.5366811 | AH94: A# 86 | AI94: 3.8 | AJ94: 4.4 | AK94: 3.7 | AL94: 3.84 | AM94: 3.5208749 | AN94: 2.5208749 | AO94: 3.5208749 | AP94: 4.8 | AQ94: 4.52 | AR94: 2.6700557 | AS94: 4.192987 | AT94: 5.1
C95: Avg Ham | D95: =AVERAGE(D6:D93) -> 8.52663393 | E95: =AVERAGE(E6:E93) -> 7.201136364 | F95: =AVERAGE(F6:F93) ->  | U95: B 87 | V95: 3.8227 | W95: 4.2092006 | X95: 4.437715 | Y95: 4.3457485 | Z95: 4.4405646 | AA95: 4.7336509 | AB95: 3.895168734 | AC95: 4.1 | AD95: 3.295168734 | AE95: 3.7 | AF95: 3.7 | AG95: 3.4283015 | AH95: B 87 | AI95: 3.7 | AJ95: 4.1 | AK95: 3.7 | AL95: 3.81 | AM95: 3.3893007 | AN95: 2.3893007 | AO95: 3.3893007 | AP95: 4.7 | AQ95: 4.51 | AR95: 2.5881695 | AS95: 4.08623 | AT95: 5
U96: C 88 | V96: 3.7417 | W96: 4.1103944 | X96: 4.32296 | Y96: 4.241664 | Z96: 4.3631506 | AA96: 4.6394416 | AB96: 3.337965261 | AC96: 3.9 | AD96: 2.737965261 | AE96: 3.7 | AF96: 3.8 | AG96: 3.3188039 | AH96: C 88 | AI96: 3.7 | AJ96: 3.9 | AK96: 3.8 | AL96: 3.77 | AM96: 3.4 | AN96: 2.4 | AO96: 3.4 | AP96: 5 | AQ96: 4.4 | AR96: 2.5056971 | AS96: 3.9785347 | AT96: 5

Sheet My Summary
K2: ='Simple AR Calculator'!C6 -> Krakauer 5'10"
E6: ='Simple AR Calculator'!C8 -> 225 | N6: ='Key Leads'!L144 -> 140.625 | P6: ='Key Leads'!D133 -> 2.184533333e-05
C7: MAXIMUM ALLOWABLE HAMMER WEIGHTS PER PROGRAM | J7: MY HAMMER WEIGHTS per HAMMERS PG.
C8: Note | D8: Maximum Hammer Weight Grams | E8: ='Key Leads'!J145 -> Inertia | F8: Graduated DW | G8: Max Key FWs | H8: Max Key leads Allowed | J8: Note | K8: My Hammer Weights (Gm) | L8: My Key Front Weights | M8: DW graduated scheme | N8: My Leads | O8: My Inertia | P8: Inertia w / est. key Inertia | Q8: ='Key Leads'!K133 -> 8.241111525
Q9: ='Key Leads'!E133 -> 0.1374190671
C10: A 1 | D10: ='Key Leads'!I146 -> 11.74775439 | E10: ='Key Leads'!J146 -> 168.6501949 | F10: ='Key Leads'!F146 -> 53 | G10: ='Key Leads'!C146 -> 38.409 | H10: ='Key Leads'!L146 -> 4.105391304 | J10: A 1 | K10: =Hammers!E6 -> 9.8 | L10: =Hammers!B6 -> 31.01135802 | M10: ='Key Leads'!F146 -> 53 | N10: ='Key Leads'!T146 -> 3.284313043 | O10: ='Key Leads'!R146 -> 143.8543579 | P10: =O10/0.8 -> 179.8179474 | Q10: ='Key Leads'!L54 -> 225
C11: A# 2 | D11: ='Key Leads'!I147 -> 11.71291166 | E11: ='Key Leads'!J147 -> 168.2066303 | F11: ='Key Leads'!F147 -> 53 | G11: ='Key Leads'!C147 -> 38.223 | H11: ='Key Leads'!L147 -> 4.083826087 | J11: A# 2 | K11: =Hammers!E7 -> 9.5 | L11: =Hammers!B7 -> 29.40987654 | M11: ='Key Leads'!F147 -> 53 | N11: ='Key Leads'!T147 -> 3.26706087 | O11: ='Key Leads'!R147 -> 140.0352157 | P11: =O11/0.8 -> 175.0440196 | Q11: ='Key Leads'!N58 -> 140.625
C12: B 3 | D12: ='Key Leads'!I148 -> 11.66064755 | E12: ='Key Leads'!J148 -> 167.5412835 | F12: ='Key Leads'!F148 -> 53 | G12: ='Key Leads'!C148 -> 37.944 | H12: ='Key Leads'!L148 -> 4.051478261 | J12: B 3 | K12: =Hammers!E8 -> 9.2 | L12: =Hammers!B8 -> 27.80839506 | M12: ='Key Leads'!F148 -> 53 | N12: ='Key Leads'!T148 -> 3.241182609 | O12: ='Key Leads'!R148 -> 136.2160734 | P12: 170.2700918 | Q12: ='Key Leads'!M72 -> 13.8
C13: C 4 | D13: ='Key Leads'!I149 -> 11.62580481 | E13: ='Key Leads'!J149 -> 167.0977189 | F13: ='Key Leads'!F149 -> 53 | G13: ='Key Leads'!C149 -> 37.758 | H13: ='Key Leads'!L149 -> 4.029913043 | J13: C 4 | K13: =Hammers!E9 -> 9.1 | L13: =Hammers!B9 -> 27.2745679 | M13: ='Key Leads'!F149 -> 53 | N13: ='Key Leads'!T149 -> 3.223930435 | O13: ='Key Leads'!R149 -> 134.943026 | P13: 168.6787825
C14: C# 5 | D14: ='Key Leads'!I150 -> 11.5735407 | E14: ='Key Leads'!J150 -> 166.432372 | F14: ='Key Leads'!F150 -> 53 | G14: ='Key Leads'!C150 -> 37.479 | H14: ='Key Leads'!L150 -> 3.997565217 | J14: C# 5 | K14: =Hammers!E10 -> 9.1 | L14: =Hammers!B10 -> 27.2745679 | M14: ='Key Leads'!F150 -> 53 | N14: ='Key Leads'!T150 -> 3.198052174 | O14: ='Key Leads'!R150 -> 134.943026 | P14: 168.6787825
C15: D 6 | D15: ='Key Leads'!I151 -> 11.53869796 | E15: ='Key Leads'!J151 -> 165.9888074 | F15: ='Key Leads'!F151 -> 53 | G15: ='Key Leads'!C151 -> 37.293 | H15: ='Key Leads'!L151 -> 3.976 | J15: D 6 | K15: =Hammers!E11 -> 9.1 | L15: =Hammers!B11 -> 27.2745679 | M15: ='Key Leads'!F151 -> 53 | N15: ='Key Leads'!T151 -> 3.1808 | O15: ='Key Leads'!R151 -> 134.943026 | P15: 168.6787825
C16: D# 7 | D16: ='Key Leads'!I152 -> 11.48643386 | E16: ='Key Leads'!J152 -> 165.3234606 | F16: ='Key Leads'!F152 -> 53 | G16: ='Key Leads'!C152 -> 37.014 | H16: ='Key Leads'!L152 -> 3.943652174 | J16: D# 7 | K16: =Hammers!E12 -> 8.9 | L16: =Hammers!B12 -> 26.20691358 | M16: ='Key Leads'!F152 -> 53 | N16: ='Key Leads'!T152 -> 3.154921739 | O16: ='Key Leads'!R152 -> 132.3969312 | P16: 165.496164
C17: E 8 | D17: ='Key Leads'!I153 -> 11.43416975 | E17: ='Key Leads'!J153 -> 164.6581137 | F17: ='Key Leads'!F153 -> 53 | G17: ='Key Leads'!C153 -> 36.735 | H17: ='Key Leads'!L153 -> 3.911304348 | J17: E 8 | K17: =Hammers!E13 -> 8.7 | L17: =Hammers!B13 -> 25.13925926 | M17: ='Key Leads'!F153 -> 53 | N17: ='Key Leads'!T153 -> 3.129043478 | O17: ='Key Leads'!R153 -> 129.8508364 | P17: 162.3135454
C18: F 9 | D18: ='Key Leads'!I154 -> 11.39932701 | E18: ='Key Leads'!J154 -> 164.2145491 | F18: ='Key Leads'!F154 -> 53 | G18: ='Key Leads'!C154 -> 36.549 | H18: ='Key Leads'!L154 -> 3.88973913 | J18: F 9 | K18: =Hammers!E14 -> 8.7 | L18: =Hammers!B14 -> 25.13925926 | M18: ='Key Leads'!F154 -> 53 | N18: ='Key Leads'!T154 -> 3.111791304 | O18: ='Key Leads'!R154 -> 129.8508364 | P18: 162.3135454
C19: F# 10 | D19: ='Key Leads'!I155 -> 11.3470629 | E19: ='Key Leads'!J155 -> 163.5492022 | F19: ='Key Leads'!F155 -> 53 | G19: ='Key Leads'!C155 -> 36.27 | H19: ='Key Leads'!L155 -> 3.857391304 | J19: F# 10 | K19: =Hammers!E15 -> 8.7 | L19: =Hammers!B15 -> 25.13925926 | M19: ='Key Leads'!F155 -> 53 | N19: ='Key Leads'!T155 -> 3.085913043 | O19: ='Key Leads'!R155 -> 129.8508364 | P19: 162.3135454
C20: G 11 | D20: ='Key Leads'!I156 -> 11.31222017 | E20: ='Key Leads'!J156 -> 163.1056377 | F20: ='Key Leads'!F156 -> 53 | G20: ='Key Leads'!C156 -> 36.084 | H20: ='Key Leads'!L156 -> 3.835826087 | J20: G 11 | K20: =Hammers!E16 -> 8.8 | L20: =Hammers!B16 -> 25.67308642 | M20: ='Key Leads'!F156 -> 53 | N20: ='Key Leads'!T156 -> 3.06866087 | O20: ='Key Leads'!R156 -> 131.1238838 | P20: 163.9048547
C21: G# 12 | D21: ='Key Leads'!I157 -> 11.25995606 | E21: ='Key Leads'!J157 -> 162.4402908 | F21: ='Key Leads'!F157 -> 53 | G21: ='Key Leads'!C157 -> 35.805 | H21: ='Key Leads'!L157 -> 3.803478261 | J21: G# 12 | K21: =Hammers!E17 -> 8.7 | L21: =Hammers!B17 -> 25.13925926 | M21: ='Key Leads'!F157 -> 53 | N21: ='Key Leads'!T157 -> 3.042782609 | O21: ='Key Leads'!R157 -> 129.8508364 | P21: 162.3135454
C22: A 13 | D22: ='Key Leads'!I158 -> 11.03778677 | E22: ='Key Leads'!J158 -> 159.6119704 | F22: ='Key Leads'!F158 -> 52 | G22: ='Key Leads'!C158 -> 35.619 | H22: ='Key Leads'!L158 -> 3.897855072 | J22: A 13 | K22: =Hammers!E18 -> 9.3 | L22: =Hammers!B18 -> 28.34222222 | M22: ='Key Leads'!F158 -> 52 | N22: ='Key Leads'!T158 -> 3.118284058 | O22: ='Key Leads'!R158 -> 137.4891209 | P22: 171.8614011
C23: A# 14 | D23: ='Key Leads'!I159 -> 10.98552266 | E23: ='Key Leads'!J159 -> 158.9466236 | F23: ='Key Leads'!F159 -> 52 | G23: ='Key Leads'!C159 -> 35.34 | H23: ='Key Leads'!L159 -> 3.865507246 | J23: A# 14 | K23: =Hammers!E19 -> 9.1 | L23: =Hammers!B19 -> 27.2745679 | M23: ='Key Leads'!F159 -> 52 | N23: ='Key Leads'!T159 -> 3.092405797 | O23: ='Key Leads'!R159 -> 134.943026 | P23: 168.6787825
C24: B 15 | D24: ='Key Leads'!I160 -> 10.95067993 | E24: ='Key Leads'!J160 -> 158.503059 | F24: ='Key Leads'!F160 -> 52 | G24: ='Key Leads'!C160 -> 35.154 | H24: ='Key Leads'!L160 -> 3.843942029 | J24: B 15 | K24: =Hammers!E20 -> 8.9 | L24: =Hammers!B20 -> 26.20691358 | M24: ='Key Leads'!F160 -> 52 | N24: ='Key Leads'!T160 -> 3.075153623 | O24: ='Key Leads'!R160 -> 132.3969312 | P24: 165.496164
C25: C 16 | D25: ='Key Leads'!I161 -> 10.89841582 | E25: ='Key Leads'!J161 -> 157.8377121 | F25: ='Key Leads'!F161 -> 52 | G25: ='Key Leads'!C161 -> 34.875 | H25: ='Key Leads'!L161 -> 3.811594203 | J25: C 16 | K25: =Hammers!E21 -> 9 | L25: =Hammers!B21 -> 26.74074074 | M25: ='Key Leads'!F161 -> 52 | N25: ='Key Leads'!T161 -> 3.049275362 | O25: ='Key Leads'!R161 -> 133.6699786 | P25: 167.0874733
C26: C# 17 | D26: ='Key Leads'!I162 -> 10.84615171 | E26: ='Key Leads'!J162 -> 157.1723652 | F26: ='Key Leads'!F162 -> 52 | G26: ='Key Leads'!C162 -> 34.596 | H26: ='Key Leads'!L162 -> 3.779246377 | J26: C# 17 | K26: =Hammers!E22 -> 8.9 | L26: =Hammers!B22 -> 26.20691358 | M26: ='Key Leads'!F162 -> 52 | N26: ='Key Leads'!T162 -> 3.023397101 | O26: ='Key Leads'!R162 -> 132.3969312 | P26: 165.496164
C27: D 18 | D27: ='Key Leads'!I163 -> 10.81130897 | E27: ='Key Leads'!J163 -> 156.7288007 | F27: ='Key Leads'!F163 -> 52 | G27: ='Key Leads'!C163 -> 34.41 | H27: ='Key Leads'!L163 -> 3.757681159 | J27: D 18 | K27: =Hammers!E23 -> 8.8 | L27: =Hammers!B23 -> 25.67308642 | M27: ='Key Leads'!F163 -> 52 | N27: ='Key Leads'!T163 -> 3.006144928 | O27: ='Key Leads'!R163 -> 131.1238838 | P27: 163.9048547
C28: D# 19 | D28: ='Key Leads'!I164 -> 10.75904487 | E28: ='Key Leads'!J164 -> 156.0634538 | F28: ='Key Leads'!F164 -> 52 | G28: ='Key Leads'!C164 -> 34.131 | H28: ='Key Leads'!L164 -> 3.725333333 | J28: D# 19 | K28: =Hammers!E24 -> 8.7 | L28: =Hammers!B24 -> 25.13925926 | M28: ='Key Leads'!F164 -> 52 | N28: ='Key Leads'!T164 -> 2.980266667 | O28: ='Key Leads'!R164 -> 129.8508364 | P28: 162.3135454
C29: E 20 | D29: ='Key Leads'!I165 -> 10.70678076 | E29: ='Key Leads'!J165 -> 155.3981069 | F29: ='Key Leads'!F165 -> 52 | G29: ='Key Leads'!C165 -> 33.852 | H29: ='Key Leads'!L165 -> 3.692985507 | J29: E 20 | K29: =Hammers!E25 -> 8.7 | L29: =Hammers!B25 -> 25.13925926 | M29: ='Key Leads'!F165 -> 52 | N29: ='Key Leads'!T165 -> 2.954388406 | O29: ='Key Leads'!R165 -> 129.8508364 | P29: 162.3135454
C30: F 21 | D30: ='Key Leads'!I166 -> 10.65451665 | E30: ='Key Leads'!J166 -> 154.7327601 | F30: ='Key Leads'!F166 -> 52 | G30: ='Key Leads'!C166 -> 33.573 | H30: ='Key Leads'!L166 -> 3.660637681 | J30: F 21 | K30: =Hammers!E26 -> 8.7 | L30: =Hammers!B26 -> 25.13925926 | M30: ='Key Leads'!F166 -> 52 | N30: ='Key Leads'!T166 -> 2.928510145 | O30: ='Key Leads'!R166 -> 129.8508364 | P30: 162.3135454
C31: F# 22 | D31: ='Key Leads'!I167 -> 10.60225254 | E31: ='Key Leads'!J167 -> 154.0674132 | F31: ='Key Leads'!F167 -> 52 | G31: ='Key Leads'!C167 -> 33.294 | H31: ='Key Leads'!L167 -> 3.628289855 | J31: F# 22 | K31: =Hammers!E27 -> 8.6 | L31: =Hammers!B27 -> 24.6054321 | M31: ='Key Leads'!F167 -> 52 | N31: ='Key Leads'!T167 -> 2.902631884 | O31: ='Key Leads'!R167 -> 128.5777889 | P31: 160.7222362
C32: G 23 | D32: ='Key Leads'!I168 -> 10.54998844 | E32: ='Key Leads'!J168 -> 153.4020663 | F32: ='Key Leads'!F168 -> 52 | G32: ='Key Leads'!C168 -> 33.015 | H32: ='Key Leads'!L168 -> 3.595942029 | J32: G 23 | K32: =Hammers!E28 -> 8.8 | L32: =Hammers!B28 -> 25.67308642 | M32: ='Key Leads'!F168 -> 52 | N32: ='Key Leads'!T168 -> 2.876753623 | O32: ='Key Leads'!R168 -> 131.1238838 | P32: 163.9048547
C33: G# 24 | D33: ='Key Leads'!I169 -> 10.49772433 | E33: ='Key Leads'!J169 -> 152.7367195 | F33: ='Key Leads'!F169 -> 52 | G33: ='Key Leads'!C169 -> 32.736 | H33: ='Key Leads'!L169 -> 3.563594203 | J33: G# 24 | K33: =Hammers!E29 -> 8.8 | L33: =Hammers!B29 -> 25.67308642 | M33: ='Key Leads'!F169 -> 52 | N33: ='Key Leads'!T169 -> 2.850875362 | O33: ='Key Leads'!R169 -> 131.1238838 | P33: 163.9048547
C34: A 25 | D34: ='Key Leads'!I170 -> 10.25813367 | E34: ='Key Leads'!J170 -> 149.6866168 | F34: ='Key Leads'!F170 -> 51 | G34: ='Key Leads'!C170 -> 32.457 | H34: ='Key Leads'!L170 -> 3.647188406 | J34: A 25 | K34: =Hammers!E30 -> 8.9 | L34: =Hammers!B30 -> 26.20691358 | M34: ='Key Leads'!F170 -> 51 | N34: ='Key Leads'!T170 -> 2.917750725 | O34: ='Key Leads'!R170 -> 132.3969312 | P34: 165.496164
C35: A# 26 | D35: ='Key Leads'!I171 -> 10.20586957 | E35: ='Key Leads'!J171 -> 149.0212699 | F35: ='Key Leads'!F171 -> 51 | G35: ='Key Leads'!C171 -> 32.178 | H35: ='Key Leads'!L171 -> 3.61484058 | J35: A# 26 | K35: =Hammers!E31 -> 8.8 | L35: =Hammers!B31 -> 25.67308642 | M35: ='Key Leads'!F171 -> 51 | N35: ='Key Leads'!T171 -> 2.891872464 | O35: ='Key Leads'!R171 -> 131.1238838 | P35: 163.9048547
C36: B 27 | D36: ='Key Leads'!I172 -> 10.15360546 | E36: ='Key Leads'!J172 -> 148.3559231 | F36: ='Key Leads'!F172 -> 51 | G36: ='Key Leads'!C172 -> 31.899 | H36: ='Key Leads'!L172 -> 3.582492754 | J36: B 27 | K36: =Hammers!E32 -> 8.2 | L36: =Hammers!B32 -> 22.47012346 | M36: ='Key Leads'!F172 -> 51 | N36: ='Key Leads'!T172 -> 2.865994203 | O36: ='Key Leads'!R172 -> 123.4855993 | P36: 154.3569991
C37: C 28 | D37: ='Key Leads'!I173 -> 10.10134135 | E37: ='Key Leads'!J173 -> 147.6905762 | F37: ='Key Leads'!F173 -> 51 | G37: ='Key Leads'!C173 -> 31.62 | H37: ='Key Leads'!L173 -> 3.550144928 | J37: C 28 | K37: =Hammers!E33 -> 8.2 | L37: =Hammers!B33 -> 22.47012346 | M37: ='Key Leads'!F173 -> 51 | N37: ='Key Leads'!T173 -> 2.840115942 | O37: ='Key Leads'!R173 -> 123.4855993 | P37: 154.3569991
C38: C# 29 | D38: ='Key Leads'!I174 -> 10.04907724 | E38: ='Key Leads'!J174 -> 147.0252293 | F38: ='Key Leads'!F174 -> 51 | G38: ='Key Leads'!C174 -> 31.341 | H38: ='Key Leads'!L174 -> 3.517797101 | J38: C# 29 | K38: =Hammers!E34 -> 8.3 | L38: =Hammers!B34 -> 23.00395062 | M38: ='Key Leads'!F174 -> 51 | N38: ='Key Leads'!T174 -> 2.814237681 | O38: ='Key Leads'!R174 -> 124.7586467 | P38: 155.9483084
C39: D 30 | D39: ='Key Leads'!I175 -> 9.979391767 | E39: ='Key Leads'!J175 -> 146.1381002 | F39: ='Key Leads'!F175 -> 51 | G39: ='Key Leads'!C175 -> 30.969 | H39: ='Key Leads'!L175 -> 3.474666667 | J39: D 30 | K39: =Hammers!E35 -> 8.2 | L39: =Hammers!B35 -> 22.47012346 | M39: ='Key Leads'!F175 -> 51 | N39: ='Key Leads'!T175 -> 2.779733333 | O39: ='Key Leads'!R175 -> 123.4855993 | P39: 154.3569991
C40: D# 31 | D40: ='Key Leads'!I176 -> 9.92712766 | E40: ='Key Leads'!J176 -> 145.4727533 | F40: ='Key Leads'!F176 -> 51 | G40: ='Key Leads'!C176 -> 30.69 | H40: ='Key Leads'!L176 -> 3.442318841 | J40: D# 31 | K40: =Hammers!E36 -> 8.2 | L40: =Hammers!B36 -> 22.47012346 | M40: ='Key Leads'!F176 -> 51 | N40: ='Key Leads'!T176 -> 2.753855072 | O40: ='Key Leads'!R176 -> 123.4855993 | P40: 154.3569991
C41: E 32 | D41: ='Key Leads'!I177 -> 9.874863552 | E41: ='Key Leads'!J177 -> 144.8074064 | F41: ='Key Leads'!F177 -> 51 | G41: ='Key Leads'!C177 -> 30.411 | H41: ='Key Leads'!L177 -> 3.409971014 | J41: E 32 | K41: =Hammers!E37 -> 7.9 | L41: =Hammers!B37 -> 20.86864198 | M41: ='Key Leads'!F177 -> 51 | N41: ='Key Leads'!T177 -> 2.727976812 | O41: ='Key Leads'!R177 -> 119.666457 | P41: 149.5830713
C42: F 33 | D42: ='Key Leads'!I178 -> 9.822599445 | E42: ='Key Leads'!J178 -> 144.1420596 | F42: ='Key Leads'!F178 -> 51 | G42: ='Key Leads'!C178 -> 30.132 | H42: ='Key Leads'!L178 -> 3.377623188 | J42: F 33 | K42: =Hammers!E38 -> 7.8 | L42: =Hammers!B38 -> 20.33481481 | M42: ='Key Leads'!F178 -> 51 | N42: ='Key Leads'!T178 -> 2.702098551 | O42: ='Key Leads'!R178 -> 118.3934096 | P42: 147.991762
C43: F# 34 | D43: ='Key Leads'!I179 -> 9.770335338 | E43: ='Key Leads'!J179 -> 143.4767127 | F43: ='Key Leads'!F179 -> 51 | G43: ='Key Leads'!C179 -> 29.853 | H43: ='Key Leads'!L179 -> 3.345275362 | J43: F# 34 | K43: =Hammers!E39 -> 8 | L43: =Hammers!B39 -> 21.40246914 | M43: ='Key Leads'!F179 -> 51 | N43: ='Key Leads'!T179 -> 2.67622029 | O43: ='Key Leads'!R179 -> 120.9395045 | P43: 151.1743806
C44: G 35 | D44: ='Key Leads'!I180 -> 9.700649861 | E44: ='Key Leads'!J180 -> 142.5895836 | F44: ='Key Leads'!F180 -> 51 | G44: ='Key Leads'!C180 -> 29.481 | H44: ='Key Leads'!L180 -> 3.302144928 | J44: G 35 | K44: =Hammers!E40 -> 8 | L44: =Hammers!B40 -> 21.40246914 | M44: ='Key Leads'!F180 -> 51 | N44: ='Key Leads'!T180 -> 2.641715942 | O44: ='Key Leads'!R180 -> 120.9395045 | P44: 151.1743806
C45: G# 36 | D45: ='Key Leads'!I181 -> 9.648385754 | E45: ='Key Leads'!J181 -> 141.9242367 | F45: ='Key Leads'!F181 -> 51 | G45: ='Key Leads'!C181 -> 29.202 | H45: ='Key Leads'!L181 -> 3.269797101 | J45: G# 36 | K45: =Hammers!E41 -> 8.1 | L45: =Hammers!B41 -> 21.9362963 | M45: ='Key Leads'!F181 -> 51 | N45: ='Key Leads'!T181 -> 2.615837681 | O45: ='Key Leads'!R181 -> 122.2125519 | P45: 152.7656898
C46: A 37 | D46: ='Key Leads'!I182 -> 9.391373728 | E46: ='Key Leads'!J182 -> 138.6523517 | F46: ='Key Leads'!F182 -> 50 | G46: ='Key Leads'!C182 -> 28.83 | H46: ='Key Leads'!L182 -> 3.342608696 | J46: A 37 | K46: =Hammers!E42 -> 8.1 | L46: =Hammers!B42 -> 21.9362963 | M46: ='Key Leads'!F182 -> 50 | N46: ='Key Leads'!T182 -> 2.674086957 | O46: ='Key Leads'!R182 -> 122.2125519 | P46: 152.7656898
C47: A# 38 | D47: ='Key Leads'!I183 -> 9.339109621 | E47: ='Key Leads'!J183 -> 137.9870049 | F47: ='Key Leads'!F183 -> 50 | G47: ='Key Leads'!C183 -> 28.551 | H47: ='Key Leads'!L183 -> 3.31026087 | J47: A# 38 | K47: =Hammers!E43 -> 7.9 | L47: =Hammers!B43 -> 20.86864198 | M47: ='Key Leads'!F183 -> 50 | N47: ='Key Leads'!T183 -> 2.648208696 | O47: ='Key Leads'!R183 -> 119.666457 | P47: 149.5830713
C48: B 39 | D48: ='Key Leads'!I184 -> 9.286845513 | E48: ='Key Leads'!J184 -> 137.321658 | F48: ='Key Leads'!F184 -> 50 | G48: ='Key Leads'!C184 -> 28.272 | H48: ='Key Leads'!L184 -> 3.277913043 | J48: B 39 | K48: =Hammers!E44 -> 7.9 | L48: =Hammers!B44 -> 20.86864198 | M48: ='Key Leads'!F184 -> 50 | N48: ='Key Leads'!T184 -> 2.622330435 | O48: ='Key Leads'!R184 -> 119.666457 | P48: 149.5830713
C49: C 40 | D49: ='Key Leads'!I185 -> 9.217160037 | E49: ='Key Leads'!J185 -> 136.4345288 | F49: ='Key Leads'!F185 -> 50 | G49: ='Key Leads'!C185 -> 27.9 | H49: ='Key Leads'!L185 -> 3.234782609 | J49: C 40 | K49: =Hammers!E45 -> 7.8 | L49: =Hammers!B45 -> 20.33481481 | M49: ='Key Leads'!F185 -> 50 | N49: ='Key Leads'!T185 -> 2.587826087 | O49: ='Key Leads'!R185 -> 118.3934096 | P49: 147.991762
C50: C# 41 | D50: ='Key Leads'!I186 -> 9.147474561 | E50: ='Key Leads'!J186 -> 135.5473997 | F50: ='Key Leads'!F186 -> 50 | G50: ='Key Leads'!C186 -> 27.528 | H50: ='Key Leads'!L186 -> 3.191652174 | J50: C# 41 | K50: =Hammers!E46 -> 7.8 | L50: =Hammers!B46 -> 20.33481481 | M50: ='Key Leads'!F186 -> 50 | N50: ='Key Leads'!T186 -> 2.553321739 | O50: ='Key Leads'!R186 -> 118.3934096 | P50: 147.991762
C51: D 42 | D51: ='Key Leads'!I187 -> 9.095210453 | E51: ='Key Leads'!J187 -> 134.8820528 | F51: ='Key Leads'!F187 -> 50 | G51: ='Key Leads'!C187 -> 27.249 | H51: ='Key Leads'!L187 -> 3.159304348 | J51: D 42 | K51: =Hammers!E47 -> 7.8 | L51: =Hammers!B47 -> 20.33481481 | M51: ='Key Leads'!F187 -> 50 | N51: ='Key Leads'!T187 -> 2.527443478 | O51: ='Key Leads'!R187 -> 118.3934096 | P51: 147.991762
C52: D# 43 | D52: ='Key Leads'!I188 -> 9.025524977 | E52: ='Key Leads'!J188 -> 133.9949237 | F52: ='Key Leads'!F188 -> 50 | G52: ='Key Leads'!C188 -> 26.877 | H52: ='Key Leads'!L188 -> 3.116173913 | J52: D# 43 | K52: =Hammers!E48 -> 7.7 | L52: =Hammers!B48 -> 19.80098765 | M52: ='Key Leads'!F188 -> 50 | N52: ='Key Leads'!T188 -> 2.49293913 | O52: ='Key Leads'!R188 -> 117.1203622 | P52: 146.4004528
C53: E 44 | D53: ='Key Leads'!I189 -> 8.9558395 | E53: ='Key Leads'!J189 -> 133.1077945 | F53: ='Key Leads'!F189 -> 50 | G53: ='Key Leads'!C189 -> 26.505 | H53: ='Key Leads'!L189 -> 3.073043478 | J53: E 44 | K53: =Hammers!E49 -> 7.6 | L53: =Hammers!B49 -> 19.26716049 | M53: ='Key Leads'!F189 -> 50 | N53: ='Key Leads'!T189 -> 2.458434783 | O53: ='Key Leads'!R189 -> 115.8473148 | P53: 144.8091435
C54: F 45 | D54: ='Key Leads'!I190 -> 8.886154024 | E54: ='Key Leads'!J190 -> 132.2206654 | F54: ='Key Leads'!F190 -> 50 | G54: ='Key Leads'!C190 -> 26.133 | H54: ='Key Leads'!L190 -> 3.029913043 | J54: F 45 | K54: =Hammers!E50 -> 7.7 | L54: =Hammers!B50 -> 19.80098765 | M54: ='Key Leads'!F190 -> 50 | N54: ='Key Leads'!T190 -> 2.423930435 | O54: ='Key Leads'!R190 -> 117.1203622 | P54: 146.4004528
C55: F# 46 | D55: ='Key Leads'!I191 -> 8.816468548 | E55: ='Key Leads'!J191 -> 131.3335362 | F55: ='Key Leads'!F191 -> 50 | G55: ='Key Leads'!C191 -> 25.761 | H55: ='Key Leads'!L191 -> 2.986782609 | J55: F# 46 | K55: =Hammers!E51 -> 7.6 | L55: =Hammers!B51 -> 19.26716049 | M55: ='Key Leads'!F191 -> 50 | N55: ='Key Leads'!T191 -> 2.389426087 | O55: ='Key Leads'!R191 -> 115.8473148 | P55: 144.8091435
C56: G 47 | D56: ='Key Leads'!I192 -> 8.746783071 | E56: ='Key Leads'!J192 -> 130.446407 | F56: ='Key Leads'!F192 -> 50 | G56: ='Key Leads'!C192 -> 25.389 | H56: ='Key Leads'!L192 -> 2.943652174 | J56: G 47 | K56: =Hammers!E52 -> 7.5 | L56: =Hammers!B52 -> 18.73333333 | M56: ='Key Leads'!F192 -> 50 | N56: ='Key Leads'!T192 -> 2.354921739 | O56: ='Key Leads'!R192 -> 114.5742674 | P56: 143.2178342
C57: G# 48 | D57: ='Key Leads'!I193 -> 8.677097595 | E57: ='Key Leads'!J193 -> 129.5592779 | F57: ='Key Leads'!F193 -> 50 | G57: ='Key Leads'!C193 -> 25.017 | H57: ='Key Leads'!L193 -> 2.900521739 | J57: G# 48 | K57: =Hammers!E53 -> 7.3 | L57: =Hammers!B53 -> 17.66567901 | M57: ='Key Leads'!F193 -> 50 | N57: ='Key Leads'!T193 -> 2.320417391 | O57: ='Key Leads'!R193 -> 112.0281725 | P57: 140.0352157
C58: A 49 | D58: ='Key Leads'!I194 -> 8.4026642 | E58: ='Key Leads'!J194 -> 126.0656106 | F58: ='Key Leads'!F194 -> 49 | G58: ='Key Leads'!C194 -> 24.552 | H58: ='Key Leads'!L194 -> 2.962550725 | J58: A 49 | K58: =Hammers!E54 -> 7.2 | L58: =Hammers!B54 -> 17.13185185 | M58: ='Key Leads'!F194 -> 49 | N58: ='Key Leads'!T194 -> 2.37004058 | O58: ='Key Leads'!R194 -> 110.7551251 | P58: 138.4439064
C59: A# 50 | D59: ='Key Leads'!I195 -> 8.332978723 | E59: ='Key Leads'!J195 -> 125.1784815 | F59: ='Key Leads'!F195 -> 49 | G59: ='Key Leads'!C195 -> 24.18 | H59: ='Key Leads'!L195 -> 2.91942029 | J59: A# 50 | K59: =Hammers!E55 -> 7.2 | L59: =Hammers!B55 -> 17.13185185 | M59: ='Key Leads'!F195 -> 49 | N59: ='Key Leads'!T195 -> 2.335536232 | O59: ='Key Leads'!R195 -> 110.7551251 | P59: 138.4439064
C60: B 51 | D60: ='Key Leads'!I196 -> 8.263293247 | E60: ='Key Leads'!J196 -> 124.2913523 | F60: ='Key Leads'!F196 -> 49 | G60: ='Key Leads'!C196 -> 23.808 | H60: ='Key Leads'!L196 -> 2.876289855 | J60: B 51 | K60: =Hammers!E56 -> 7.2 | L60: =Hammers!B56 -> 17.13185185 | M60: ='Key Leads'!F196 -> 49 | N60: ='Key Leads'!T196 -> 2.301031884 | O60: ='Key Leads'!R196 -> 110.7551251 | P60: 138.4439064
C61: C 52 | D61: ='Key Leads'!I197 -> 8.176186401 | E61: ='Key Leads'!J197 -> 123.1824409 | F61: ='Key Leads'!F197 -> 49 | G61: ='Key Leads'!C197 -> 23.343 | H61: ='Key Leads'!L197 -> 2.822376812 | J61: C 52 | K61: =Hammers!E57 -> 7.1 | L61: =Hammers!B57 -> 16.59802469 | M61: ='Key Leads'!F197 -> 49 | N61: ='Key Leads'!T197 -> 2.257901449 | O61: ='Key Leads'!R197 -> 109.4820777 | P61: 136.8525971
C62: C# 53 | D62: ='Key Leads'!I198 -> 8.106500925 | E62: ='Key Leads'!J198 -> 122.2953117 | F62: ='Key Leads'!F198 -> 49 | G62: ='Key Leads'!C198 -> 22.971 | H62: ='Key Leads'!L198 -> 2.779246377 | J62: C# 53 | K62: =Hammers!E58 -> 7 | L62: =Hammers!B58 -> 16.06419753 | M62: ='Key Leads'!F198 -> 49 | N62: ='Key Leads'!T198 -> 2.223397101 | O62: ='Key Leads'!R198 -> 108.2090303 | P62: 135.2612879
C63: D 54 | D63: ='Key Leads'!I199 -> 8.01939408 | E63: ='Key Leads'!J199 -> 121.1864003 | F63: ='Key Leads'!F199 -> 49 | G63: ='Key Leads'!C199 -> 22.506 | H63: ='Key Leads'!L199 -> 2.725333333 | J63: D 54 | K63: =Hammers!E59 -> 6.9 | L63: =Hammers!B59 -> 15.53037037 | M63: ='Key Leads'!F199 -> 49 | N63: ='Key Leads'!T199 -> 2.180266667 | O63: ='Key Leads'!R199 -> 106.9359829 | P63: 133.6699786
C64: D# 55 | D64: ='Key Leads'!I200 -> 7.949708603 | E64: ='Key Leads'!J200 -> 120.2992711 | F64: ='Key Leads'!F200 -> 49 | G64: ='Key Leads'!C200 -> 22.134 | H64: ='Key Leads'!L200 -> 2.682202899 | J64: D# 55 | K64: =Hammers!E60 -> 6.9 | L64: =Hammers!B60 -> 15.53037037 | M64: ='Key Leads'!F200 -> 49 | N64: ='Key Leads'!T200 -> 2.145762319 | O64: ='Key Leads'!R200 -> 106.9359829 | P64: 133.6699786
C65: E 56 | D65: ='Key Leads'!I201 -> 7.862601758 | E65: ='Key Leads'!J201 -> 119.1903597 | F65: ='Key Leads'!F201 -> 49 | G65: ='Key Leads'!C201 -> 21.669 | H65: ='Key Leads'!L201 -> 2.628289855 | J65: E 56 | K65: =Hammers!E61 -> 6.6 | L65: =Hammers!B61 -> 13.92888889 | M65: ='Key Leads'!F201 -> 49 | N65: ='Key Leads'!T201 -> 2.102631884 | O65: ='Key Leads'!R201 -> 103.1168406 | P65: 128.8960508
C66: F 57 | D66: ='Key Leads'!I202 -> 7.775494912 | E66: ='Key Leads'!J202 -> 118.0814482 | F66: ='Key Leads'!F202 -> 49 | G66: ='Key Leads'!C202 -> 21.204 | H66: ='Key Leads'!L202 -> 2.574376812 | J66: F 57 | K66: =Hammers!E62 -> 6.5 | L66: =Hammers!B62 -> 13.39506173 | M66: ='Key Leads'!F202 -> 49 | N66: ='Key Leads'!T202 -> 2.059501449 | O66: ='Key Leads'!R202 -> 101.8437932 | P66: 127.3047415
C67: F# 58 | D67: ='Key Leads'!I203 -> 7.688388067 | E67: ='Key Leads'!J203 -> 116.9725368 | F67: ='Key Leads'!F203 -> 49 | G67: ='Key Leads'!C203 -> 20.739 | H67: ='Key Leads'!L203 -> 2.520463768 | J67: F# 58 | K67: =Hammers!E63 -> 6.4 | L67: =Hammers!B63 -> 12.86123457 | M67: ='Key Leads'!F203 -> 49 | N67: ='Key Leads'!T203 -> 2.016371014 | O67: ='Key Leads'!R203 -> 100.5707458 | P67: 125.7134323
C68: G 59 | D68: ='Key Leads'!I204 -> 7.601281221 | E68: ='Key Leads'!J204 -> 115.8636253 | F68: ='Key Leads'!F204 -> 49 | G68: ='Key Leads'!C204 -> 20.274 | H68: ='Key Leads'!L204 -> 2.466550725 | J68: G 59 | K68: =Hammers!E64 -> 6.3 | L68: =Hammers!B64 -> 12.32740741 | M68: ='Key Leads'!F204 -> 49 | N68: ='Key Leads'!T204 -> 1.97324058 | O68: ='Key Leads'!R204 -> 99.29769839 | P68: 124.122123
C69: G# 60 | D69: ='Key Leads'!I205 -> 7.514174376 | E69: ='Key Leads'!J205 -> 114.7547139 | F69: ='Key Leads'!F205 -> 49 | G69: ='Key Leads'!C205 -> 19.809 | H69: ='Key Leads'!L205 -> 2.412637681 | J69: G# 60 | K69: =Hammers!E65 -> 6.5 | L69: =Hammers!B65 -> 13.39506173 | M69: ='Key Leads'!F205 -> 49 | N69: ='Key Leads'!T205 -> 1.930110145 | O69: ='Key Leads'!R205 -> 101.8437932 | P69: 127.3047415
C70: A 61 | D70: ='Key Leads'!I206 -> 7.239740981 | E70: ='Key Leads'!J206 -> 111.2610467 | F70: ='Key Leads'!F206 -> 48 | G70: ='Key Leads'!C206 -> 19.344 | H70: ='Key Leads'!L206 -> 2.474666667 | J70: A 61 | K70: =Hammers!E66 -> 6.5 | L70: =Hammers!B66 -> 13.39506173 | M70: ='Key Leads'!F206 -> 48 | N70: ='Key Leads'!T206 -> 1.979733333 | O70: ='Key Leads'!R206 -> 101.8437932 | P70: 127.3047415
C71: A# 62 | D71: ='Key Leads'!I207 -> 7.135212766 | E71: ='Key Leads'!J207 -> 109.9303529 | F71: ='Key Leads'!F207 -> 48 | G71: ='Key Leads'!C207 -> 18.786 | H71: ='Key Leads'!L207 -> 2.409971014 | J71: A# 62 | K71: =Hammers!E67 -> 6.4 | L71: =Hammers!B67 -> 12.86123457 | M71: ='Key Leads'!F207 -> 48 | N71: ='Key Leads'!T207 -> 1.927976812 | O71: ='Key Leads'!R207 -> 100.5707458 | P71: 125.7134323
C72: B 63 | D72: ='Key Leads'!I208 -> 7.04810592 | E72: ='Key Leads'!J208 -> 108.8214415 | F72: ='Key Leads'!F208 -> 48 | G72: ='Key Leads'!C208 -> 18.321 | H72: ='Key Leads'!L208 -> 2.356057971 | J72: B 63 | K72: =Hammers!E68 -> 6.3 | L72: =Hammers!B68 -> 12.32740741 | M72: ='Key Leads'!F208 -> 48 | N72: ='Key Leads'!T208 -> 1.884846377 | O72: ='Key Leads'!R208 -> 99.29769839 | P72: 124.122123
C73: C 64 | D73: ='Key Leads'!I209 -> 6.943577706 | E73: ='Key Leads'!J209 -> 107.4907477 | F73: ='Key Leads'!F209 -> 48 | G73: ='Key Leads'!C209 -> 17.763 | H73: ='Key Leads'!L209 -> 2.291362319 | J73: C 64 | K73: =Hammers!E69 -> 6.3 | L73: =Hammers!B69 -> 12.32740741 | M73: ='Key Leads'!F209 -> 48 | N73: ='Key Leads'!T209 -> 1.833089855 | O73: ='Key Leads'!R209 -> 99.29769839 | P73: 124.122123
C74: C# 65 | D74: ='Key Leads'!I210 -> 6.85647086 | E74: ='Key Leads'!J210 -> 106.3818363 | F74: ='Key Leads'!F210 -> 48 | G74: ='Key Leads'!C210 -> 17.298 | H74: ='Key Leads'!L210 -> 2.237449275 | J74: C# 65 | K74: =Hammers!E70 -> 6.2 | L74: =Hammers!B70 -> 11.79358025 | M74: ='Key Leads'!F210 -> 48 | N74: ='Key Leads'!T210 -> 1.78995942 | O74: ='Key Leads'!R210 -> 98.02465098 | P74: 122.5308137
C75: D 66 | D75: ='Key Leads'!I211 -> 6.751942646 | E75: ='Key Leads'!J211 -> 105.0511426 | F75: ='Key Leads'!F211 -> 48 | G75: ='Key Leads'!C211 -> 16.74 | H75: ='Key Leads'!L211 -> 2.172753623 | J75: D 66 | K75: =Hammers!E71 -> 6 | L75: =Hammers!B71 -> 10.72592593 | M75: ='Key Leads'!F211 -> 48 | N75: ='Key Leads'!T211 -> 1.738202899 | O75: ='Key Leads'!R211 -> 95.47855615 | P75: =O75/0.8 -> 119.3481952
C76: D# 67 | D76: ='Key Leads'!I212 -> 6.647414431 | E76: ='Key Leads'!J212 -> 103.7204488 | F76: ='Key Leads'!F212 -> 48 | G76: ='Key Leads'!C212 -> 16.182 | H76: ='Key Leads'!L212 -> 2.108057971 | J76: D# 67 | K76: =Hammers!E72 -> 5.8 | L76: =Hammers!B72 -> 9.658271605 | M76: ='Key Leads'!F212 -> 48 | N76: ='Key Leads'!T212 -> 1.686446377 | O76: ='Key Leads'!R212 -> 92.93246132 | P76: 116.1655766
C77: E 68 | D77: ='Key Leads'!I213 -> 6.542886216 | E77: ='Key Leads'!J213 -> 102.3897551 | F77: ='Key Leads'!F213 -> 48 | G77: ='Key Leads'!C213 -> 15.624 | H77: ='Key Leads'!L213 -> 2.043362319 | J77: E 68 | K77: =Hammers!E73 -> 5.8 | L77: =Hammers!B73 -> 9.658271605 | M77: ='Key Leads'!F213 -> 48 | N77: ='Key Leads'!T213 -> 1.634689855 | O77: ='Key Leads'!R213 -> 92.93246132 | P77: 116.1655766
C78: F 69 | D78: ='Key Leads'!I214 -> 6.438358002 | E78: ='Key Leads'!J214 -> 101.0590614 | F78: ='Key Leads'!F214 -> 48 | G78: ='Key Leads'!C214 -> 15.066 | H78: ='Key Leads'!L214 -> 1.978666667 | J78: F 69 | K78: =Hammers!E74 -> 5.6 | L78: =Hammers!B74 -> 8.590617284 | M78: ='Key Leads'!F214 -> 48 | N78: ='Key Leads'!T214 -> 1.582933333 | O78: ='Key Leads'!R214 -> 90.38636649 | P78: 112.9829581
C79: F# 70 | D79: ='Key Leads'!I215 -> 6.316408418 | E79: ='Key Leads'!J215 -> 99.50658534 | F79: ='Key Leads'!F215 -> 48 | G79: ='Key Leads'!C215 -> 14.415 | H79: ='Key Leads'!L215 -> 1.903188406 | J79: F# 70 | K79: =Hammers!E75 -> 5.6 | L79: =Hammers!B75 -> 8.590617284 | M79: ='Key Leads'!F215 -> 48 | N79: ='Key Leads'!T215 -> 1.522550725 | O79: ='Key Leads'!R215 -> 90.38636649 | P79: 112.9829581
C80: G 71 | D80: ='Key Leads'!I216 -> 6.211880204 | E80: ='Key Leads'!J216 -> 98.1758916 | F80: ='Key Leads'!F216 -> 48 | G80: ='Key Leads'!C216 -> 13.857 | H80: ='Key Leads'!L216 -> 1.838492754 | J80: G 71 | K80: =Hammers!E76 -> 5.5 | L80: =Hammers!B76 -> 8.056790123 | M80: ='Key Leads'!F216 -> 48 | N80: ='Key Leads'!T216 -> 1.470794203 | O80: ='Key Leads'!R216 -> 89.11331907 | P80: 111.3916488
C81: G# 72 | D81: ='Key Leads'!I217 -> 6.107351989 | E81: ='Key Leads'!J217 -> 96.84519787 | F81: ='Key Leads'!F217 -> 48 | G81: ='Key Leads'!C217 -> 13.299 | H81: ='Key Leads'!L217 -> 1.773797101 | J81: G# 72 | K81: =Hammers!E77 -> 5.3 | L81: =Hammers!B77 -> 6.989135802 | M81: ='Key Leads'!F217 -> 48 | N81: ='Key Leads'!T217 -> 1.419037681 | O81: ='Key Leads'!R217 -> 86.56722424 | P81: 108.2090303
C82: A 73 | D82: ='Key Leads'!I218 -> 5.798075856 | E82: ='Key Leads'!J218 -> 92.90796605 | F82: ='Key Leads'!F218 -> 47 | G82: ='Key Leads'!C218 -> 12.648 | H82: ='Key Leads'!L218 -> 1.81426087 | J82: A 73 | K82: =Hammers!E78 -> 5.3 | L82: =Hammers!B78 -> 6.989135802 | M82: ='Key Leads'!F218 -> 47 | N82: ='Key Leads'!T218 -> 1.451408696 | O82: ='Key Leads'!R218 -> 86.56722424 | P82: 108.2090303
C83: A# 74 | D83: ='Key Leads'!I219 -> 5.693547641 | E83: ='Key Leads'!J219 -> 91.57727231 | F83: ='Key Leads'!F219 -> 47 | G83: ='Key Leads'!C219 -> 12.09 | H83: ='Key Leads'!L219 -> 1.749565217 | J83: A# 74 | K83: =Hammers!E79 -> 5 | L83: =Hammers!B79 -> 5.387654321 | M83: ='Key Leads'!F219 -> 47 | N83: ='Key Leads'!T219 -> 1.399652174 | O83: ='Key Leads'!R219 -> 82.74808199 | P83: 103.4351025
C84: B 75 | D84: ='Key Leads'!I220 -> 5.571598057 | E84: ='Key Leads'!J220 -> 90.02479629 | F84: ='Key Leads'!F220 -> 47 | G84: ='Key Leads'!C220 -> 11.439 | H84: ='Key Leads'!L220 -> 1.674086957 | J84: B 75 | K84: =Hammers!E80 -> 5.1 | L84: =Hammers!B80 -> 5.921481481 | M84: ='Key Leads'!F220 -> 47 | N84: ='Key Leads'!T220 -> 1.339269565 | O84: ='Key Leads'!R220 -> 84.02112941 | P84: 105.0264118
C85: C 76 | D85: ='Key Leads'!I221 -> 5.449648474 | E85: ='Key Leads'!J221 -> 88.47232027 | F85: ='Key Leads'!F221 -> 47 | G85: ='Key Leads'!C221 -> 10.788 | H85: ='Key Leads'!L221 -> 1.598608696 | J85: C 76 | K85: =Hammers!E81 -> 5.2 | L85: =Hammers!B81 -> 6.455308642 | M85: ='Key Leads'!F221 -> 47 | N85: ='Key Leads'!T221 -> 1.278886957 | O85: ='Key Leads'!R221 -> 85.29417682 | P85: 106.617721
C86: C# 77 | D86: ='Key Leads'!I222 -> 5.345120259 | E86: ='Key Leads'!J222 -> 87.14162653 | F86: ='Key Leads'!F222 -> 47 | G86: ='Key Leads'!C222 -> 10.23 | H86: ='Key Leads'!L222 -> 1.533913043 | J86: C# 77 | K86: =Hammers!E82 -> 5.2 | L86: =Hammers!B82 -> 6.455308642 | M86: ='Key Leads'!F222 -> 47 | N86: ='Key Leads'!T222 -> 1.227130435 | O86: ='Key Leads'!R222 -> 85.29417682 | P86: 106.617721
C87: D 78 | D87: ='Key Leads'!I223 -> 5.223170675 | E87: ='Key Leads'!J223 -> 85.58915051 | F87: ='Key Leads'!F223 -> 47 | G87: ='Key Leads'!C223 -> 9.579 | H87: ='Key Leads'!L223 -> 1.458434783 | J87: D 78 | K87: =Hammers!E83 -> 4.9 | L87: =Hammers!B83 -> 4.85382716 | M87: ='Key Leads'!F223 -> 47 | N87: ='Key Leads'!T223 -> 1.166747826 | O87: ='Key Leads'!R223 -> 81.47503458 | P87: 101.8437932
C88: D# 79 | D88: ='Key Leads'!I224 -> 5.101221092 | E88: ='Key Leads'!J224 -> 84.03667448 | F88: ='Key Leads'!F224 -> 47 | G88: ='Key Leads'!C224 -> 8.928 | H88: ='Key Leads'!L224 -> 1.382956522 | J88: D# 79 | K88: =Hammers!E84 -> 4.8 | L88: =Hammers!B84 -> 4.32 | M88: ='Key Leads'!F224 -> 47 | N88: ='Key Leads'!T224 -> 1.106365217 | O88: ='Key Leads'!R224 -> 80.20198716 | P88: 100.252484
C89: E 80 | D89: ='Key Leads'!I225 -> 4.996692877 | E89: ='Key Leads'!J225 -> 82.70598075 | F89: ='Key Leads'!F225 -> 47 | G89: ='Key Leads'!C225 -> 8.37 | H89: ='Key Leads'!L225 -> 1.31826087 | J89: E 80 | K89: =Hammers!E85 -> 4.7 | L89: =Hammers!B85 -> 3.78617284 | M89: ='Key Leads'!F225 -> 47 | N89: ='Key Leads'!T225 -> 1.054608696 | O89: ='Key Leads'!R225 -> 78.92893975 | P89: 98.66117468
